Workbook

Sheet Introduction
A1: Oil Production Greenhouse gas Emissions Estimator (OPGEE)
A3: Model version: | C3: 2.0b | E3: Model date: | G3: July 17th, 2017
A6: Authors
B8: Hassan M. El-Houjeiri | E8: Formerly of: Department of Energy Resources Engineering, Stanford University
B9: Kourosh Vafi | E9: Formerly of: Department of Energy Resources Engineering, Stanford University
B10: Mohammad S.Masnadi | E10: Department of Energy Resources Engineering, Stanford University
B11: James Duffy | E11: California Air Resources Board
B12: Scott McNally | E12: Formerly of: Department of Energy Resources Engineering, Stanford University
B13: Sylvia Sleep | E13: Department of Civil and Environmental Engineering, University of Toronto
B14: Diana Pacheco | E14: Department of Civil and Environmental Engineering, University of Toronto
B15: Zainab Dashnadi | E15: Department of Chemical and Petroleum Engineering, University of Calgary
B16: Andrea Orellana | E16: Department of Chemical and Petroleum Engineering, University of Calgary
B17: Heather MacLean | E17: Department of Civil and Environmental Engineering, University of Toronto
B18: Scott McNally | E18: Formerly of: Department of Energy Resources Engineering, Stanford University
B19: Jacob Englander | E19: Department of Energy Resources Engineering, Stanford University
B20: Joule Bergerson | E20: Department of Chemical and Petroleum Engineering, University of Calgary
B21: Adam R. Brandt | E21: Department of Energy Resources Engineering, Stanford University
A24: Overview
B26: This model computes the greenhouse gas emissions from conventional and unconventional upstream oil operations, including all major upstream processes.
B27: Large process stages included:
C28: Exploration
C29: Drilling and development
C30: Production and extraction
C31: Separations and surface operations
C32: Treatment and waste disposal
C33: Transport
A36: Acknowledgements
B38: Primary funding for OPGEE development has been provided by:
C39: California Air Resouces Board
D40: Funding provided by Sponsored Research Agreements 10-418, 13-408
B41: Additional support for OPGEE development and applications has been provided by:
C42: Carnegie Endowment for International Peace
D43: Gifts to Adam Brandt through Stanford University, with primary funding from Carnegie Endowment for International Peace, Blue Moon Fund, Oak Foundation, William and Flora Hewlett Foundation, Energy Foundation, ClimateWorks Foundation, Rockefeller Family Fund, and Sloan Foundation
C44: Ford Motor Company
D45: Gifts to Adam Brandt through Stanford University through University Research Partnership program
C46: Stanford University School of Earth Sciences
D47: Faculty and student support funds
B49: OPGEE is an open-source project which has benefitted from feedback, discussion, and constructive comments from many model users. We acknowledge these contributions.
C50: In particular, we would like to acknowledge significant contributions from:
C51: Trevor Demayo | E51: Chevron, Inc.
C52: Deborah Gordon | E52: Carnegie Endowment for International Peace
C53: Chris Malins | E53: International Council on Clean Transportation
B55: Any errors or omissions of course remain the responsibility of model authors
A59: Copyright statement
B61: Copyright © 2012-2017 The Board of Trustees of the Leland Stanford Junior University
B62: All rights reserved.
B64: The Oil Production Greenhouse Gas Emissions Estimator (OPGEE) Program (Software), source code, binary files, and operating manuals are being provided free of charge. Software may be downloaded, modified and redistributed freely under the following terms and conditions:
B66: Redistributions of any of the following: Software's source code, executables, and any other materials provided must
C67: * retain the above copyright notice
C68: * require that the source and executable with any modifications be made publicly available under these same terms and conditions and
C69: * be sent to: Adam Brandt, Department of Energy Resources Engineering, Stanford University, abrandt@stanford.edu
C70: * include this entire Agreement with any redistribution
B72: Neither the name of Stanford University nor the names of the contributors may be used to endorse or promote products derived from this Software without specific prior written permission.
B74: Software is being provided “AS IS” and With All Faults. Users acknowledge that Stanford or contributors will not provide any maintenance or support for Software.
B76: Stanford makes no representations and extends no warranties of any kind, either express or implied.
B78: Stanford disclaims any express or implied warranty of merchantability, or fitness for a particular purpose, of non-infringement, or arising out of any course of dealing.
B80: Stanford is not liable for any special, consequential, lost profits, expectation, punitive or other indirect damages in connection with any claim arising out of or related to the use of Software whether grounded in tort (including negligence), strict liability, contract, or otherwise; and,
B82: Users will indemnify, hold harmless and defend Stanford against any claim of any kind arising out of or related to the exercise of any rights in this Agreement.
A86: Internal model version
B88: Internal model version v133, July 17th, 2017

Sheet How to use
A1: How to use OPGEE
A3: 1. Quick start
A5: 1. Input data for fields to be modeled on the "Inputs" sheet. The Inputs sheet includes the most important parameters governing emissions from oil production operations.
A6: 2. Any data that you do not enter for a field will be filled with a reasonable default value.
B7: * Some data are entered as a single static default value for all fields.
B8: * Some data are entered using "smart default" values that depend on values of other entered datapoints.
A9: 3. Enter the number of fields to be modeled in the "Inputs" sheet, top left (Inputs C2)
A10: 4. Press the "Run assessment" button
A11: 5. Results are presented on the "Results" tab for each modeled field
B12: * The top section of the Results sheet (called "Complete Inputs") contains the final values used in modeling each field
B13: * Some input values that were entered by the user or filled as default are later changed during a variety of algorithmic adjustments. These are labeled using colors (see below).
B14: * The bottom section ("Outputs") presents resulting energy intensity and emissions estimates.
B15: * Row 185 presents results of error checking process for each field
A18: 2. Detailed user guide
A20: 2.1 Adjusted data inputs
A22: As noted above, some input values are changed during algorithmic analysis or error checking. These cells are colored for ease of debugging.
A24: The resulting color scheme is outlined below:
B26: 1234 | C26: Cell has been changed to a value using OPGEE default or "smart default" relationships. See model documentation for more description of data sources and assumptions used in smart defaults.
B27: 1234 | C27: Cell value has been adjusted using VBA macros to correct for physically inconsistent or out-of-specification data inputs. See model documentation for adjustment process.
B28: 1234 | C28: Cell value is outside of the range normally encountered in petroleum engineering literature. Proceed with caution and check data integrity.
A31: 2.2 Debugging using the "Active Field" sheet
A33: At the bottom of the "Results" sheets, you will find a series of error checks for each field assessed. These can be helpful in model debugging.
A34: The "Active Field" sheet is the sheet where the current field under assessment is stored. The foumulas in the Active Field sheet should not be changed by the user, or unpredictable model results may occur.
A35: At any point in the assessment of multiple fields, the Active Field sheet gives more insight into the settings and results for the particular field being modeled at a given time.
A36: If debugging is required for a field, follow steps below:
B37: * Note the number of the field which is causing problems ("Inputs" row 5)
B38: * Set "Inputs" C2 equal to the number of the problematic field and press "Run assessment" button.
B39: * After the macro runs, all model sheets will contain data and results for the field of interest.
B40: * The "Energy Consumption" and "GHG Emissions" sheets offer summary results on energy use and emissions.
B41: * Detailed computations can be tracked on the red (process stage) and blue (supplemental) worksheets.
A42: Use the error checks at the bottom of the "Active Field" sheet to facilitate debugging.
A44: 2.3 Changing detailed model calculations
A46: Any OPGEE worksheet can be changed as desired by the user. However, some caution is to be excercised in changing computations on red and blue worksheets.
A48: Input cells are colored according to whether they should be treated by the user as a free cell to change, or a cell that holds a forumla dependent on other cells:
B49: User free | C49: A user input cell that can be freely changed.
B50: Default free | C50: A default input cell that holds the default value of an input. This should generally be left as populated in OPGEE.
B51: User dependent | C51: A cell that involves a calculation based on user or default inputs. Should not be changed without proper attention to implications.
B52: Default dependent | C52: A cell that involves a calculation using default vlaues. This should generally be left as populated in OPGEE.
A54: Note that any cell changed in one of the red or blue detailed calculations worksheets will propogate to ALL fields entered in the "Inputs" sheet.

Sheet Model coverage
A1: Model coverage
B3: This sheet provides an overview of the model stages and outlines which sub-processes are included or excluded from each model stage
B4: Some emissions sources have the potential to reduce effective emissions through offsets. These are marked with [-].
A7: 1 Emissions magnitude estimation
A9: Importance code | C9: Estimated size | E9: Degree of treatment
A10: * | C10: 0.01 | D10: g/MJ | E10: Generally excluded
A11: ** | C11: 0.1 | D11: g/MJ | E11: Included with defaults or excluded
A12: *** | C12: 1 | D12: g/MJ | E12: Included with ease of customization
A13: **** | C13: 10 | D13: g/MJ | E13: Included with significant treatment and uncertainty analysis
A16: 2 Inclusion and exclusion in current model version
B19: Main stage | C19: Process | D19: Sub-process | E19: Emissions source | F19: Variants | G19: Sensitivity code | H19: Estimated magnitude (gCO2 eq./MJ) | I19: Included?
B20: Exploration | C20: Seismic exploration | D20: Terrestrial seismic | E20: Vehicular emissions | F20: - | G20: * | H20: =IF(G20="*","<= 0.01 g",IF(G20="**","~ 0.1 g",IF(G20="***","~ 1 g",IF(G20="****","~ 10 g","Error")))) -> <= 0.01 g | I20: 1
E21: Data processing | F21: - | G21: * | H21: <= 0.01 g | I21: 0
E22: Consumed materials (charges etc.) | F22: - | G22: * | H22: <= 0.01 g | I22: 0
E23: Land use impacts | F23: - | G23: * | H23: <= 0.01 g | I23: 0
D24: Oceanic seismic | E24: Ship emissions | F24: - | G24: * | H24: <= 0.01 g | I24: 1
E25: Data processing | F25: - | G25: * | H25: <= 0.01 g | I25: 0
E26: Consumed materials | F26: - | G26: * | H26: <= 0.01 g | I26: 0
C27: Exploratory drilling | D27: Terrestrial drilling | E27: Prime mover emissions | F27: - | G27: * | H27: <= 0.01 g | I27: 1
E28: Land clearing and construction | F28: - | G28: * | H28: <= 0.01 g | I28: 0
E29: Vents and upset emissions | F29: - | G29: * | H29: <= 0.01 g | I29: 0
E30: Drilling flares | F30: - | G30: * | H30: <= 0.01 g | I30: 0
E31: Casing and cement | F31: - | G31: * | H31: <= 0.01 g | I31: 0
E32: Other material consumption (e.g., frac sand) | F32: - | G32: * | H32: <= 0.01 g | I32: 0
E33: Land use impacts | F33: - | G33: * | H33: <= 0.01 g | I33: 0
E34: Indirect land use impacts (opening of inaccessible land) | F34: - | G34: * | H34: <= 0.01 g | I34: 0
D35: Offshore drilling | E35: Prime mover emissions | F35: - | G35: * | H35: <= 0.01 g | I35: 1
E36: Drilling flares | F36: - | G36: * | H36: <= 0.01 g | I36: 0
E37: Vents and upset emissions | F37: - | G37: * | H37: <= 0.01 g | I37: 0
E38: Casing and cement | F38: - | G38: * | H38: <= 0.01 g | I38: 0
C39: Waste handling and disposal | D39: Mud and fluid handling | E39: Energy consumption (other than prime mover) | F39: - | G39: * | H39: <= 0.01 g | I39: 0
E40: Fugitives from mud | F40: - | G40: * | H40: <= 0.01 g | I40: 0
E41: Disposal of mud | F41: - | G41: * | H41: <= 0.01 g | I41: 0
D42: Fracturing fluid disposal | E42: Processing and disposal of fracturing fluid | F42: - | G42: * | H42: <= 0.01 g | I42: 0
D43: Produced water disposal | E43: Processing of produced water | F43: - | G43: * | H43: <= 0.01 g | I43: 0
E44: Disposal of produced water (remote or on-site reinjection) | F44: - | G44: * | H44: <= 0.01 g | I44: 0
B47: Main stage | C47: Process | D47: Sub-process | E47: Emissions source | F47: Variants | G47: Sensitivity code | H47: Estimated magnitude | I47: Included?
B48: Drilling and development | C48: Developmental drilling | D48: Terrestrial drilling | E48: Prime mover emissions | F48: - | G48: ** | H48: =IF(G48="*","<= 0.01 g",IF(G48="**","~ 0.1 g",IF(G48="***","~ 1 g",IF(G48="****","~ 10 g","Error")))) -> ~ 0.1 g | I48: 1
E49: Drilling flares | F49: - | G49: * | H49: <= 0.01 g | I49: 0
E50: Vents and upset emissions | F50: - | G50: ** | H50: ~ 0.1 g | I50: 0
E51: Land use impacts | F51: - | G51: ** | H51: ~ 0.1 g | I51: 1
E52: Clearing and construction | F52: - | G52: * | H52: <= 0.01 g | I52: 0
E53: Casing and cement embodied emissions | F53: - | G53: * | H53: <= 0.01 g | I53: 1
E54: Other materials consumption (e.g., frac sand) | F54: - | G54: * | H54: <= 0.01 g | I54: 1
D55: Oceanic drilling | E55: Prime mover emissions | F55: - | G55: ** | H55: ~ 0.1 g | I55: 1
E56: Drilling flares | F56: - | G56: * | H56: <= 0.01 g | I56: 0
E57: Vents and upset emissions | F57: - | G57: ** | H57: ~ 0.1 g | I57: 0
E58: Casing and cement embodied emissions | F58: - | G58: * | H58: <= 0.01 g | I58: 1
C59: Processing capital investment | D59: Oil/gas/water separators | E59: Separator assembly | F59: - | G59: * | H59: <= 0.01 g | I59: 0
E60: Separator fabrication | F60: - | G60: * | H60: <= 0.01 g | I60: 1
E61: Separator transport | F61: - | G61: * | H61: <= 0.01 g | I61: 1
E62: Raw materials manufacture | F62: - | G62: * | H62: <= 0.01 g | I62: 1
D63: Water reinjection wells | E63: Various drilling emissions from reinjection wells (see above) | F63: - | G63: * | H63: <= 0.01 g | I63: 1
D64: Pumps | E64: Pump assembly | F64: - | G64: * | H64: <= 0.01 g | I64: 0
E65: Pump fabrication and raw materials manufacture | F65: - | G65: * | H65: <= 0.01 g | I65: 1
E66: Pump transport | F66: - | G66: * | H66: <= 0.01 g | I66: 1
C67: Storage capital investment | D67: Storage capital investment | E67: Tank assembly | F67: - | G67: * | H67: <= 0.01 g | I67: 0
E68: Tank fabrication | F68: - | G68: * | H68: <= 0.01 g | I68: 1
E69: Tank transport | F69: - | G69: * | H69: <= 0.01 g | I69: 1
E70: Raw materials manufacture | F70: - | G70: * | H70: <= 0.01 g | I70: 1
E71: Land use impacts | F71: - | G71: * | H71: <= 0.01 g | I71: 1
C72: Transport capital investment | D72: Pipeline capital investment | E72: Pipeline assembly | F72: - | G72: * | H72: <= 0.01 g | I72: 0
E73: Pipe fabrication | F73: - | G73: * | H73: <= 0.01 g | I73: 1
E74: Pipe transport | F74: - | G74: * | H74: <= 0.01 g | I74: 1
E75: Raw materials manufacture | F75: - | G75: * | H75: <= 0.01 g | I75: 1
E76: Land use impacts | F76: - | G76: * | H76: <= 0.01 g | I76: 1
D77: Other transport capital investment | E77: Other infrastructure fabrication and assembly | F77: - | G77: * | H77: <= 0.01 g | I77: 1
B81: Main stage | C81: Process | D81: Sub-process | E81: Emissions source | F81: Variants | G81: Sensitivity code | H81: Estimated magnitude | I81: Included?
B82: Production and extraction | C82: Lifting | D82: Pumping | E82: Combustion for pump driver | F82: - | G82: *** | H82: =IF(G82="*","<= 0.01 g",IF(G82="**","~ 0.1 g",IF(G82="***","~ 1 g",IF(G82="****","~ 10 g","Error")))) -> ~ 1 g | I82: 1
E83: Electricity for pump driver | F83: - | G83: *** | H83: ~ 1 g | I83: 1
E84: Casing and wellhead fugitive emissions | F84: - | G84: *** | H84: ~ 1 g | I84: 1
D85: Gas lift | E85: Compressor prime mover emissions | F85: - | G85: *** | H85: ~ 1 g | I85: 1
E86: Compression electricity emissions | F86: - | G86: *** | H86: ~ 1 g | I86: 1
E87: Casing and wellhead fugitive emissions | F87: - | G87: *** | H87: ~ 1 g | I87: 1
C88: Injection | D88: Gas injection | E88: External gas processing (e.g., N2 production) | F88: - | G88: ** | H88: ~ 0.1 g | I88: 0
E89: Gas compression energy | G89: *** | H89: =IF(G89="*","<= 0.01 g",IF(G89="**","~ 0.1 g",IF(G89="***","~ 1 g",IF(G89="****","~ 10 g","Error")))) -> ~ 1 g | I89: 1
E90: [-] Gas sequestration credit (CO2 flood) | F90: - | G90: *** | H90: ~ 1 g | I90: 1
D91: Steam injection | E91: Water pre-treatment | F91: - | G91: * | H91: <= 0.01 g | I91: 0
E92: OTSG fuel combustion | F92: NG, produced oil | G92: **** | H92: ~ 10 g | I92: 1
E93: Turbine gas consumption (combined cycle) | F93: Low, med, high efficiency | G93: **** | H93: ~ 10 g | I93: 1
E94: HRSG duct firing (combined cycle) | F94: - | G94: *** | H94: ~ 1 g | I94: 1
E95: [-] Electricity co-production offsets (combined cycle) | F95: Grid mix variation | G95: **** | H95: ~ 10 g | I95: 1
E96: Steam pumping energy (if any) | F96: - | G96: * | H96: <= 0.01 g | I96: 0
D97: Polymer flood | E97: Polymer embodied energy | F97: - | G97: * | H97: <= 0.01 g | I97: 0
E98: Polymer mixing | F98: - | G98: * | H98: <= 0.01 g | I98: 0
E99: Polymer/water mixture pumping energy | F99: - | G99: * | H99: <= 0.01 g | I99: 0
D100: Surfactant/other injection | E100: Surfactant/other embodied energy | F100: - | G100: * | H100: <= 0.01 g | I100: 0
E101: Surfactant/other mixing | F101: - | G101: * | H101: <= 0.01 g | I101: 0
E102: Surfactant/other mixture pumping energy | F102: - | G102: * | H102: <= 0.01 g | I102: 0
B105: Main stage | C105: Process | D105: Sub-process | E105: Emissions source | F105: Variants | G105: Sensitivity code | H105: Estimated magnitude | I105: Included?
B106: Separation and surface processing | C106: Fluid separation | D106: Oil-water-gas separation | E106: Oil-water-gas separation | F106: - | G106: ** | H106: =IF(G106="*","<= 0.01 g",IF(G106="**","~ 0.1 g",IF(G106="***","~ 1 g",IF(G106="****","~ 10 g","Error")))) -> ~ 0.1 g | I106: 1
E107: Oil-water-gas separation with heater-treaters | F107: - | G107: ** | H107: ~ 0.1 g | I107: 1
E108: Associated gas venting | F108: Variations in flare efficiency | G108: **** | H108: ~ 10 g | I108: 1
E109: Associated gas flaring | F109: Variations in flare efficiency | G109: **** | H109: ~ 10 g | I109: 1
C110: Solid/fluid separation | D110: Solid separation from fluids | E110: Solids removal from separation | F110: - | G110: * | H110: <= 0.01 g | I110: 0
C111: Gas treatment | D111: Gas treatment | E111: Produced gas dehydration | F111: - | G111: * | H111: <= 0.01 g | I111: 1
E112: Produced gas venting and flaring | F112: - | G112: *** | H112: ~ 1 g | I112: 1
C113: Water treatment and disposal | D113: Water treatment | E113: Produced water cleanup | F113: - | G113: ** | H113: ~ 0.1 g | I113: 1
E114: Produced water handling and pumping | F114: - | G114: ** | H114: ~ 0.1 g | I114: 1
D115: Water reinjection and disposal | E115: Produced water reinjection | F115: - | G115: *** | H115: ~ 1 g | I115: 1
E116: Produced water disposal | F116: - | G116: ** | H116: ~ 0.1 g | I116: 1
C117: Storage (as part of separation) | D117: Storage | E117: Storage pumping energy | F117: - | G117: * | H117: <= 0.01 g | I117: 0
E118: Tank assembly and installation | F118: - | G118: * | H118: <= 0.01 g | I118: 1
E119: Evaporative and fugitive emissions | F119: - | G119: ** | H119: ~ 0.1 g | I119: 1
E120: Tank materials manufacture | F120: - | G120: * | H120: <= 0.01 g | I120: 1
E121: Land use impacts | F121: - | G121: * | H121: <= 0.01 g | I121: 1
B124: Main stage | C124: Process | D124: Sub-process | E124: Emissions source | F124: Variants | G124: Sensitivity code | H124: Estimated magnitude | I124: Included?
B125: Maintenance and workovers | C125: Well workover | D125: Terrestrial well workover | E125: Workover rig energy use | F125: - | G125: * | H125: =IF(G125="*","<= 0.01 g",IF(G125="**","~ 0.1 g",IF(G125="***","~ 1 g",IF(G125="****","~ 10 g","Error")))) -> <= 0.01 g | I125: 0
E126: Fugitive emissions during workover | F126: - | G126: ** | H126: ~ 0.1 g | I126: 1
E127: Embodied energy in consumed replacement parts | F127: - | G127: * | H127: <= 0.01 g | I127: 0
D128: Offshore well workover | E128: Workover rig energy use | F128: - | G128: * | H128: <= 0.01 g | I128: 0
E129: Fugitive emissions during workover | F129: - | G129: ** | H129: ~ 0.1 g | I129: 1
E130: Embodied energy in consumed replacement parts | G130: * | H130: <= 0.01 g | I130: 0
C131: Other maintenance | D131: Other maintenance | E131: Solids removal from separation | F131: - | G131: * | H131: <= 0.01 g | I131: 0
B136: Main stage | C136: Process | D136: Sub-process | E136: Emissions source | F136: Variants | G136: Sensitivity code | H136: Estimated magnitude | I136: Included?
B137: Waste treatment and disposal | C137: Water processing waste | D137: Water treatment waste disposal | E137: Subsurface disposal of concentrated WW residuals | F137: - | G137: * | H137: =IF(G137="*","<= 0.01 g",IF(G137="**","~ 0.1 g",IF(G137="***","~ 1 g",IF(G137="****","~ 10 g","Error")))) -> <= 0.01 g | I137: 0
E138: Surface disposal of separated solids | F138: - | G138: * | H138: <= 0.01 g | I138: 0
E139: Surface disposal of concentrated WW residuals | F139: - | G139: * | H139: <= 0.01 g | I139: 0
C140: Other waste separation and disposal | D140: Other waste separation and processing | E140: Other waste separation and processing | F140: - | G140: * | H140: <= 0.01 g | I140: 0
E141: Other waste storage | F141: - | G141: * | H141: <= 0.01 g | I141: 0
E142: Spills and other upsets | F142: - | G142: * | H142: <= 0.01 g | I142: 0
D143: Other waste disposal | E143: Other waste transport | F143: - | G143: * | H143: <= 0.01 g | I143: 0
E144: Other waste disposal (non-hazardous) | F144: - | G144: * | H144: <= 0.01 g | I144: 0
E145: Other waste disposal (hazardous) | F145: - | G145: * | H145: <= 0.01 g | I145: 0
C146: Solid waste disposal and project decommissioning | D146: Solid waste disposal | E146: Solid waste separation and processing | F146: - | G146: * | H146: <= 0.01 g | I146: 0
E147: Solid waste transport and disposal | F147: - | G147: * | H147: <= 0.01 g | I147: 0
D148: End of life and decommissioning | E148: Demolition and decommissioning | F148: - | G148: * | H148: <= 0.01 g | I148: 0
E149: Scrap and waste disposal | F149: - | G149: * | H149: <= 0.01 g | I149: 0
E150: [-] Credit for waste recycling (embodied energy) | F150: - | G150: * | H150: <= 0.01 g | I150: 0
B154: Main stage | C154: Process | D154: Sub-process | E154: Emissions source | F154: Variants | G154: Sensitivity code | H154: Estimated magnitude | I154: Included?
B155: Crude product transport | C155: Pipeline transport | D155: Pipeline transport | E155: Combustion for pump prime mover | F155: - | G155: *** | H155: =IF(G155="*","<= 0.01 g",IF(G155="**","~ 0.1 g",IF(G155="***","~ 1 g",IF(G155="****","~ 10 g","Error")))) -> ~ 1 g | I155: 1
E156: Electricity for pump use | F156: - | G156: *** | H156: ~ 1 g | I156: 1
E157: Process upsets (one-time events) | F157: - | G157: * | H157: <= 0.01 g | I157: 1
E158: Leaks (pipeline losses) | F158: - | G158: *** | H158: ~ 1 g | I158: 1
D159: Pipeline construction | E159: Construction equipment energy use | F159: - | G159: * | H159: <= 0.01 g | I159: 0
E160: Embodied energy in pipeline materials (cement and steel) | F160: - | G160: * | H160: <= 0.01 g | I160: 1
E161: Land use impacts | F161: - | G161: * | H161: <= 0.01 g | I161: 1
C162: Tanker transport | D162: Tanker transport | E162: Combustion in tanker prime mover (bunker fuels) | F162: - | G162: *** | H162: ~ 1 g | I162: 1
E163: Loading and unloading pumping | F163: - | G163: * | H163: <= 0.01 g | I163: 1
E164: Flares | F164: - | G164: * | H164: <= 0.01 g | I164: 1
E165: Vents, leaks and upsets | F165: - | G165: * | H165: <= 0.01 g | I165: 1
D166: Tanker construction | E166: Embodied energy in tanker materials (steel) | F166: - | G166: * | H166: <= 0.01 g | I166: 0
E167: Construction energy | F167: - | G167: * | H167: <= 0.01 g | I167: 0
C168: Storage (as part of transport) | D168: Storage | E168: Storage pumping energy | F168: - | G168: * | H168: <= 0.01 g | I168: 0
E169: Tank assembly and installation | F169: - | G169: * | H169: <= 0.01 g | I169: 1
E170: Evaporative and fugitive emissions | F170: - | G170: ** | H170: ~ 0.1 g | I170: 1
E171: Tank materials manufacture | F171: - | G171: * | H171: <= 0.01 g | I171: 1
E172: Land use impacts | F172: - | G172: * | H172: <= 0.01 g | I172: 0

Sheet Inputs
A1: Data inputs | B1: Start field: | C1: End field:
A2: Fields: | B2: 1 | C2: 1
A3: 1 Inputs
A5: Variables | E5: Unit | G5: Default | H5: Field 1 | I5: Field 2 | J5: Field 3 | K5: Field 4 | L5: Field 5 | M5: Field 6 | N5: Field 7 | O5: Field 8 | P5: Field 9 | Q5: Field 10 | R5: Field 11 | S5: Field 12 | T5: Field 13 | U5: Field 14 | V5: Field 15 | W5: Field 16 | X5: Field 17 | Y5: Field 18 | Z5: Field 19 | AA5: Field 20 | AB5: Field 21 | AC5: Field 22 | AD5: Field 23 | AE5: Field 24 | AF5: Field 25 | AG5: Field 26 | AH5: Field 27 | AI5: Field 28 | AJ5: Field 29 | AK5: Field 30 | AL5: Field 31 | AM5: Field 32 | AN5: Field 33 | AO5: Field 34 | AP5: Field 35 | AQ5: Field 36 | AR5: Field 37 | AS5: Field 38 | AT5: Field 39 | AU5: Field 40 | AV5: Field 41 | AW5: Field 42 | AX5: Field 43 | AY5: Field 44 | AZ5: Field 45 | BA5: Field 46 | BB5: Field 47 | BC5: Field 48 | BD5: Field 49 | BE5: Field 50 | BF5: Field 51 | BG5: Field 52 | BH5: Field 53 | BI5: Field 54 | BJ5: Field 55 | BK5: Field 56 | BL5: Field 57 | BM5: Field 58 | BN5: Field 59 | BO5: Field 60 | BP5: Field 61 | BQ5: Field 62 | BR5: Field 63 | BS5: Field 64 | BT5: Field 65 | BU5: Field 66 | BV5: Field 67 | BW5: Field 68 | BX5: Field 69 | BY5: Field 70 | BZ5: Field 71 | CA5: Field 72 | CB5: Field 73 | CC5: Field 74 | CD5: Field 75 | CE5: Field 76 | CF5: Field 77 | CG5: Field 78 | CH5: Field 79 | CI5: Field 80 | CJ5: Field 81 | CK5: Field 82 | CL5: Field 83 | CM5: Field 84 | CN5: Field 85 | CO5: Field 86 | CP5: Field 87 | CQ5: Field 88 | CR5: Field 89 | CS5: Field 90 | CT5: Field 91 | CU5: Field 92 | CV5: Field 93 | CW5: Field 94 | CX5: Field 95 | CY5: Field 96 | CZ5: Field 97 | DA5: Field 98 | DB5: Field 99 | DC5: Field 100 | DD5: Field 101 | DE5: Field 102 | DF5: Field 103 | DG5: Field 104 | DH5: Field 105 | DI5: Field 106 | DJ5: Field 107 | DK5: Field 108 | DL5: Field 109 | DM5: Field 110 | DN5: Field 111 | DO5: Field 112 | DP5: Field 113 | DQ5: Field 114 | DR5: Field 115 | DS5: Field 116 | DT5: Field 117 | DU5: Field 118 | DV5: Field 119 | DW5: Field 120 | DX5: Field 121 | DY5: Field 122 | DZ5: Field 123 | EA5: Field 124 | EB5: Field 125 | EC5: Field 126 | ED5: Field 127 | EE5: Field 128 | EF5: Field 129 | EG5: Field 130 | EH5: Field 131 | EI5: Field 132 | EJ5: Field 133 | EK5: Field 134 | EL5: Field 135 | EM5: Field 136 | EN5: Field 137 | EO5: Field 138 | EP5: Field 139 | EQ5: Field 140 | ER5: Field 141 | ES5: Field 142 | ET5: Field 143 | EU5: Field 144 | EV5: Field 145 | EW5: Field 146 | EX5: Field 147 | EY5: Field 148 | EZ5: Field 149 | FA5: Field 150 | FB5: Field 151 | FC5: Field 152 | FD5: Field 153 | FE5: Field 154 | FF5: Field 155 | FG5: Field 156 | FH5: Field 157 | FI5: Field 158 | FJ5: Field 159 | FK5: Field 160 | FL5: Field 161 | FM5: Field 162 | FN5: Field 163 | FO5: Field 164 | FP5: Field 165 | FQ5: Field 166 | FR5: Field 167 | FS5: Field 168 | FT5: Field 169 | FU5: Field 170 | FV5: Field 171 | FW5: Field 172 | FX5: Field 173 | FY5: Field 174 | FZ5: Field 175 | GA5: Field 176 | GB5: Field 177 | GC5: Field 178 | GD5: Field 179 | GE5: Field 180 | GF5: Field 181 | GG5: Field 182 | GH5: Field 183 | GI5: Field 184 | GJ5: Field 185 | GK5: Field 186 | GL5: Field 187 | GM5: Field 188 | GN5: Field 189 | GO5: Field 190 | GP5: Field 191 | GQ5: Field 192 | GR5: Field 193 | GS5: Field 194 | GT5: Field 195 | GU5: Field 196 | GV5: Field 197 | GW5: Field 198 | GX5: Field 199 | GY5: Field 200 | GZ5: Field 201 | HA5: Field 202 | HB5: Field 203 | HC5: Field 204 | HD5: Field 205 | HE5: Field 206 | HF5: Field 207 | HG5: Field 208 | HH5: Field 209 | HI5: Field 210 | HJ5: Field 211 | HK5: Field 212 | HL5: Field 213 | HM5: Field 214 | HN5: Field 215 | HO5: Field 216 | HP5: Field 217 | HQ5: Field 218 | HR5: Field 219 | HS5: Field 220 | HT5: Field 221 | HU5: Field 222 | HV5: Field 223 | HW5: Field 224 | HX5: Field 225 | HY5: Field 226 | HZ5: Field 227 | IA5: Field 228 | IB5: Field 229 | IC5: Field 230 | ID5: Field 231 | IE5: Field 232 | IF5: Field 233 | IG5: Field 234 | IH5: Field 235 | II5: Field 236 | IJ5: Field 237 | IK5: Field 238 | IL5: Field 239 | IM5: Field 240 | IN5: Field 241 | IO5: Field 242 | IP5: Field 243 | IQ5: Field 244 | IR5: Field 245 | IS5: Field 246 | IT5: Field 247 | IU5: Field 248 | IV5: Field 249 | IW5: Field 250 | IX5: Field 251 | IY5: Field 252 | IZ5: Field 253 | JA5: Field 254 | JB5: Field 255 | JC5: Field 256 | JD5: Field 257 | JE5: Field 258 | JF5: Field 259 | JG5: Field 260 | JH5: Field 261 | JI5: Field 262 | JJ5: Field 263 | JK5: Field 264 | JL5: Field 265 | JM5: Field 266 | JN5: Field 267 | JO5: Field 268 | JP5: Field 269 | JQ5: Field 270 | JR5: Field 271 | JS5: Field 272 | JT5: Field 273 | JU5: Field 274 | JV5: Field 275 | JW5: Field 276 | JX5: Field 277 | JY5: Field 278 | JZ5: Field 279 | KA5: Field 280 | KB5: Field 281 | KC5: Field 282 | KD5: Field 283 | KE5: Field 284 | KF5: Field 285 | KG5: Field 286 | KH5: Field 287 | KI5: Field 288 | KJ5: Field 289 | KK5: Field 290 | KL5: Field 291 | KM5: Field 292 | KN5: Field 293 | KO5: Field 294 | KP5: Field 295 | KQ5: Field 296 | KR5: Field 297 | KS5: Field 298 | KT5: Field 299 | KU5: Field 300 | KV5: Field 301 | KW5: Field 302 | KX5: Field 303 | KY5: Field 304 | KZ5: Field 305 | LA5: Field 306 | LB5: Field 307 | LC5: Field 308 | LD5: Field 309 | LE5: Field 310 | LF5: Field 311 | LG5: Field 312 | LH5: Field 313 | LI5: Field 314 | LJ5: Field 315 | LK5: Field 316 | LL5: Field 317 | LM5: Field 318 | LN5: Field 319 | LO5: Field 320 | LP5: Field 321 | LQ5: Field 322 | LR5: Field 323 | LS5: Field 324 | LT5: Field 325 | LU5: Field 326 | LV5: Field 327 | LW5: Field 328 | LX5: Field 329 | LY5: Field 330 | LZ5: Field 331 | MA5: Field 332 | MB5: Field 333 | MC5: Field 334 | MD5: Field 335 | ME5: Field 336 | MF5: Field 337 | MG5: Field 338 | MH5: Field 339 | MI5: Field 340 | MJ5: Field 341 | MK5: Field 342 | ML5: Field 343 | MM5: Field 344 | MN5: Field 345 | MO5: Field 346 | MP5: Field 347 | MQ5: Field 348 | MR5: Field 349 | MS5: Field 350 | MT5: Field 351 | MU5: Field 352 | MV5: Field 353 | MW5: Field 354 | MX5: Field 355 | MY5: Field 356 | MZ5: Field 357 | NA5: Field 358 | NB5: Field 359 | NC5: Field 360 | ND5: Field 361 | NE5: Field 362 | NF5: Field 363 | NG5: Field 364 | NH5: Field 365 | NI5: Field 366 | NJ5: Field 367 | NK5: Field 368 | NL5: Field 369 | NM5: Field 370 | NN5: Field 371 | NO5: Field 372 | NP5: Field 373 | NQ5: Field 374 | NR5: Field 375 | NS5: Field 376 | NT5: Field 377 | NU5: Field 378 | NV5: Field 379 | NW5: Field 380 | NX5: Field 381 | NY5: Field 382 | NZ5: Field 383 | OA5: Field 384 | OB5: Field 385 | OC5: Field 386 | OD5: Field 387 | OE5: Field 388 | OF5: Field 389 | OG5: Field 390 | OH5: Field 391 | OI5: Field 392 | OJ5: Field 393 | OK5: Field 394 | OL5: Field 395 | OM5: Field 396 | ON5: Field 397 | OO5: Field 398 | OP5: Field 399 | OQ5: Field 400 | OR5: Field 401 | OS5: Field 402 | OT5: Field 403 | OU5: Field 404 | OV5: Field 405 | OW5: Field 406 | OX5: Field 407 | OY5: Field 408 | OZ5: Field 409 | PA5: Field 410 | PB5: Field 411 | PC5: Field 412 | PD5: Field 413 | PE5: Field 414 | PF5: Field 415 | PG5: Field 416 | PH5: Field 417 | PI5: Field 418 | PJ5: Field 419 | PK5: Field 420 | PL5: Field 421 | PM5: Field 422 | PN5: Field 423 | PO5: Field 424 | PP5: Field 425 | PQ5: Field 426 | PR5: Field 427 | PS5: Field 428 | PT5: Field 429 | PU5: Field 430 | PV5: Field 431 | PW5: Field 432 | PX5: Field 433 | PY5: Field 434 | PZ5: Field 435 | QA5: Field 436 | QB5: Field 437 | QC5: Field 438 | QD5: Field 439 | QE5: Field 440 | QF5: Field 441 | QG5: Field 442 | QH5: Field 443 | QI5: Field 444 | QJ5: Field 445 | QK5: Field 446 | QL5: Field 447 | QM5: Field 448 | QN5: Field 449 | QO5: Field 450 | QP5: Field 451 | QQ5: Field 452 | QR5: Field 453 | QS5: Field 454 | QT5: Field 455 | QU5: Field 456 | QV5: Field 457 | QW5: Field 458 | QX5: Field 459 | QY5: Field 460 | QZ5: Field 461 | RA5: Field 462 | RB5: Field 463 | RC5: Field 464 | RD5: Field 465 | RE5: Field 466 | RF5: Field 467 | RG5: Field 468 | RH5: Field 469 | RI5: Field 470 | RJ5: Field 471 | RK5: Field 472 | RL5: Field 473 | RM5: Field 474 | RN5: Field 475 | RO5: Field 476 | RP5: Field 477 | RQ5: Field 478 | RR5: Field 479 | RS5: Field 480 | RT5: Field 481 | RU5: Field 482 | RV5: Field 483 | RW5: Field 484 | RX5: Field 485 | RY5: Field 486 | RZ5: Field 487 | SA5: Field 488 | SB5: Field 489 | SC5: Field 490 | SD5: Field 491 | SE5: Field 492 | SF5: Field 493 | SG5: Field 494 | SH5: Field 495 | SI5: Field 496 | SJ5: Field 497 | SK5: Field 498 | SL5: Field 499 | SM5: Field 500 | SN5: Field 501 | SO5: Field 502 | SP5: Field 503 | SQ5: Field 504 | SR5: Field 505 | SS5: Field 506 | ST5: Field 507 | SU5: Field 508 | SV5: Field 509 | SW5: Field 510
G6: =IF(G21="","NA",G21) -> Generic | H6: =IF(H21="","NA",H21) -> NA | I6: =IF(I21="","NA",I21) -> NA | J6: NA | K6: NA | L6: NA | M6: NA | N6: NA | O6: NA | P6: NA | Q6: NA | R6: NA | S6: NA | T6: NA | U6: NA | V6: NA | W6: NA | X6: NA | Y6: NA | Z6: NA | AA6: NA | AB6: NA | AC6: NA | AD6: NA | AE6: NA | AF6: NA | AG6: NA | AH6: NA | AI6: NA | AJ6: NA | AK6: NA | AL6: NA | AM6: NA | AN6: NA | AO6: NA | AP6: NA | AQ6: NA | AR6: NA | AS6: NA | AT6: NA | AU6: NA | AV6: NA | AW6: NA | AX6: NA | AY6: NA | AZ6: NA | BA6: NA | BB6: NA | BC6: NA | BD6: NA | BE6: NA | BF6: NA | BG6: NA | BH6: NA | BI6: NA | BJ6: NA | BK6: NA | BL6: NA | BM6: NA | BN6: NA | BO6: NA | BP6: NA | BQ6: NA | BR6: NA | BS6: NA | BT6: =IF(BT21="","NA",BT21) -> NA | BU6: NA | BV6: NA | BW6: =IF(BW21="","NA",BW21) -> NA | BX6: NA | BY6: =IF(BY21="","NA",BY21) -> NA | BZ6: NA | CA6: NA | CB6: NA | CC6: NA | CD6: NA | CE6: NA | CF6: NA | CG6: NA | CH6: NA | CI6: NA | CJ6: NA | CK6: NA | CL6: NA | CM6: NA | CN6: NA | CO6: NA | CP6: NA | CQ6: NA | CR6: NA | CS6: NA | CT6: NA | CU6: NA | CV6: NA | CW6: NA | CX6: NA | CY6: NA | CZ6: NA | DA6: NA | DB6: NA | DC6: NA | DD6: NA | DE6: NA | DF6: NA | DG6: NA | DH6: NA | DI6: NA | DJ6: NA | DK6: NA | DL6: NA | DM6: NA | DO6: NA | DP6: NA | DQ6: NA | DR6: NA | DS6: NA | DT6: Diluent Test 0% | DU6: Diluent Test 25% | DV6: Diluent Test 50% | DW6: Diluent Test 75% | DX6: Diluent Test 100% | DY6: Oil sands test: Mine, DC, integrated | DZ6: Oil sands test: Mine, DC, non-integrated | EA6: Oil sands test: Mine, HC, integrated | EB6: Oil sands test: Mine, HC, non-integrated | EC6: Oil sands test: Mine, HCFC, integrated | ED6: Oil sands test: Mine, HCFC, non-integrated | EE6: NA | EF6: NA | EG6: NA | EH6: NA | EI6: NA | EJ6: NA | EK6: =IF(EK21="","NA",EK21) -> NA | EL6: NA | EM6: NA | EN6: NA | EO6: NA | EP6: NA | EQ6: NA | ER6: NA | ES6: NA | ET6: NA | EU6: NA | EV6: NA | EW6: NA | EX6: NA | EY6: NA | EZ6: NA | FA6: NA | FB6: NA | FC6: NA | FD6: NA | FE6: NA | FF6: NA | FG6: NA | FH6: NA | FI6: NA | FJ6: NA | FK6: NA | FL6: NA | FM6: NA | FN6: NA | FO6: NA | FP6: NA | FQ6: NA | FR6: NA | FS6: NA | FT6: NA | FU6: NA | FV6: NA | FW6: NA | FX6: NA | FY6: NA | FZ6: NA | GA6: NA | GB6: NA | GC6: NA | GD6: NA | GE6: NA | GF6: NA | GG6: NA | GH6: NA | GI6: NA | GJ6: NA | GK6: NA | GL6: NA | GM6: NA | GN6: NA | GO6: NA | GP6: NA | GQ6: NA | GR6: NA | GS6: NA | GT6: NA | GU6: NA | GV6: NA | GW6: =IF(GW21="","NA",GW21) -> NA | GX6: NA | GY6: NA | GZ6: NA | HA6: NA | HB6: NA | HC6: NA | HD6: NA | HE6: NA | HF6: NA | HG6: NA | HH6: NA | HI6: NA | HJ6: NA | HK6: NA | HL6: NA | HM6: NA | HN6: NA | HO6: NA | HP6: NA | HQ6: NA | HR6: NA | HS6: NA | HT6: NA | HU6: NA | HV6: NA | HW6: NA | HX6: NA | HY6: NA | HZ6: NA | IA6: NA | IB6: NA | IC6: NA | ID6: NA | IE6: NA | IF6: NA | IG6: NA | IH6: NA | II6: NA | IJ6: NA | IK6: NA | IL6: NA | IM6: NA | IN6: NA | IO6: NA | IP6: NA | IQ6: NA | IR6: NA | IS6: NA | IT6: NA | IU6: NA | IV6: NA | IW6: NA | IX6: NA | IY6: NA | IZ6: NA | JA6: NA | JB6: NA | JC6: NA | JD6: NA | JE6: NA | JF6: NA | JG6: NA | JH6: NA | JI6: =IF(JI21="","NA",JI21) -> NA | JJ6: NA | JK6: NA | JL6: NA | JM6: NA | JN6: NA | JO6: NA | JP6: NA | JQ6: NA | JR6: NA | JS6: NA | JT6: NA | JU6: NA | JV6: NA | JW6: NA | JX6: NA | JY6: NA | JZ6: NA | KA6: NA | KB6: NA | KC6: NA | KD6: NA | KE6: NA | KF6: NA | KG6: NA | KH6: NA | KI6: NA | KJ6: NA | KK6: NA | KL6: NA | KM6: NA | KN6: NA | KO6: NA | KP6: NA | KQ6: NA | KR6: NA | KS6: NA | KT6: NA | KU6: NA | KV6: NA | KW6: NA | KX6: NA | KY6: NA | KZ6: NA | LA6: NA | LB6: NA | LC6: NA | LD6: NA | LE6: NA | LF6: NA | LG6: NA | LH6: NA | LI6: NA | LJ6: NA | LK6: NA | LL6: NA | LM6: NA | LN6: NA | LO6: NA | LP6: NA | LQ6: NA | LR6: NA | LS6: NA | LT6: NA | LU6: =IF(LU21="","NA",LU21) -> NA | LV6: NA | LW6: NA | LX6: NA | LY6: NA | LZ6: NA | MA6: NA | MB6: NA | MC6: NA | MD6: NA | ME6: NA | MF6: NA | MG6: NA | MH6: NA | MI6: NA | MJ6: NA | MK6: NA | ML6: NA | MM6: NA | MN6: NA | MO6: NA | MP6: NA | MQ6: NA | MR6: NA | MS6: NA | MT6: NA | MU6: NA | MV6: NA | MW6: NA | MX6: NA | MY6: NA | MZ6: NA | NA6: NA | NB6: NA | NC6: NA | ND6: NA | NE6: NA | NF6: NA | NG6: NA | NH6: NA | NI6: NA | NJ6: NA | NK6: NA | NL6: NA | NM6: NA | NN6: NA | NO6: NA | NP6: NA | NQ6: NA | NR6: NA | NS6: NA | NT6: NA | NU6: NA | NV6: NA | NW6: NA | NX6: NA | NY6: NA | NZ6: NA | OA6: NA | OB6: NA | OC6: NA | OD6: NA | OE6: NA | OF6: NA | OG6: =IF(OG21="","NA",OG21) -> NA | OH6: NA | OI6: NA | OJ6: NA | OK6: NA | OL6: NA | OM6: NA | ON6: NA | OO6: NA | OP6: NA | OQ6: NA | OR6: NA | OS6: NA | OT6: NA | OU6: NA | OV6: NA | OW6: NA | OX6: NA | OY6: NA | OZ6: NA | PA6: NA | PB6: NA | PC6: NA | PD6: NA | PE6: NA | PF6: NA | PG6: NA | PH6: NA | PI6: NA | PJ6: NA | PK6: NA | PL6: NA | PM6: NA | PN6: NA | PO6: NA | PP6: NA | PQ6: NA | PR6: NA | PS6: NA | PT6: NA | PU6: NA | PV6: NA | PW6: NA | PX6: NA | PY6: NA | PZ6: NA | QA6: NA | QB6: NA | QC6: NA | QD6: NA | QE6: NA | QF6: NA | QG6: NA | QH6: NA | QI6: NA | QJ6: NA | QK6: NA | QL6: NA | QM6: NA | QN6: NA | QO6: NA | QP6: NA | QQ6: NA | QR6: NA | QS6: =IF(QS21="","NA",QS21) -> NA | QT6: NA | QU6: NA | QV6: NA | QW6: NA | QX6: NA | QY6: NA | QZ6: NA | RA6: NA | RB6: NA | RC6: NA | RD6: NA | RE6: NA | RF6: NA | RG6: NA | RH6: NA | RI6: NA | RJ6: NA | RK6: NA | RL6: NA | RM6: NA | RN6: NA | RO6: NA | RP6: NA | RQ6: NA | RR6: NA | RS6: NA | RT6: NA | RU6: NA | RV6: NA | RW6: NA | RX6: NA | RY6: NA | RZ6: NA | SA6: NA | SB6: NA | SC6: NA | SD6: NA | SE6: NA | SF6: NA | SG6: NA | SH6: NA | SI6: NA | SJ6: NA | SK6: NA | SL6: NA | SM6: NA | SN6: NA | SO6: NA | SP6: NA | SQ6: NA | SR6: NA | SS6: NA | ST6: NA | SU6: NA | SV6: NA | SW6: NA
A7: 1.1 Production methods
A8: Notes: Enter "1" where applicable and "0" where not applicable
B9: 1.1.1 Downhole pump | E9: NA | G9: 1 | DY9: 0 | DZ9: 0 | EA9: 0 | EB9: 0 | EC9: 0 | ED9: 0
B10: 1.1.2 Water reinjection | E10: NA | G10: 1 | DT10: 0 | DU10: 0 | DV10: 0 | DW10: 0 | DX10: 0 | DY10: 0 | DZ10: 0 | EA10: 0 | EB10: 0 | EC10: 0 | ED10: 0
B11: 1.1.3 Natural gas reinjection | E11: NA | G11: 1 | DT11: 0 | DU11: 0 | DV11: 0 | DW11: 0 | DX11: 0 | DY11: 0 | DZ11: 0 | EA11: 0 | EB11: 0 | EC11: 0 | ED11: 0
B12: 1.1.4 Water flooding | E12: NA | G12: 0 | DY12: 0 | DZ12: 0 | EA12: 0 | EB12: 0 | EC12: 0 | ED12: 0
B13: 1.1.5 Gas lifting | E13: NA | G13: 0 | DY13: 0 | DZ13: 0 | EA13: 0 | EB13: 0 | EC13: 0 | ED13: 0
B14: 1.1.6 Gas flooding | E14: NA | G14: 0 | DY14: 0 | DZ14: 0 | EA14: 0 | EB14: 0 | EC14: 0 | ED14: 0
B15: 1.1.7 Steam flooding | E15: NA | G15: 0 | DT15: 1 | DU15: 1 | DV15: 1 | DW15: 1 | DX15: 1 | DY15: 0 | DZ15: 0 | EA15: 0 | EB15: 0 | EC15: 0 | ED15: 0
B16: 1.1.8 Oil sands mine (integrated with upgrader) | E16: NA | G16: 0 | DY16: 1 | DZ16: 0 | EA16: 1 | EB16: 0 | EC16: 1 | ED16: 0
B17: 1.1.9 Oil sands mine (non-integrated with upgrader) | E17: NA | G17: 0 | DY17: 0 | DZ17: 1 | EA17: 0 | EB17: 1 | EC17: 0 | ED17: 1
A19: 1.2 Field properties
B20: 1.2.1 Field location (Country) | E20: NA | G20: Generic | DY20: Canada | DZ20: Canada | EA20: Canada | EB20: Canada | EC20: Canada | ED20: Canada
B21: 1.2.2 Field name | E21: NA | G21: Generic | DT21: Diluent Test 0% | DU21: Diluent Test 25% | DV21: Diluent Test 50% | DW21: Diluent Test 75% | DX21: Diluent Test 100% | DY21: Oil sands test: Mine, DC, integrated | DZ21: Oil sands test: Mine, DC, non-integrated | EA21: Oil sands test: Mine, HC, integrated | EB21: Oil sands test: Mine, HC, non-integrated | EC21: Oil sands test: Mine, HCFC, integrated | ED21: Oil sands test: Mine, HCFC, non-integrated
B22: 1.2.3 Field age | E22: yr. | G22: 35
B23: 1.2.4 Field depth | E23: ft | G23: 7240 | DT23: 2000 | DU23: 2000 | DV23: 2000 | DW23: 2000 | DX23: 2000
B24: 1.2.5 Oil production volume | E24: bbl/d | G24: 1500
B25: 1.2.6 Number of producing wells | E25: [-] | G25: 8
B26: 1.2.7 Number of water injecting wells | E26: [-] | G26: 5
B27: 1.2.8 Production tubing diameter | E27: in | G27: 2.775
B28: 1.2.9 Productivity index | E28: bbl/psi-d | G28: 3
B29: 1.2.10 Reservoir pressure | E29: psi | G29: 1556.6
B30: 1.2.11 Reservoir temperature | E30: ◦F | G30: 150
B31: 1.2.12 Offshore? | E31: [0-1] | G31: 0
A33: 1.3 Fluid properties
B34: 1.3.1 API gravity | E34: deg. API | G34: 30 | DT34: 15 | DU34: 15 | DV34: 15 | DW34: 15 | DX34: 15 | DY34: 32 | DZ34: 32 | EA34: 32 | EB34: 32 | EC34: 32 | ED34: 32
B35: 1.3.2 Gas composition
C36: N2 | E36: mol% | G36: 2
C37: CO2 | E37: mol% | G37: 6
C38: C1 | E38: mol% | G38: 84
C39: C2 | E39: mol% | G39: 4
C40: C3 | E40: mol% | G40: 2
C41: C4+ | E41: mol% | G41: 1
C42: H2S | E42: mol% | G42: 1
A44: 1.4 Production practices
A45: Notes: Enter "NA" where not applicable
B46: 1.4.1 Gas-to-oil ratio (GOR) | E46: scf/bbl oil | G46: 908 | DT46: 0 | DU46: 0 | DV46: 0 | DW46: 0 | DX46: 0
B47: 1.4.2 Water-to-oil ratio (WOR) | E47: bbl water/bbl oil | G47: 4.308369057 | DT47: 0 | DU47: 0 | DV47: 0 | DW47: 0 | DX47: 0
B48: 1.4.3 Water injection ratio | E48: bbl water/bbl oil | G48: 5.308369057
B49: 1.4.4 Gas lifting injection ratio | E49: scf/bbl liquid | G49: 1500
B50: 1.4.5 Gas flooding injection ratio | E50: scf/bbl oil | G50: 1362
B51: 1.4.6 Flood gas | E51: NA | G51: 1
C52: 1= Natural gas
C53: 2= Nitrogen (N2)
C54: 3= Carbon Dioxide (CO2)
B57: 1.4.7 Carbon dioxide flooding and sequestration parameters
C58: 1.4.7.1 Percentage of newly acquired CO2 (total injected CO2 includes both new and recycled) | E58: % | G58: 41
C59: 1.4.7.2 Source of CO2 | E59: NA | G59: 1
D60: 1= Natural subsurface reservoir
D61: 2= Anthropogenic
C62: 1.4.7.3 Percentage of sequestration credit assigned to the oilfield | E62: % | G62: 0
B63: 1.4.8 Steam-to-oil ratio (SOR) | E63: bbl steam/bbl oil | G63: 3
B64: 1.4.9 Fraction of required electricity generated onsite | E64: [-] | G64: 0
B65: 1.4.10 Fraction of remaining natural gas reinjected | E65: [-] | G65: 0
B66: 1.4.11 Fraction of produced water reinjected | E66: [-] | G66: 1
B67: 1.4.12 Fraction of steam generation via cogeneration | E67: [-] | G67: 0
B68: 1.4.13 Fraction of steam generation via solar thermal | E68: [-] | G68: 0
A69: 1.5 Processing practices
B70: 1.5.1 Heater/treater | E70: NA | G70: 0
B71: 1.5.2 Stabilizer column | E71: NA | G71: 1
B72: 1.5.3 Upgrader type | G72: 0 | DY72: 1 | DZ72: 1 | EA72: 2 | EB72: 2 | EC72: 3 | ED72: 3
C73: 0 = None
C74: 1 = Delayed coking
C75: 2 = Hydroconversion
C76: 3 = Combined hydroconversion and fluid coking
B77: 1.5.3 Associated Gas Processing Path | E77: NA | G77: 5
C78: 1= None
C79: 2= Minimal: Dehydrator
C80: 3= Acid Gas: Dehydrator + Amine Process
C81: 4= Wet Gas: Dehydrator + Demethanizer
A82: Notes: Choose paths 6-8 only if gas flooding is ON and CO2 is the flood gas | C82: 5= Acid Wet Gas: Dehydrator + Amine Process + Demethanizer
C83: 6= Sour gas reinjection, dehydration then direct injection of sour CO2-rich stream
C84: 7= CO2-EOR Membrane: Dehydrator + Compressor + Membrane + Amine Process + Demethanizer
C85: 8= CO2-EOR Ryan Holmes: Dehydrator + Ryan Holmes Process (Demethanizer Included)
B86: 1.5.4 Flaring-to-oil ratio | E86: scf/bbl oil | G86: 181.5280918 | DT86: 0 | DU86: 0 | DV86: 0 | DW86: 0 | DX86: 0 | DY86: 0 | DZ86: 0 | EA86: 0 | EB86: 0 | EC86: 0 | ED86: 0
B87: 1.5.5 Venting-to-oil ratio | E87: scf/bbl oil | G87: 0 | DY87: 0 | DZ87: 0 | EA87: 0 | EB87: 0 | EC87: 0 | ED87: 0
B88: 1.5.6 Volume fraction of diluent | E88: [-] | G88: 0 | DT88: 0 | DU88: 0.25 | DV88: 0.5 | DW88: 0.75 | DX88: 1
A90: 1.6 Land use impacts
B91: 1.6.1 Crude ecosystem carbon richness
C92: 1.6.1.1 Low carbon richness (semi-arid grasslands) | E92: NA | G92: 0
C93: 1.6.1.2 Moderate carbon richness (mixed) | E93: NA | G93: 1
C94: 1.6.1.3 High carbon richness (forested) | E94: NA | G94: 0
B95: 1.6.2 Field development intensity
C96: 1.6.2.1 Low intensity development and low oxidation | E96: NA | G96: 0
C97: 1.6.2.2 Moderate intensity development and moderate oxidation | E97: NA | G97: 1 | DY97: 0 | DZ97: 0 | EA97: 0 | EB97: 0 | EC97: 0 | ED97: 0
C98: 1.6.2.3 High intensity development and high oxidation | E98: NA | G98: 0 | DY98: 1 | DZ98: 1 | EA98: 1 | EB98: 1 | EC98: 1 | ED98: 1
A100: 1.7 Crude oil transport
B101: 1.7.1 Fraction of oil transported by each mode
C102: 1.7.1.1 Ocean tanker | E102: [-] | G102: 1
C103: 1.7.1.2 Barge | E103: [-] | G103: 0
C104: 1.7.1.3 Pipeline | E104: [-] | G104: 1
C105: 1.7.1.4 Rail | E105: [-] | G105: 0
C106: 1.7.1.5 Truck | G106: 0
B107: 1.7.2 Transport distance (one way)
C108: 1.7.2.1 Ocean tanker | E108: Mile | G108: 5082
C109: 1.7.2.2 Barge | E109: Mile | G109: 500
C110: 1.7.2.3 Pipeline | E110: Mile | G110: 750
C111: 1.7.2.4 Rail | E111: Mile | G111: 800
C112: 1.7.2.5 Truck | G112: 100
B113: 1.7.3 Ocean tanker size, if applicable | E113: Ton | G113: 250000
A115: 1.8 Small sources emissions | E115: gCO2eq/MJ | G115: 0.5

Sheet Results
A1: Results | B1: Start field: | C1: End field:
A2: Fields: | B2: 1 | C2: 1 | G2: Key: | I2: = Changed to OPGEE default | M2: = Adjusted using bulk assessment macro | R2: = Outside of literature range
A3: 1 Complete Inputs
A5: Output variables | E5: Unit | G5: Default | H5: Field 1 | I5: Field 2 | J5: Field 3 | K5: Field 4 | L5: Field 5 | M5: Field 6 | N5: Field 7 | O5: Field 8 | P5: Field 9 | Q5: Field 10 | R5: Field 11 | S5: Field 12 | T5: Field 13 | U5: Field 14 | V5: Field 15 | W5: Field 16 | X5: Field 17 | Y5: Field 18 | Z5: Field 19 | AA5: Field 20 | AB5: Field 21 | AC5: Field 22 | AD5: Field 23 | AE5: Field 24 | AF5: Field 25 | AG5: Field 26 | AH5: Field 27 | AI5: Field 28 | AJ5: Field 29 | AK5: Field 30 | AL5: Field 31 | AM5: Field 32 | AN5: Field 33 | AO5: Field 34 | AP5: Field 35 | AQ5: Field 36 | AR5: Field 37 | AS5: Field 38 | AT5: Field 39 | AU5: Field 40 | AV5: Field 41 | AW5: Field 42 | AX5: Field 43 | AY5: Field 44 | AZ5: Field 45 | BA5: Field 46 | BB5: Field 47 | BC5: Field 48 | BD5: Field 49 | BE5: Field 50 | BF5: Field 51 | BG5: Field 52 | BH5: Field 53 | BI5: Field 54 | BJ5: Field 55 | BK5: Field 56 | BL5: Field 57 | BM5: Field 58 | BN5: Field 59 | BO5: Field 60 | BP5: Field 61 | BQ5: Field 62 | BR5: Field 63 | BS5: Field 64 | BT5: Field 65 | BU5: Field 66 | BV5: Field 67 | BW5: Field 68 | BX5: Field 69 | BY5: Field 70 | BZ5: Field 71 | CA5: Field 72 | CB5: Field 73 | CC5: Field 74 | CD5: Field 75 | CE5: Field 76 | CF5: Field 77 | CG5: Field 78 | CH5: Field 79 | CI5: Field 80 | CJ5: Field 81 | CK5: Field 82 | CL5: Field 83 | CM5: Field 84 | CN5: Field 85 | CO5: Field 86 | CP5: Field 87 | CQ5: Field 88 | CR5: Field 89 | CS5: Field 90 | CT5: Field 91 | CU5: Field 92 | CV5: Field 93 | CW5: Field 94 | CX5: Field 95 | CY5: Field 96 | CZ5: Field 97 | DA5: Field 98 | DB5: Field 99 | DC5: Field 100 | DD5: Field 101 | DE5: Field 102 | DF5: Field 103 | DG5: Field 104 | DH5: Field 105 | DI5: Field 106 | DJ5: Field 107 | DK5: Field 108 | DL5: Field 109 | DM5: Field 110 | DN5: Field 111 | DO5: Field 112 | DP5: Field 113 | DQ5: Field 114 | DR5: Field 115 | DS5: Field 116 | DT5: Field 117 | DU5: Field 118 | DV5: Field 119 | DW5: Field 120 | DX5: Field 121 | DY5: Field 122 | DZ5: Field 123 | EA5: Field 124 | EB5: Field 125 | EC5: Field 126 | ED5: Field 127 | EE5: Field 128 | EF5: Field 129 | EG5: Field 130 | EH5: Field 131 | EI5: Field 132 | EJ5: Field 133 | EK5: Field 134 | EL5: Field 135 | EM5: Field 136 | EN5: Field 137 | EO5: Field 138 | EP5: Field 139 | EQ5: Field 140 | ER5: Field 141 | ES5: Field 142 | ET5: Field 143 | EU5: Field 144 | EV5: Field 145 | EW5: Field 146 | EX5: Field 147 | EY5: Field 148 | EZ5: Field 149 | FA5: Field 150 | FB5: Field 151 | FC5: Field 152 | FD5: Field 153 | FE5: Field 154 | FF5: Field 155 | FG5: Field 156 | FH5: Field 157 | FI5: Field 158 | FJ5: Field 159 | FK5: Field 160 | FL5: Field 161 | FM5: Field 162 | FN5: Field 163 | FO5: Field 164 | FP5: Field 165 | FQ5: Field 166 | FR5: Field 167 | FS5: Field 168 | FT5: Field 169 | FU5: Field 170 | FV5: Field 171 | FW5: Field 172 | FX5: Field 173 | FY5: Field 174 | FZ5: Field 175 | GA5: Field 176 | GB5: Field 177 | GC5: Field 178 | GD5: Field 179 | GE5: Field 180 | GF5: Field 181 | GG5: Field 182 | GH5: Field 183 | GI5: Field 184 | GJ5: Field 185 | GK5: Field 186 | GL5: Field 187 | GM5: Field 188 | GN5: Field 189 | GO5: Field 190 | GP5: Field 191 | GQ5: Field 192 | GR5: Field 193 | GS5: Field 194 | GT5: Field 195 | GU5: Field 196 | GV5: Field 197 | GW5: Field 198 | GX5: Field 199 | GY5: Field 200 | GZ5: Field 201 | HA5: Field 202 | HB5: Field 203 | HC5: Field 204 | HD5: Field 205 | HE5: Field 206 | HF5: Field 207 | HG5: Field 208 | HH5: Field 209 | HI5: Field 210 | HJ5: Field 211 | HK5: Field 212 | HL5: Field 213 | HM5: Field 214 | HN5: Field 215 | HO5: Field 216 | HP5: Field 217 | HQ5: Field 218 | HR5: Field 219 | HS5: Field 220 | HT5: Field 221 | HU5: Field 222 | HV5: Field 223 | HW5: Field 224 | HX5: Field 225 | HY5: Field 226 | HZ5: Field 227 | IA5: Field 228 | IB5: Field 229 | IC5: Field 230 | ID5: Field 231 | IE5: Field 232 | IF5: Field 233 | IG5: Field 234 | IH5: Field 235 | II5: Field 236 | IJ5: Field 237 | IK5: Field 238 | IL5: Field 239 | IM5: Field 240 | IN5: Field 241 | IO5: Field 242 | IP5: Field 243 | IQ5: Field 244 | IR5: Field 245 | IS5: Field 246 | IT5: Field 247 | IU5: Field 248 | IV5: Field 249 | IW5: Field 250 | IX5: Field 251 | IY5: Field 252 | IZ5: Field 253 | JA5: Field 254 | JB5: Field 255 | JC5: Field 256 | JD5: Field 257 | JE5: Field 258 | JF5: Field 259 | JG5: Field 260 | JH5: Field 261 | JI5: Field 262 | JJ5: Field 263 | JK5: Field 264 | JL5: Field 265 | JM5: Field 266 | JN5: Field 267 | JO5: Field 268 | JP5: Field 269 | JQ5: Field 270 | JR5: Field 271 | JS5: Field 272 | JT5: Field 273 | JU5: Field 274 | JV5: Field 275 | JW5: Field 276 | JX5: Field 277 | JY5: Field 278 | JZ5: Field 279 | KA5: Field 280 | KB5: Field 281 | KC5: Field 282 | KD5: Field 283 | KE5: Field 284 | KF5: Field 285 | KG5: Field 286 | KH5: Field 287 | KI5: Field 288 | KJ5: Field 289 | KK5: Field 290 | KL5: Field 291 | KM5: Field 292 | KN5: Field 293 | KO5: Field 294 | KP5: Field 295 | KQ5: Field 296 | KR5: Field 297 | KS5: Field 298 | KT5: Field 299 | KU5: Field 300 | KV5: Field 301 | KW5: Field 302 | KX5: Field 303 | KY5: Field 304 | KZ5: Field 305 | LA5: Field 306 | LB5: Field 307 | LC5: Field 308 | LD5: Field 309 | LE5: Field 310 | LF5: Field 311 | LG5: Field 312 | LH5: Field 313 | LI5: Field 314 | LJ5: Field 315 | LK5: Field 316 | LL5: Field 317 | LM5: Field 318 | LN5: Field 319 | LO5: Field 320 | LP5: Field 321 | LQ5: Field 322 | LR5: Field 323 | LS5: Field 324 | LT5: Field 325 | LU5: Field 326 | LV5: Field 327 | LW5: Field 328 | LX5: Field 329 | LY5: Field 330 | LZ5: Field 331 | MA5: Field 332 | MB5: Field 333 | MC5: Field 334 | MD5: Field 335 | ME5: Field 336 | MF5: Field 337 | MG5: Field 338 | MH5: Field 339 | MI5: Field 340 | MJ5: Field 341 | MK5: Field 342 | ML5: Field 343 | MM5: Field 344 | MN5: Field 345 | MO5: Field 346 | MP5: Field 347 | MQ5: Field 348 | MR5: Field 349 | MS5: Field 350 | MT5: Field 351 | MU5: Field 352 | MV5: Field 353 | MW5: Field 354 | MX5: Field 355 | MY5: Field 356 | MZ5: Field 357 | NA5: Field 358 | NB5: Field 359 | NC5: Field 360 | ND5: Field 361 | NE5: Field 362 | NF5: Field 363 | NG5: Field 364 | NH5: Field 365 | NI5: Field 366 | NJ5: Field 367 | NK5: Field 368 | NL5: Field 369 | NM5: Field 370 | NN5: Field 371 | NO5: Field 372 | NP5: Field 373 | NQ5: Field 374 | NR5: Field 375 | NS5: Field 376 | NT5: Field 377 | NU5: Field 378 | NV5: Field 379 | NW5: Field 380 | NX5: Field 381 | NY5: Field 382 | NZ5: Field 383 | OA5: Field 384 | OB5: Field 385 | OC5: Field 386 | OD5: Field 387 | OE5: Field 388 | OF5: Field 389 | OG5: Field 390 | OH5: Field 391 | OI5: Field 392 | OJ5: Field 393 | OK5: Field 394 | OL5: Field 395 | OM5: Field 396 | ON5: Field 397 | OO5: Field 398 | OP5: Field 399 | OQ5: Field 400 | OR5: Field 401 | OS5: Field 402 | OT5: Field 403 | OU5: Field 404 | OV5: Field 405 | OW5: Field 406 | OX5: Field 407 | OY5: Field 408 | OZ5: Field 409 | PA5: Field 410 | PB5: Field 411 | PC5: Field 412 | PD5: Field 413 | PE5: Field 414 | PF5: Field 415 | PG5: Field 416 | PH5: Field 417 | PI5: Field 418 | PJ5: Field 419 | PK5: Field 420 | PL5: Field 421 | PM5: Field 422 | PN5: Field 423 | PO5: Field 424 | PP5: Field 425 | PQ5: Field 426 | PR5: Field 427 | PS5: Field 428 | PT5: Field 429 | PU5: Field 430 | PV5: Field 431 | PW5: Field 432 | PX5: Field 433 | PY5: Field 434 | PZ5: Field 435 | QA5: Field 436 | QB5: Field 437 | QC5: Field 438 | QD5: Field 439 | QE5: Field 440 | QF5: Field 441 | QG5: Field 442 | QH5: Field 443 | QI5: Field 444 | QJ5: Field 445 | QK5: Field 446 | QL5: Field 447 | QM5: Field 448 | QN5: Field 449 | QO5: Field 450 | QP5: Field 451 | QQ5: Field 452 | QR5: Field 453 | QS5: Field 454 | QT5: Field 455 | QU5: Field 456 | QV5: Field 457 | QW5: Field 458 | QX5: Field 459 | QY5: Field 460 | QZ5: Field 461 | RA5: Field 462 | RB5: Field 463 | RC5: Field 464 | RD5: Field 465 | RE5: Field 466 | RF5: Field 467 | RG5: Field 468 | RH5: Field 469 | RI5: Field 470 | RJ5: Field 471 | RK5: Field 472 | RL5: Field 473 | RM5: Field 474 | RN5: Field 475 | RO5: Field 476 | RP5: Field 477 | RQ5: Field 478 | RR5: Field 479 | RS5: Field 480 | RT5: Field 481 | RU5: Field 482 | RV5: Field 483 | RW5: Field 484 | RX5: Field 485 | RY5: Field 486 | RZ5: Field 487 | SA5: Field 488 | SB5: Field 489 | SC5: Field 490 | SD5: Field 491 | SE5: Field 492 | SF5: Field 493 | SG5: Field 494 | SH5: Field 495 | SI5: Field 496 | SJ5: Field 497 | SK5: Field 498 | SL5: Field 499 | SM5: Field 500 | SN5: Field 501 | SO5: Field 502 | SP5: Field 503 | SQ5: Field 504 | SR5: Field 505
G6: =IF(G21="","NA",G21) -> NA | H6: =IF(H21="","NA",H21) -> Generic | I6: NA | J6: NA | K6: NA | L6: NA | M6: NA | N6: NA | O6: NA | P6: NA | Q6: NA | R6: NA | S6: NA | T6: NA | U6: NA | V6: NA | W6: NA | X6: NA | Y6: NA | Z6: NA | AA6: NA | AB6: NA | AC6: NA | AD6: NA | AE6: NA | AF6: NA | AG6: NA | AH6: NA | AI6: NA | AJ6: NA | AK6: NA | AL6: NA | AM6: NA | AN6: NA | AO6: NA | AP6: NA | AQ6: NA | AR6: NA | AS6: NA | AT6: NA | AU6: NA | AV6: NA | AW6: NA | AX6: NA | AY6: NA | AZ6: NA | BA6: NA | BB6: NA | BC6: NA | BD6: NA | BE6: NA | BF6: NA | BG6: NA | BH6: NA | BI6: NA | BJ6: NA | BK6: NA | BL6: NA | BM6: NA | BN6: NA | BO6: NA | BP6: NA | BQ6: NA | BR6: NA | BS6: NA | BT6: =IF(BT21="","NA",BT21) -> NA | BU6: NA | BV6: NA | BW6: NA | BX6: NA | BY6: NA | BZ6: NA | CA6: NA | CB6: NA | CC6: NA | CD6: NA | CE6: NA | CF6: NA | CG6: NA | CH6: NA | CI6: NA | CJ6: NA | CK6: NA | CL6: NA | CM6: NA | CN6: NA | CO6: NA | CP6: NA | CQ6: NA | CR6: NA | CS6: NA | CT6: NA | CU6: NA | CV6: NA | CW6: NA | CX6: NA | CY6: NA | CZ6: NA | DA6: NA | DB6: NA | DC6: NA | DD6: NA | DE6: NA | DF6: NA | DG6: NA | DH6: NA | DI6: NA | DJ6: NA | DK6: NA | DL6: NA | DM6: NA | DN6: NA | DO6: NA | DP6: NA | DQ6: NA | DR6: NA | DS6: NA | DT6: NA | DU6: NA | DV6: NA | DW6: NA | DX6: NA | DY6: NA | DZ6: NA | EA6: NA | EB6: NA | EC6: NA | ED6: NA | EE6: NA | EF6: =IF(EF21="","NA",EF21) -> NA | EG6: NA | EH6: NA | EI6: NA | EJ6: NA | EK6: NA | EL6: NA | EM6: NA | EN6: NA | EO6: NA | EP6: NA | EQ6: NA | ER6: NA | ES6: NA | ET6: NA | EU6: NA | EV6: NA | EW6: NA | EX6: NA | EY6: NA | EZ6: NA | FA6: NA | FB6: NA | FC6: NA | FD6: NA | FE6: NA | FF6: NA | FG6: NA | FH6: NA | FI6: NA | FJ6: NA | FK6: NA | FL6: NA | FM6: NA | FN6: NA | FO6: NA | FP6: NA | FQ6: NA | FR6: NA | FS6: NA | FT6: NA | FU6: NA | FV6: NA | FW6: NA | FX6: NA | FY6: NA | FZ6: NA | GA6: NA | GB6: NA | GC6: NA | GD6: NA | GE6: NA | GF6: NA | GG6: NA | GH6: NA | GI6: NA | GJ6: NA | GK6: NA | GL6: NA | GM6: NA | GN6: NA | GO6: NA | GP6: NA | GQ6: NA | GR6: =IF(GR21="","NA",GR21) -> NA | GS6: NA | GT6: NA | GU6: NA | GV6: NA | GW6: NA | GX6: NA | GY6: NA | GZ6: NA | HA6: NA | HB6: NA | HC6: NA | HD6: NA | HE6: NA | HF6: NA | HG6: NA | HH6: NA | HI6: NA | HJ6: NA | HK6: NA | HL6: NA | HM6: NA | HN6: NA | HO6: NA | HP6: NA | HQ6: NA | HR6: NA | HS6: NA | HT6: NA | HU6: NA | HV6: NA | HW6: NA | HX6: NA | HY6: NA | HZ6: NA | IA6: NA | IB6: NA | IC6: NA | ID6: NA | IE6: NA | IF6: NA | IG6: NA | IH6: NA | II6: NA | IJ6: NA | IK6: NA | IL6: NA | IM6: NA | IN6: NA | IO6: NA | IP6: NA | IQ6: NA | IR6: NA | IS6: NA | IT6: NA | IU6: NA | IV6: NA | IW6: NA | IX6: NA | IY6: NA | IZ6: NA | JA6: NA | JB6: NA | JC6: NA | JD6: =IF(JD21="","NA",JD21) -> NA | JE6: NA | JF6: NA | JG6: NA | JH6: NA | JI6: NA | JJ6: NA | JK6: NA | JL6: NA | JM6: NA | JN6: NA | JO6: NA | JP6: NA | JQ6: NA | JR6: NA | JS6: NA | JT6: NA | JU6: NA | JV6: NA | JW6: NA | JX6: NA | JY6: NA | JZ6: NA | KA6: NA | KB6: NA | KC6: NA | KD6: NA | KE6: NA | KF6: NA | KG6: NA | KH6: NA | KI6: NA | KJ6: NA | KK6: NA | KL6: NA | KM6: NA | KN6: NA | KO6: NA | KP6: NA | KQ6: NA | KR6: NA | KS6: NA | KT6: NA | KU6: NA | KV6: NA | KW6: NA | KX6: NA | KY6: NA | KZ6: NA | LA6: NA | LB6: NA | LC6: NA | LD6: NA | LE6: NA | LF6: NA | LG6: NA | LH6: NA | LI6: NA | LJ6: NA | LK6: NA | LL6: NA | LM6: NA | LN6: NA | LO6: NA | LP6: =IF(LP21="","NA",LP21) -> NA | LQ6: NA | LR6: NA | LS6: NA | LT6: NA | LU6: NA | LV6: NA | LW6: NA | LX6: NA | LY6: NA | LZ6: NA | MA6: NA | MB6: NA | MC6: NA | MD6: NA | ME6: NA | MF6: NA | MG6: NA | MH6: NA | MI6: NA | MJ6: NA | MK6: NA | ML6: NA | MM6: NA | MN6: NA | MO6: NA | MP6: NA | MQ6: NA | MR6: NA | MS6: NA | MT6: NA | MU6: NA | MV6: NA | MW6: NA | MX6: NA | MY6: NA | MZ6: NA | NA6: NA | NB6: NA | NC6: NA | ND6: NA | NE6: NA | NF6: NA | NG6: NA | NH6: NA | NI6: NA | NJ6: NA | NK6: NA | NL6: NA | NM6: NA | NN6: NA | NO6: NA | NP6: NA | NQ6: NA | NR6: NA | NS6: NA | NT6: NA | NU6: NA | NV6: NA | NW6: NA | NX6: NA | NY6: NA | NZ6: NA | OA6: NA | OB6: =IF(OB21="","NA",OB21) -> NA | OC6: NA | OD6: NA | OE6: NA | OF6: NA | OG6: NA | OH6: NA | OI6: NA | OJ6: NA | OK6: NA | OL6: NA | OM6: NA | ON6: NA | OO6: NA | OP6: NA | OQ6: NA | OR6: NA | OS6: NA | OT6: NA | OU6: NA | OV6: NA | OW6: NA | OX6: NA | OY6: NA | OZ6: NA | PA6: NA | PB6: NA | PC6: NA | PD6: NA | PE6: NA | PF6: NA | PG6: NA | PH6: NA | PI6: NA | PJ6: NA | PK6: NA | PL6: NA | PM6: NA | PN6: NA | PO6: NA | PP6: NA | PQ6: NA | PR6: NA | PS6: NA | PT6: NA | PU6: NA | PV6: NA | PW6: NA | PX6: NA | PY6: NA | PZ6: NA | QA6: NA | QB6: NA | QC6: NA | QD6: NA | QE6: NA | QF6: NA | QG6: NA | QH6: NA | QI6: NA | QJ6: NA | QK6: NA | QL6: NA | QM6: NA | QN6: =IF(QN21="","NA",QN21) -> NA | QO6: NA | QP6: NA | QQ6: NA | QR6: NA | QS6: NA | QT6: NA | QU6: NA | QV6: NA | QW6: NA | QX6: NA | QY6: NA | QZ6: NA | RA6: NA | RB6: NA | RC6: NA | RD6: NA | RE6: NA | RF6: NA | RG6: NA | RH6: NA | RI6: NA | RJ6: NA | RK6: NA | RL6: NA | RM6: NA | RN6: NA | RO6: NA | RP6: NA | RQ6: NA | RR6: NA | RS6: NA | RT6: NA | RU6: NA | RV6: NA | RW6: NA | RX6: NA | RY6: NA | RZ6: NA | SA6: NA | SB6: NA | SC6: NA | SD6: NA | SE6: NA | SF6: NA | SG6: NA | SH6: NA | SI6: NA | SJ6: NA | SK6: NA | SL6: NA | SM6: NA | SN6: NA | SO6: NA | SP6: NA | SQ6: NA | SR6: NA
A7: 1.1 Production methods
A8: Notes: Enter "1" where applicable and "0" where not applicable
B9: 1.1.1 Downhole pump | E9: NA | H9: 1
B10: 1.1.2 Water reinjection | E10: NA | H10: 1
B11: 1.1.3 Natural gas reinjection | E11: NA | H11: 1
B12: 1.1.4 Water flooding | E12: NA | H12: 0
B13: 1.1.5 Gas lifting | E13: NA | H13: 0
B14: 1.1.6 Gas flooding | E14: NA | H14: 0
B15: 1.1.7 Steam flooding | E15: NA | H15: 0
B16: 1.1.8 Oil sands mine (integrated with upgrader) | E16: NA | H16: 0
B17: 1.1.9 Oil sands mine (non-integrated with upgrader) | E17: NA | H17: 0
A19: 1.2 Field properties
B20: 1.2.1 Field location (Country) | E20: NA | H20: Generic
B21: 1.2.2 Field name | E21: NA | H21: Generic
B22: 1.2.3 Field age | E22: yr. | H22: 35
B23: 1.2.4 Field depth | E23: ft | H23: 7240
B24: 1.2.5 Oil production volume | E24: bbl/d | H24: 1500
B25: 1.2.6 Number of producing wells | E25: [-] | H25: 8
B26: 1.2.7 Number of water injecting wells | E26: [-] | H26: 5
B27: 1.2.8 Production tubing diameter | E27: in | H27: 2.775
B28: 1.2.9 Productivity index | E28: bbl/psi-d | H28: 3
B29: 1.2.10 Reservoir pressure | E29: psi | H29: 1556.6
B30: 1.2.11 Reservoir temperature | E30: ◦F | H30: 200.32
B31: 1.2.12 Offshore? | E31: [0-1] | H31: 0
A33: 1.3 Fluid properties
B34: 1.3.1 API gravity | E34: deg. API | H34: 30
B35: 1.3.2 Gas composition
C36: N2 | E36: mol% | H36: 2
C37: CO2 | E37: mol% | H37: 6
C38: C1 | E38: mol% | H38: 84
C39: C2 | E39: mol% | H39: 4
C40: C3 | E40: mol% | H40: 2
C41: C4+ | E41: mol% | H41: 1
C42: H2S | E42: mol% | H42: 1
A44: 1.4 Production practices
A45: Notes: Enter "NA" where not applicable
B46: 1.4.1 Gas-to-oil ratio (GOR) | E46: scf/bbl oil | H46: 908
B47: 1.4.2 Water-to-oil ratio (WOR) | E47: bbl water/bbl oil | H47: 4.308369057
B48: 1.4.3 Water injection ratio | E48: bbl water/bbl oil | H48: 5.308369057
B49: 1.4.4 Gas lifting injection ratio | E49: scf/bbl liquid | H49: 1500
B50: 1.4.5 Gas flooding injection ratio | E50: scf/bbl oil | H50: 1362
B51: 1.4.6 Flood gas | E51: NA | H51: 1
C52: 1) Natural gas
C53: 2) Nitrogen (N2)
C54: 3) Carbon Dioxide (CO2)
B57: 1.4.7 Carbon dioxide flooding and sequestration parameters
C58: 1.4.7.1 Percentage of newly acquired CO2 (total injected CO2 includes both new and recycled) | E58: % | H58: 41
C59: 1.4.7.2 Source of CO2 | E59: NA | H59: 1
D60: 1) Natural subsurface reservoir
D61: 2) Anthropogenic
C62: 1.4.7.3 Percentage of sequestration credit assigned to the oilfield | E62: % | H62: 0
B63: 1.4.8 Steam-to-oil ratio (SOR) | E63: bbl steam/bbl oil | H63: 3
B64: 1.4.9 Fraction of required electricity generated onsite | E64: [-] | H64: 0
B65: 1.4.10 Fraction of remaining natural gas reinjected | E65: [-] | H65: 0
B66: 1.4.11 Fraction of produced water reinjected | E66: [-] | H66: 1
B67: 1.4.12 Fraction of steam generation via cogeneration | E67: [-] | H67: 0
B68: 1.4.13 Fraction of steam generation via solar thermal | E68: [-] | H68: 0
A69: 1.5 Processing practices
B70: 1.5.1 Heater/treater | E70: NA | H70: 0
B71: 1.5.2 Stabilizer column | E71: NA | H71: 1
B72: 1.5.3 Upgrader type | H72: 0
C73: 0 = None
C74: 1 = Delayed coking
C75: 2 = Hydroconversion
C76: 3 = Combined hydroconversion and fluid coking
B77: 1.5.3 Associated Gas Processing Path | E77: NA | H77: 5
C78: 1= None
C79: 2= Minimal: Dehydrator
C80: 3= Acid Gas: Dehydrator + Amine Process
C81: 4= Wet Gas: Dehydrator + Demethanizer
C82: 5= Acid Wet Gas: Dehydrator + Amine Process + Demethanizer
C83: 6= Sour gas reinjection, dehydration then direct injection of sour CO2-rich stream
C84: 7= CO2-EOR Membrane: Dehydrator + Compressor + Membrane + Amine Process + Demethanizer
C85: 8= CO2-EOR Ryan Holmes: Dehydrator + Ryan Holmes Process (Demethanizer Included)
B86: 1.5.4 Flaring-to-oil ratio | E86: scf/bbl oil | H86: 154.7169618
B87: 1.5.5 Venting-to-oil ratio | E87: scf/bbl oil | H87: 0
B88: 1.5.6 Volume fraction of diluent | E88: [-] | H88: 0
A90: 1.6 Land use impacts
B91: 1.6.1 Crude ecosystem carbon richness
C92: 1.6.1.1 Low carbon richness (semi-arid grasslands) | E92: NA | H92: 0
C93: 1.6.1.2 Moderate carbon richness (mixed) | E93: NA | H93: 1
C94: 1.6.1.3 High carbon richness (forested) | E94: NA | H94: 0
B95: 1.6.2 Field development intensity
C96: 1.6.2.1 Low intensity development and low oxidation | E96: NA | H96: 0
C97: 1.6.2.2 Moderate intensity development and moderate oxidation | E97: NA | H97: 1
C98: 1.6.2.3 High intensity development and high oxidation | E98: NA | H98: 0
A100: 1.7 Crude oil transport
B101: 1.7.1 Fraction of oil transported by each mode
C102: 1.7.1.1 Ocean tanker | E102: [-] | H102: 1
C103: 1.7.1.2 Barge | E103: [-] | H103: 0
C104: 1.7.1.3 Pipeline | E104: [-] | H104: 1
C105: 1.7.1.4 Rail | E105: [-] | H105: 0
C106: 1.7.1.5 Truck | E106: [-] | H106: 0
B107: 1.7.2 Transport distance (one way)
C108: 1.7.2.1 Ocean tanker | E108: Mile | H108: 5082
C109: 1.7.2.2 Barge | E109: Mile | H109: 500
C110: 1.7.2.3 Pipeline | E110: Mile | H110: 750
C111: 1.7.2.4 Rail | E111: Mile | H111: 800
C112: 1.7.2.5 Truck | E112: Mile | H112: 100
B113: 1.7.3 Ocean tanker size, if applicable | E113: Ton | H113: 250000
A115: 1.8 Small sources emissions | E115: gCO2eq/MJ | H115: 0.5
A122: 2 Outputs
A125: Output variables | E125: Unit | G125: Default | H125: Field 1 | I125: Field 2 | J125: Field 3 | K125: Field 4 | L125: Field 5 | M125: Field 6 | N125: Field 7 | O125: Field 8 | P125: Field 9 | Q125: Field 10 | R125: Field 11 | S125: Field 12 | T125: Field 13 | U125: Field 14 | V125: Field 15 | W125: Field 16 | X125: Field 17 | Y125: Field 18 | Z125: Field 19 | AA125: Field 20 | AB125: Field 21 | AC125: Field 22 | AD125: Field 23 | AE125: Field 24 | AF125: Field 25 | AG125: Field 26 | AH125: Field 27 | AI125: Field 28 | AJ125: Field 29 | AK125: Field 30 | AL125: Field 31 | AM125: Field 32 | AN125: Field 33 | AO125: Field 34 | AP125: Field 35 | AQ125: Field 36 | AR125: Field 37 | AS125: Field 38 | AT125: Field 39 | AU125: Field 40 | AV125: Field 41 | AW125: Field 42 | AX125: Field 43 | AY125: Field 44 | AZ125: Field 45 | BA125: Field 46 | BB125: Field 47 | BC125: Field 48 | BD125: Field 49 | BE125: Field 50 | BF125: Field 51 | BG125: Field 52 | BH125: Field 53 | BI125: Field 54 | BJ125: Field 55 | BK125: Field 56 | BL125: Field 57 | BM125: Field 58 | BN125: Field 59 | BO125: Field 60 | BP125: Field 61 | BQ125: Field 62 | BR125: Field 63 | BS125: Field 64 | BT125: Field 65 | BU125: Field 66 | BV125: Field 67 | BW125: Field 68 | BX125: Field 69 | BY125: Field 70 | BZ125: Field 71 | CA125: Field 72 | CB125: Field 73 | CC125: Field 74 | CD125: Field 75 | CE125: Field 76 | CF125: Field 77 | CG125: Field 78 | CH125: Field 79 | CI125: Field 80 | CJ125: Field 81 | CK125: Field 82 | CL125: Field 83 | CM125: Field 84 | CN125: Field 85 | CO125: Field 86 | CP125: Field 87 | CQ125: Field 88 | CR125: Field 89 | CS125: Field 90 | CT125: Field 91 | CU125: Field 92 | CV125: Field 93 | CW125: Field 94 | CX125: Field 95 | CY125: Field 96 | CZ125: Field 97 | DA125: Field 98 | DB125: Field 99 | DC125: Field 100 | DD125: Field 101 | DE125: Field 102 | DF125: Field 103 | DG125: Field 104 | DH125: Field 105 | DI125: Field 106 | DJ125: Field 107 | DK125: Field 108 | DL125: Field 109 | DM125: Field 110 | DN125: Field 111 | DO125: Field 112 | DP125: Field 113 | DQ125: Field 114 | DR125: Field 115 | DS125: Field 116 | DT125: Field 117 | DU125: Field 118 | DV125: Field 119 | DW125: Field 120 | DX125: Field 121 | DY125: Field 122 | DZ125: Field 123 | EA125: Field 124 | EB125: Field 125 | EC125: Field 126 | ED125: Field 127 | EE125: Field 128 | EF125: Field 129 | EG125: Field 130 | EH125: Field 131 | EI125: Field 132 | EJ125: Field 133 | EK125: Field 134 | EL125: Field 135 | EM125: Field 136 | EN125: Field 137 | EO125: Field 138 | EP125: Field 139 | EQ125: Field 140 | ER125: Field 141 | ES125: Field 142 | ET125: Field 143 | EU125: Field 144 | EV125: Field 145 | EW125: Field 146 | EX125: Field 147 | EY125: Field 148 | EZ125: Field 149 | FA125: Field 150 | FB125: Field 151 | FC125: Field 152 | FD125: Field 153 | FE125: Field 154 | FF125: Field 155 | FG125: Field 156 | FH125: Field 157 | FI125: Field 158 | FJ125: Field 159 | FK125: Field 160 | FL125: Field 161 | FM125: Field 162 | FN125: Field 163 | FO125: Field 164 | FP125: Field 165 | FQ125: Field 166 | FR125: Field 167 | FS125: Field 168 | FT125: Field 169 | FU125: Field 170 | FV125: Field 171 | FW125: Field 172 | FX125: Field 173 | FY125: Field 174 | FZ125: Field 175 | GA125: Field 176 | GB125: Field 177 | GC125: Field 178 | GD125: Field 179 | GE125: Field 180 | GF125: Field 181 | GG125: Field 182 | GH125: Field 183 | GI125: Field 184 | GJ125: Field 185 | GK125: Field 186 | GL125: Field 187 | GM125: Field 188 | GN125: Field 189 | GO125: Field 190 | GP125: Field 191 | GQ125: Field 192 | GR125: Field 193 | GS125: Field 194 | GT125: Field 195 | GU125: Field 196 | GV125: Field 197 | GW125: Field 198 | GX125: Field 199 | GY125: Field 200 | GZ125: Field 201 | HA125: Field 202 | HB125: Field 203 | HC125: Field 204 | HD125: Field 205 | HE125: Field 206 | HF125: Field 207 | HG125: Field 208 | HH125: Field 209 | HI125: Field 210 | HJ125: Field 211 | HK125: Field 212 | HL125: Field 213 | HM125: Field 214 | HN125: Field 215 | HO125: Field 216 | HP125: Field 217 | HQ125: Field 218 | HR125: Field 219 | HS125: Field 220 | HT125: Field 221 | HU125: Field 222 | HV125: Field 223 | HW125: Field 224 | HX125: Field 225 | HY125: Field 226 | HZ125: Field 227 | IA125: Field 228 | IB125: Field 229 | IC125: Field 230 | ID125: Field 231 | IE125: Field 232 | IF125: Field 233 | IG125: Field 234 | IH125: Field 235 | II125: Field 236 | IJ125: Field 237 | IK125: Field 238 | IL125: Field 239 | IM125: Field 240 | IN125: Field 241 | IO125: Field 242 | IP125: Field 243 | IQ125: Field 244 | IR125: Field 245 | IS125: Field 246 | IT125: Field 247 | IU125: Field 248 | IV125: Field 249 | IW125: Field 250 | IX125: Field 251 | IY125: Field 252 | IZ125: Field 253 | JA125: Field 254 | JB125: Field 255 | JC125: Field 256 | JD125: Field 257 | JE125: Field 258 | JF125: Field 259 | JG125: Field 260 | JH125: Field 261 | JI125: Field 262 | JJ125: Field 263 | JK125: Field 264 | JL125: Field 265 | JM125: Field 266 | JN125: Field 267 | JO125: Field 268 | JP125: Field 269 | JQ125: Field 270 | JR125: Field 271 | JS125: Field 272 | JT125: Field 273 | JU125: Field 274 | JV125: Field 275 | JW125: Field 276 | JX125: Field 277 | JY125: Field 278 | JZ125: Field 279 | KA125: Field 280 | KB125: Field 281 | KC125: Field 282 | KD125: Field 283 | KE125: Field 284 | KF125: Field 285 | KG125: Field 286 | KH125: Field 287 | KI125: Field 288 | KJ125: Field 289 | KK125: Field 290 | KL125: Field 291 | KM125: Field 292 | KN125: Field 293 | KO125: Field 294 | KP125: Field 295 | KQ125: Field 296 | KR125: Field 297 | KS125: Field 298 | KT125: Field 299 | KU125: Field 300 | KV125: Field 301 | KW125: Field 302 | KX125: Field 303 | KY125: Field 304 | KZ125: Field 305 | LA125: Field 306 | LB125: Field 307 | LC125: Field 308 | LD125: Field 309 | LE125: Field 310 | LF125: Field 311 | LG125: Field 312 | LH125: Field 313 | LI125: Field 314 | LJ125: Field 315 | LK125: Field 316 | LL125: Field 317 | LM125: Field 318 | LN125: Field 319 | LO125: Field 320 | LP125: Field 321 | LQ125: Field 322 | LR125: Field 323 | LS125: Field 324 | LT125: Field 325 | LU125: Field 326 | LV125: Field 327 | LW125: Field 328 | LX125: Field 329 | LY125: Field 330 | LZ125: Field 331 | MA125: Field 332 | MB125: Field 333 | MC125: Field 334 | MD125: Field 335 | ME125: Field 336 | MF125: Field 337 | MG125: Field 338 | MH125: Field 339 | MI125: Field 340 | MJ125: Field 341 | MK125: Field 342 | ML125: Field 343 | MM125: Field 344 | MN125: Field 345 | MO125: Field 346 | MP125: Field 347 | MQ125: Field 348 | MR125: Field 349 | MS125: Field 350 | MT125: Field 351 | MU125: Field 352 | MV125: Field 353 | MW125: Field 354 | MX125: Field 355 | MY125: Field 356 | MZ125: Field 357 | NA125: Field 358 | NB125: Field 359 | NC125: Field 360 | ND125: Field 361 | NE125: Field 362 | NF125: Field 363 | NG125: Field 364 | NH125: Field 365 | NI125: Field 366 | NJ125: Field 367 | NK125: Field 368 | NL125: Field 369 | NM125: Field 370 | NN125: Field 371 | NO125: Field 372 | NP125: Field 373 | NQ125: Field 374 | NR125: Field 375 | NS125: Field 376 | NT125: Field 377 | NU125: Field 378 | NV125: Field 379 | NW125: Field 380 | NX125: Field 381 | NY125: Field 382 | NZ125: Field 383 | OA125: Field 384 | OB125: Field 385 | OC125: Field 386 | OD125: Field 387 | OE125: Field 388 | OF125: Field 389 | OG125: Field 390 | OH125: Field 391 | OI125: Field 392 | OJ125: Field 393 | OK125: Field 394 | OL125: Field 395 | OM125: Field 396 | ON125: Field 397 | OO125: Field 398 | OP125: Field 399 | OQ125: Field 400 | OR125: Field 401 | OS125: Field 402 | OT125: Field 403 | OU125: Field 404 | OV125: Field 405 | OW125: Field 406 | OX125: Field 407 | OY125: Field 408 | OZ125: Field 409 | PA125: Field 410 | PB125: Field 411 | PC125: Field 412 | PD125: Field 413 | PE125: Field 414 | PF125: Field 415 | PG125: Field 416 | PH125: Field 417 | PI125: Field 418 | PJ125: Field 419 | PK125: Field 420 | PL125: Field 421 | PM125: Field 422 | PN125: Field 423 | PO125: Field 424 | PP125: Field 425 | PQ125: Field 426 | PR125: Field 427 | PS125: Field 428 | PT125: Field 429 | PU125: Field 430 | PV125: Field 431 | PW125: Field 432 | PX125: Field 433 | PY125: Field 434 | PZ125: Field 435 | QA125: Field 436 | QB125: Field 437 | QC125: Field 438 | QD125: Field 439 | QE125: Field 440 | QF125: Field 441 | QG125: Field 442 | QH125: Field 443 | QI125: Field 444 | QJ125: Field 445 | QK125: Field 446 | QL125: Field 447 | QM125: Field 448 | QN125: Field 449 | QO125: Field 450 | QP125: Field 451 | QQ125: Field 452 | QR125: Field 453 | QS125: Field 454 | QT125: Field 455 | QU125: Field 456 | QV125: Field 457 | QW125: Field 458 | QX125: Field 459 | QY125: Field 460 | QZ125: Field 461 | RA125: Field 462 | RB125: Field 463 | RC125: Field 464 | RD125: Field 465 | RE125: Field 466 | RF125: Field 467 | RG125: Field 468 | RH125: Field 469 | RI125: Field 470 | RJ125: Field 471 | RK125: Field 472 | RL125: Field 473 | RM125: Field 474 | RN125: Field 475 | RO125: Field 476 | RP125: Field 477 | RQ125: Field 478 | RR125: Field 479 | RS125: Field 480 | RT125: Field 481 | RU125: Field 482 | RV125: Field 483 | RW125: Field 484 | RX125: Field 485 | RY125: Field 486 | RZ125: Field 487 | SA125: Field 488 | SB125: Field 489 | SC125: Field 490 | SD125: Field 491 | SE125: Field 492 | SF125: Field 493 | SG125: Field 494 | SH125: Field 495 | SI125: Field 496 | SJ125: Field 497 | SK125: Field 498 | SL125: Field 499 | SM125: Field 500 | SN125: Field 501 | SO125: Field 502 | SP125: Field 503 | SQ125: Field 504 | SR125: Field 505
A127: Field name | H127: Generic
A129: 2.1 Exploration (e)
B130: 2.1.1 Total energy consumption | E130: MJ/MJ | H130: 4.122037182e-05
B131: 2.1.2 Total GHG emissions | E131: gCO2eq/MJ | H131: 0
C132: 2.1.2.1 Combustion/land use | E132: gCO2eq/MJ | H132: 0.003079596382
C133: 2.1.2.2 VFF | E133: gCO2eq/MJ | H133: 0
A135: 2.2 Drilling & Development (d)
B136: 2.2.1 Total energy consumption | E136: MJ/MJ | H136: 0.0001116585926
B137: 2.2.2 Total GHG emissions | E137: gCO2eq/MJ | H137: 1.263306848
C138: 2.2.2.1 Combustion/land use | E138: gCO2eq/MJ | H138: 1.263306848
C139: 2.2.2.2 VFF | E139: gCO2eq/MJ | H139: 0
A141: 2.3 Crude production & extraction (p)
B142: 2.3.1 Total energy consumption | E142: MJ/MJ | H142: 0.01431299104
B143: 2.3.2 Total GHG emissions | E143: gCO2eq/MJ | H143: 0.942444834
C144: 2.3.2.1 Combustion/land use | E144: gCO2eq/MJ | H144: 0.9251259997
C145: 2.3.2.2 VFF | E145: gCO2eq/MJ | H145: 0.01731883437
A147: 2.4 Surface processing (s)
B148: 2.4.1 Total energy consumption | E148: MJ/MJ | H148: 0.01265802968
B149: 2.4.2 Total GHG emissions | E149: gCO2eq/MJ | H149: 5.221761532
C150: 2.4.2.1 Combustion/land use | E150: gCO2eq/MJ | H150: 0.7049933348
C151: 2.4.2.2 VFF | E151: gCO2eq/MJ | H151: 4.516768197
A153: 2.5 Maintenance (m)
B154: 2.5.1 Total energy consumption | E154: MJ/MJ | H154: 0
B155: 2.5.2 Total GHG emissions | E155: gCO2eq/MJ | H155: 0.07706311874
C156: 2.5.2.1 Combustion/land use | E156: gCO2eq/MJ | H156: 0
C157: 2.5.2.2 VFF | E157: gCO2eq/MJ | H157: 0.07706311874
A159: 2.6 Waste disposal (w)
B160: 2.6.1 Total energy consumption | E160: MJ/MJ | H160: 0
B161: 2.6.2 Total GHG emissions | E161: gCO2eq/MJ | H161: 0
C162: 2.6.2.1 Combustion\land use | E162: gCO2eq/MJ | H162: 0
C163: 2.6.2.2 VFF | E163: gCO2eq/MJ | H163: 0
A165: 2.7 Crude transport (t)
B166: 2.7.1 Total energy consumption | E166: MJ/MJ | H166: 0.01259291659
B167: 2.7.2 Total GHG emissions | E167: gCO2eq/MJ | H167: 0.9431578085
B168: 2.7.3 Loss factor | E168: NA | H168: 1.000062
A170: 2.8 Other small sources | E170: gCO2eq/MJ | H170: 0.5
A172: 2.9 Offsite emissions credit/debit | E172: gCO2eq/MJ | H172: -0.7697926123
A174: 2.10 Lifecycle energy consumption | E174: MJ/MJ | H174: 0.03971849795
A176: 2.11 Carbon dioxide sequestration
B177: 2.11.1 Total CO2 sequestered | E177: gCO2/MJ | H177: 0
A179: 2.12 Lifecycle GHG emissions | E179: gCO2eq/MJ | H179: 8.178390085
A183: 2.13 FIELD-BY-FIELD CHECK | H183: OK
A185: 2.14 OVERALL CHECK: | C185: OK

Sheet Energy Consumption
A1: Energy consumption compilation sheet | H1: Active field: | J1: ='Active Field'!C9 -> Generic
A3: This sheet compiles results on energy consumption from all other sheets for use in the "User inputs & Results" sheet.
B5: Table 1: Energy consumption by process stage
B6: Process stage | H6: Natural gas | I6: Upgrader process gas | J6: NGL | K6: Crude oil | L6: Diesel | M6: Residual fuel | N6: Petroleum coke | O6: Electricity | P6: Total
H7: MMBtu/d | I7: MMBtu/d | J7: MMBtu/d | K7: MMBtu/d | L7: MMBtu/d | M7: MMBtu/d | N7: MMBtu/d | O7: kWh/d | P7: MMBtu/d
B8: Exploration | H8: =Exploration!M42 -> 0 | I8: =Exploration!N42 -> 0 | J8: =Exploration!O42 -> 0 | K8: =Exploration!P42 -> 0 | L8: =Exploration!Q42 -> 0.3409707937 | M8: =Exploration!R42 -> 0 | N8: =Exploration!S42 -> 0 | O8: =Exploration!T42 -> 0 | P8: =SUM(H8:N8)+O8*'Input Data'!$E$53/1000000 -> 0.3409707937
B9: Drilling & Development | H9: ='Drilling & Development'!M131 -> 0 | I9: ='Drilling & Development'!N131 -> 0 | J9: ='Drilling & Development'!O131 -> 0 | K9: ='Drilling & Development'!P131 -> 0 | L9: ='Drilling & Development'!Q131 -> 0.9236287123 | M9: ='Drilling & Development'!R131 -> 0 | N9: ='Drilling & Development'!S131 -> 0 | O9: ='Drilling & Development'!T131 -> 0 | P9: =SUM(H9:N9)+O9*'Input Data'!$E$53/1000000 -> 0.9236287123
B10: Production & Extraction | H10: ='Production & Extraction'!M328 -> 118.3956305 | I10: ='Production & Extraction'!N328 -> 0 | J10: ='Production & Extraction'!O328 -> 0 | K10: ='Production & Extraction'!P328 -> 0 | L10: ='Production & Extraction'!Q328 -> 0 | M10: ='Production & Extraction'!R328 -> 0 | N10: ='Production & Extraction'!S328 -> 0 | O10: ='Production & Extraction'!T328 -> 0 | P10: =SUM(H10:N10)+O10*'Input Data'!$E$53/1000000 -> 118.3956305
B11: Surface Processing | H11: ='Surface Processing'!M539+'Surface Processing'!M540+'Surface Processing'!M541+'Surface Processing'!M542+'Surface Processing'!M543+'Surface Processing'!M544+'Surface Processing'!M545+'Surface Processing'!M546+'Surface Processing'!M547 -> 101.9399072 | I11: ='Surface Processing'!N539+'Surface Processing'!N540+'Surface Processing'!N541+'Surface Processing'!N542+'Surface Processing'!N543+'Surface Processing'!N544+'Surface Processing'!N545+'Surface Processing'!N546+'Surface Processing'!N547 -> 0 | J11: ='Surface Processing'!O539+'Surface Processing'!O540+'Surface Processing'!O541+'Surface Processing'!O543+'Surface Processing'!O544+'Surface Processing'!O545+'Surface Processing'!O546+'Surface Processing'!O547 -> 0 | K11: ='Surface Processing'!P539+'Surface Processing'!P540+'Surface Processing'!P541+'Surface Processing'!P542+'Surface Processing'!P543+'Surface Processing'!P544+'Surface Processing'!P545+'Surface Processing'!P546+'Surface Processing'!P547 -> 0 | L11: ='Surface Processing'!Q539+'Surface Processing'!Q540+'Surface Processing'!Q541+'Surface Processing'!Q542+'Surface Processing'!Q543+'Surface Processing'!Q544+'Surface Processing'!Q545+'Surface Processing'!Q546+'Surface Processing'!Q547 -> 0 | M11: ='Surface Processing'!R539+'Surface Processing'!R540+'Surface Processing'!R541+'Surface Processing'!R542+'Surface Processing'!R543+'Surface Processing'!R544+'Surface Processing'!R545+'Surface Processing'!R546+'Surface Processing'!R547 -> 0 | N11: ='Surface Processing'!S539+'Surface Processing'!S540+'Surface Processing'!S541+'Surface Processing'!S542+'Surface Processing'!S543+'Surface Processing'!S544+'Surface Processing'!S545+'Surface Processing'!S546+'Surface Processing'!S547 -> 0 | O11: ='Surface Processing'!T539+'Surface Processing'!T540+'Surface Processing'!T541+'Surface Processing'!T542+'Surface Processing'!T543+'Surface Processing'!T544+'Surface Processing'!T545+'Surface Processing'!T546+'Surface Processing'!T547 -> 810.6443019 | P11: =SUM(H11:N11)+O11*'Input Data'!$E$53/1000000 -> 104.7059557
B12: Maintenance | H12: 0 | I12: 0 | J12: 0 | K12: 0 | L12: 0 | M12: 0 | N12: 0 | O12: 0 | P12: =SUM(H12:N12)+O12*'Input Data'!$E$53/1000000 -> 0
B13: Waste disposal | H13: 0 | I13: 0 | J13: 0 | K13: 0 | L13: 0 | M13: 0 | N13: 0 | O13: 0 | P13: =SUM(H13:N13)+O13*'Input Data'!$E$53/1000000 -> 0
B14: Transport | H14: =Transport!M124 -> 23.99414293 | I14: =Transport!N124 -> 0 | J14: =Transport!O124 -> 0 | K14: =Transport!P124 -> 0 | L14: =Transport!Q124 -> 19.63163349 | M14: =Transport!R124 -> 60.5415703 | N14: =Transport!S124 -> 0 | O14: =Transport!T124 -> 0 | P14: =SUM(H14:N14)+O14*'Input Data'!$E$53/1000000 -> 104.1673467
B15: Other | H15: 0 | I15: 0 | J15: 0 | K15: 0 | L15: 0 | M15: 0 | N15: 0 | O15: 0 | P15: =SUM(H15:N15)+O15*'Input Data'!$E$53/1000000 -> 0
B16: Fuel consumed for electricity generation | H16: =Electricity!M81 -> 0 | I16: =Electricity!N81 -> 0 | J16: =Electricity!O81 -> 0 | K16: =Electricity!P81 -> 0 | L16: =Electricity!Q81 -> 0 | M16: =Electricity!R81 -> 0 | N16: =Electricity!S81 -> 0 | O16: =Electricity!T81 -> 0 | P16: =SUM(H16:N16)+O16*'Input Data'!$E$53/1000000 -> 0
G17: Total = | H17: =H8+H9+H10+H11+H12+H13+H14+H15+H16 -> 244.3296807 | I17: =I8+I9+I10+I11+I12+I13+I14+I15+I16 -> 0 | J17: 0 | K17: 0 | L17: 20.89623299 | M17: 60.5415703 | N17: 0 | O17: =SUM(O8:O16) -> 810.6443019 | P17: =SUM(P8:P16) -> 328.5335325
J18: Do not include NGLs used as diluent in this column, as they are not consumed
B20: Table 2: Gross energy consumption by fuel type
B21: Gross energy consumption by fuel type
E22: Total | F22: Unit
B23: Natural gas | E23: =SUM(H8:H16) -> 244.3296807 | F23: MMBtu/d | J23: =1790/4 -> 447.5
B24: NGL | E24: =SUM(J8:J16) -> 0 | F24: MMBtu/d
B25: Upgrader process gas | E25: =SUM(I8:I16) -> 0 | F25: MMBtu/d
B26: Diesel | E26: =SUM(L8:L16) -> 20.89623299 | F26: MMBtu/d
B27: Electricity | E27: =SUM(O8:O16)*'Input Data'!E53/1000000 -> 2.766048516 | F27: MMBtu/d
B28: Crude oil | E28: =SUM(K8:K16) -> 0 | F28: MMBtu/d
B29: Residual fuel | E29: =SUM(M8:M16) -> 60.5415703 | F29: MMBtu/d
B30: Petroleum coke | E30: =SUM(N8:N16) -> 0 | F30: MMBtu/d
D31: Total = | E31: =SUM(E23:E30) -> 328.5335325 | F31: MMBtu/d
B34: Table 3: Energy exports/imports by fuel type
B35: Energy exports/imports by fuel type
E36: Total | F36: Unit
B37: Natural gas | E37: =E23+(IF(AND('Production & Extraction'!M19=1,'Active Field'!J90=1),'Production & Extraction'!M49/1000-IF(OR('Active Field'!J116=1,'Active Field'!J116=2,'Active Field'!J116=3,'Active Field'!J116=4,'Active Field'!J116=5),'Gas Balance'!CT57,IF('Active Field'!J116=7,'Gas Balance'!EP151,'Gas Balance'!CL269)),0)-IF('Active Field'!J116=6,0,IF('Active Field'!J116=7,'Gas Balance'!EP129,IF('Active Field'!J116=8,'Gas Balance'!CL249,'Gas Balance'!CT42)))*IF('Active Field'!J116=6,0,IF('Active Field'!J116=7,'Gas Balance'!DT117/'Gas Balance'!DS119,IF('Active Field'!J116=8,'Gas Balance'!BB234/'Gas Balance'!BA236,'Gas Balance'!CA33/'Gas Balance'!BZ35))+(('Venting & Fugitives'!I280-'Venting & Fugitives'!I294)/365))) -> -607.850775 | F37: MMBtu/d | G37: NG consumed minus NG remaining as process fuel (equal to zero when flooding --> 100% remaining reinjected) + flooding makeup NG + recovered gas
B38: NGL | E38: =E24-'Gas Balance'!F9*'Surface Processing'!M127 -> -152.2810121 | F38: MMBtu/d | G38: NGL consumed minus NGL exported as stand-alone product stream
B39: Diluent (NGL) | E39: ='Surface Processing'!O542 -> 0 | F39: MMBtu/d | G39: NGL imported for dilution
B40: Upgrader process gas | E40: =-'Surface Processing'!K246*'Fuel Specs'!B254 -> 0 | F40: MMBtu/d
B41: Diesel | E41: =E26 -> 20.89623299 | F41: MMBtu/d
B42: Electricity | E42: =E27-Electricity!M77-'Production & Extraction'!M310 -> 2.766048516 | F42: MMBtu/d | G42: Electricity consumed minus electricity generated onsite minus electricity co-generated in steam generation
B43: Crude oil | E43: =-IF('Active Field'!J111=0,('Active Field'!J63*'Fuel Specs'!M16*(1-'Active Field'!J127)+'Surface Processing'!O542+'Gas Balance'!F9*'Surface Processing'!M128),('Surface Processing'!M242*'Fuel Specs'!M16+'Surface Processing'!O542+'Gas Balance'!F9*'Surface Processing'!M128)) -> -8271.9 | F43: MMBtu/d | G43: Crude oil plus any NGLs blended into crude stream (either through dilution or simple blending of demethanizer output)
B44: Residual fuel | E44: =E29 -> 60.5415703 | F44: MMBtu/d
B45: Petroleum coke | E45: =-'Surface Processing'!I273*1000*'Input Data'!E18/2000*'Fuel Specs'!E346/1000000 -> 0 | F45: MMBtu/d
B46: Total (imports) = | E46: =IF(E37>0,E37,0)+IF(E38>0,E38,0)+E41+IF(E42>0,E42,0) -> 23.66228151 | F46: MMBtu/d
B47: Total (exports) = | E47: =IF(E37<0,E37,0)+IF(E38<0,E38,0)+IF(E42<0,E42,0)+E43 -> -9032.031787 | F47: MMBtu/d
B48: Total non-primary fuel exports | E48: =IF(E37<0,E37,0)+IF(E38<0,E38,0)+IF(E42<0,E42,0) -> -760.1317871 | F48: MMBtu/d
B49: Note(s):
B50: Positive value is import (subject to debit)
B51: Negative value is export (subject to credit)
B54: Table 4: Indirect energy consumption
B55: Energy for fuel supply/export | G55: Note(s):
E56: Total | F56: Unit
B57: Energy for natural gas supply/export | E57: =E37*IF(E37<0,IF('Fuel Cycle'!F10=1,'Fuel Cycle'!E37,0),'Fuel Cycle'!D57) -> -46.71118078 | F57: MMBtu/d
B58: Energy for NGL supply/export | E58: =E38*IF(E38<0,IF('Fuel Cycle'!F10=1,'Fuel Cycle'!E37,0),'Fuel Cycle'!D57) -> -11.70225683 | F58: MMBtu/d
B59: Energy for Diesel supply/export | E59: =E41*'Fuel Cycle'!D58 -> 4.402797132 | F59: MMBtu/d | G59: No diesel export
B60: Energy for electricity supply/export | E60: ='Energy Consumption'!E42*IF('Energy Consumption'!E42<0,IF('Fuel Cycle'!F10=1,'Fuel Cycle'!E39,0),'Fuel Cycle'!D59) -> 6.02988767 | F60: MMBtu/d
B61: Energy for crude oil supply/export | E61: =E43 -> -8271.9 | F61: MMBtu/d | G61: The upstream energy consumption is accounted by subtracting this amount from the crude oil output
B62: Energy for residual fuel supply | E62: ='Energy Consumption'!E44*IF('Energy Consumption'!E44<0,IF('Fuel Cycle'!F10=1,'Fuel Cycle'!E39,0),'Fuel Cycle'!D59) -> 131.9784762 | F62: MMBtu/d
D63: Total = | E63: =SUM(E57:E62) -> -8187.902277 | F63: MMBtu/d
B64: Negative (-) value is an energy credit from exported fuel
B67: Table 5: Embodied energy consumption
B68: Energy for fuel supply/export | G68: Note(s):
E69: Total | F69: Unit
B70: Embodied energy in oilfield materials | E70: =IF('Embodied Emissions'!M7=1,'Embodied Emissions'!M664*'Active Field'!J63,0) -> 0 | F70: MMBtu/d
D71: Total = | E71: =SUM(E70:E70) -> 0 | F71: MMBtu/d
B72: By default, embodied emissions are not included. See sheet "Embodied emissions"
B75: Table 6: Summary results for further calculation
E76: MMBtu/d | F76: MJ/d
B77: Total primary product output | E77: =-E43 -> 8271.9 | F77: =E77*'Input Data'!$E$46 -> 8727268.095
B78: Total secondary product output | E78: =E48 -> -760.1317871 | F78: =E78*'Input Data'!$E$46 -> -801977.042
B79: - Natural gas | E79: =IF(E37<0,E37,0) -> -607.850775 | F79: =E79*'Input Data'!$E$46 -> -641312.9602
B80: - NGL | E80: =+IF(E38<0,E38,0) -> -152.2810121 | F80: =E80*'Input Data'!$E$46 -> -160664.0818
B81: - Electricity | E81: =+IF(E42<0,E42,0) -> 0 | F81: =E81*'Input Data'!$E$46 -> 0
B82: Effective output energy stream | E82: =E77-E79*(1-'Fuel Cycle'!L11)-E80*(1-'Fuel Cycle'!L12)-E81*(1-'Fuel Cycle'!L13) -> 8271.9 | F82: =E82*'Input Data'!$E$46 -> 8727268.095
B83: Denominator for computing CI | F83: =IF('Fuel Cycle'!F10=1,F77,IF(OR('Fuel Cycle'!F10=2,'Fuel Cycle'!F10=3),F82,"ERROR")) -> 8727268.095

Sheet GHG Emissions
A1: GHG emissions compilation sheet | H1: Active field: | J1: ='Active Field'!C9 -> Generic
A3: This sheet compiles emissions quantities from the various pages for use in the "User Inputs & Results" sheet.
B5: Table 1: GHG emissions panel
B6: GHG emissions panel
H7: Combustion | I7: Land use | J7: VFF | M7: Total | N7: Unit
J8: Venting | K8: Flaring | L8: Fugitives
B9: Exploration | H9: =SUMPRODUCT('Energy Consumption'!H8:N8,'Emissions Factors'!C36:I36)/1000000 -> 0.02687646325 | I9: 0 | J9: 0 | K9: 0 | L9: 0 | M9: =SUM(H9:L9) -> 0.02687646325 | N9: tonne CO2eq/d
B10: Drilling & Development | H10: =SUMPRODUCT('Energy Consumption'!H9:N9,'Emissions Factors'!C37:I37)/1000000 -> 0.07249608669 | I10: ='Drilling & Development'!M134/1000000 -> 10.95272146 | J10: 0 | K10: 0 | L10: 0 | M10: =SUM(H10:L10) -> 11.02521755 | N10: tonne CO2eq/d
B11: Production & Extraction | H11: =SUMPRODUCT('Energy Consumption'!H10:N10,'Emissions Factors'!C38:I38)/1000000 -> 8.073822621 | I11: 0 | J11: ='Venting & Fugitives'!F287*1000000/365/1000000 -> 0 | K11: =Flaring!F80*1000000/365/1000000 -> 0 | L11: ='Venting & Fugitives'!F291*1000000/365/1000000 -> 0.1511461107 | M11: 8.224968731 | N11: tonne CO2eq/d
B12: Surface Processing | H12: =SUMPRODUCT('Energy Consumption'!H11:N11,'Emissions Factors'!C39:I39)/1000000 -> 6.152665838 | I12: 0 | J12: ='Venting & Fugitives'!F288*1000000/365/1000000 -> 18.82803456 | K12: =(Flaring!F81*1000000/365+'Surface Processing'!K250*'Fuel Specs'!B254/1000*'Emissions Factors'!D17)/1000000 -> 18.11266799 | L12: ='Venting & Fugitives'!F292*1000000/365/1000000 -> 2.478344427 | M12: 45.57171282 | N12: tonne CO2eq/d
B13: Maintenance | H13: =SUMPRODUCT('Energy Consumption'!H12:N12,'Emissions Factors'!C40:I40)/1000000 -> 0 | I13: 0 | J13: ='Venting & Fugitives'!F289*1000000/365/1000000 -> 0.6725504975 | K13: =Flaring!F82*1000000/365/1000000 -> 0 | L13: ='Venting & Fugitives'!F293*1000000/365/1000000 -> 0 | M13: 0.6725504975 | N13: tonne CO2eq/d
B14: Waste disposal | H14: =SUMPRODUCT('Energy Consumption'!H13:N13,'Emissions Factors'!C41:I41)/1000000 -> 0 | I14: 0 | J14: 0 | K14: 0 | L14: 0 | M14: 0 | N14: tonne CO2eq/d
B15: Transport | H15: =SUMPRODUCT('Energy Consumption'!H14:N14,'Emissions Factors'!C42:I42)/1000000 -> 8.231191051 | I15: 0 | J15: 0 | K15: 0 | L15: 0 | M15: 8.231191051 | N15: tonne CO2eq/d
B16: Other | H16: =SUMPRODUCT('Energy Consumption'!H15:N15,'Emissions Factors'!C43:I43)/1000000 -> 0 | I16: 0 | J16: 0 | K16: 0 | L16: 0 | M16: 0 | N16: tonne CO2eq/d
C17: Electricity generation | H17: =Electricity!M83 -> 0 | I17: 0 | J17: 0 | K17: 0 | L17: 0 | M17: 0 | N17: tonne CO2eq/d
B18: Total = | H18: =H9+H10+H11+H12+H13+H14+H15+H16 -> 22.55705206 | I18: =I9+I10+I11+I12+I13+I14+I15+I16 -> 10.95272146 | J18: =J9+J10+J11+J12+J13+J14+J15+J16 -> 19.50058506 | K18: =K9+K10+K11+K12+K13+K14+K15+K16 -> 18.11266799 | L18: =L9+L10+L11+L12+L13+L14+L15+L16 -> 2.629490538 | M18: 73.75251711 | N18: tonne CO2eq/d
B19: Note:
B20: NGL emissions factor is assumed the same as natural gas
B22: Table 2: Indirect GHG emissions
B23: GHG emissions from fuel supply/export
G24: Total | H24: Unit
B25: GHG emissions from natural gas supply/export | G25: ='Energy Consumption'!E37*IF('Energy Consumption'!E37>0,'Fuel Cycle'!D70,IF(OR('Fuel Cycle'!F10=1,'Fuel Cycle'!F10=3),'Fuel Cycle'!L11*'Fuel Cycle'!D47,0))/1000000 -> -6.825733124 | H25: tonne CO2eq/d
B26: GHG emissions from NGL supply/export | G26: ='Energy Consumption'!E38*IF('Energy Consumption'!E38>0,'Fuel Cycle'!D70,IF(OR('Fuel Cycle'!F10=1,'Fuel Cycle'!F10=3),'Fuel Cycle'!L12*'Fuel Cycle'!D47,0))/1000000 -> -1.71000777 | H26: tonne CO2eq/d
B27: GHG emissions from diluent supply | G27: ='Energy Consumption'!E39*'Fuel Cycle'!D70/1000000 -> 0 | H27: tonne CO2eq/d
B28: GHG emissions from diesel supply/export | G28: ='Energy Consumption'!E41*IF('Energy Consumption'!E41>0,'Fuel Cycle'!D71,IF('Fuel Cycle'!F10=1,'Fuel Cycle'!D48,0))/1000000 -> 0.4100134056 | H28: tonne CO2eq/d
B29: GHG emissions from electricity supply/export | G29: ='Energy Consumption'!E42*IF('Energy Consumption'!E42>0,'Fuel Cycle'!D72,IF(OR('Fuel Cycle'!F10=1,'Fuel Cycle'!F10=3),'Fuel Cycle'!L13*'Fuel Cycle'!D49,0))/1000000 -> 0.4449030437 | H29: tonne CO2eq/d
B30: GHG emissions from crude oil supply/export | G30: NA | H30: tonne CO2eq/d | I30: Crude oil is the main product
B31: GHG emissions from residual fuel supply/export | G31: ='Energy Consumption'!E44*IF('Energy Consumption'!E44>0,'Fuel Cycle'!D74,IF('Fuel Cycle'!F10=1,'Fuel Cycle'!D51,0))/1000000 -> 0.9626379393 | H31: tonne CO2eq/d
B32: Total = | G32: =SUM(G25:G31) -> -6.718186506 | H32: tonne CO2eq/d
B34: Table 3: CO2 balance from CO2 flooding and CCS
B35: CO2 balance
G36: Total | H36: Unit
B37: CO2 injected (gross) | G37: =IF(AND('Active Field'!J53=1, 'Active Field'!J90=3), 'Production & Extraction'!M49*1000*'Input Data'!D83, 0)/1000000 -> 0 | H37: tonne CO2eq/d
B38: CO2 sequestered (net CO2 injection) | G38: =IF(AND('Active Field'!J53=1, 'Active Field'!J90=3), 'Production & Extraction'!M297, 0)/1000000 -> 0 | H38: tonne CO2eq/d | I38: It is assumed that all CO2 injected into the reservoir is sequestered either immediately or following production-separation-reinjection
B39: CO2 lost from long-term leakage | G39: =IF(AND('Active Field'!J53=1, 'Active Field'!J90=3), G38*'Production & Extraction'!M104/100, 0) -> 0 | H39: tonne CO2eq/d | I39: The estimated 100-year leakage rate is applied to the daily sequestration rate
B40: CO2 lost from post-production blow-down | G40: =IF(AND('Active Field'!J53=1, 'Active Field'!J90=3), G38*'Production & Extraction'!M105/100, 0) -> 0 | H40: tonne CO2eq/d
B41: CO2 lost from venting and fugitives in CO2 recycling | G41: =IF(AND('Active Field'!J53=1, 'Active Field'!J90=3), 'Venting & Fugitives'!E186+'Venting & Fugitives'!E261, 0)/1000000 -> 0 | H41: tonne CO2eq/d
B42: CO2 emitted from work of separation and injection | G42: =IF(AND('Active Field'!J53=1, 'Active Field'!J90=3), ('Production & Extraction'!M293*'Emissions Factors'!$H$16+'Production & Extraction'!N293*Electricity!M73), 0)/1000000 -> 0 | H42: tonne CO2eq/d | I42: Currently only work of flood gas injection compressor
B43: CO2 emitted during drilling and production of purpose-drilled anthropogenic CO2 | G43: =G38/44/'Input Data'!E38*'Fuel Specs'!B254/1000000*'Fuel Cycle'!D76 -> 0 | H43: tonne CO2eq/d | I43: Assume that CO2 drilling, production, and transport emits the same amount of CO2 per SCF handled as natural gas
B44: CO2 contained as carbon in produced oil | G44: =IF(AND('Active Field'!J53=1, 'Active Field'!J90=3), 'Active Field'!J63*'Input Data'!E29*'Input Data'!E31*VLOOKUP('Active Field'!J73,'Fuel Specs'!B24:O65,2)*VLOOKUP('Active Field'!J73,'Fuel Specs'!B73:Q114,3)/100*1000*44/12, 0)/1000000 -> 0 | H44: tonne CO2eq/d
B45: CO2 sequestration credited to the oilfield | G45: =IF(AND('Active Field'!J53=1, 'Active Field'!J90=3), IF('Active Field'!J98=1, 0, 'Active Field'!J101/100*(G38-G39-G40)), 0) -> 0 | H45: tonne CO2eq/d
B47: Table 4: Embodied emissions
B48: GHG emissions from from purchasing of material inputs
G49: Total | H49: Unit
B50: Embodied emissions in oilfield material | G50: =IF('Embodied Emissions'!M7=1,'Embodied Emissions'!M652*'Active Field'!J63,0)/1000000 -> 0 | H50: tonne CO2eq/d
B51: Total = | G51: =SUM(G50:G50) -> 0 | H51: tonne CO2eq/d
B54: Table 5: Diluent adjustment factor
B55: Adjustment to account for diluent volumes | G55: Value | H55: Unit
B56: Diluent adjustment factor | G56: =(1+IF('Active Field'!J127=1,0,('Surface Processing'!M128*('Gas Balance'!F9/'Fuel Specs'!M16)/('Active Field'!J63/(1-'Active Field'!J127))))-'Active Field'!J127) -> 1 | H56: MJ crude/MJ diluent
B57: Offsite emissions less diluent emissions | G57: =G32-G27 -> -6.718186506 | H57: tonne CO2eq/d
B59: Table 6: Summary offsite emissions credit
B60: Adjustment for output stream-specific emissions credit | G60: Value | H60: Unit
B61: Summary offsite emissions credit | G61: =('GHG Emissions'!G27+'GHG Emissions'!G56*(IF(G25>0,G25,G25*'Fuel Cycle'!L11)+IF(G26>0,G26,G26*'Fuel Cycle'!L12)+G28+IF(G29>0,G29,G29*'Fuel Cycle'!L13)+G31+G43+G51)) -> -6.718186506 | H61: tonne CO2eq/d

Sheet Active Field
A1: Active field working sheet - DO NOT MODIFY | H1: Active field: | J1: ='Active Field'!C9 -> Generic
A3: 1 Summary results
B5: Model error check: | D5: =J158 -> OK
G6: Figure 1.1: Summary GHG emissions
B7: Table 1.1: Summary GHG emissions
B8: GHG emissions [gCO2eq/MJ]
B9: Active field | C9: =J60 -> Generic
B10: Exploration | C10: =(G171)*G207 -> 0.003079787317
B11: Drilling | C11: =(G177)*G207 -> 1.263385173
B12: Production | C12: =(G183)*G207 -> 0.9251833575
B13: Processing | C13: =(G189)*G207 -> 0.7050370444
B14: Maintenance | C14: =(G195)*G207 -> 0
B15: Waste | C15: =(G201)*G207 -> 0
B16: VFF | C16: =(G172+G178+G184+G190+G196+G202)*G207 -> 4.611436041
B17: Misc. | C17: =(G209)*G207 -> 0.500031
B18: Transport | C18: =G206 -> 0.9431578085
B19: Offsite emissions | C19: =G211*G207 -> -0.7698403395
B20: CO2 Sequestration | C20: =G216 -> 0
B21: Net lifecycle emissions | C21: =G218 -> 8.178390085
G24: Figure 1.2: Summary energy consumption
B26: Table 1.2: Summary energy consumption
B27: Energy consumption [MJ/MJ]
C28: =J60 -> Generic
B29: Exploration | C29: =G169*G207 -> 4.122292749e-05
B30: Drilling | C30: =G175*G207 -> 0.0001116655154
B31: Production | C31: =G181*G207 -> 0.01431387844
B32: Processing | C32: =G187*G207 -> 0.01265881448
B33: Maintenance | C33: =G193*G207 -> 0
B34: Waste | C34: =G199*G207 -> 0
B35: Transport | C35: =G205 -> 0.01259291659
B36: Total | C36: =G213 -> 0.03971849795
A41: 2 Active field working sheet
J46: Inputs | K46: Default | L46: Unit | N46: Notes
A47: 2.1 Production methods
B48: 2.1.1 Downhole pump | J48: 1 | K48: 1 | L48: NA | N48: If gas lifting applies then "0"
B49: 2.1.2 Water reinjection | J49: 1 | K49: 1 | L49: NA | N49: If water flooding applies then "0"
B50: 2.1.3 Natural gas reinjection | J50: 1 | K50: 1 | L50: NA | N50: If gas flooding applies then "0"
B51: 2.1.4 Water flooding | I51: =IF(AND(J49=1,J51=1),"ERROR","OK") -> OK | J51: 0 | K51: 0 | L51: NA | N51: This is used for injecting amounts of water larger than the amount of produced water
B52: 2.1.5 Gas lifting | I52: =IF(AND(J48=1,J52=1),"ERROR","OK") -> OK | J52: 0 | K52: 0 | L52: NA | N52: This is used for gas lifting. If downhole pump applies then "0"
B53: 2.1.6 Gas flooding | I53: =IF(AND(J50=1,J53=1, J90=1),"ERROR","OK") -> OK | J53: 0 | K53: 0 | L53: NA | N53: This is used for injecting a different type of gas (e.g. N2) or amounts of gas larger than the amount of produced gas
B54: 2.1.7 Steam flooding | H54: =IF(J54=1,IF(AND(J55=1,J56=1),"ERROR","OK"),"OK") -> OK | I54: =IF(J70=1,IF(J54=1,"ERROR","OK"),"OK") -> OK | J54: 0 | K54: 0 | L54: NA | N54: This is used for injecting steam
B55: 2.1.8 Oil sands mine (integrated with upgrader) | I55: =IF(J55=1,IF(J111=0,"ERROR","OK"),"OK") -> OK | J55: 0 | K55: 0 | L55: NA
B56: 2.1.9 Oil sands mine (non-integrated with upgrader) | J56: 0 | K56: 0 | L56: NA
A58: 2.2 Field properties
B59: 2.2.1 Field location (Country) | I59: =IF(ISNA(MATCH(J59,Flaring!C93:C171,0))=TRUE,"ERROR","OK") -> OK | J59: Generic | K59: Generic | L59: NA | N59: =IF(I59="ERROR","Check the spelling of the field location (The location name must be spelled exactly the same as in the 'Flaring' sheet, Table 4.1)","") -> 
B60: 2.2.2 Field name | J60: Generic | K60: Generic | L60: NA
B61: 2.2.3 Field age | J61: 35 | K61: 35 | L61: yr
B62: 2.2.4 Field depth | J62: 7240 | K62: 7240 | L62: ft
B63: 2.2.5 Oil production volume | J63: 1500 | K63: 1500 | L63: bbl/d | N63: Raw crude production volume before upgrading or dilution
B64: 2.2.6 Number of producing wells | J64: 8 | K64: =IF(ROUND(J63/183,0)<1,1,ROUND(J63/183,0)) -> 8 | L64: [-]
B65: 2.2.7 Number of water injecting wells | J65: 5 | K65: =IFERROR(ROUNDUP(IF((J63/J64)<10,0.143*J64,IF((J63/J64)<100,0.254*J64,IF((J63/J64)<1000,0.532*J64,0.831*J64))),0),0) -> 5 | L65: [-]
B66: 2.2.8 Well diameter | J66: 2.775 | K66: =(1.05+4.5)/2 -> 2.775 | L66: in
B67: 2.2.9 Productivity index | J67: 3 | K67: 3 | L67: bbl/psi-d
B68: 2.2.10 Average reservoir pressure | J68: 1556.6 | K68: =0.5*(J62*0.43) -> 1556.6 | L68: psi | N68: =IF(AND((('Production & Extraction'!M56+'Production & Extraction'!M146)-('Production & Extraction'!M31-(1+'Production & Extraction'!M44)*('Production & Extraction'!M26/'Production & Extraction'!M27)/'Production & Extraction'!M30))>0,J48=0),"Warning ! Downhole pump off : Insufficient pressure for natural flow.",(IF(J48,"Downhole pump on","Downhole pump off"))) -> Downhole pump on
B69: 2.2.11 Average reservoir temperature | J69: 200.32 | K69: =70+1.8*J62/100 -> 200.32 | L69: ◦F
B70: 2.2.12 Offshore? | J70: 0 | K70: 0
A72: 2.3 Fluid properties
B73: 2.3.1 API gravity of produced crude | J73: 30 | K73: 30 | L73: deg. API
B74: 2.3.2 Associated gas composition
I75: N2 | J75: 2 | K75: 2 | L75: mol% | N75: Composition on dry basis
I76: CO2 | J76: 6 | K76: 6 | L76: mol%
I77: C1 | J77: 84 | K77: 84 | L77: mol%
I78: C2 | J78: 4 | K78: 4 | L78: mol%
I79: C3 | J79: 2 | K79: 2 | L79: mol%
I80: C4+ | J80: 1 | K80: 1 | L80: mol%
I81: H2S | J81: 1 | K81: 1 | L81: mol%
I82: =SUM(J75:J81) -> 100
A83: 2.4 Production practices
B85: 2.4.1 Gas-to-oil ratio (GOR) | J85: 908 | K85: =IF(J73<20,227,IF(AND(J73>=20,J73<=30),908,1297)) -> 908 | L85: scf/bbl oil | N85: In the case of gas lift, the gas oil ratio should include produced gas from the reservoir as well as injected lift gas.
B86: 2.4.2 Water-to-oil ratio (WOR) | J86: 4.308369057 | K86: =1.706*EXP(0.036*J61)-1.706 -> 4.308369057 | L86: bbl water/bbl oil
B87: 2.4.3 Water injection ratio | I87: =IF(AND(J87="NA",J51=1),"ERROR","OK") -> OK | J87: 5.308369057 | K87: =J86+1 -> 5.308369057 | L87: bbl water/bbl oil
B88: 2.4.4 Gas lifting injection ratio | I88: =IF(AND(J88="NA",J52=1),"ERROR","OK") -> OK | J88: 1500 | K88: 1500 | L88: scf/bbl liquid | N88: Gas lifting injection (does not include gas reinjected into the reservoir)
B89: 2.4.5 Gas flooding injection ratio | I89: =IF(AND(J89="NA",J53=1),"ERROR","OK") -> OK | J89: 1362 | K89: =IF('Active Field'!J90=1, 1.5*J85, IF('Active Field'!J90=2, 1200, IF('Active Field'!J90=3, 10000, 1.5*J85))) -> 1362 | L89: scf/bbl oil
B90: 2.4.6 Flood gas | J90: 1 | K90: 1 | L90: NA
C91: 1) Natural gas
C92: 2) Nitrogen (N2)
C93: 3) Carbon Dioxide (CO2)
B96: 2.4.7 Carbon dioxide flooding and sequestration parameters
C97: 2.4.7.1 Percentage of newly acquired CO2 (total injected CO2 includes both new and recycled) | J97: 41 | K97: 41 | L97: %
C98: 2.4.7.2 Source of CO2 | J98: 1 | K98: 1 | L98: NA
D99: 1) Natural subsurface reservoir
D100: 2) Anthropogenic
C101: 2.4.7.3 Percentage of sequestration credit assigned to the oilfield | J101: 0 | K101: 0 | L101: %
B102: 2.4.8 Steam-to-oil ratio (SOR) | I102: =IF(AND(J102="NA",J54=1),"ERROR","OK") -> OK | J102: 3 | K102: 3 | L102: bbl steam/bbl oil
B103: 2.4.9 Fraction of required electricity generated onsite | I103: =IF(J70=1,IF(J103<>1,"ERROR","OK"),"OK") -> OK | J103: 0 | K103: =IF(J70=1,1,0) -> 0 | L103: [-]
B104: 2.4.10 Fraction of remaining gas reinjected | I104: ='Gas Balance'!DH35 -> OK | J104: 0 | K104: 0 | L104: [-] | N104: 1.0 if gas flooding applies (Note: Do not enter NA at all times)
B105: 2.4.11 Fraction of water produced that is reinjected | J105: 1 | K105: 1 | L105: [-] | N105: 1.0 if water flooding applies (Note: Do not enter NA at all times)
B106: 2.4.12 Fraction of steam generation via co-generation | J106: 0 | K106: 0 | L106: [-]
B107: 2.4.13 Fraction of steam generation via solar thermal | J107: 0 | K107: 0
A108: 2.5 Processing practices
B109: 2.5.1 Heater/treater | J109: 0 | K109: =IF(J73<18,1,0) -> 0 | L109: NA
B110: 2.5.2 Stabilizer column | J110: 1 | K110: =IF(J85<=500,0,1) -> 1 | L110: NA
B111: 2.5.3 Upgrader type | J111: 0 | K111: 0
C112: 0 = None
C113: 1 = Delayed coking
C114: 2 = Hydroconversion
C115: 3 = Combined hydroconversion and fluid coking
B116: 2.5.3 Associated Gas Processing Path | I116: =IF(J53=1,IF(J90=3,IF(J116<6,"ERROR","OK"),"OK"),"OK") -> OK | J116: 5 | K116: 5
C117: 1) None
C118: 2) Minimal: Dehydrator
C119: 3) Acid Gas: Dehydrator + Amine Process
C120: 4) Wet Gas: Dehydrator + Demethanizer
C121: 5) Acid Wet Gas: Dehydrator + Amine Process + Demethanizer
A122: Notes: Choose paths 6-8 only if gas flooding is ON and CO2 is the flood gas | C122: 6) Sour gas reinjection, dehydration then direct injection of sour CO2-rich stream
C123: 7) CO2-EOR Membrane: Dehydrator + Compressor + Membrane + Amine Process + Demethanizer
C124: 8) CO2-EOR Ryan Holmes: Dehydrator + Ryan Holmes Process (Demethanizer Included)
B125: 2.5.4 Ratio of flaring to oil production | J125: 154.7169618 | K125: =1000000*(Flaring!N15/'Production & Extraction'!M26) -> 154.7169618 | L125: scf/bbl | N125: Default calculated based on satellite data from NOAA
B126: 2.5.5 Ratio of venting to oil production | J126: 0 | K126: 0 | L126: scf/bbl | N126: This is the ratio of venting used as a disposal mechanism (does not include operational venting / default leaks -- this is venting as a substitute for flaring)
B127: 2.5.6 Volume fraction of diluent in diluted crude | I127: =IF(J127<K127,"ERROR","OK") -> OK | J127: 0 | K127: 0 | L127: [-]
A129: 2.6 Land use impacts
B130: 2.6.1 Crude ecosystem carbon richness
C131: 2.6.1.1 Low carbon richness (semi-arid grasslands) | J131: 0 | K131: =IF(J70=1,1,0) -> 0 | L131: NA
C132: 2.6.1.2 Moderate carbon richness (mixed) | J132: 1 | K132: =IF(J70=1,0,1) -> 1 | L132: NA
C133: 2.6.1.3 High carbon richness (forested) | J133: 0 | K133: =IF(J70=1,0,0) -> 0 | L133: NA
B134: 2.6.2 Field development intensity
C135: 2.6.2.1 Low intensity development and low oxidation | J135: 0 | K135: =IF(J70=1,1,0) -> 0 | L135: NA
C136: 2.6.2.2 Moderate intensity development and moderate oxidation | J136: 1 | K136: =IF(J70=1,0,1) -> 1 | L136: NA
C137: 2.6.2.3 High intensity development and high oxidation | J137: 0 | K137: =IF(J70=1,0,0) -> 0 | L137: NA
A139: 2.7 Crude oil transport
B140: 2.7.1 Fraction of oil transported by each mode | N140: The total fraction of all modes may exceed 1.0 because more than one transportation leg may be involved for transporting the oil
C141: 2.7.1.1 Ocean tanker | J141: 1 | K141: 1 | L141: [-]
C142: 2.7.1.2 Barge | J142: 0 | K142: 0 | L142: [-]
C143: 2.7.1.3 Pipeline | J143: 1 | K143: 1 | L143: [-]
C144: 2.7.1.4 Rail | J144: 0 | K144: 0 | L144: [-]
C145: 2.7.1.4 Truck | J145: 0 | K145: 0 | L145: [-]
B146: 2.7.2 Transport distance (one way)
C147: 2.7.2.1 Ocean tanker | J147: 5082 | K147: 5082 | L147: Miles
C148: 2.7.2.2 Barge | J148: 500 | K148: 500 | L148: Miles
C149: 2.7.2.3 Pipeline | J149: 750 | K149: 750 | L149: Miles
C150: 2.7.2.4 Rail | J150: 800 | K150: 800 | L150: Miles
C151: 2.7.2.4 Truck | J151: 100 | K151: 100 | L151: Miles
B152: 2.7.3 Ocean tanker size, if applicable | J152: 250000 | K152: 250000 | L152: Tons
A154: 2.8 Small sources emissions | J154: 0.5 | K154: 0.5 | L154: gCO2 eq/MJ | N154: Assumption to account for numerous small sources not included in current version of OPGEE (see `Model organization' sheet for list of sources not explicitly modeled)
J157: Status
A158: 2.9 Overall error check | J158: =IF(OR(J227="ERROR",J228="ERROR",J229="ERROR",J230="ERROR",J231="ERROR",J232="ERROR",J233="ERROR",J234="ERROR",J235="ERROR",J236="ERROR",J237="ERROR",J238="ERROR",J239="ERROR",J240="ERROR",J241="ERROR",J242="ERROR",J243="ERROR",J244="ERROR",J245="ERROR",J246="ERROR",J247="ERROR",J248="ERROR",J249="ERROR",J250="ERROR",J251="ERROR",J252="ERROR",J253="ERROR",J254="ERROR",J255="ERROR",J256="ERROR"),"ERROR","OK") -> OK | N158: For specific error checks see section 7 below
A163: 3 Summary results
A165: These results are derived from calculations in following sheets
G167: Value | H167: Unit | J167: Notes
A168: 3.1 Exploration
B169: 3.1.1 Total energy consumption | G169: ='Energy Consumption'!P8/(-'Energy Consumption'!E43) -> 4.122037182e-05 | H169: MJ/MJ | J169: MJ of all energy types consumed per MJ crude oil produced
B170: 3.1.2 Total GHG emissions | G170: 0 | H170: gCO2eq/MJ | J170: g CO2 eq. per MJ of crude oil produced
C171: 3.1.2.1 Combustion/land use | G171: =(1+IF(J127=1,0,('Surface Processing'!M128*('Gas Balance'!F9/'Fuel Specs'!M16)/(J63/(1-J127))))-J127)*('GHG Emissions'!H9+'GHG Emissions'!I9)/'Energy Consumption'!F83*1000000 -> 0.003079596382 | H171: gCO2eq/MJ | J171: g CO2 eq. per MJ of crude oil produced
C172: 3.1.2.2 VFF | G172: 0 | H172: gCO2eq/MJ | J172: g CO2 eq. per MJ of crude oil produced
A174: 3.2 Drilling & Development
B175: 3.2.1 Total energy consumption | G175: ='Energy Consumption'!P9/(-'Energy Consumption'!E43) -> 0.0001116585926 | H175: MJ/MJ
B176: 3.2.2 Total GHG emissions | G176: =SUM(G177:G178) -> 1.263306848 | H176: gCO2eq/MJ
C177: 3.2.2.1 Combustion/land use | G177: ='GHG Emissions'!G56 * ('GHG Emissions'!H10+'GHG Emissions'!I10) / 'Energy Consumption'!F83*1000000 -> 1.263306848 | H177: gCO2eq/MJ
C178: 3.2.2.2 VFF | G178: 0 | H178: gCO2eq/MJ
A180: 3.3 Crude production & extraction
B181: 3.3.1 Total energy consumption | G181: ='Energy Consumption'!P10/(-'Energy Consumption'!E43) -> 0.01431299104 | H181: MJ/MJ
B182: 3.3.2 Total GHG emissions | G182: =(G183+G184) -> 0.942444834 | H182: gCO2eq/MJ | J182: MJ of crude output
C183: 3.3.2.1 Combustion/land use | G183: ='GHG Emissions'!G56*(('GHG Emissions'!H11+'GHG Emissions'!I11)+('Energy Consumption'!H10/('Energy Consumption'!H10+'Energy Consumption'!H11))*'GHG Emissions'!H16)/'Energy Consumption'!F83*1000000 -> 0.9251259997 | H183: gCO2eq/MJ
C184: 3.3.2.2 VFF | G184: ='GHG Emissions'!G56*('GHG Emissions'!J11+'GHG Emissions'!K11+'GHG Emissions'!L11)/'Energy Consumption'!F83*1000000 -> 0.01731883437 | H184: gCO2eq/MJ
A186: 3.4 Surface processing
B187: 3.4.1 Total energy consumption | G187: ='Energy Consumption'!P11/(-'Energy Consumption'!E43) -> 0.01265802968 | H187: MJ/MJ
B188: 3.4.2 Total GHG emissions | G188: =(G189+G190) -> 5.221761532 | H188: gCO2eq/MJ | J188: MJ of crude output
C189: 3.4.2.1 Combustion/land use | G189: ='GHG Emissions'!G56*(('GHG Emissions'!H12+'GHG Emissions'!I12)+('Energy Consumption'!H11/('Energy Consumption'!H10+'Energy Consumption'!H11))*'GHG Emissions'!H16)/'Energy Consumption'!F83*1000000 -> 0.7049933348 | H189: gCO2eq/MJ
C190: 3.4.2.2 VFF | G190: ='GHG Emissions'!G56*('GHG Emissions'!J12+'GHG Emissions'!K12+'GHG Emissions'!L12)/'Energy Consumption'!F83*1000000 -> 4.516768197 | H190: gCO2eq/MJ
A192: 3.5 Maintenance
B193: 3.5.1 Total energy consumption | G193: ='Energy Consumption'!P12/(-'Energy Consumption'!E43) -> 0 | H193: MJ/MJ
B194: 3.5.2 Total GHG emissions | G194: =(G195+G196) -> 0.07706311874 | H194: gCO2eq/MJ | J194: MJ of crude output
C195: 3.5.2.1 Combustion/land use | G195: 0 | H195: gCO2eq/MJ
C196: 3.5.2.2 VFF | G196: ='GHG Emissions'!G56*('GHG Emissions'!J13+'GHG Emissions'!K13+'GHG Emissions'!L13)/'Energy Consumption'!F83*1000000 -> 0.07706311874 | H196: gCO2eq/MJ
A198: 3.6 Waste disposal
B199: 3.6.1 Total energy consumption | G199: ='Energy Consumption'!P13/(-'Energy Consumption'!E43) -> 0 | H199: MJ/MJ | J199: Waste disposal energy use is not included in the current version of the model
B200: 3.6.2 Total GHG emissions | G200: 0 | H200: gCO2eq/MJ | J200: Waste disposal emissions are not included in the current version of the model
C201: 3.6.2.1 Combustion/land use | G201: 0 | H201: gCO2eq/MJ
C202: 3.6.2.2 VFF | G202: 0 | H202: gCO2eq/MJ
A204: 3.7 Crude transport
B205: 3.7.1 Total energy consumption | G205: ='Energy Consumption'!P14/(-'Energy Consumption'!E43) -> 0.01259291659 | H205: MJ/MJ
B206: 3.7.2 Total GHG emissions | G206: =IF('GHG Emissions'!G56>1,'GHG Emissions'!G56,1)*('GHG Emissions'!H15+'GHG Emissions'!I15) /'Energy Consumption'!F83*1000000 -> 0.9431578085 | H206: gCO2eq/MJ | J206: MJ of crude transported
B207: 3.7.3 Loss factor | G207: =(Transport!M58/1000000)+1 -> 1.000062 | H207: NA | J207: Calculated from crude oil losses
A209: 3.8 Other small sources | G209: ='GHG Emissions'!G56*J154 -> 0.5 | H209: gCO2eq/MJ | J209: See sheet "Model Organization" for list of all sources not explicitly modeled in OPGEE. These sources are included here as "other small sources" and assigned default value of 0.5 gCO2 eq./MJ
A211: 3.9 Offsite emissions credit/debit | G211: ='GHG Emissions'!G61/'Energy Consumption'!F83*1000000 -> -0.7697926123 | H211: gCO2eq/MJ | J211: Credits (negative emissions) from fuels export + debts (positive emissions) from fuels import. If analysis boundaries include embodied emissions from oilfield infrastructure construction, these are added to offsite emissions.
A213: 3.10 Lifecycle energy consumption | G213: =(G169+G175+G181+G187+G193+G199)*G207+G205 -> 0.03971849795 | H213: MJ/MJ
A215: 3.11 Carbon dioxide sequestration | J215: See sheet "GHG Emissions" for detailed calculations
B216: 3.11.1 Total CO2 sequestered | G216: =-1*'GHG Emissions'!G45 /'Energy Consumption'!F83*1000000 -> 0 | H216: gCO2/MJ
A218: 3.12 Lifecycle GHG emissions | G218: =(G170+G176+G182+G188+G194+G200+G209+G211+G216)*G207+G206 -> 8.178390085 | H218: gCO2eq/MJ | J218: MJ of crude at refinery gate
A222: 4 Error check
F225: Sheet | I225: Cell | J225: Status | K225: Notes
A226: 4.1 Specific error checks
B227: 4.1.1 Production methods | F227: Active Field | I227: I51,I52, I53, I54, I55, I56 | J227: =IF(AND(I51="OK",I52="OK",I53="OK",I54="OK",I55="OK",H54="OK"),"OK","ERROR") -> OK
B228: 4.1.2 Water injection ratio | F228: Active Field | I228: I87 | J228: =I87 -> OK
B229: 4.1.3 Gas injection volume | F229: Active Field | I229: I88 | J229: =I88 -> OK
B230: 4.1.4 N2 injection ratio | F230: Active Field | I230: I89 | J230: =I89 -> OK
B231: 4.1.5 Steam-to-oil ratio (SOR) | F231: Active Field | I231: I102 | J231: =I102 -> OK
B232: 4.1.6 Field location | F232: Active Field | I232: I59 | J232: =I59 -> OK | K232: =N59 -> 
B233: 4.1.7 Power generation in offshore field | F233: Active Field | I233: I103 | J233: =I103 -> OK
B234: 4.1.8 Volume fraction of diluent | F234: Active Field | I234: I127 | J234: =I127 -> OK
B235: 4.1.9 Gas processing path error with CO2 EOR | F235: Active Field | I235: I116 | J235: =I116 -> OK | K235: =IF(J235="ERROR","If CO2 EOR is selected, gas processing path of 6 or 7 should be selected to separate and reinject produced CO2","") -> 
B236: 4.1.10 Crude ecosystem carbon richness | F236: Drilling & Development | I236: M23 | J236: ='Drilling & Development'!M23 -> OK
B237: 4.1.11 Field development intensity | F237: Drilling & Development | I237: M28 | J237: ='Drilling & Development'!M27 -> OK
B238: 4.1.12 Gas composition (I) | F238: Production & Extraction | I238: M42 | J238: =IF('Production & Extraction'!M42="OK","OK","ERROR") -> OK
B239: 4.1.13 Gas composition (II) | F239: Gas Balance | I239: M56 | J239: =IF('Gas Balance'!M56="OK","OK","ERROR") -> OK
B240: 4.1.14 Fraction of gas to reinjection | F240: Production & Extraction | I240: L45 | J240: ='Production & Extraction'!L47 -> OK | K240: =IF(J240="ERROR","In the case of CH4 gas flooding, fraction of gas to reinjection must be 1.0","") -> 
B241: 4.1.15 Fraction of water to reinjection | F241: Production & Extraction | I241: L46 | J241: ='Production & Extraction'!L48 -> OK
B242: 4.1.16 Number of producing wells | F242: Production & Extraction | I242: L26 | J242: ='Production & Extraction'!L27 -> OK
B243: 4.1.17 Productivity index | F243: Production & Extraction | I243: L29 | J243: ='Production & Extraction'!L30 -> OK
B244: 4.1.18 Ratio of specific heats | F244: Production & Extraction | I244: L103 | J244: ='Production & Extraction'!L111 -> OK
B245: 4.1.19 Amine solution K value | F245: Surface Processing | I245: N101 | J245: ='Surface Processing'!L102 -> OK | K245: =IF(N101="ERROR","Please enter K value of amine solution in cell O101","") -> 
... 11 more rows

Sheet Exploration
A1: Exploration | H1: Active field: | J1: ='Active Field'!C9 -> Generic
A3: 1 Inputs
A5: 1.1 Key inputs (to be entered on "Inputs" sheet) | M5: User | N5: Default | O5: Units | Q5: User reference | S5: Default reference | Y5: Notes
B6: 1.1.1 Field depth | M6: ='Active Field'!J62 -> 7240 | N6: ='Active Field'!K62 -> 7240 | O6: ft | Y6: Assume dry holes and exploratory/scientific wells are same average depth as field
B7: 1.1.2 Is field offshore? (0-1) | M7: ='Active Field'!J70 -> 0 | N7: ='Active Field'!K70 -> 0 | O7: [0-1]
B8: 1.1.3 Field production rate | M8: ='Active Field'!J63 -> 1500 | N8: ='Active Field'!K63 -> 1500 | O8: bbl/d
A10: 1.2 Secondary inputs (to be entered on this sheet)
B11: 1.2.1 Distance of travel for survey | M11: =N11 -> 10000 | N11: 10000 | O11: mi | Y11: Estimate accounting for long-distance travel of specialized equipment
B12: 1.2.2 Weight of land survey vehicle | M12: =N12 -> 25 | N12: 25 | O12: tons | Y12: Assume 25 tons for heavy-duty truck, 100 tons for siesmic survey ship
B13: 1.2.3 Weight of ocean survey vehicle | M13: =N13 -> 100 | N13: 100 | O13: tons
B14: 1.2.4 Number of dry wells drilled per field found | M14: =N14 -> 1 | N14: 1 | O14: wells
B15: 1.2.5 Number of exploratory/scientific wells drilled after field discovery | M15: =N15 -> 3 | N15: 3 | O15: wells
A17: 1.3 Data from other sheets
B18: 1.3.1 Energy density of produced crude | M18: ='Fuel Specs'!M16 -> 5.5146 | N18: ='Fuel Specs'!N16 -> 5.5146 | O18: MMBtu/bbl
B19: 1.3.1 Energy intensity per well | M19: ='Drilling & Development'!M113/'Drilling & Development'!M18 -> 303.1396799 | N19: ='Drilling & Development'!N113/'Drilling & Development'!N18 -> 0 | O19: MMBtu/well | Y19: Use same energy intensity of completed field wells
B20: 1.3.2 Expected lifetime field productivity (bbl) | M20: ='Drilling & Development'!M104 -> 6400000 | N20: ='Drilling & Development'!N104 -> 0 | O20: bbl crude/field | Y20: Source: Yeh et al. (2010) for California. Cumulative production to date in California is 25.99 Gbbl. Known wells total approximately 200,000 (although early wells are missing from this dataset). Therefore per-well lifetime productivity is ~130,000 bbl/well.
B21: 1.3.3 Expected liftetime field productivity (MMBtu) | M21: ='Drilling & Development'!M106 -> 35293440 | N21: ='Drilling & Development'!N106 -> 0 | O21: MMBtu crude/field
B22: 1.3.4 Heavy-duty truck energy intensity (diesel) | M22: =Transport!M101 -> 969 | N22: =Transport!M94 -> 969 | O22: Btu/ton-mi
B23: 1.3.5 Large ship energy intensity (diesel) | M23: =Transport!M98 -> 307.1438286 | N23: =Transport!M98 -> 307.1438286 | O23: Btu/ton-mi
B24: 1.3.6 Emissions factors heavy-duty truck | M24: ='Emissions Factors'!M28 -> 78651.29826 | N24: ='Emissions Factors'!M28 -> 78651.29826 | O24: gCO2eq./MMBtu
B25: 1.3.7 Emissions factor large diesel ship | M25: ='Emissions Factors'!C28 -> 78900.83671 | N25: ='Emissions Factors'!C28 -> 78900.83671 | O25: gCO2eq./MMBtu
A27: 2 Calculations
A29: 2.1 Energy consumption
B30: 2.1.1 Survey vehicle energy consumption | M30: =IF(M7=0,M22*M12*M11,IF(M7=1,M23*M13*M11,"ERROR"))/1000000 -> 242.25 | O30: MMBtu
B31: 2.1.2 Drilling energy consumption | M31: =(M14+M15)*M19 -> 1212.55872 | O31: MMBtu
B32: 2.1.3 Fractional energy consumption | M32: =IFERROR((M30+M31)/M21,0) -> 4.122037182e-05 | O32: MMBtu/MMBtu crude
A34: 2.2 GHG emissions
B35: 2.2.1 GHG emissions from exploration | M35: =IF(M7=0,M32*M24,IF(M7=1,M32*M25,"ERROR")) -> 3.242035758 | O35: gCO2 eq./MMBtu crude
A38: Outputs
A40: 3.1 Tabulated outputs: Energy consumption by fuel (per day) | M40: Natural gas | N40: Upgrader process gas | O40: NGL | P40: Crude oil | Q40: Diesel | R40: Residual fuel | S40: Petroleum coke | T40: Electricity
M41: MMBtu/d | N41: MMBtu/d | O41: MMBtu/d | P41: MMBtu/d | Q41: MMBtu/d | R41: MMBtu/d | S41: MMBtu/d | T41: kWh/d
M42: 0 | N42: 0 | O42: 0 | P42: 0 | Q42: =M32*M8*M18 -> 0.3409707937 | R42: 0 | S42: 0 | T42: 0
A44: 3.2 Tabulated outputs: Non-combustion emissions (per day) | M44: Land use CO2 | N44: Venting | O44: Flaring | P44: Fugitives
M45: 0 | N45: 0 | O45: 0 | P45: 0 | Q45: gCO2 eq./d

Sheet Drilling & Development
A1: Drilling & development | H1: Active field: | J1: ='Active Field'!C9 -> Generic
A3: Estimation of GHG emissions from drilling and field development
A6: 1 Inputs
A8: 1.1 Key inputs (to be entered on "Inputs" sheet) | M8: User | N8: Default | O8: Units | Q8: User reference | S8: Default reference
B9: 1.1.1 Field country | M9: ='Active Field'!J59 -> Generic | N9: USA | O9: [-]
B10: 1.1.2 Field name | M10: ='Active Field'!J60 -> Generic | N10: Generic | O10: [-]
B11: 1.1.3 Well-based production | M11: =IF(OR('Active Field'!J55=1,'Active Field'!J56=1),0,1) -> 1 | N11: =IF(OR('Active Field'!K55=1,'Active Field'!K56=1),0,1) -> 1 | O11: [0-1]
B12: 1.1.4 Mining-based production | M12: =IF(OR('Active Field'!J55=1,'Active Field'!J56=1),1,0) -> 0 | N12: =IF(OR('Active Field'!K55=1,'Active Field'!K56=1),1,0) -> 0 | O12: [0-1]
B13: 1.1.5 Production rate | M13: ='Active Field'!J63 -> 1500 | N13: ='Active Field'!K63 -> 1500 | O13: bbl/d
B14: 1.1.5 Field depth | M14: ='Active Field'!J62 -> 7240 | N14: ='Active Field'!K62 -> 7240 | O14: ft
B15: 1.1.6 API gravity | M15: ='Active Field'!J73 -> 30 | N15: ='Active Field'!K73 -> 30 | O15: deg. API
B16: 1.1.7 Number of producer wells | M16: ='Active Field'!J64 -> 8 | N16: ='Active Field'!K64 -> 8 | O16: No. wells
B17: 1.1.8 Number of injector wells | M17: ='Active Field'!J65 -> 5 | N17: ='Active Field'!K65 -> 5 | O17: No. wells
B18: 1.1.9 Number of producing and injecting wells | M18: ='Active Field'!J64+'Active Field'!J65 -> 13 | N18: ='Active Field'!K64+'Active Field'!K65 -> 13 | O18: No. wells
B19: 1.1.10 Crude ecosystem carbon richness
C20: 1.1.10.1 | D20: Low carbon richness (semi-arid grasslands) | M20: ='Active Field'!J131 -> 0 | N20: ='Active Field'!K131 -> 0 | O20: NA | S20: Yeh et al. (2010) | Y20: Corresponds to Yeh et al. (2010) California Marginal case (Table 3)
C21: 1.1.10.2 | D21: Moderate carbon richness (mixed) | M21: ='Active Field'!J132 -> 1 | N21: ='Active Field'!K132 -> 1 | O21: NA | S21: Yeh et al. (2010) | Y21: Corresponds to mixed ecosystem
C22: 1.1.10.3 | D22: High carbon richness (forested) | M22: ='Active Field'!J133 -> 0 | N22: ='Active Field'!K133 -> 0 | O22: NA | S22: Yeh et al. (2010) | Y22: Corresponds to Yeh et al. (2010) Alberta Marginal case
B23: 1.1.11 Field development intensity | L23: Check: | M23: =IF(SUM(M20:M22)=1,"OK","ERROR") -> OK
C24: 1.1.11.1 | D24: Low intensity development and low oxidation | M24: ='Active Field'!J135 -> 0 | N24: ='Active Field'!K135 -> 0 | O24: NA | S24: Yeh et al. (2010) | Y24: Corresponds to Yeh et al. (2010) low end of range (Table 3)
C25: 1.1.11.2 | D25: Moderate intensity development and moderate oxidation | M25: ='Active Field'!J136 -> 1 | N25: ='Active Field'!K136 -> 1 | O25: NA | S25: Yeh et al. (2010) | Y25: Corresponds to Yeh et al. (2010) representative value (Table 3)
C26: 1.1.11.3 | D26: High intensity development and high oxidation | M26: ='Active Field'!J137 -> 0 | N26: ='Active Field'!K137 -> 0 | O26: NA | S26: Yeh et al. (2010) | Y26: Corresponds to Yeh et al. (2010) high end of range (Table 3)
L27: Check: | M27: =IF(SUM(M24:M26)=1,"OK","ERROR") -> OK
A28: 1.2 Secondary inputs (to be entered on this sheet)
B29: 1.2.1 Rig efficiency | M29: Med | N29: Med | O29: [-]
C30: 1 = Low: Mud pump 60%, Rotary table 40% | H30: Low
C31: 2 = Med: Mud pump 65%, Rotary table 45% | H31: Med
C32: 3 = High: Mud pump 70%, Rotary table 50% | H32: High
B33: 1.2.1 Well complexity | L33: =IF(M14>15000,IF(M33<>"Complex","Warning",""),"") ->  | M33: Moderate | N33: Moderate | O33: [-] | S33: If a very deep field, suggest using complex well design.
C34: 1 = Simple: Surface casing plus production casing
C35: 2 = Moderate: Surface casing, Intermediate casing, Production casing
C36: 3 = Complex: Surface casing, Intermediate casing 1, Intermediate casing 2, Production casing
B37: 1.2.3 Hole size | M37: Med | N37: Med | O37: [-]
C38: 1 = Small
C39: 2 = Med
C40: 3 = Large
C41: 4 = Extra-large
B42: 1.2.4 Hole size reference table
E43: Simple | I43: Moderate | M43: Complex
E44: Small | F44: Med | G44: Large | H44: Extra-large | I44: Small | J44: Med | K44: Large | L44: Extra-large | M44: Small | N44: Med | O44: Large | P44: Extra-large
C45: Conductor casing | E45: - | F45: - | G45: - | H45: - | I45: - | J45: - | K45: - | L45: - | M45: - | N45: - | O45: - | P45: -
C46: Surface casing | E46: 12.25 | F46: 12.25 | G46: 14.75 | H46: 14.75 | I46: 12.25 | J46: 14.75 | K46: 14.75 | L46: 14.75 | M46: 14.375 | N46: 14.375 | O46: 17.5 | P46: 17.5 | Q46: in.
C47: Intermediate casing 1 | E47: 5.875 | F47: 6.125 | G47: 6.5 | H47: 7.875 | I47: 8.75 | J47: 10.625 | K47: 10.625 | L47: 12.25 | M47: 10.625 | N47: 10.625 | O47: 12.25 | P47: 14.75 | Q47: in.
C48: Intermediate casing 2 | E48: 5.875 | F48: 6.125 | G48: 6.5 | H48: 7.875 | I48: 5.875 | J48: 5.875 | K48: 6.125 | L48: 7.875 | M48: 6.5 | N48: 7.875 | O48: 9.5 | P48: 12.25 | Q48: in.
C49: Production casing | E49: 5.875 | F49: 6.125 | G49: 6.5 | H49: 7.875 | I49: 5.875 | J49: 5.875 | K49: 6.125 | L49: 7.875 | M49: 5.875 | N49: 6.5 | O49: 7.875 | P49: 9.5 | Q49: in.
C50: Notes:
C51: Conductor casing is assumed inserted by drive or auger, not conventional drilling system. Conducor casing placement not modeled in GHGfrack
C52: To customize drilling design further, please use the GHGfrack model.
B54: 1.2.5 Horizontal well? | M54: 0 | N54: 0 | O54: Fraction of wells horizontal
C55: 0 = All wells vertical; 1 = All wells horizontal; (0 -> 1): Fraction of wells that are horizontal
B56: 1.2.6 Length of lateral | M56: 5000 | N56: 5000 | O56: ft
B57: 1.2.7 Drilling energy intensity reference tables
C58: Vertical drilling
C59: Low efficiency | H59: Med efficiency | M59: High efficiency
D60: Small | E60: Med | F60: Large | G60: Extra-large | I60: Small | J60: Med | K60: Large | L60: Extra-large | N60: Small | O60: Med | P60: Large | Q60: Extra-large
C61: Simple | D61: 0.3431898098 | E61: 0.3368935729 | F61: 0.4508989914 | G61: 0.4232928346 | H61: Simple | I61: 0.3121256775 | J61: 0.3061297216 | K61: 0.411186966 | L61: 0.3869063284 | M61: Simple | N61: 0.2863960964 | O61: 0.2806819383 | P61: 0.3779574987 | Q61: 0.3565033639 | R61: gal diesel fuel/ft
C62: Moderate | D62: 0.3535795369 | E62: 0.3586592564 | F62: 0.4996855387 | G62: 0.4389962069 | H62: Moderate | I62: 0.322376125 | J62: 0.3259643561 | K62: 0.4587711943 | L62: 0.4019987991 | M62: Moderate | N62: 0.2964136321 | O62: 0.3119776867 | P62: 0.4229793891 | Q62: 0.3709670165 | R62: gal diesel fuel/ft
C63: Complex | D63: 0.6476966523 | E63: 0.4870229396 | F63: 0.6354207479 | G63: 0.7275762032 | H63: Complex | I63: 0.5968402245 | J63: 0.445997621 | K63: 0.5707533635 | L63: 0.670511789 | M63: Complex | N63: 0.5536398596 | O63: 0.4035761225 | P63: 0.5295273371 | Q63: 0.621998704 | R63: gal diesel fuel/ft
C65: Horizontal drilling
C66: Low efficiency | H66: Med efficiency | M66: High efficiency
D67: Small | E67: Med | F67: Large | G67: Extra-large | I67: Small | J67: Med | K67: Large | L67: Extra-large | N67: Small | O67: Med | P67: Large | Q67: Extra-large
C68: Simple | D68: 0.239708483 | E68: 0.2329457391 | F68: 0.2319883045 | G68: 0.2720280639 | H68: Simple | I68: 0.2207175639 | J68: 0.2144057251 | K68: 0.213487793 | L68: 0.5803204149 | M68: Simple | N68: 0.2045729664 | O68: 0.1986568113 | P68: 0.1977772681 | Q68: 0.23245575 | R68: gal additional diesel fuel/ft lateral
C69: Moderate | D69: 0.3230511524 | E69: 0.3230511524 | F69: 0.3040114245 | G69: 0.3130609845 | H69: Moderate | I69: 0.298240373 | J69: 0.298240373 | K69: 0.2804816624 | L69: 0.2786538352 | M69: Moderate | N69: 0.2770289106 | O69: 0.2770289106 | P69: 0.2603925669 | Q69: 0.2681979362 | R69: gal additional diesel fuel/ft lateral
C70: Complex | D70: 0.5160812411 | E70: 0.4292008299 | F70: 0.4087676643 | G70: 0.4990412427 | H70: Complex | I70: 0.4781406673 | J70: 0.3969608922 | K70: 0.3780347922 | L70: 0.4624312478 | M70: Complex | N70: 0.4454471081 | O70: 0.3692839204 | P70: 0.3516581759 | Q70: 0.430875557 | R70: gal additional diesel fuel/ft lateral
B73: 1.2.8 Field productivity category (Low = USA, Med = Global average, High = OPEC) | M73: Med | N73: Med | O73: [-] | X73: Low | Y73: Med | Z73: High
B74: 1.2.9 Fraction of wells fractured | M74: 0 | N74: 0 | O74: Fraction of wells fractured
B75: 1.2.10 Fracturing fluid injection volume | M75: 3 | N75: 3 | O75: million gallons fluid
B76: 1.2.11 Fracturing pressure gradient (rock strength) | M76: 0.7 | N76: 0.7 | O76: psi/ft
B77: 1.2.12 Fracuring rig energy consumption table
C78: psi/ft | D78: a | E78: b | F78: c | M78: <--Change to left
C79: 0.6 | D79: 588.55 | E79: -488.77 | F79: 1184.5 | G79: [-] | L79: a | M79: =VLOOKUP(M76,C79:F87,2) -> 511.3 | N79: =VLOOKUP(N76,C79:F87,2) -> 511.3 | O79: [-]
C80: 0.65 | D80: 599.49 | E80: -246.27 | F80: 1349.2 | G80: [-] | L80: b | M80: =VLOOKUP(M76,C79:F87,3) -> 575.63 | N80: =VLOOKUP(N76,C79:F87,3) -> 575.63 | O80: [-]
C81: 0.7 | D81: 511.3 | E81: 575.63 | F81: 964.32 | G81: [-] | L81: c | M81: =VLOOKUP(M76,C79:F87,4) -> 964.32 | N81: =VLOOKUP(N76,C79:F87,4) -> 964.32 | O81: [-]
C82: 0.75 | D82: 499.47 | E82: 924.06 | F82: 1012.5 | G82: [-]
C83: 0.8 | D83: 566.77 | E83: 1090.4 | F83: 1101.6 | G83: [-]
C84: 0.85 | D84: 570.18 | E84: 1378.2 | F84: 1162.6 | G84: [-]
C85: 0.9 | D85: 523.67 | E85: 1882.7 | F85: 1233.9 | G85: [-]
C86: 0.95 | D86: 664.49 | E86: 1512.6 | F86: 1922.7 | G86: [-]
C87: 1 | D87: 477.57 | E87: 3025.4 | F87: 752.02 | G87: [-]
B89: 1.2.13 Timeframe of land use analysis (1 = 30 years, 2 = 150 years) | M89: 1 | N89: 1 | O89: [-] | Y89: If default timeframe of 30 years is chosen, modified versions of Yeh et al. (2010) calculations are used. See documenation for calculation differences.
A91: 1.3 Input data from other sheets (change on other sheets)
B92: 1.3.1 Crude oil heating value | M92: =VLOOKUP(M15,'Fuel Specs'!B24:O65,5) -> 5.5146 | N92: =VLOOKUP(N15,'Fuel Specs'!B24:O65,5) -> 5.5146 | O92: MMBtu LHV/bbl
B93: 1.3.2 Land use emissions code | M93: =IF('Active Field'!J70=1,0,(IF(M11=1,(M20*M24*1+M20*M25*2+M20*M26*3+M21*M24*4+M21*M25*5+M21*M26*6+M22*M24*7+M22*M25*8+M22*M26*9),IF(M12=1,(M24*10+M25*11+M26*12))))) -> 5 | N93: =IF(N11=1,(N20*N24*1+N20*N25*2+N20*N26*3+N21*N24*4+N21*N25*5+N21*N26*6+N22*N24*7+N22*N25*8+N22*N26*9),IF(N12=1,(N24*10+N25*11+N26*12))) -> 5 | O93: [-]
B94: 1.3.3 Land use emissions intensities
C95: 1.3.3.1 Soil carbon emissions | M95: =IF(M$93=0,0,HLOOKUP($M$93,IF($M$89=1,'Emissions Factors'!$D$169:$O$172,IF($M$89=2,'Emissions Factors'!$D$159:$O$162,"ERROR")),2,TRUE)) -> 0.57 | N95: =IF(N$93=0,0,HLOOKUP($N$93,IF($N$89=1,'Emissions Factors'!$D$169:$O$172,IF($N$89=2,'Emissions Factors'!$D$159:$O$162,"ERROR")),2,TRUE)) -> 0.57 | O95: gCO2eq/MJ | S95: Yeh et al. (2010) | Y95: See above.
C96: 1.3.3.2 Biomass carbon emissions | M96: =IF(M$93=0,0,HLOOKUP($M$93,IF($M$89=1,'Emissions Factors'!$D$169:$O$172,IF($M$89=2,'Emissions Factors'!$D$159:$O$162,"ERROR")),3,TRUE)) -> 0.68 | N96: =IF(N$93=0,0,HLOOKUP($N$93,IF($N$89=1,'Emissions Factors'!$D$169:$O$172,IF($N$89=2,'Emissions Factors'!$D$159:$O$162,"ERROR")),3,TRUE)) -> 0.68 | O96: gCO2eq/MJ | S96: Yeh et al. (2010) | Y96: See above.
C97: 1.3.3.3 Foregone sequestration emissions | M97: =IF(M$93=0,0,HLOOKUP($M$93,IF($M$89=1,'Emissions Factors'!$D$169:$O$172,IF($M$89=2,'Emissions Factors'!$D$159:$O$162,"ERROR")),4,TRUE)) -> 0.005 | N97: =IF(N$93=0,0,HLOOKUP($N$93,IF($N$89=1,'Emissions Factors'!$D$169:$O$172,IF($N$89=2,'Emissions Factors'!$D$159:$O$162,"ERROR")),4,TRUE)) -> 0.005 | O97: gCO2eq/MJ | S97: Yeh et al. (2010) | Y97: See above.
A100: 2 Calculations
A102: 2.1 Cumulative production per well | M102: User
B103: 2.1.1 Cumulative production per well (bbl) | M103: =IF(M73="Low",150000,IF(M73="Med",800000,IF(M73="High",7000000,"ERROR"))) -> 800000 | O103: bbl/well | S103: Brandt 2015
B104: 2.1.2 Cumulative production per field (bbl) | M104: =M103*M16 -> 6400000 | O104: bbl/field
B105: 2.1.3 Cumulative energy production per well (MMBtu) | M105: =M103*M92 -> 4411680 | O105: MMBtu/well
B106: 2.1.4 Cumulative energy production per field (MMBtu) | M106: =M104*M92 -> 35293440 | O106: MMBtu/field
A108: 2.2 Drilling and fracturing energy use
B109: 2.2.1 Vertical drilling intensity | M109: =IF(M29="Low",VLOOKUP(M33,C61:G63,IF(M37="Small",2,IF(M37="Med",3,IF(M37="Large",4,5))),FALSE),IF(M29="Med",VLOOKUP(M33,H61:L63,IF(M37="Small",2,IF(M37="Med",3,IF(M37="Large",4,5))),FALSE),IF(M29="High",VLOOKUP(M33,M61:Q63,IF(M37="Small",2,IF(M37="Med",3,IF(M37="Large",4,5))),FALSE)))) -> 0.3259643561 | O109: gal diesel fuel/ft vertical
B110: 2.2.2 Horizontal drilling intensity | M110: =M109+IF(M29="Low",VLOOKUP(M33,C68:G70,IF(M37="Small",2,IF(M37="Med",3,IF(M37="Large",4,5))),FALSE),IF(M29="Med",VLOOKUP(M33,H68:L70,IF(M37="Small",2,IF(M37="Med",3,IF(M37="Large",4,5))),FALSE),IF(M29="High",VLOOKUP(M33,M68:Q70,IF(M37="Small",2,IF(M37="Med",3,IF(M37="Large",4,5))),FALSE)))) -> 0.624204729 | O110: gal diesel fuel/ft lateral
B112: 2.2.3 Drilling fuel consumption (gal diesel) | M112: =M109*M14*M18+M18*M54*M56*M110 -> 30679.76519 | O112: gal diesel fuel/field
B113: 2.2.4 Drilling energy consumption (MMBtu) | M113: =M112*'Fuel Specs'!E336/1000000 -> 3940.815839 | O113: MMBtu diesel fuel/field
B114: 2.2.5 Drilling energy intensity per unit of oil produced (lifetime) | M114: =IFERROR(M113/M106,0) -> 0.0001116585926 | O114: MMBtu diesel fuel consumed per MMBtu crude oil produced
B116: 2.2.6 Fracturing fuel consumption (gal diesel) | M116: =M74*M18*(M79*M75^2+M80*M75+M81) -> 0 | O116: gal diesel fuel/field
B117: 2.2.7 Fracturing energy consumption (MMBtu) | M117: =M116*'Fuel Specs'!E336/1000000 -> 0 | O117: MMBtu diesel fuel/field
B118: 2.2.8 Fracturing energy intensity per unit of oil rpoduced (lifetime) | M118: =IFERROR(M117/M106,0) -> 0 | O118: MMBtu diesel fuel consumed per MMBtu crude oil produced
A120: 2.3 Total field development energy
B121: 2.3.1 Total development energy for field | M121: =M113+M117 -> 3940.815839 | O121: MMBtu/field
B122: 2.3.2 Development energy intensity (lifetime) | M122: =M121/M104 -> 0.0006157524748 | O122: MMBtu diesel fuel consumed per bbl crude oil produced
B123: 2.3.3 Development energy intensity (lifetime) | M123: =M121/M106 -> 0.0001116585926 | O123: MMBtu diesel per MMBtu crude oil produced
A126: 3 Outputs
A129: 3.1 Tabulated outputs: Energy consumption by fuel (per day) | M129: Natural gas | N129: Upgrader process gas | O129: NGL | P129: Crude oil | Q129: Diesel | R129: Residual fuel | S129: Petroleum coke | T129: Electricity
M130: MMBtu/d | N130: MMBtu/d | O130: MMBtu/d | P130: MMBtu/d | Q130: MMBtu/d | R130: MMBtu/d | S130: MMBtu/d | T130: kWh/d
M131: 0 | N131: 0 | O131: 0 | P131: 0 | Q131: =M122*M13 -> 0.9236287123 | R131: 0 | S131: 0 | T131: 0
A133: 3.2 Tabulated outputs: Non-combustion emissions (per day) | M133: Land use CO2 | N133: Venting | O133: Flaring | P133: Fugitives
M134: =SUM(M95:M97)*'Input Data'!E48*M13*M92 -> 10952721.46 | N134: 0 | O134: 0 | P134: 0 | Q134: gCO2 eq./d

Sheet Production & Extraction
A1: Crude Extraction | H1: Active field: | J1: ='Active Field'!C9 -> Generic
A3: Calculation of GHG emissions from crude oil extraction using different techniques.
A4: 1. Oil recovery stages: Primary, secondary and tertiary
A5: 2. Artificial lifting methods: Downhole pump (e.g. Sucker-rod pump, submersible motor pump); Water flooding; Gas flooding (e.g., N2 flooding); Gas lifting; Steam flooding
A6: 3. Non-traditional recovery methods: Oil sands mining (integrated with upgrader); 3.2 Oil sands mining (non-integrated with upgrader)
A10: 1 Inputs
A12: 1.1 Key inputs (to be entered on "Inputs" sheet) | M12: User | N12: Default | O12: Units | Q12: User reference | S12: Default reference | Y12: Notes
B13: 1.1.1 Production methods
C14: 1.1.1.1 Downhole pump | M14: ='Active Field'!J48 -> 1 | N14: ='Active Field'!K48 -> 1
C15: 1.1.1.2 Water reinjection | M15: ='Active Field'!J49 -> 1 | N15: ='Active Field'!K49 -> 1
C16: 1.1.1.3 Natural Gas Reinjection | M16: ='Active Field'!J50 -> 1 | N16: ='Active Field'!K50 -> 1
C17: 1.1.1.4 Water flooding | M17: ='Active Field'!J51 -> 0 | N17: ='Active Field'!K51 -> 0
C18: 1.1.1.5 Gas lifting | M18: ='Active Field'!J52 -> 0 | N18: ='Active Field'!K52 -> 0
C19: 1.1.1.6 Gas flooding | M19: ='Active Field'!J53 -> 0 | N19: ='Active Field'!K53 -> 0
C20: 1.1.1.7 Steam flooding | M20: ='Active Field'!J54 -> 0 | N20: ='Active Field'!K54 -> 0
C21: 1.1.1.8 Oil sands mine (integrated with upgrader) | M21: ='Active Field'!J55 -> 0 | N21: ='Active Field'!K55 -> 0
C22: 1.1.1.9 Oil sands mine (non-integrated with upgrader) | M22: ='Active Field'!J56 -> 0 | N22: ='Active Field'!K56 -> 0
B24: 1.1.2 Field properties
C25: 1.1.2.1 Depth | M25: ='Active Field'!J62 -> 7240 | N25: ='Active Field'!K62 -> 7240 | O25: ft
C26: 1.1.2.2 Production volume | M26: ='Active Field'!J63 -> 1500 | N26: ='Active Field'!K63 -> 1500 | O26: bbl/d | AU26: =M40*AT26/100 -> 0
C27: 1.1.2.3 Number of producing wells | L27: =IF(M27>0,"OK",IF(SUM(M21:M22)=1,"OK","ERROR")) -> OK | M27: ='Active Field'!J64 -> 8 | N27: ='Active Field'!K64 -> 8 | O27: [-]
C28: 1.1.2.4 Number of water injecting wells | M28: ='Active Field'!J65 -> 5 | N28: ='Active Field'!K65 -> 5 | O28: [-]
C29: 1.1.2.5 Diameter | M29: ='Active Field'!J66 -> 2.775 | N29: ='Active Field'!K66 -> 2.775 | O29: in
C30: 1.1.2.6 Productivity index | L30: =IF(SUM(M21:M22)=1,"OK",IF((M31-((M26+M26*M44)/M27)/M30)>=0,"OK","ERROR")) -> OK | M30: ='Active Field'!J67 -> 3 | N30: ='Active Field'!K67 -> 3 | O30: bbl/psi-d
C31: 1.1.2.7 Average reservoir pressure | M31: ='Active Field'!J68 -> 1556.6 | N31: ='Active Field'!K68 -> 1556.6 | O31: psi
B33: 1.1.3 Fluids properties
C34: 1.1.3.1 API gravity | M34: ='Active Field'!J73 -> 30 | N34: ='Active Field'!K73 -> 30 | O34: deg. API | AT34: Mr | AU34: Mr%
C35: 1.1.3.2 Gas composition | L35: N2 | M35: ='Active Field'!J75 -> 2 | N35: 2 | O35: mol% | AT35: lb/lbmol | AU35: lb/lbmol
L36: CO2 | M36: ='Active Field'!J76 -> 6 | N36: 6 | O36: mol% | AS36: N2 | AT36: ='Fuel Specs'!E151 -> 28 | AU36: =AT36*M35/100 -> 0.56
L37: C1 | M37: ='Active Field'!J77 -> 84 | N37: 84 | O37: mol% | AS37: CO2 | AT37: ='Fuel Specs'!E153 -> 44 | AU37: =AT37*M36/100 -> 2.64
L38: C2 | M38: ='Active Field'!J78 -> 4 | N38: 4 | O38: mol% | AS38: C1 | AT38: ='Fuel Specs'!E155 -> 16 | AU38: 13.44
L39: C3 | M39: ='Active Field'!J79 -> 2 | N39: 2 | O39: mol% | AS39: C2 | AT39: ='Fuel Specs'!E156 -> 30 | AU39: 1.2
L40: C4+ | M40: ='Active Field'!J80 -> 1 | N40: 1 | O40: mol% | AS40: C3 | AT40: ='Fuel Specs'!E157 -> 44 | AU40: 0.88
L41: H2S | M41: ='Active Field'!J81 -> 1 | N41: 1 | O41: mol% | AS41: C4 | AT41: ='Fuel Specs'!E158 -> 58 | AU41: 0.58
B42: 1.1.4 Production practices | M42: =IF(SUM(M35:M41)=100,"OK","ERROR") -> OK | AS42: H2S | AT42: ='Fuel Specs'!E161 -> 34 | AU42: 0.34
C43: 1.1.4.1 Gas-oil ratio (GOR) | M43: ='Active Field'!J85 -> 908 | N43: ='Active Field'!K85 -> 908 | O43: scf/bbl | AS43: Gas | AT43: =SUM(AU36:AU42) -> 19.64
C44: 1.1.4.2 Water oil ratio (WOR) | M44: ='Active Field'!J86 -> 4.308369057 | N44: ='Active Field'!K86 -> 4.308369057 | O44: bbl water/bbl oil
C45: 1.1.4.3 Water injection ratio | M45: ='Active Field'!J87 -> 5.308369057 | N45: ='Active Field'!K87 -> 5.308369057 | O45: bbl water/bbl oil
C46: 1.1.4.4 Steam oil ratio (SOR) | M46: =IF(M20=0,3,'Active Field'!J102) -> 3 | N46: =IF(N20=0,3,'Active Field'!K102) -> 3 | O46: bbl steam/bbl oil
C47: 1.1.4.5 Fraction of remaining gas to reinjection | L47: =IF(AND(AND(M19=1,'Active Field'!J90=1),NOT(M47=100)),"ERROR","OK") -> OK | M47: =IF('Active Field'!J104=-1,0,'Active Field'!J104*100) -> 0 | N47: ='Active Field'!K104*100 -> 0 | O47: %
C48: 1.1.4.6 Fraction of water to reinjection/flooding | L48: =IF(AND(M17=1,NOT(M48=100)),"ERROR","OK") -> OK | M48: ='Active Field'!J105*100 -> 100 | N48: ='Active Field'!K105*100 -> 100 | O48: %
C49: 1.1.4.7 Flood gas volumetric injection rate | M49: =IF(M19=1,'Active Field'!J89*M26/1000,"NA") -> NA | N49: =IF(M19=1,'Active Field'!K89*N26/1000, "NA") -> NA | O49: Mscf/d | S49: Kuo, J.C. et al. (2001) | Y49: Default N2 injection volume is 1200 scf/bbl oil, from Cantarell field in Mexico. <http://www.bechtel.com/assets/files/PDF/BHTSWebsite/cantarell2.pdf>
A51: 1.2 Secondary inputs (to be entered on this sheet)
B52: 1.2.1 Produced water properties
C53: 1.2.1.1 Concentration of dissolved solids (TDS) | M53: 5000 | N53: 5000 | O53: mg/L | S53: Vlasopoulos et al. (2006)
B55: 1.2.2 Well description
C56: 1.2.2.1 Well head pressure | M56: 1000 | N56: 1000 | O56: psi | S56: Manning, F., and Thompson, R. (1991)
C57: 1.2.2.2 Injectivity index | M57: =N57 -> 3 | N57: =M30 -> 3 | O57: bbl/psi-d
C58: 1.2.2.3 Friction factor | M58: 0.02 | N58: 0.02 | O58: [-]
B60: 1.2.3 Downhole pump characteristics
C61: 1.2.3.1 Pump efficiency | M61: 65 | N61: 65 | O61: %
C62: 1.2.3.2 Prime mover type | F62: 1 = NG engine, 2 = Electric motor, 3 = Diesel engine, 4 = NG turbine | M62: 1 | N62: 1 | O62: NA
B64: 1.2.4 Water reinjection pump characteristics
C65: 1.2.4.1 Suction pressure | M65: 0 | N65: 0 | O65: psi | Y65: Assumed 90% of maximum allowed pressure and 50 psi of friction loss
C66: 1.2.4.2 Discharge pressure | M66: =N66 -> 0 | N66: =IF(M28=0, "NA", IF(M31+M164+M165-0.43*M25>0,M31+M164+M165-0.43*M25,0)) -> 0 | O66: psi
C67: 1.2.4.3 Pump efficiency | M67: 65 | N67: 65 | O67: %
C68: 1.2.4.4 Prime mover type | F68: 1 = NG engine, 2 = Electric motor, 3 = Diesel engine, 4 = NG turbine | M68: 1 | N68: 1 | O68: NA
B70: 1.2.5 Water flooding injection pump characteristics
C71: 1.2.5.1 Suction pressure | M71: 0 | N71: 0 | O71: psi
C72: 1.2.5.2 Discharge pressure | M72: =N72 -> 0 | N72: =IF(M28=0, "NA", IF(M31+M178+M179-0.43*M25>0,M31+M178+M179-0.43*M25,0)) -> 0 | O72: psi
C73: 1.2.5.3 Pump efficiency | M73: 65 | N73: 65 | O73: %
C74: 1.2.5.4 Prime mover type | F74: 1 = NG engine, 2 = Electric motor, 3 = Diesel engine, 4 = NG turbine | M74: 1 | N74: 1 | O74: NA
B76: 1.2.6 Natural gas reinjection compressor parameters (1-5 stages)
C77: 1.2.6.1 Suction pressure | M77: 125 | N77: 125 | O77: psia
C78: 1.2.6.2 Discharge pressure | M78: =N78 -> 2071.3 | N78: =M31+500+14.7 -> 2071.3 | O78: psia
C79: 1.2.6.3 Stage 1 inlet temperature | M79: 196.7 | N79: 196.7 | O79: ◦F
C80: 1.2.6.4 Ratio of specific heats | M80: 1.28 | N80: 1.28 | O80: [-] | S80: McAllister, E. W. (2009) | Y80: Typical Cp/Cv ratios in oil-producing operations: 1.16, 1.28, 1.40
C81: 1.2.6.5 Compressor efficiency | M81: 75 | N81: 75 | O81: %
C82: 1.2.6.6 Prime mover type | F82: 1 = Electric motor, 2 = NG engine | M82: 2 | N82: 2 | O82: NA
B84: 1.2.7 Gas lifting compressor parameters (1-5 stages)
C85: 1.2.7.1 Suction pressure | M85: 125 | N85: 125 | O85: psia
C86: 1.2.7.2 Discharge pressure | M86: =N86 -> 893 | N86: =(M31/2)+100+14.7 -> 893 | O86: psia
C87: 1.2.7.3 Stage 1 inlet temperature | M87: 196.7 | N87: 196.7 | O87: ◦F
C88: 1.2.7.4 Ratio of specific heats | M88: 1.28 | N88: 1.28 | O88: [-] | S88: McAllister, E. W. (2009) | Y88: Typical Cp/Cv ratios in oil-producing operations: 1.16, 1.28, 1.40
C89: 1.2.7.5 Compressor efficiency | M89: 75 | N89: 75 | O89: %
C90: 1.2.7.6 Prime mover type | F90: 1 = Electric motor, 2 = NG engine | M90: 2 | N90: 2 | O90: NA
B92: 1.2.8 Gas flooding gas composition | L92: N2 | M92: 2 | N92: 2 | O92: mol% | Y92: Composition on dry basis
C93: Notes: This composition is used only if natural gas is the flood gas | L93: CO2 | M93: 6 | N93: 6 | O93: mol% | Y93: This composition is used if gas flooding is applied and if natural gas is the selected flooding gas
L94: C1 | M94: 84 | N94: 84 | O94: mol%
L95: C2 | M95: 4 | N95: 4 | O95: mol%
L96: C3 | M96: 2 | N96: 2 | O96: mol%
L97: C4+ | M97: 1 | N97: 1 | O97: mol%
L98: H2S | M98: 1 | N98: 1 | O98: mol%
B99: 1.2.8 Gas flooding air separation unit (cryogenic N2 gas production)
C100: 1.2.8.1 Electricity consumption | M100: =N100 -> 0.004156716418 | N100: =(500500/1200-185)/1000000*'Input Data'!E59*24/1 -> 0.004156716418 | O100: kWh/scf | S100: Kuo, J.C. et al. (2001) p. 41 | Y100: In Cantarell field, generation of 1200 MMSCFD nitrogen requires 500500 hp compression power. This includes both compression of air to the required feed pressure and compression of the nitrogen product
B102: 1.2.9 Carbon Dioxide Flooding and Sequestration
C103: 1.2.9.1 CO2 Minimum miscibility pressure | M103: =N103 -> 1700 | N103: =IF('Active Field'!J73 <=27, 4000, IF(AND('Active Field'!J73>27, 'Active Field'!J73<30), 3000, 1200)) + IF('Active Field'!J69<=120, 0, IF(AND('Active Field'!J69>120, 'Active Field'!J69<150), 200, IF(AND('Active Field'!J69>150, 'Active Field'!J69<200), 350, 500))) -> 1700 | O103: psi | S103: National Petroleum Council (1976)
C104: 1.2.9.2 Long-term leakage rate of sequestered carbon from reservoir | M104: 0.5 | N104: 0.5 | O104: % | S104: DOE/NETL (2013) | Y104: The estimated 100-year leakage rate
C105: 1.2.9.3 Proportion of sequestered CO2 released from reservoir during post-production blow-down | M105: 0 | N105: 0 | O105: %
B107: 1.2.10 Gas flooding compressor parameters (1-5 stages) | Y107: to 1685 psia to be routed 53 miles offshore through pipelines to injection wells. The required pumping power for cooling water is not included.
C108: 1.2.10.1 Suction pressure | M108: 125 | N108: 125 | O108: psia | Y108: The estimated compression power requirement for cryogenic generation of nitrogen is then (500500hp)/1200 MMSCFD - 185 hp/MMSCFD
C109: 1.2.10.2 Discharge pressure | M109: =N109 -> 2071.3 | N109: =IF('Active Field'!J90=3, MAX(M31+500+14.7, 'Production & Extraction'!N103), M31+500+14.7) -> 2071.3 | O109: psia | Y109: This is about 0.15 kWh/m3 STP nitrogen
C110: 1.2.10.3 Stage 1 inlet temperature | M110: 196.7 | N110: 196.7 | O110: ◦F
C111: 1.2.10.4 Ratio of specific heats | L111: =IF(AND(AND(M19=1,'Active Field'!J90=2),NOT(M111=1.4)),"ERROR","OK") -> OK | M111: =IF(OR('Active Field'!J90=1, 'Active Field'!J90=3),1.28,1.4) -> 1.28 | N111: =IF(OR('Active Field'!K90=1, 'Active Field'!K90=3),1.28,1.4) -> 1.28 | O111: [-] | S111: McAllister, E. W. (2009) | Y111: Typical Cp/Cv ratios in oil-producing operations: 1.16, 1.28, 1.40
C112: 1.2.10.5 Compressor efficiency | M112: 75 | N112: 75 | O112: %
C113: 1.2.10.6 Prime mover type | F113: 1 = Electric motor, 2 = NG engine | M113: 2 | N113: 2 | O113: NA
B115: 1.2.11 Oil sands mining (non-integrated mine, separation via parrafinic froth treatment)
C116: 1.2.11.1 Diesel fuel consumed per bbl bitumen | M116: 0.52 | N116: 0.52 | O116: gal diesel/bbl bitumen
C117: 1.2.11.2 Natural gas consumed per bbl bitumen | M117: 415 | N117: 415 | O117: scf/bbl bitumen
C118: 1.2.11.3 Electricity consumed per bbl bitumen | M118: =N118 -> 19.8734125 | N118: =125*'Input Data'!E34 -> 19.8734125 | O118: kWh/bbl bitumen
C119: 1.2.11.4 Electricity generated per bbl bitumen | M119: =N119 -> 12.2420221 | N119: =77*'Input Data'!E34 -> 12.2420221 | O119: kWh/bbl bitumen
C120: 1.2.11.5 Net electricity imported (or exported, negative number) per bbl bitumen | M120: =M118-M119 -> 7.6313904 | N120: =N118-N119 -> 7.6313904 | O120: kWh/bbl bitumen
B123: 1.2.12 Oil sands mining (integrated mine, separation via naphthenic froth treatment)
C124: 1.2.12.1 Diesel fuel consumed per bbl bitumen | M124: 0.46 | N124: 0.46 | O124: gal diesel/bbl bitumen
C125: 1.2.12.2 Natural gas consumed per bbl bitumen | M125: 304 | N125: 304 | O125: scf/bbl bitumen
C126: 1.2.12.3 Electricity consumed per bbl bitumen | M126: =N126 -> 17.9655649 | N126: =113*'Input Data'!E34 -> 17.9655649 | O126: kWh/bbl bitumen
C127: 1.2.12.4 Electricity generated per bbl bitumen | M127: =N127 -> 18.1245522 | N127: =114*'Input Data'!E34 -> 18.1245522 | O127: kWh/bbl bitumen
C128: 1.2.12.5 Net electricity imported (or exported, negative number) per bbl bitumen | M128: =M126-M127 -> -0.1589873 | N128: =N126-N127 -> -0.1589873 | O128: kWh/bbl bitumen
A130: 1.3 Inputs from other sheets
A137: 2 Calculations
M138: Value | N138: Unit | Q138: User reference | S138: Default reference | Y138: Notes
A139: 2.1 Fluid properties | AT139: lb/lbmol | AU139: lb/lbmol
B140: 2.1.1 Crude specific gravity | M140: =141.5/(M34+131.5) -> 0.8761609907 | N140: [-] | S140: Manning, F., and Thompson, R. (1995), p. 20 | AR140: C2 | AS140: ='Fuel Specs'!E156 -> 30 | AT140: =M38*AS140/100 -> 1.2
B141: 2.1.2 Water specific gravity | M141: =1+M53*0.695*10^-6 -> 1.003475 | N141: [-] | S141: Fanchi, J.R. (2007), p.-490
B142: 2.1.3 Density of water at standard conditions | M142: =M141*62.4 -> 62.61684 | N142: lbm/ft3
B143: 2.1.4 Gas specific gravity | M143: =(14.7*AT43)/(10.73*(60+460))/0.0764 -> 0.6772708659 | N143: [-]
A145: 2.2 Downhole pump
B146: 2.2.1 Pressure traverse | M146: =SUM(M147:M148) -> 3070.827899 | N146: psi
C147: 2.2.1.1 Elevation component | M147: =M25*((M140*1/(M44+1)+1*M44/(M44+1))/2.31) -> 3061.081363 | N147: psi
C148: 2.2.1.2 Friction component | M148: =IF(SUM(M21:M22)=0,((M58*M25*((((1+M44)*M26/M27)*('Input Data'!E35/(24*60*60))/(3.142*(M29/24)^2))^2))/(2*(M29/12)*32.2))*((M140*1/(M44+1)+1*M44/(M44+1))/2.31),0) -> 9.746535845 | N148: psi
B149: 2.2.2 Pressure for lifting | M149: =IF(SUM(M21:M22)=0,IF(((M56+M146)-(M31-(1+M44)*(M26/M27)/M30))<0,0,((M56+M146)-(M31-(1+M44)*(M26/M27)/M30))),0) -> 2846.000965 | N149: psi
B150: 2.2.3 Brake horse power (BHP) | M150: =IF(M14=0,"NA",1.05*(M151*M149*1.701*10^-5)/(M152/100)) -> 77.83549292 | N150: bhp | S150: Rose et al., p.27, eq. (5.2)
C151: 2.2.3.1 Liquid flow rate | M151: =IF(M14=0,"NA",M26/M27+M44*M26/M27) -> 995.3191983 | N151: bpd
C152: 2.2.3.2 Pump efficiency | M152: =IF(M14=0,"NA",M61) -> 65 | N152: %
B153: 2.2.4 Prime mover fuel use
M154: NG - Engine | N154: Electricity | O154: Diesel | P154: NG - Turbine
M155: =HLOOKUP(M150,Drivers!C35:AE36,2,TRUE) -> 7922.4 | N155: =HLOOKUP(M150,Drivers!C136:W137,2,TRUE)/'Input Data'!E53 -> 0.810413426 | O155: =HLOOKUP(M150,Drivers!C105:AG106,2,TRUE) -> 7235.4 | P155: =HLOOKUP(M150,Drivers!C66:AS67,2,TRUE) -> 9219.6
M156: Btu/bhp-hr | N156: kWh/bhp-hr | O156: Btu/bhp-hr | P156: Btu/bhp-hr
B158: 2.2.5 Energy consumption | M158: NG - Engine | N158: Electricity | O158: Diesel | P158: NG - Turbine
C159: 2.2.5.1 Total fuel use (for all producing wells) | M159: =IFERROR(M150*M27*IF(M62=1,M155*24/1000000,0),0) -> 118.3956305 | N159: =IFERROR(M150*M27*IF(M62=2,N155*24,0),0) -> 0 | O159: =IFERROR(M150*M27*IF(M62=3,O155*24/1000000,0),0) -> 0 | P159: =IFERROR(M150*M27*IF(M62=4,P155*24/1000000,0),0) -> 0
M160: MMBtu/d | N160: kWh/d | O160: MMBtu/d | P160: MMBtu/d
A161: 2.3 Water reinjection pump
B162: 2.3.1 Water reinjection volume | M162: =IF(M15=0,"NA",(M48/100)*'Surface Processing'!T495/M28) -> 1292.510717 | N162: bbl/d-well
B163: 2.3.2 Pumping pressure | M163: =IF(M15=0,"NA",M66-M65) -> 0 | N163: psia
C164: 2.3.2.1 Friction loss | M164: =IF(M28=0, "NA", ((M58*M25*(((M48/100)*'Surface Processing'!T495/M28*('Input Data'!E35/(24*60*60))/(3.142*(M29/24)^2))^2))/(2*(M29/12)*32.2))*0.43) -> 16.71575421 | N164: psi
C165: 2.3.2.2 Differential pressure | M165: =IF(M28=0, "NA", ((M48/100)*'Surface Processing'!T495/M28)/M57) -> 430.8369057 | N165: psi
B166: 2.3.3 Brake horse power (BHP) | M166: =IF(M15=0,"NA",(1.05*M162*M163*1.701*10^-5)/(M167/100)) -> 0 | N166: bhp
C167: 2.3.3.1 Pump efficiency | M167: =IF(M15=0,"NA",M67) -> 65 | N167: %
B169: 2.3.4 Prime mover fuel use | M169: NG - Engine | N169: Electricity | O169: Diesel | P169: NG - Turbine
M170: =HLOOKUP(M166,Drivers!C35:AE36,2,TRUE) -> 7922.4 | N170: =HLOOKUP(M166,Drivers!C136:W137,2,TRUE)/'Input Data'!E53 -> 0.8903449722 | O170: =HLOOKUP(M166,Drivers!C105:AG106,2,TRUE) -> 7235.4 | P170: =(HLOOKUP(M166,Drivers!C66:AS67,2,TRUE)) -> 9219.6
M171: Btu/bhp-hr | N171: kWh/bhp-hr | O171: Btu/bhp-hr | P171: Btu/bhp-hr
B172: 2.2.4 Energy consumption
M173: NG - Engine | N173: Electricity | O173: Diesel | P173: NG - Turbine
C174: 2.2.4.1 Total fuel use (for N number of injecting wells) | M174: =IFERROR(M166*M28*IF(M68=1,M170*24/1000000,0),0) -> 0 | N174: =IFERROR(M166*M28*IF(M68=2,N170*24,0),0) -> 0 | O174: =IFERROR(M166*M28*IF(M68=3,O170*24/1000000,0),0) -> 0 | P174: =IFERROR(M166*M28*IF(M68=4,P170*24/1000000,0),0) -> 0
M175: MMBtu/d | N175: kWh/d | O175: MMBtu/d | P175: MMBtu/d
A176: 2.4 Water flooding pump
B177: 2.4.1 Water injection volume | M177: =M45*M26 -> 7962.553586 | N177: bbl/d
B178: 2.4.2 Friction loss | M178: =IF(M28=0, "NA", ((M58*M25*(((M177/M28)*('Input Data'!E35/(24*60*60))/(3.142*(M29/24)^2))^2))/(2*(M29/12)*32.2))*0.43) -> 25.37595516 | N178: psi
B179: 2.4.3 Differential pressure | M179: =IF(M28=0, "NA", (M177/M28)/M57) -> 530.8369057 | N179: psi
B180: 2.4.4 Pumping pressure | M180: =IF(M17=0,"NA",M72-M71) -> NA | N180: psia
B181: 2.5.5 Brake horse power (BHP) | M181: =IF(M17=0,"NA",(1.05*M182*M180*1.701*10^-5)/(M183/100)) -> NA | N181: bhp
C182: 2.5.5.1 Water flow rate | M182: =IF(M17=0,"NA",M177/M28) -> NA | N182: bbl/well-d
C183: 2.5.5.2 Pump efficiency | M183: =IF(M17=0,"NA",M73) -> NA | N183: %
B184: 2.5.6 Prime mover fuel use
M185: NG - Engine | N185: Electricity | O185: Diesel | P185: NG - Turbine
C186: 2.5.6.1 Natural gas engine | M186: =HLOOKUP(M181,Drivers!C35:AE36,2,TRUE) ->  | N186: =HLOOKUP(M181,Drivers!C136:W137,2,TRUE)/'Input Data'!E53 ->  | O186: =HLOOKUP(M181,Drivers!C105:AG106,2,TRUE) ->  | P186: =HLOOKUP(M181,Drivers!C66:AS67,2,TRUE) -> 
C187: 2.5.6.2 Electric motor | M187: Btu/bhp-hr | N187: kWh/bhp-hr | O187: Btu/bhp-hr | P187: Btu/bhp-hr
C188: 2.5.6.3 Diesel-fired engine
C189: 2.5.6.4 NG-fired turbine
B190: 2.5.7 Energy consumption
M191: NG - Engine | N191: Electricity | O191: Diesel | P191: NG - Turbine
C192: 2.5.7.1 Total fuel use (for N number of injecting wells) | M192: =IFERROR(M181*M28*IF(M74=1,M186*24/1000000,0),0) -> 0 | N192: =IFERROR(M181*M28*IF(M74=2,N186*24,0),0) -> 0 | O192: =IFERROR(M181*M28*IF(M74=3,O186*24/1000000,0),0) -> 0 | P192: =IFERROR(M181*M28*IF(M74=4,P186*24/1000000,0),0) -> 0
M193: MMBtu/d | N193: kWh/d | O193: MMBtu/d | P193: MMBtu/d
A195: 2.5 Natural Gas reinjection compressor
B196: 2.5.1 Compression ratio | M196: =IF(M16=0,"NA",IF(M78/M77<5, M78/M77, IF((M78/M77)^(1/2)<5, (M78/M77)^(1/2), IF((M78/M77)^(1/3)<5, (M78/M77)^(1/3),IF((M78/M77)^(1/4)<5, (M78/M77)^(1/4), (M78/M77)^(1/5)))))) -> 4.07067562 | N196: [-]
B197: 2.5.2 Number of stages | M197: =IF(M16=0,"NA",IF(M78/M77=M196,1,IF((M78/M77)^(1/2)=M196, 2, IF((M78/M77)^(1/3)=M196,3,IF((M78/M77)^(1/4)=M196,4,5))))) -> 2 | N197: [-]
B198: 2.5.3 Inlet temperatures
C199: 2.5.3.1 Stage 1 inlet temperature | M199: =M79 -> 196.7
C200: 2.5.3.2 Stage 2 inlet temperature | M200: =IF(M16=0,"NA",IF(M197>1,((((M79+460)*(M196^(Compressors!K43*(M80-1)/M80)))-460)-M79)*0.2+M79,"NA")) -> 243.5252421 | N200: ◦F | S200: Jarrell, P. M. (2002) | X200: Assumed 80% cooling (imperfect cooling); discharge temperature calculated using eq. (5.7), SPE monopgraph volume 22
C201: 2.5.3.3 Stage 3 inlet temperature | M201: =IF(M16=0,"NA",IF(M197>2,((((M200+460)*(M196^(Compressors!K44*(M80-1)/M80)))-460)-M200)*0.2+M200,"NA")) -> NA | N201: ◦F
C202: 2.5.3.4 Stage 4 inlet temperature | M202: =IF(M16=0,"NA",IF(M197>3,((((M201+460)*(M196^(Compressors!K45*(M80-1)/M80)))-460)-M201)*0.2+M201,"NA")) -> NA | N202: ◦F
C203: 2.5.3.5 Stage 5 inlet temperature | M203: =IF(M16=0,"NA",IF(M197>4,((((M202+460)*(M196^(Compressors!K46*(M80-1)/M80)))-460)-M202)*0.2+M202,"NA")) -> NA | N203: ◦F
B204: 2.5.4 Discharge pressure
C205: 2.5.4.1 Stage 1 | M205: =IF(M16=0,"NA",M77*M196) -> 508.8344524 | N205: psia
C206: 2.5.4.2 Stage 2 | M206: =IF(M16=0,"NA",IF(M197>1,M205*M196,"NA")) -> 2071.3 | N206: psia
C207: 2.5.4.3 Stage 3 | M207: =IF(M16=0,"NA",IF(M197>2,M206*M196,"NA")) -> NA | N207: psia
C208: 2.5.4.4 Stage 4 | M208: =IF(M16=0,"NA",IF(M197>3,M207*M196,"NA")) -> NA | N208: psia
C209: 2.5.4.5 Stage 5 | M209: =IF(M16=0,"NA",IF(M197>4,M208*M196,"NA")) -> NA | N209: psia
B210: 2.5.5 Adiabatic work of compression
C211: 2.5.5.1 Stage 1 | M211: =IF(M16=0,"NA",(M80/(M80-1))*(3.027*14.7/(60+460))*(M79+460)*((M196^Compressors!K43)^((M80-1)/M80)-1)) -> 91.58585115 | N211: hp/MMscf/d
C212: 2.5.5.2 Stage 2 | M212: =IF(M16=0,"NA",IF(M197>1,(M80/(M80-1))*(3.027*14.7/(60+460))*(M200+460)*((M196^Compressors!K44)^((M80-1)/M80)-1),"NA")) -> 96.82032793 | N212: hp/MMscf/d
C213: 2.5.5.3 Stage 3 | M213: =IF(M16=0,"NA",IF(M197>2,(M80/(M80-1))*(3.027*14.7/(60+460))*(M201+460)*((M196^Compressors!K45)^((M80-1)/M80)-1),"NA")) -> NA | N213: hp/MMscf/d
C214: 2.5.5.4 Stage 4 | M214: =IF(M16=0,"NA",IF(M197>3,(M80/(M80-1))*(3.027*14.7/(60+460))*(M202+460)*((M196^Compressors!K46)^((M80-1)/M80)-1),"NA")) -> NA | N214: hp/MMscf/d
C215: 2.5.5.5 Stage 5 | M215: =IF(M16=0,"NA",IF(M197>4,(M80/(M80-1))*(3.027*14.7/(60+460))*(M203+460)*((M196^Compressors!K47)^((M80-1)/M80)-1),"NA")) -> NA | N215: hp/MMscf/d
B216: 2.5.6 Total adiabatic work of compression | M216: =IF(M16=0,"NA",IF(M197=1,M211,IF(M197=2,M211+M212,IF(M197=3,SUM(M211:M213),IF(M197=4,SUM(M211:M214),SUM(M211:M215)))))) -> 188.4061791 | N216: hp/MMscf/d
B217: 2.5.7 Output horsepower from compressor | M217: =IF(M16=0,"NA",M216*IF(OR('Active Field'!J116=1, 'Active Field'!J116=2, 'Active Field'!J116=3, 'Active Field'!J116=4, 'Active Field'!J116=5), 'Gas Balance'!CT57, IF('Active Field'!J116=6, 'Gas Balance'!EP151, 'Gas Balance'!CL269))) -> 0 | N217: hp
B218: 2.5.8 Brake horse power (BHP) | M218: =IF(M16=0,"NA",M217/(M81/100)) -> 0 | N218: bhp
C220: 2.5.8.1 Prime mover fuel use | M220: NG - Engine | N220: Electricity
M221: =HLOOKUP(M218,Drivers!C35:AE36,2,TRUE) -> 7922.4 | N221: =HLOOKUP(M218,Drivers!C136:W137,2,TRUE)/'Input Data'!E53 -> 0.8903449722
M222: Btu/bhp-hr | N222: kWh/bhp-hr
B223: 2.5.9 Energy consumption
C224: 2.5.9.1 Total fuel use | M224: NG - Engine | N224: Electricity
M225: =IF(M82=2,IF(M16=1,M218*M221*24/1000000,0),0) -> 0 | N225: =IF(M82=1,IF(M16=1,M218*N221*24,0),0) -> 0
M226: MMBtu/d | N226: kWh/d
A228: 2.6 Gas lifting compressor
B229: 2.6.1 Gas lifting injection volume | M229: =IF(M18=1,'Active Field'!J88*(M26+M44*M26)/1000,"NA") -> NA | N229: Mscf/d | R229: Takacs (2005), p. 269 | X229: Default for gas lifting injection volume is 1500 scf/bbl liquid
C230: 2.6.1.1 Compression ratio | M230: =IF(M18=0,"NA",IF(M86/M85<5, M86/M85, IF((M86/M85)^(1/2)<5, (M86/M85)^(1/2), IF((M86/M85)^(1/3)<5, (M86/M85)^(1/3),IF((M86/M85)^(1/4)<5, (M86/M85)^(1/4), (M86/M85)^(1/5)))))) -> NA | N230: [-]
C231: 2.6.1.2 Number of stages | M231: =IF(M18=0,"NA",IF(M86/M85=M230,1,IF((M86/M85)^(1/2)=M230, 2, IF((M86/M85)^(1/3)=M230,3,IF((M86/M85)^(1/4)=M230,4,5))))) -> NA | N231: [-]
B232: 2.6.2 Inlet temperatures
C233: 2.6.2.1 Stage 1 inlet temperature | M233: =M87 -> 196.7 | N233: ◦F
... 84 more rows

Sheet Surface Processing
A1: Surface processing | H1: Active field: | J1: ='Active Field'!C9 -> Generic
A3: Calculation of GHG emissions from field oil, gas and water processing.
A6: 1 Inputs
A8: 1.1 Crude oil processing
A10: 1.1.1 Key inputs (to be entered on "Inputs" sheet) | M10: User | N10: Default | O10: Units | Q10: User reference | S10: Default reference | Y10: Notes
B12: 1.1.1.1 Production volume | M12: ='Active Field'!J63 -> 1500 | N12: ='Active Field'!K63 -> 1500 | O12: bbl/d
B13: 1.1.1.2 Fraction of electricity generated from cogen | M13: ='Active Field'!J103 -> 0 | N13: ='Active Field'!K103 -> 0 | O13: [0-1]
B14: 1.1.1.3 Heater/treater | M14: ='Active Field'!J109 -> 0 | N14: 0 | O14: [0 or 1]
B15: 1.1.1.4 Stabilizer column | M15: ='Active Field'!J110 -> 1 | N15: ='Active Field'!K110 -> 1 | O15: [0 or 1]
B16: 1.1.1.5 Upgrader type | M16: ='Active Field'!J111 -> 0 | N16: ='Active Field'!K111 -> 0 | O16: [-]
C17: 0 = None
C18: 1 = Delayed coking
C19: 2 = Hydroconversion
C20: 3 = Combined hydroconversion and fluid coking
B21: 1.1.1.6 Volume fraction of dilbit as diluent | M21: ='Active Field'!J127 -> 0 | N21: ='Active Field'!K127 -> 0 | O21: bbl diluent/bbl dilbit | S21: COSIA template
A23: 1.1.2 Secondary inputs (to be entered on this sheet)
B25: 1.1.2.1 Heater/treater parameters
C26: 1.1.2.1.1 Entrained water as a fraction of oil emulsion | M26: 14 | N26: 14 | O26: % | S26: Manning, F. and Thompson, R. (1991)
C27: 1.1.2.1.2 Feed temperature | M27: 90 | N27: 90 | O27: ◦F | S27: Manning, F. and Thompson, R. (1991)
C28: 1.1.2.1.3 Treating temperature | M28: 165 | N28: 165 | O28: ◦F | S28: Manning, F. and Thompson, R. (1991)
C29: 1.1.2.1.4 Specific heat of oil | M29: 150 | N29: 150 | O29: Btu/bbl-◦F | S29: Manning, F. and Thompson, R. (1991)
C30: 1.1.2.1.5 Specific heat of water | M30: 350 | N30: 350 | O30: Btu/bbl-◦F | S30: Manning, F. and Thompson, R. (1991)
C31: 1.1.2.1.6 Heat loss | M31: 2 | N31: 2 | O31: % | S31: Manning, F. and Thompson, R. (1991)
C32: 1.1.2.1.7 Type of heater | H32: 1= Gas fired | I32: 2= Electric | M32: 1 | N32: 1 | O32: [-]
C33: 1.1.2.1.9 Heater fuel use | M33: =N33 -> 1.25 | N33: =1/0.8 -> 1.25 | O33: Btu/Btu | S33: EPA (2008) | Y33: Nominal heater efficiency (80%) <http://www.epa.gov/climateleadership/documents/resources/draft_reforestation_offset_protocol.pdf>
M34: =N34 -> 0.3663368056 | N34: =(N42/'Input Data'!$E$54) -> 0.3663368056 | O34: kWh/Btu
B35: 1.1.2.2 Reboiled stabilizer column
C36: 1.1.2.2.1 Reboiler pressure | M36: 100 | N36: 100 | O36: psi | Y36: The higher the operating pressure, the higher is the oil yield
C37: 1.1.2.2.2 Feed temperature | M37: 120 | N37: 120 | O37: ◦F
C38: 1.1.2.2.3 Process temperature | M38: 344 | N38: 344 | O38: ◦F
C39: 1.1.2.2.4 Specific heat of crude oil | M39: 150 | N39: 150 | O39: Btu/bbl-◦F
C40: 1.1.2.2.5 Heat loss | M40: 2 | N40: 2 | O40: %
C41: 1.1.2.2.6 Type of heater | H41: 1= Gas fired | I41: 2= Electric | M41: 1 | N41: 1 | O41: NA
C42: 1.1.2.2.7 Heater fuel use | M42: =N42 -> 1.25 | N42: =1/0.8 -> 1.25 | O42: Btu/Btu
M43: =N43 -> 0.3663368056 | N43: =(N42/'Input Data'!$E$54) -> 0.3663368056 | O43: kWh/Btu
B44: 1.1.2.3 Gas properties from separator
C45: 1.1.2.3.1 Pressure of gas exiting crude oil processing (bulk separation) and entering nas | M45: =N45 -> 14.5 | N45: 14.5 | O45: psi | Y45: Default assumption is that associated gas is at standard temperature and pressures before entering gas processing.
C46: 1.1.2.3.2 Temperature of gas exiting crude oil processing (bulk separation) | M46: =N46 -> 59 | N46: 59 | O46: ◦F | Y46: Default assumption is that associated gas is at standard temperature and pressures before entering gas processing.
B48: 1.1.2.4 Crude oil upgrading and dilution
C49: 1.1.2.4.1 Cogeneration in upgrading? | M49: 1 | N49: 1 | O49: [0-1]
C50: 1.1.2.4.2 Crude bitumen API gravity | M50: 8 | N50: 8 | O50: deg. API | Y50: Default bitumen API gravity in GHGenius 4.0c
C51: 1.1.2.4.3 Diluent API gravity | M51: ='Fuel Specs'!D397 -> 55.2 | N51: ='Fuel Specs'!D397 -> 55.2 | O51: deg. API | S51: COSIA template
A55: 1.3 Inputs from other sheets
B57: 1.3.1 Upgrading data table
N58: Delayed coking | O58: Hydroconversion | P58: Hydroconversion and fluid coking
J59: API gravity of resuling upgraded product output | N59: =33.2 -> 33.2 | O59: 31.1 | P59: 31.1 | Q59: deg API | AA59: See notes on "Upgrading" supplemental worksheet
J60: Process gas (PG) yield per bbl SCO output | N60: =Upgrading!C31*'Input Data'!E39 -> 500.5450619 | O60: =Upgrading!C92*'Input Data'!E39 -> 340.5880343 | P60: =Upgrading!C151*'Input Data'!E39 -> 649.5242798 | Q60: scf/bbl SCO | R60: Check shares:
J61: - Fraction PG to self use - Heating (W/O cogen) | N61: =Upgrading!C46 -> 0.65 | O61: =Upgrading!C106 -> 0.8 | P61: =Upgrading!C165 -> 0.7246975905 | Q61: [0-1] | R61: =IF(SUM(N61:N64)=1,"OK","ERROR") -> OK | S61: =IF(SUM(O61:O64)=1,"OK","ERROR") -> OK | T61: =IF(SUM(P61:P64)=1,"OK","ERROR") -> OK
J62: - Fraction PG to self use - H2 gen | N62: =Upgrading!C45 -> 0 | O62: =Upgrading!C105 -> 0 | P62: =Upgrading!C164 -> 0.2185872802 | Q62: [0-1]
J63: - Fraction PG exported | N63: =Upgrading!C47-N64 -> 0.325 | O63: =Upgrading!C107-O64 -> 0.175 | P63: =Upgrading!C166-P64 -> 0.03171512931 | Q63: [0-1]
J64: - Fraction PG flared | N64: 0.025 | O64: 0.025 | P64: 0.025 | Q64: [0-1]
J65: Coke yield per bbl SCO output | N65: =Upgrading!C51 -> 42.58222028 | O65: =Upgrading!C109 -> 0 | P65: =Upgrading!C168 -> 30.29054931 | Q65: kg/bbl SCO | R65: Check shares:
J66: - Fraction coke to self use - Heating | N66: =Upgrading!C56 -> 0.1059972727 | O66: =Upgrading!C114 -> 0 | P66: =Upgrading!C173 -> 0.2073472269 | Q66: [0-1] | R66: =IF(SUM(N66:N68)=1,"OK","ERROR") -> OK | S66: =IF(SUM(O66:O68)=1,"OK","ERROR") -> OK | T66: =IF(SUM(P66:P68)=1,"OK","ERROR") -> OK
J67: - Fraction coke exported | N67: 0 | O67: =Upgrading!C116 -> 0 | P67: 0 | Q67: [0-1]
J68: - Fraction coke stockpiled | N68: =Upgrading!C57 -> 0.8940027273 | O68: 1 | P68: =Upgrading!C174 -> 0.7926527731 | Q68: [0-1]
J69: Electricity intensity | N69: =Upgrading!C60 -> 5.451180992 | O69: =Upgrading!C118 -> 17.24972289 | P69: =Upgrading!C177 -> 19.97630277 | Q69: kWh/bbl SCO
J70: - Fraction electricity self generated W/ cogen | N70: =M13*M49 -> 0 | O70: =M49*M13 -> 0 | P70: =M49*M13 -> 0 | Q70: [0-1]
J71: - Cogenerated heat as steam | N71: =N69*N70*'Input Data'!E53/N76*N77/1000 -> 0 | O71: =O69*O70*'Input Data'!E53/O76*O77/1000 -> 0 | P71: =P69*P70*'Input Data'!E53/P76*P77/1000 -> 0 | Q71: mBtu/bbl SCO
J72: - NG to cogen unit | N72: =N69*N70*'Input Data'!E53/N76/'Fuel Specs'!B254 -> 0 | O72: =O69*O70*'Input Data'!E53/O76/'Fuel Specs'!B254 -> 0 | P72: =P69*P70*'Input Data'!E53/P76/'Fuel Specs'!B254 -> 0 | Q72: scf/bbl SCO
J73: Natural gas intensity (W/O cogen) | N73: =Upgrading!C24 -> 336.8621141 | O73: =Upgrading!C85 -> 1078.978738 | P73: =Upgrading!C144 -> 460.8543125 | Q73: scf NG per bbl SCO | R73: Check shares:
J74: - Fraction NG - Heating (W/O cogen) | N74: =Upgrading!C29 -> 0 | O74: =Upgrading!C90 -> 0.2751146202 | P74: =Upgrading!C149 -> 0 | Q74: [0-1] | R74: =IF(SUM(N74:N75)=1,"OK","ERROR") -> OK | S74: =IF(SUM(O74:O75)=1,"OK","ERROR") -> OK | T74: =IF(SUM(P74:P75)=1,"OK","ERROR") -> OK
J75: - Fraction NG - H2 | N75: =Upgrading!C28 -> 1 | O75: =Upgrading!C89 -> 0.7248853798 | P75: =Upgrading!C148 -> 1 | Q75: [0-1]
J76: Cogen turbine efficiency | N76: ='Input Data'!$I$2301 -> 0.3092923832 | O76: ='Input Data'!$I$2301 -> 0.3092923832 | P76: ='Input Data'!$I$2301 -> 0.3092923832 | Q76: Btu e- per Btu NG LHV
J77: Cogeneration steam efficiency | N77: =0.4 -> 0.4 | O77: =0.4 -> 0.4 | P77: =0.4 -> 0.4 | Q77: Btu steam enthalpy per Btu NG LHV
J78: Steam boiler efficiency | N78: 0.8 | O78: 0.8 | P78: 0.8 | Q78: Btu steam enthalpy/Btu NG LHV
J79: SCO/bitumen ratio | N79: =Upgrading!C66 -> 0.833902339 | O79: =Upgrading!C124 -> 1.024982672 | P79: =Upgrading!C183 -> 0.8648036781 | Q79: bbl SCO/bbl bitumen
J80: Note: Data from OSTUM model (MacLean et al. 2016)
B82: 1.3.2 Bitumen heating value | M82: =VLOOKUP(M50,'Fuel Specs'!B24:O65,5) -> 6.10092 | N82: =VLOOKUP(N50,'Fuel Specs'!B24:O65,5) -> 6.10092 | O82: MMBtu/bbl (LHV)
B83: 1.3.3 Diluent heating value | M83: ='Fuel Specs'!AB397 -> 5.497536464 | N83: ='Fuel Specs'!AB397 -> 5.497536464 | O83: MMBtu/bbl (LHV) | Y83: See diluent composition table.
B84: 1.3.4 H2S concentration in raw gas | M84: =N84 -> 1 | N84: ='Active Field'!K81 -> 1 | O84: mol %
A88: 1.2 Associated gas processing
M90: User | N90: Default | O90: Units | Q90: User reference | S90: Default reference | Y90: Notes
A91: 1.2.1 Key inputs (to be entered on "Inputs" sheet)
A93: 1.2.2 Secondary inputs (to be entered on this sheet) | S93: Bahadori 2014 - Natural gas processing: Technology and engineering design. | Y93: Section 10.5.9 on p. 502 suggests use of DEA when H2S concentration is low, MDEA when H@S concentration is high. MEA not favored. See also:
B94: 1.2.2.1 Amine treater | Y94: SPE 96742: MDEA used at Sliepner for 9% CO2 mixture.
C95: 1.2.2.1.1 Amine solution | M95: =N95 -> 2 | N95: =IF(M84<=1,2,5) -> 2 | O95: NA | Y95: Mazetti et al. (2014): MDEA used due to reduced absorber size and higher pressure CO2 input.
D96: 1= Monoethanolamine (MEA) | Y96: IPTC 10735: MDEA used in Indian gas sweetening plants.
D97: 2= Diethanolamine (DEA) - conventional (30 wt%) | Y97: IPTC 18492: MDEA used for large gas plant associated with Quatar LNG, processing feed of ~2% CO2.
D98: 3= Diethanolamine (DEA) - high load (35 wt%) | Y98: NACE 00497: Switched from MEA to MDEA to reduce stress corrosion cracking. Saw reduced steam load for regeneration.
D99: 4= Diglycolamine (DGA) | Y99: NACE 07398: "DEA and MDEA are generally applied for gas sweetening units"
D100: 5= Methyldiethanolamine (MDEA) | Y100: OMC 2015-357: "MDEA has become very popular within the past ten years because of its ability to remove H2S from natural gas"
D101: 6= Other | Y101: SPE 12148 - TEA found cost advantageous compared to MEA
C102: 1.2.2.1.2 Amine solution K value | L102: =IF(AND(M95=6,M102=N102),"ERROR","OK") -> OK | M102: =N102 -> 1.45 | N102: =IF(M95=1,2.05, IF(M95=2,1.45,IF(M95=3,0.95,IF(M95=4,1.28,IF(M95=5,1.25,"User"))))) -> 1.45 | O102: gpm-d/100MMscf | S102: Manning, F. and Thompson, R. (1991), p.115 | Y102: SPE 17754 - MDEA followed by DEA used at Wasson field in TX.
C103: 1.2.2.1.3 Operating pressure | M103: 350 | N103: 350 | O103: psi | S103: Manning, F. and Thompson, R. (1991), p.117, Figure 7-9 | Y103: Median of reported values
C104: 1.2.2.1.4 Reboiler Gas-fired heater fuel use | M104: =N104 -> 1.25 | N104: =1/0.8 -> 1.25 | O104: Btu/Btu
B105: 1.2.2.2 Glycol dehydrator
C106: 1.2.2.2.1 TEG concentration | M106: 99 | N106: 99 | O106: wt% | S106: Manning, F. and Thompson, R. (1991), p.155
C107: 1.2.2.2.2 TEG-to-water ratio | M107: 2 | N107: 2 | O107: gal TEG/lb H2O | S107: Manning, F. and Thompson, R. (1991), p.147
C108: 1.2.2.2.3 Operating pressure | M108: 786 | N108: 786 | O108: psi | S108: Manning, F. and Thompson, R. (1991), p.160
C109: 1.2.2.2.4 Glycol pump type | M109: 1 | N109: 1 | O109: NA
D110: 1= Reciprocating pump
D111: 2= Centrifugal pump
C112: 1.2.2.2.5 Glycol pump efficiency | M112: 75 | N112: 75 | O112: %
C113: 1.2.2.2.6 Type of reboiler heater | M113: 1 | N113: 1 | O113: NA
D114: 1= Gas fired
D115: 2= Electric
C116: 1.2.2.2.7 Reboiler heater fuel use | M116: =N116 -> 1.25 | N116: =1/0.8 -> 1.25 | O116: Btu/Btu
M117: 366.3368056 | N117: =(N116/'Input Data'!$E$54)*1000 -> 366.3368056 | O117: kWh/MMBtu
B118: 1.2.2.3 Demethanizer
C119: 1.2.2.3.1 Fraction of gas condensed
D120: 1.2.4.1.1 C2H6 | M120: 90.2 | N120: 90.2 | O120: % | S120: Nawaz, M. and Jobson, M. (2010)
D121: 1.2.4.1.2 C3H8 | M121: 100 | N121: 100 | O121: %
D122: 1.2.4.1.3 C4H10 | M122: 100 | N122: 100 | O122: %
C123: 1.2.2.3.2 Energy factors | Y123: Assume that reboiler duty is provided via heat exchanger from inlet stream.
D124: 1.2.4.2.1 Refrigeration system power | M124: =N124 -> 3.634593913 | N124: 3.634593913 | O124: bhp-hr/kmolCOND | S124: Nawaz, M. and Jobson, M. (2010) | Y124: Compressor work happens up front to bring pressure up to assumed inlet pressure of Nawaz. So all feed is compressed.
D125: 1.2.4.2.2 Compressor system power | M125: =N125 -> 0.5831099196 | N125: 0.5831099196 | O125: bhp-hr/kmolFEED | S125: Nawaz, M. and Jobson, M. (2010) | Y125: Because heat recovery is used to recovery cold from outlet gas stream, assume the work of refrigeration is proportional to condensed stream, not full stream.
C126: 1.2.2.3.3 NGL use
D127: 1= Export/process fuel | M127: 1 | N127: 1 | O127: fraction
D128: 2= Crude oil blend | L128: =IF(SUM(M127:M128)=1,"OK","ERROR") -> OK | M128: 0 | N128: 0 | O128: fraction
B130: 1.2.2.4 CO2 separation
C131: 1.2.2.4.1 Ryan-Holmes separation process
D132: 1.2.2.4.1.1 Inlet temperature | M132: =N132 -> 81 | N132: 81 | O132: ◦F | S132: National Energy Technology Laboratory (2011)
D133: 1.2.2.4.1.2 Inlet pressure | M133: 200 | N133: 200 | O133: psi | S133: National Energy Technology Laboratory (2011)
C135: 1.2.2.4.2 Chiller
D136: 1.2.2.4.2.1 Inlet temperature | M136: =N136 -> 59 | N136: 59 | O136: ◦F | S136: National Energy Technology Laboratory (2012)
D137: 1.2.2.4.2.2 Outlet temperature | M137: =N137 -> 35 | N137: 35 | O137: ◦F | S137: National Energy Technology Laboratory (2012)
C139: 1.2.2.4.3 Pre-Membrane Compressor (1-5 stages)
D140: 1.2.2.4.3.1 Compressor parameters
E141: 1.2.2.4.3.1.1 Suction pressure | M141: =M45 -> 14.5 | N141: =N45 -> 14.5 | O141: psia
E142: 1.2.2.4.3.1.2 Discharge pressure | M142: 500 | N142: 500 | O142: psia | S142: NETL (2013)
E143: 1.2.2.4.3.1.3 First stage inlet temperature | M143: 196.7 | N143: 196.7 | O143: ◦F
E144: 1.2.2.4.3.1.4 Ratio of specific heats | M144: 1.28 | N144: 1.28 | O144: [-] | S144: McAllister, E. W. (2009) | Y144: Typical Cp/Cv ratios in oil-producing operations: 1.16, 1.28, 1.40
E145: 1.2.2.4.3.1.5 Compressor efficiency | M145: 75 | N145: 75 | O145: %
D146: 1.2.2.4.3.2 Prime mover
E147: 1.2.2.4.3.2.1 Prime mover type | H147: 1 = Electric motor | I147: 2 = Natural gas engine | M147: 2 | N147: 2 | O147: NA
A148: 1.2.3 Inputs from other sheets
C149: 1.2.3.1 Molar mass of gas entering Ryan-Holmes separation process | M149: =('Production & Extraction'!M35/100)*'Fuel Specs'!E151+('Production & Extraction'!M36/100)*'Fuel Specs'!E153+('Production & Extraction'!M37/100)*'Fuel Specs'!E155+('Production & Extraction'!M38/100)*'Fuel Specs'!E157+('Production & Extraction'!M39/100)*'Fuel Specs'!E159+('Production & Extraction'!M40/100)*'Fuel Specs'!E161+('Production & Extraction'!M41/100)*'Fuel Specs'!E163 -> 19.3 | N149: =('Production & Extraction'!N35/100)*'Fuel Specs'!E151+('Production & Extraction'!N36/100)*'Fuel Specs'!E153+('Production & Extraction'!N37/100)*'Fuel Specs'!E155+('Production & Extraction'!N38/100)*'Fuel Specs'!E157+('Production & Extraction'!N39/100)*'Fuel Specs'!E159+('Production & Extraction'!N40/100)*'Fuel Specs'!E161+('Production & Extraction'!N41/100)*'Fuel Specs'!E163 -> 19.3 | O149: g/mol
C150: 1.2.3.2 Molar mass of gas entering chiller | M150: =('Production & Extraction'!M35/100)*'Fuel Specs'!E151+('Production & Extraction'!M36/100)*'Fuel Specs'!E153+('Production & Extraction'!M37/100)*'Fuel Specs'!E155+('Production & Extraction'!M38/100)*'Fuel Specs'!E157+('Production & Extraction'!M39/100)*'Fuel Specs'!E159+('Production & Extraction'!M40/100)*'Fuel Specs'!E161+('Production & Extraction'!M41/100)*'Fuel Specs'!E163 -> 19.3 | N150: =('Production & Extraction'!N35/100)*'Fuel Specs'!E151+('Production & Extraction'!N36/100)*'Fuel Specs'!E153+('Production & Extraction'!N37/100)*'Fuel Specs'!E155+('Production & Extraction'!N38/100)*'Fuel Specs'!E157+('Production & Extraction'!N39/100)*'Fuel Specs'!E159+('Production & Extraction'!N40/100)*'Fuel Specs'!E161+('Production & Extraction'!N41/100)*'Fuel Specs'!E163 -> 19.3 | O150: g/mol
A154: 1.3 Water treatment
A156: 1.3.1 Secondary Input table: Water treatment technologies (enter on this sheet)
I157: Produced water | K157: Imported water | S157: Enter "1" where applicable and "0" where not applicable
I158: Apply | J158: Apply | K158: Apply | L158: Apply | M158: Code | N158: Volume loss | O158: Volume loss | P158: EC | Q158: EC | S158: No more than one option is allowed in each treatment stage
I159: ="--" -> -- | J159: ="--" -> -- | K159: ="--" -> -- | L159: ="--" -> -- | M159: ="--" -> -- | N159: % | O159: % | P159: kWh/bbl input | Q159: kWh/bbl input | S159: Categorization of treatment technologies is based on Vlasopoulos et al. (2006), originally from Dillon (2003)
I160: User | J160: Default | K160: User | L160: Default | M160: ="--" -> -- | N160: User | O160: Default | P160: User | Q160: Default | S160: Values of energy consumption can be changed in the user columns
B161: 1.3.1.1 Stage 1 of treatment | I161: =IF(OR(SUM(I162:I163)=0,SUM(I162:I163)=1),"OK","ERROR") -> OK | K161: =IF(OR(SUM(K162:K163)=0,SUM(K162:K163)=1),"OK","ERROR") -> OK
C162: 1.3.1.1.1 Dissolved air flotation | I162: 1 | J162: 1 | K162: 1 | L162: 1 | M162: DAF | N162: 0 | O162: 0 | P162: 0.03513458 | Q162: =0.221*0.15898 -> 0.03513458 | S162: Sources: Vlasopoulos, N. et al. (2006)
C163: 1.3.1.1.2 Hydrocyclones | I163: 0 | J163: 0 | K163: 0 | L163: 0 | M163: HYDRO | N163: 0 | O163: 0 | P163: 0.04880686 | Q163: =0.307*0.15898 -> 0.04880686
B164: 1.3.1.2 Stage 2 of treatment | I164: =IF(OR(SUM(I165:I172)=0,SUM(I165:I172)=1),"OK","ERROR") -> OK | K164: =IF(OR(SUM(K165:K172)=0,SUM(K165:K172)=1),"OK","ERROR") -> OK
C165: 1.3.1.2.1 Rotating biological contactors | I165: 1 | J165: 1 | K165: 1 | L165: 1 | M165: RBC | N165: 0 | O165: 0 | P165: 0.0349756 | Q165: =0.22*0.15898 -> 0.0349756
C166: 1.3.1.2.2 Absorbents | I166: 0 | J166: 0 | K166: 0 | L166: 0 | M166: ABS | N166: 0 | O166: 0 | P166: 0.0174878 | Q166: =0.11*0.15898 -> 0.0174878
C167: 1.3.1.2.3 Activated sludge | I167: 0 | J167: 0 | K167: 0 | L167: 0 | M167: AS | N167: 0 | O167: 0 | P167: 0.1462616 | Q167: =0.92*0.15898 -> 0.1462616
C168: 1.3.1.2.4 Trickling filters | I168: 0 | J168: 0 | K168: 0 | L168: 0 | M168: TF | N168: 0 | O168: 0 | P168: 0.0365654 | Q168: =0.23*0.15898 -> 0.0365654
C169: 1.3.1.2.5 Air stripping | I169: 0 | J169: 0 | K169: 0 | L169: 0 | M169: AIR | N169: 0 | O169: 0 | P169: 0.10524476 | Q169: =0.662*0.15898 -> 0.10524476
C170: 1.3.1.2.6 Aerated lagoons | I170: 0 | J170: 0 | K170: 0 | L170: 0 | M170: AL | N170: 0 | O170: 0 | P170: 0.095388 | Q170: =0.6*0.15898 -> 0.095388
C171: 1.3.1.2.7 Wetlands | I171: 0 | J171: 0 | K171: 0 | L171: 0 | M171: CWL | N171: 26 | O171: 26 | P171: 0.00222572 | Q171: =0.014*0.15898 -> 0.00222572
C172: 1.3.1.2.8 Microfiltration - used as a combined stage 1 and stage 2 technology | I172: 0 | J172: 0 | K172: 0 | L172: 0 | M172: MF | N172: 0 | O172: 0 | P172: 0.031796 | Q172: =0.2*0.15898 -> 0.031796
B173: 1.3.1.3 Stage 3 of treatment | I173: =IF(OR(SUM(I174:I180)=0,SUM(I174:I180)=1),"OK","ERROR") -> OK | K173: =IF(OR(SUM(K174:K180)=0,SUM(K174:K180)=1),"OK","ERROR") -> OK
C174: 1.3.1.3.1 Dual media filtration | I174: 1 | J174: 1 | K174: 1 | L174: 1 | M174: DMF | N174: 0 | O174: 0 | P174: 0.00429246 | Q174: =0.027*0.15898 -> 0.00429246
C175: 1.3.1.3.2 Granular activated carbon | I175: 0 | J175: 0 | K175: 0 | L175: 0 | M175: GAC | N175: 0 | O175: 0 | P175: 0.02607272 | Q175: =0.164*0.15898 -> 0.02607272 | X175: Side calculations for warm lime softener (WLS)
C176: 1.3.1.3.3 Slow sand filtration | I176: 0 | J176: 0 | K176: 0 | L176: 0 | M176: SSF | N176: 0 | O176: 0 | P176: 0.00111286 | Q176: =0.007*0.15898 -> 0.00111286 | X176: From COSIA 2014, flow rate in OTSG SAGD system of produced water into WLS is 856388 kg/h =
C177: 1.3.1.3.4 Ozone | I177: 0 | J177: 0 | K177: 0 | L177: 0 | M177: OZO | N177: 0 | O177: 0 | P177: 0.2432394 | Q177: =1.53*0.15898 -> 0.2432394 | X177: =856388/3.79/42/60/60 -> 1.494443746 | Y177: bbl/sec
C178: 1.3.1.3.5 Organoclay | I178: 0 | J178: 0 | K178: 0 | L178: 0 | M178: ORG | N178: 0 | O178: 0 | P178: 0.0143082 | Q178: =0.09*0.15898 -> 0.0143082 | X178: Power consumption rate is 0.5 MW for the WLS/evaporator
C179: 1.3.1.3.6 Ultrafiltration | I179: 0 | J179: 0 | K179: 0 | L179: 0 | M179: UF | N179: 0 | O179: 0 | P179: 0.031796 | Q179: =0.2*0.15898 -> 0.031796 | X179: =0.5*1000000/3600000 -> 0.1388888889 | Y179: kWh/sec
C180: 1.3.1.3.7 Nanofiltration | I180: 0 | J180: 0 | K180: 0 | L180: 0 | M180: NF | N180: 0 | O180: 0 | P180: 0.08791594 | Q180: =0.553*0.15898 -> 0.08791594 | X180: =X179/X177 -> 0.09293684638 | Y180: kWh/bbl water treated
B181: 1.3.1.4 Stage 4 of treatment | I181: =IF(OR(SUM(I182:I183)=0,SUM(I182:I183)=1),"OK","ERROR") -> OK | K181: =IF(OR(SUM(K182:K183)=0,SUM(K182:K183)=1),"OK","ERROR") -> OK
C182: 1.3.1.4.1 Reverse osmosis | I182: 0 | J182: 0 | K182: 0 | L182: 0 | M182: RO | N182: 0 | O182: 0 | P182: 0.2019046 | Q182: =1.27*0.15898 -> 0.2019046
C183: 1.3.1.4.2 Electrodialysis reversal | I183: 0 | J183: 0 | K183: 0 | L183: 1 | M183: EDR | N183: 0 | O183: 0 | P183: 0.47694 | Q183: =3*0.15898 -> 0.47694
C184: 1.3.1.4.3 Warm lime softening | I184: 0 | J184: 0 | K184: 0 | L184: 0 | M184: WLS | N184: 0 | O184: 0 | P184: =X180 -> 0.09293684638 | Q184: =X180 -> 0.09293684638 | S184: Souce: COSIA 2014
A187: 2 Calculations
A189: 2.1 Crude oil processing
O194: Heat | R194: Heat
O195: =M209 -> NA | P195: MMBtu | R195: =M214 -> 51.408 | S195: MMBtu
C199: ='Production & Extraction'!M26 -> 1500 | D199: bopd | K199: =C199 -> 1500 | L199: bopd | Q199: =C199 -> 1500 | R199: bopd | T199: =Q199 -> 1500 | U199: bopd
C200: ='Production & Extraction'!M26*'Production & Extraction'!M43 -> 1362000 | D200: scf/d
C201: ='Production & Extraction'!M26*'Production & Extraction'!M44 -> 6462.553586 | D201: bwpd
M204: User | N204: Units | O204: Equation | W204: Reference
A206: 2.1.1 Dehydration heater/treater
B207: 2.1.1.1 Volume of water heated | M207: =IF(M14=0,"NA",((M26/100)*C199)/(1-(M26/100))) -> NA | N207: bwpd
B208: 2.1.1.2 Volume of oil heated | M208: =IF(M14=0,"NA",C199) -> NA | N208: bopd
B209: 2.1.1.3 Heat duty | M209: =IF(M14=0,"NA",(((C199*M29)+(M207*M30))*(M28-M27)*(1+(M31/100)))/1000000) -> NA | N209: MMBtu/d | W209: Manning, F. and Thompson, R. (1991), p.136
B210: 2.1.1.4 Dehydration heater NG consumption | M210: =IF(M14=0,0,M209*IF(M32=1,M33,0)) -> 0 | N210: =IF(M32=1,"MMBtu/d","kWh/d") -> MMBtu/d
B211: 2.1.1.5 Dehydration heater electricity consumption | M211: =IF(M14=0,0,M209*IF(M32=2,M34,0)) -> 0 | N211: kWh/d
A212: 2.1.2 Stabilizer column
B213: 2.1.2.1 Volume of oil heated | M213: =IF(M15=0,"NA",C199) -> 1500 | N213: bopd
B214: 2.1.2.2 Heat duty | M214: =IF(M15=0,"NA",Q199*M39*(M38-M37)*(1+(M40/100))/1000000) -> 51.408 | N214: MMBtu/d | W214: Manning, F. and Thompson, R. (1991), p.136
B215: 2.1.2.3 Stabilizer column NG consumption | M215: =IF(M15=0,0,M214*IF(M41=1,M42,M43)) -> 64.26 | N215: =IF(M41=1,"MMBtu/d","kWh/d") -> MMBtu/d
B216: 2.1.2.4 Stabilizer column electricity consumption | M216: =IF(M15=0,0,M214*IF(M41=2,M43,0)) -> 0 | N216: kWh/d
A218: 2.1.3 Heavy oil or bitumen upgrading
B220: 2.1.3.1 Selected modeling inputs for upgrading
E221: Process gas (PG) yield per bbl SCO output | M221: =IF($M$16=1,N60,IF($M$16=2,O60,IF($M$16=3,P60,0))) -> 0 | N221: scf/bbl SCO
E222: - Fraction PG to self use - Heating (W/O cogen) | M222: 0 | N222: [0-1]
E223: - Fraction PG to self use - H2 gen | M223: 0 | N223: [0-1]
E224: - Fraction PG exported | M224: 0 | N224: [0-1]
E225: - Fraction PG flared | M225: 0 | N225: [0-1]
E226: Coke yield per bbl SCO output | M226: 0 | N226: kg/bbl SCO
E227: - Fraction coke to self use - Heating | M227: 0 | N227: [0-1]
E228: - Fraction coke exported | M228: 0 | N228: [0-1]
E229: - Fraction coke stockpiled | M229: 0 | N229: [0-1]
E230: Electricity intensity | M230: 0 | N230: kWh/bbl SCO
E231: - Fraction electricity self generated W/ cogen | M231: 0 | N231: [0-1]
E232: - Cogenerated heat as steam | M232: =IF($M$16=1,N71,IF($M$16=2,O71,IF($M$16=3,P71,0))) -> 0 | N232: mBtu/bbl SCO
E233: - NG to cogen unit | M233: 0 | N233: scf/bbl SCO
E234: Natural gas intensity (W/O cogen) | M234: 0 | N234: scf NG per bbl SCO
E235: - Fraction NG - Heating (W/O cogen) | M235: 0 | N235: [0-1]
E236: - Fraction NG - H2 | M236: 0 | N236: [0-1]
E237: Cogen turbine efficiency | M237: 0 | N237: Btu e- per Btu NG LHV
E238: Cogeneration steam efficiency | M238: 0 | N238: Btu steam enthalpy per Btu NG LHV
E239: Steam boiler efficiency | M239: 0 | N239: Btu steam enthalpy/Btu NG LHV
E240: SCO/bitumen ratio | M240: 0 | N240: bbl SCO/bbl heavy oil or bitumen
B242: 2.1.3.2 Output of SCO | M242: ='Active Field'!J63*IF('Active Field'!J111<>0,M240,0) -> 0 | N242: bbl SCO/d
... 219 more rows

Sheet Maintenance
A1: Maintenance | H1: Active field: | J1: ='Active Field'!C9 -> Generic
A3: Maintenance is included in the current model version within the Venting & Fugitives and Flaring supplemental worksheet.

Sheet Waste Disposal
A1: Waste disposal | H1: Active field: | J1: ='Active Field'!C9 -> Generic
A3: Waste disposal is not included in the current version of the model.

Sheet Transport
A1: Crude Transport | H1: Active field: | J1: ='Active Field'!C9 -> Generic
A3: Estimation of GHG emissions from transport of crude oil to market.
A4: Approach and data based largely on GREET model, Argonne National Laboratory
A7: 1 Inputs
A9: 1.1 Key inputs (to be entered on "Inputs" sheet) | M9: User | N9: Default | O9: Units | Q9: User reference | S9: Default reference
B10: 1.1.1 Crude oil API gravity | M10: ='Active Field'!J73 -> 30 | N10: ='Active Field'!K73 -> 30 | O10: deg. API
B11: 1.1.2 Crude oil production rate | M11: ='Active Field'!J63 -> 1500 | N11: ='Active Field'!K63 -> 1500 | O11: bbl/d
B12: 1.1.3 Fraction of oil transported by each mode
C13: 1.1.3.1 Ocean tanker | M13: ='Active Field'!J141 -> 1 | N13: ='Active Field'!K141 -> 1 | O13: [-]
C14: 1.1.3.2 Barge | M14: ='Active Field'!J142 -> 0 | N14: ='Active Field'!K142 -> 0 | O14: [-]
C15: 1.1.3.3 Pipeline | M15: ='Active Field'!J143 -> 1 | N15: ='Active Field'!K143 -> 1 | O15: [-]
C16: 1.1.3.4 Rail | M16: ='Active Field'!J144 -> 0 | N16: ='Active Field'!K144 -> 0 | O16: [-]
C17: 1.1.3.5 Truck | M17: ='Active Field'!J145 -> 0 | N17: ='Active Field'!K145 -> 0 | O17: [-]
B18: 1.1.4 Transport distance (one way)
C19: 1.1.4.1 Ocean tanker | M19: ='Active Field'!J147 -> 5082 | N19: ='Active Field'!K147 -> 5082 | O19: mi
C20: 1.1.4.2 Barge | M20: ='Active Field'!J148 -> 500 | N20: ='Active Field'!K148 -> 500 | O20: mi
C21: 1.1.4.3 Pipeline | M21: ='Active Field'!J149 -> 750 | N21: ='Active Field'!K149 -> 750 | O21: mi
C22: 1.1.4.4 Rail | M22: ='Active Field'!J150 -> 800 | N22: ='Active Field'!K150 -> 800 | O22: mi
C23: 1.1.4.5 Truck | M23: ='Active Field'!J151 -> 100 | N23: ='Active Field'!K151 -> 100 | O23: mi
B25: 1.1.5 Ocean tanker size | M25: ='Active Field'!J152 -> 250000 | N25: ='Active Field'!K152 -> 250000 | O25: ton
A28: 1.2 Secondary inputs (to be entered on this sheet)
B29: 1.2.1 Barge capacity | M29: 22500 | N29: 22500 | O29: ton
B30: 1.2.2 Water transport speed | M30: 18.52 | N30: 18.52 | O30: mi/hr
C31: 1.2.2.1 Ocean tanker speed | M31: 5 | N31: 5 | O31: mi/hr
C32: 1.2.2.2 Barge speed
B33: 1.2.3 Water transport load factors
C34: 1.2.3.1 Ocean tanker load factor (origin to destination) | M34: 0.8 | N34: 0.8 | O34: [-]
C35: 1.2.3.2 Barge load factor (origin to destination) | M35: 0.8 | N35: 0.8 | O35: [-]
C36: 1.2.3.1 Ocean tanker load factor (destination to origin) | M36: 0.7 | N36: 0.7 | O36: [-]
C37: 1.2.3.2 Barge load factor (destination to origin) | M37: 0.6 | N37: 0.6 | O37: [-]
B38: 1.2.4 Energy intensity of rail transport
C39: 1.2.4.1 Origin to destination | M39: 370 | N39: 370 | O39: Btu/ton-mi
C40: 1.2.4.1 Destination to origin | M40: 370 | N40: 370 | O40: Btu/ton-mi
B41: 1.2.5 Energy intensity of pipeline transport
C42: 1.2.5.1 Turbine powered | M42: 240 | N42: 240 | O42: Btu/ton-mi
C43: 1.2.5.2 Reciprocating enginer powered (current) | M43: 270 | N43: 270 | O43: Btu/ton-mi
C44: 1.2.5.3 Reciprocating engine powered (future) | M44: 260 | N44: 260 | O44: Btu/ton-mi
B45: 1.2.6 Fraction of power generation technologies for pipeline pumping and compression stations
C46: 1.2.6.1 Turbine powered | M46: 0.55 | N46: 0.55 | O46: [-]
C47: 1.2.6.2 Reciprocating enginer powered (current) | M47: 0.36 | N47: 0.36 | O47: [-]
C48: 1.2.6.3 Reciprocating engine powered (future) | M48: 0.09 | N48: 0.09 | O48: [-]
B50: 1.2.7 Share of fuel inputs table
K51: Diesel | L51: Residual oil | M51: Natural gas | N51: Electricity
I52: =IF(SUM(K52:N52)=1,"OK","ERROR") -> OK | J52: Ocean Tanker | K52: 0 | L52: 1 | M52: 0 | N52: 0 | O52: Btu/Btu
I53: =IF(SUM(K53:N53)=1,"OK","ERROR") -> OK | J53: Barge | K53: 0 | L53: 1 | M53: 0 | N53: 0 | O53: Btu/Btu
I54: =IF(SUM(K54:N54)=1,"OK","ERROR") -> OK | J54: Pipeline | K54: 0.45 | L54: 0 | M54: 0.55 | N54: 0 | O54: Btu/Btu
I55: =IF(SUM(K55:N55)=1,"OK","ERROR") -> OK | J55: Rail | K55: 1 | L55: 0 | M55: 0 | N55: 0 | O55: Btu/Btu
I56: =IF(SUM(K56:N56)=1,"OK","ERROR") -> OK | J56: Truck | K56: 1 | L56: 0 | M56: 0 | N56: 0 | O56: Btu/Btu
B58: 1.2.8 Feed losses: Btu/MMBtu fuel transported | M58: 62 | N58: 62 | O58: Btu/MMBtu transported
A61: 1.3 Inputs from other sheets
B62: 1.3.1 Water transport energy consumption (Btu/hp-hr)
C63: 1.3.1.1 Ocean tanker (origin to destination) | M63: =(14.42/M34+150)*0.735*'Fuel Specs'!E339/'Fuel Specs'!G339 -> 4619.751711 | N63: =(14.42/N34+150)*0.735*'Fuel Specs'!E339/'Fuel Specs'!G339 -> 4619.751711 | O63: Btu/hp-hr
C64: 1.3.1.2 Barge (origin to destination) | M64: =(14.42/M35+350)*0.735*'Fuel Specs'!E339/'Fuel Specs'!G339 -> 10118.63784 | N64: =(14.42/N35+350)*0.735*'Fuel Specs'!E339/'Fuel Specs'!G339 -> 10118.63784 | O64: Btu/hp-hr
C65: 1.3.1.3 Ocean tanker (destination to origin) | M65: =(14.42/M36+150)*0.735*'Fuel Specs'!E339/'Fuel Specs'!G339 -> 4690.54987 | N65: =(14.42/N36+150)*0.735*'Fuel Specs'!E339/'Fuel Specs'!G339 -> 4690.54987 | O65: Btu/hp-hr
C66: 1.3.1.4 Barge (destination to origin) | M66: =(14.42/M37+350)*0.735*'Fuel Specs'!E339/'Fuel Specs'!G339 -> 10283.83355 | N66: =(14.42/N37+350)*0.735*'Fuel Specs'!E339/'Fuel Specs'!G339 -> 10283.83355 | O66: Btu/hp-hr
B68: 1.3.2 Crude oil heating value | M68: ='Fuel Specs'!M16 -> 5.5146 | N68: ='Fuel Specs'!N16 -> 5.5146 | O68: MMBtu/bbl
B69: 1.3.3 Crude oil specific gravity | M69: =VLOOKUP(M10,'Fuel Specs'!B24:O65,2,TRUE) -> 0.8761609907 | N69: =VLOOKUP(N10,'Fuel Specs'!B24:O65,2,TRUE) -> 0.8761609907 | O69: kg/l
B70: 1.3.4 Density of fresh water | M70: ='Input Data'!E2385 -> 350.4312 | N70: ='Input Data'!E2385 -> 350.4312 | O70: lb/bbl
B72: 1.3.5 Emissions factors table | K72: Diesel | L72: Residual oil | M72: Natural gas | N72: Electricity
J73: VOC (incl. bulk terminal) | K73: ='Emissions Factors'!C23 -> 79.90800305 | L73: ='Emissions Factors'!D23 -> 79.90800305 | M73: ='Emissions Factors'!E23 -> 79.90800305 | N73: 0 | O73: g emitted per MMBtu (on site only)
J74: CO | K74: ='Emissions Factors'!C24 -> 181.5960063 | L74: ='Emissions Factors'!D24 -> 181.5960063 | M74: ='Emissions Factors'!E24 -> 90.79800317 | N74: 0 | O74: g emitted per MMBtu (on site only)
J75: CH4 (incl. fugitive) | K75: ='Emissions Factors'!C25 -> 4.580999851 | L75: ='Emissions Factors'!D25 -> 4.580999851 | M75: ='Emissions Factors'!E25 -> 91.61999702 | N75: 0 | O75: g emitted per MMBtu (on site only)
J76: N2O | K76: ='Emissions Factors'!C26 -> 2 | L76: ='Emissions Factors'!D26 -> 2 | M76: ='Emissions Factors'!E26 -> 2 | N76: 0 | O76: g emitted per MMBtu (on site only)
J77: CO2 | K77: ='Emissions Factors'!C27 -> 77652.0433 | L77: ='Emissions Factors'!D27 -> 84534.22128 | M77: ='Emissions Factors'!E27 -> 58768.99809 | N77: 0 | O77: g emitted per MMBtu (on site only)
J78: GHGs | K78: ='Emissions Factors'!C28 -> 78900.83671 | L78: ='Emissions Factors'!D28 -> 85783.01469 | M78: ='Emissions Factors'!E28 -> 62048.48963 | N78: 0 | O78: g emitted per MMBtu (on site only)
A81: 2 Calculations
A84: 2.1 Horsepower requirements of water transport | M84: User | N84: Units | Q84: User reference | S84: Default reference
B85: 2.1.1 Ocean tanker horsepower | M85: =9070+0.101*M25 -> 34320 | N85: hp
B86: 2.1.2 Barge horsepower | M86: =5600/22500*M29 -> 5600 | N86: hp
A89: 2.2 Energy intensity (origin to destination)
B90: 2.2.1 Ocean tanker | M90: =M63*M34*M85/M30/M25 -> 27.39522742 | N90: Btu/ton mi
B91: 2.2.2 Barge | M91: =M64*M35*M86/M29/M31 -> 402.9466447 | N91: Btu/ton mi
B92: 2.2.3 Pipeline | M92: =SUMPRODUCT(M42:M44,M46:M48) -> 252.6 | N92: Btu/ton mi
B93: 2.2.4 Rail | M93: =M39 -> 370 | N93: Btu/ton mi
B94: 2.2.5 Truck | M94: 969 | N94: Btu/ton mi
A96: 2.3 Energy intensity (back-haul, destination to origin)
B97: 2.3.1 Ocean tanker | M97: =M65*M36*M85/M25/M30 -> 24.33817928 | N97: Btu/ton mi
B98: 2.3.2 Barge | M98: =M66*M37*M86/M29/M31 -> 307.1438286 | N98: Btu/ton mi
B99: 2.3.3 Pipeline | M99: 0 | N99: Btu/ton mi | S99: Pipeline has no back haul
B100: 2.3.4 Rail | M100: 200 | N100: Btu/ton mi | S100: Assume that rail cars must return, but are less energy intensive to move
B101: 2.3.5 Truck | M101: 969 | N101: Btu/ton mi | S101: Assume that trucks must return, but have similar energy consumption
A103: 2.4 Energy consumption (Btu/MMBtu-mi fuel transported)
B104: 2.4.1 Ocean tanker | M104: =(M90+M97)*(1/M68)*(M70*M69)*1/2000 -> 1.440169951 | N104: Btu/MMBtu-mi transported
B105: 2.4.2 Barge | M105: =(M91+M98)*(1/M68)*(M70*M69)*1/2000 -> 19.76770963 | N105: Btu/MMBtu-mi transported
B106: 2.4.3 Pipeline | M106: =(M92+M99)*(1/M68)*(M70*M69)*1/2000 -> 7.03195387 | N106: Btu/MMBtu-mi transported
B107: 2.4.4 Rail | M107: =(M93+M100)*(1/M68)*(M70*M69)*1/2000 -> 15.8678294 | N107: Btu/MMBtu-mi transported
B108: 2.4.5 Truck | M108: =(M94+M101)*(1/M68)*(M70*M69)*1/2000 -> 53.95061995 | N108: Btu/MMBtu-mi transported
H110: VOC (incl. bulk terminal) | I110: CO | J110: CH4 (incl. fugitive) | K110: N2O | L110: CO2 | M110: GHG
G111: Ocean Tanker | H111: =M104/1000000*SUMPRODUCT($K$73:$N$73,K52:N52) -> 0.0001150811048 | I111: =M104/1000000*SUMPRODUCT($K$74:$N$74,K52:N52) -> 0.0002615291115 | J111: =M104/1000000*SUMPRODUCT($K$75:$N$75,K52:N52) -> 6.597418329e-06 | K111: =M104/1000000*SUMPRODUCT($K$76:$N$76,K52:N52) -> 2.880339901e-06 | L111: =M104/1000000*SUMPRODUCT($K$77:$N$77,K52:N52) -> 0.1217436453 | M111: =M104/1000000*SUMPRODUCT($K$78:$N$78,K52:N52) -> 0.12354212 | N111: g/MMBtu-mi fuel transported
G112: Barge | H112: =M105/1000000*SUMPRODUCT($K$73:$N$73,K53:N53) -> 0.001579598201 | I112: =M105/1000000*SUMPRODUCT($K$74:$N$74,K53:N53) -> 0.003589737123 | J112: =M105/1000000*SUMPRODUCT($K$75:$N$75,K53:N53) -> 9.055587486e-05 | K112: =M105/1000000*SUMPRODUCT($K$76:$N$76,K53:N53) -> 3.953541925e-05 | L112: =M105/1000000*SUMPRODUCT($K$77:$N$77,K53:N53) -> 1.67104794 | M112: =M105/1000000*SUMPRODUCT($K$78:$N$78,K53:N53) -> 1.695733725 | N112: g/MMBtu-mi fuel transported
G113: Pipeline | H113: =M106/1000000*SUMPRODUCT($K$73:$N$73,K54:N54) -> 0.0005619093913 | I113: =M106/1000000*SUMPRODUCT($K$74:$N$74,K54:N54) -> 0.0009258066862 | J113: =M106/1000000*SUMPRODUCT($K$75:$N$75,K54:N54) -> 0.0003688431968 | K113: =M106/1000000*SUMPRODUCT($K$76:$N$76,K54:N54) -> 1.406390774e-05 | L113: =M106/1000000*SUMPRODUCT($K$77:$N$77,K54:N54) -> 0.4730139998 | M113: =M106/1000000*SUMPRODUCT($K$78:$N$78,K54:N54) -> 0.4896493341 | N113: g/MMBtu-mi fuel transported
G114: Rail | H114: =M107/1000000*SUMPRODUCT($K$73:$N$73,K55:N55) -> 0.00126796656 | I114: =M107/1000000*SUMPRODUCT($K$74:$N$74,K55:N55) -> 0.002881534448 | J114: =M107/1000000*SUMPRODUCT($K$75:$N$75,K55:N55) -> 7.269052411e-05 | K114: =M107/1000000*SUMPRODUCT($K$76:$N$76,K55:N55) -> 3.17356588e-05 | L114: =M107/1000000*SUMPRODUCT($K$77:$N$77,K55:N55) -> 1.232169375 | M114: =M107/1000000*SUMPRODUCT($K$78:$N$78,K55:N55) -> 1.251985016 | N114: g/MMBtu-mi fuel transported
G115: Truck | H115: =M108/1000000*SUMPRODUCT($K$73:$N$73,K56:N56) -> 0.004311086304 | I115: =M108/1000000*SUMPRODUCT($K$74:$N$74,K56:N56) -> 0.009797217124 | J115: =M108/1000000*SUMPRODUCT($K$75:$N$75,K56:N56) -> 0.000247147782 | K115: =M108/1000000*SUMPRODUCT($K$76:$N$76,K56:N56) -> 0.0001079012399 | L115: =M108/1000000*SUMPRODUCT($K$77:$N$77,K56:N56) -> 4.189375877 | M115: =M108/1000000*SUMPRODUCT($K$78:$N$78,K56:N56) -> 4.256749056 | N115: g/MMBtu-mi fuel transported
A117: 2.5 Energy production rate as crude oil | M117: =M11*M68 -> 8271.9 | N117: MMBtu/d
A120: 3 Results
A122: 3.1 Tabulated outputs: Energy consumption by fuel (per day) | M122: Natural gas | N122: Upgrader process gas | O122: NGL | P122: Crude oil | Q122: Diesel | R122: Residual fuel | S122: Petroleum coke | T122: Electricity
M123: MMBtu/d | N123: MMBtu/d | O123: MMBtu/d | P123: MMBtu/d | Q123: MMBtu/d | R123: MMBtu/d | S123: MMBtu/d | T123: kWh/d
M124: =SUMPRODUCT(M104:M108,M52:M56,M19:M23,M13:M17)*M117/1000000 -> 23.99414293 | N124: 0 | O124: 0 | P124: 0 | Q124: =(SUMPRODUCT(M104:M108,K52:K56,M19:M23,M13:M17)*M117+M58)/1000000 -> 19.63163349 | R124: =SUMPRODUCT(M104:M108,L52:L56,M19:M23,M13:M17)*M117/1000000 -> 60.5415703 | S124: 0 | T124: =SUMPRODUCT(M104:M108,N52:N56,M19:M23,M13:M17)*M117/1000000 -> 0
A126: 3.2 Tabulated outputs: Non-combustion emissions (per day) | M126: Land use CO2 | N126: Venting | O126: Flaring | P126: Fugitives
M127: 0 | N127: 0 | O127: 0 | P127: 0 | Q127: gCO2 eq./d

Sheet Gas Balance
A1: Supplemental worksheet: Gas balance | H1: Active field: | J1: ='Active Field'!C9 -> Generic
A3: This supplemental worksheet tracks the natural gas balance across process stages and ensures that natural gas is conserved in the system.
A5: 1 Natural gas balance flowsheet
B8: Summary outputs:
B9: Demethanizer heavy product output | F9: =IF('Active Field'!J116=7,DO139,IF('Active Field'!J116=8,BN230,BY53)) -> 152.2810121 | G9: MMBtu/d LHV
BH12: Note: AGR vents all remaining associated gas CO2 in non-CO2-EOR pathway
O14: Table 1.3: Flared Gas
O15: Comp. | P15: mol% | Q15: Vol | W15: Table 1.5 Gas Vented as a Substitute for Flaring | AE15: Table 1.6 Other Fugitives and Operational Venting
O16: ="--" -> -- | P16: ="--" -> -- | Q16: MMscf/d | W16: Comp. | X16: mol% | Y16: Vol | AE16: Comp. | AF16: mol% | AG16: Vol | AT16: Table 1.8: Dehydrator Vented and Fugitives | BH16: Table 1.10: Amine Treater Vented and Fugitives
O17: N2 | P17: =H40 -> 2 | Q17: =(P17/100)*$O$26 -> 0.004641508854 | W17: ="--" -> -- | X17: ="--" -> -- | Y17: MMscf/d | AE17: ="--" -> -- | AF17: ="--" -> -- | AG17: MMscf/d | AT17: Comp. | AU17: mol% | AV17: Vol | BH17: Comp. | BI17: mol% | BJ17: Vol
O18: CO2 | P18: 6 | Q18: =(P18/100)*$O$26 -> 0.01392452656 | W18: CO2 | X18: =IF(W25=0, "NA", Y18/$W$25*100) -> NA | Y18: =W25*T42/100 -> 0 | AE18: CO2 | AF18: =AG18/$AE$25*100 -> 6 | AG18: =$AE$25*T42/100 -> 0.001543122046 | AT18: ="--" -> -- | AU18: ="--" -> -- | AV18: MMscf/d | BH18: ="--" -> -- | BI18: ="--" -> -- | BJ18: MMscf/d
O19: C1 | P19: 84 | Q19: 0.1949433719 | W19: C1 | X19: =IF(W25=0, "NA", Y19/$W$25*100) -> NA | Y19: =W26*T43/100 -> 0 | AE19: C1 | AF19: =AG19/$AE$25*100 -> 84 | AG19: =$AE$25*T43/100 -> 0.02160370865 | AT19: CO2 | AU19: =IF(AT38="ON", AV19/$AT$27*100, "NA") -> 5.995810443 | AV19: =$AT$27*AN41/100 -> 6.109694478e-05 | BH19: CO2 | BI19: =IF(BH38="ON", BJ19/$BH$27*100, "NA") -> 84.27131007 | BJ19: =IF(BH38="ON", BC41, 0) -> 0.06619125445
O20: C2 | P20: 4 | Q20: 0.009283017708 | W20: C2 | X20: =IF(W25=0, "NA", Y20/$W$25*100) -> NA | Y20: =W27*T44/100 -> 0 | AE20: C2 | AF20: =AG20/$AE$25*100 -> 4 | AG20: =$AE$25*T44/100 -> 0.001028748031 | AT20: C1 | AU20: =IF(AT38="ON", AV20/$AT$27*100, "NA") -> 83.9413462 | AV20: 0.000855357227 | BH20: C1 | BI20: =IF(BH38="ON", BJ20/$BH$27*100, "NA") -> 1.356336231 | BJ20: =IF(BH38="ON", 'Venting & Fugitives'!F152/1000000 + 'Venting & Fugitives'!F227/1000000, 0) -> 0.001065339989 | BZ20: Table 1.13: Pipeline Quality Gas Composition
B21: Fugitives and Venting from Production | O21: C3 | P21: 2 | Q21: 0.004641508854 | W21: C3 | X21: =IF(W25=0, "NA", Y21/$W$25*100) -> NA | Y21: =W28*T45/100 -> 0 | AE21: C3 | AF21: =AG21/$AE$25*100 -> 2 | AG21: =$AE$25*T45/100 -> 0.0005143740154 | AT21: C2 | AU21: =IF(AT38="ON", AV21/$AT$27*100, "NA") -> 3.997206962 | AV21: 4.073129652e-05 | BH21: C2 | BI21: =IF(BH38="ON", BJ21/$BH$27*100, "NA") -> 0 | BJ21: 0 | BZ21: Comp. | CA21: mol% | CB21: Vol | CC21: Mixture MW | CD21: Component MW | CE21: HHV | CF21: LHV
B22: =('Venting & Fugitives'!G277/365)+('Venting & Fugitives'!E157+'Venting & Fugitives'!F157+'Venting & Fugitives'!G157)/1000000 -> 0.0007791603539 | C22: MMscf/d | O22: C4 | P22: 1 | Q22: 0.002320754427 | W22: C4 | X22: =IF(W25=0, "NA", Y22/$W$25*100) -> NA | Y22: =W29*T46/100 -> 0 | AE22: C4 | AF22: =AG22/$AE$25*100 -> 1 | AG22: =$AE$25*T46/100 -> 0.0002571870077 | AT22: C3 | AU22: =IF(AT38="ON", AV22/$AT$27*100, "NA") -> 1.998603481 | AV22: 2.036564826e-05 | BH22: C3 | BI22: =IF(BH38="ON", BJ22/$BH$27*100, "NA") -> 0 | BJ22: 0 | BZ22: ="--" -> -- | CA22: ="--" -> -- | CB22: MMscf/d | CC22: lb/lbmol | CD22: lb/lbmol | CE22: Btu/scf | CF22: Btu/scf
C23: Notes: | O23: H2S | P23: 1 | Q23: 0.002320754427 | W23: Total | X23: =SUM(X18:X22) -> 0 | Y23: =SUM(Y18:Y22) -> 0 | AE23: Total | AF23: =SUM(AF18:AF22) -> 97 | AG23: =SUM(AG18:AG22) -> 0.02494713975 | AT23: C4 | AU23: =IF(AT38="ON", AV23/$AT$27*100, "NA") -> 0.9993017405 | AV23: 1.018282413e-05 | BH23: C4 | BI23: =IF(BH38="ON", BJ23/$BH$27*100, "NA") -> 0 | BJ23: 0 | BZ23: N2 | CA23: =IF(OR('Active Field'!J116=1, 'Active Field'!J116=2, 'Active Field'!J116=3, 'Active Field'!J116=4, 'Active Field'!J116=5), 100*CB23/$BZ$35, "NA") -> 2.372457305 | CB23: =IF(OR('Active Field'!J116=1, 'Active Field'!J116=2, 'Active Field'!J116=3, 'Active Field'!J116=4, 'Active Field'!J116=5), BQ40, 0) -> 0.02259849115 | CC23: =IF(OR('Active Field'!J116=1, 'Active Field'!J116=2, 'Active Field'!J116=3, 'Active Field'!J116=4, 'Active Field'!J116=5), CD23*CA23/100, "NA") -> 0.6642880455 | CD23: ='Fuel Specs'!$E$151 -> 28 | CE23: ='Fuel Specs'!G131 -> 0 | CF23: ='Fuel Specs'!H131 -> 0
C24: Fugitive emissions are from active wells and well cellars | O24: Total | P24: =SUM(P17:P23) -> 100 | Q24: =SUM(Q17:Q23) -> 0.2320754427 | W24: Gas Vented as a Substitute for Flaring | AE24: Other Fugitives and Operational Venting | AT24: H2S | AU24: =IF(AT38="ON", AV24/$AT$27*100, "NA") -> 1.022577058 | AV24: 1.041999821e-05 | BH24: H2S | BI24: =IF(BH38="ON", BJ24/$BH$27*100, "NA") -> 14.37235369 | BJ24: =IF(BH38="ON", BC46, 0) -> 0.01128882557 | BZ24: CO2 | CA24: =IF(OR('Active Field'!J116=1, 'Active Field'!J116=2, 'Active Field'!J116=3, 'Active Field'!J116=4, 'Active Field'!J116=5), 100*CB24/$BZ$35, "NA") -> 0 | CB24: =IF(OR('Active Field'!J116=1, 'Active Field'!J116=2, 'Active Field'!J116=3, 'Active Field'!J116=4, 'Active Field'!J116=5), BQ41, 0) -> 0 | CC24: =IF(OR('Active Field'!J116=1, 'Active Field'!J116=2, 'Active Field'!J116=3, 'Active Field'!J116=4, 'Active Field'!J116=5), CD24*CA24/100, "NA") -> 0 | CD24: ='Fuel Specs'!$E$153 -> 44 | CE24: ='Fuel Specs'!G133 -> 0 | CF24: ='Fuel Specs'!H133 -> 0
C25: Vented emissions are from workovers and cleanups | O25: Flared Gas | W25: ='Venting & Fugitives'!M9 -> 0 | X25: MMscf/d | AE25: =('Venting & Fugitives'!E162+'Venting & Fugitives'!E167+'Venting & Fugitives'!E172+'Venting & Fugitives'!E177+'Venting & Fugitives'!E232+'Venting & Fugitives'!E237+'Venting & Fugitives'!E242+'Venting & Fugitives'!E247)/1000000+('Venting & Fugitives'!F162+'Venting & Fugitives'!F167+'Venting & Fugitives'!F172+'Venting & Fugitives'!F177+'Venting & Fugitives'!F232+'Venting & Fugitives'!F237+'Venting & Fugitives'!F242+'Venting & Fugitives'!F247)/1000000+IF(H45, 0.31, 0.425)*'Venting & Fugitives'!G246/IF(H45, 'Input Data'!D89, 'Input Data'!D90)/1000000+IF(H45, 0.42, 0.575)*'Venting & Fugitives'!G246/IF(H45, 'Input Data'!D89, 'Input Data'!D90)/1000000+IF(H45, 0.27, 0)*'Venting & Fugitives'!G246/'Input Data'!D89/1000000 -> 0.02571870077 | AF25: MMscf/d | AT25: Total | AU25: =IF(AT38="ON", SUM(AU19:AU24), "NA") -> 97.95484588 | AV25: =SUM(AV19:AV24) -> 0.0009981539389 | BH25: Total | BI25: =IF(BH38="ON", SUM(BI19:BI24), "NA") -> 100 | BJ25: =SUM(BJ19:BJ24) -> 0.07854542001 | BZ25: C1 | CA25: =IF(OR('Active Field'!J116=1, 'Active Field'!J116=2, 'Active Field'!J116=3, 'Active Field'!J116=4, 'Active Field'!J116=5), 100*CB25/$BZ$35, "NA") -> 97.17354422 | CB25: =IF(OR('Active Field'!J116=1, 'Active Field'!J116=2, 'Active Field'!J116=3, 'Active Field'!J116=4, 'Active Field'!J116=5), BQ42, 0) -> 0.9256122223 | CC25: =IF(OR('Active Field'!J116=1, 'Active Field'!J116=2, 'Active Field'!J116=3, 'Active Field'!J116=4, 'Active Field'!J116=5), CD25*CA25/100, "NA") -> 15.54776708 | CD25: ='Fuel Specs'!$E$155 -> 16 | CE25: ='Fuel Specs'!G135 -> 1013 | CF25: ='Fuel Specs'!H135 -> 913
C26: GOR calculated at separator | O26: =Flaring!M15 -> 0.2320754427 | P26: MMscf/d | AT26: Dehydrator Vented and Fugitives Gas | BH26: Amine Treater Vented Gas | BZ26: C2 | CA26: =IF(OR('Active Field'!J116=1, 'Active Field'!J116=2, 'Active Field'!J116=3, 'Active Field'!J116=4, 'Active Field'!J116=5), 100*CB26/$BZ$35, "NA") -> 0.4539984718 | CB26: =IF(OR('Active Field'!J116=1, 'Active Field'!J116=2, 'Active Field'!J116=3, 'Active Field'!J116=4, 'Active Field'!J116=5), BQ43-BZ48, 0) -> 0.004324495291 | CC26: =IF(OR('Active Field'!J116=1, 'Active Field'!J116=2, 'Active Field'!J116=3, 'Active Field'!J116=4, 'Active Field'!J116=5), CD26*CA26/100, "NA") -> 0.1361995415 | CD26: ='Fuel Specs'!$E$156 -> 30 | CE26: ='Fuel Specs'!G136 -> 1792 | CF26: ='Fuel Specs'!H136 -> 1641 | CM26: Lifting gas
AT27: =IF(AT38="ON", 'Venting & Fugitives'!E147/1000000 + 'Venting & Fugitives'!E222/1000000, 0)+IF(AT38="ON", 'Venting & Fugitives'!F147/1000000 + 'Venting & Fugitives'!F222/1000000, 0) -> 0.001018993935 | AU27: MMscf/d | BH27: =IF(BH38="ON", BJ25, "NA") -> 0.07854542001 | BI27: MMscf/d | BZ27: C3 | CA27: =IF(OR('Active Field'!J116=1, 'Active Field'!J116=2, 'Active Field'!J116=3, 'Active Field'!J116=4, 'Active Field'!J116=5), 100*CB27/$BZ$35, "NA") -> 0 | CB27: =IF(OR('Active Field'!J116=1, 'Active Field'!J116=2, 'Active Field'!J116=3, 'Active Field'!J116=4, 'Active Field'!J116=5), BQ44-BZ49, 0) -> 0 | CC27: =IF(OR('Active Field'!J116=1, 'Active Field'!J116=2, 'Active Field'!J116=3, 'Active Field'!J116=4, 'Active Field'!J116=5), CD27*CA27/100, "NA") -> 0 | CD27: ='Fuel Specs'!$E$157 -> 44 | CE27: ='Fuel Specs'!G137 -> 2590 | CF27: ='Fuel Specs'!H137 -> 2385 | CM27: =IF(AND('Production & Extraction'!M18=1, OR('Active Field'!J116=1, 'Active Field'!J116=2, 'Active Field'!J116=3, 'Active Field'!J116=4, 'Active Field'!J116=5)),'Production & Extraction'!M229/1000,0) -> 0 | CN27: MMscf/d
BZ28: C4 | CA28: =IF(OR('Active Field'!J116=1, 'Active Field'!J116=2, 'Active Field'!J116=3, 'Active Field'!J116=4, 'Active Field'!J116=5), 100*CB28/$BZ$35, "NA") -> 0 | CB28: =IF(OR('Active Field'!J116=1, 'Active Field'!J116=2, 'Active Field'!J116=3, 'Active Field'!J116=4, 'Active Field'!J116=5), BQ45-BZ50, 0) -> 0 | CC28: =IF(OR('Active Field'!J116=1, 'Active Field'!J116=2, 'Active Field'!J116=3, 'Active Field'!J116=4, 'Active Field'!J116=5), CD28*CA28/100, "NA") -> 0 | CD28: ='Fuel Specs'!$E$158 -> 58 | CE28: ='Fuel Specs'!G138 -> 3370 | CF28: ='Fuel Specs'!H138 -> 3113 | DH28: =IF( OR('Active Field'!J116=1,'Active Field'!J116=2,'Active Field'!J116=3,'Active Field'!J116=4,'Active Field'!J116=5), IF('Production & Extraction'!M18=1, IF(BZ35<CM27,"ERROR","OK"), "OK"), "OK") -> OK
BZ29: H2S | CA29: =IF(OR('Active Field'!J116=1, 'Active Field'!J116=2, 'Active Field'!J116=3, 'Active Field'!J116=4, 'Active Field'!J116=5), 100*CB29/$BZ$35, "NA") -> 0 | CB29: =IF(OR('Active Field'!J116=1, 'Active Field'!J116=2, 'Active Field'!J116=3, 'Active Field'!J116=4, 'Active Field'!J116=5), BQ46, 0) -> 0 | CC29: =IF(OR('Active Field'!J116=1, 'Active Field'!J116=2, 'Active Field'!J116=3, 'Active Field'!J116=4, 'Active Field'!J116=5), CD29*CA29/100, "NA") -> 0 | CD29: ='Fuel Specs'!$E$161 -> 34 | CE29: ='Fuel Specs'!G141 -> 640 | CF29: ='Fuel Specs'!H141 -> 594
BZ30: Total | CA30: =IF(OR('Active Field'!J116=1, 'Active Field'!J116=2, 'Active Field'!J116=3, 'Active Field'!J116=4, 'Active Field'!J116=5), SUM(CA23:CA29), "NA") -> 100 | CB30: =IF(OR('Active Field'!J116=1, 'Active Field'!J116=2, 'Active Field'!J116=3, 'Active Field'!J116=4, 'Active Field'!J116=5), SUM(CB23:CB29), 0) -> 0.9525352087 | CC30: =IF(OR('Active Field'!J116=1, 'Active Field'!J116=2, 'Active Field'!J116=3, 'Active Field'!J116=4, 'Active Field'!J116=5), SUM(CC23:CC29), "NA") -> 16.34825466 | CD30: ="--" -> -- | CE30: ="--" -> -- | CF30: ="--" -> --
BZ31: Specific gravity | CA31: =IF(OR('Active Field'!J116=1, 'Active Field'!J116=2, 'Active Field'!J116=3, 'Active Field'!J116=4, 'Active Field'!J116=5), (14.7*CC30)/(10.73*(60+460))/0.0764, "NA") -> 0.5637574639 | CB31: Dimensionless
BZ32: HHV | CA32: =SUMPRODUCT(CB23:CB29,CE23:CE29) -> 945.3946767 | CB32: MMBtu/d
BZ33: LHV | CA33: =SUMPRODUCT(CB23:CB29,CF23:CF29) -> 852.1804557 | CB33: MMBtu/d | DB33: Fuel gas consumed
S34: Post-Flaring Gas | AX34: Non-CO2 EOR | BZ34: Pipeline Quality Gas Volume | DB34: =IF(OR('Active Field'!J116=1, 'Active Field'!J116=2, 'Active Field'!J116=3, 'Active Field'!J116=4, 'Active Field'!J116=5), 'Energy Consumption'!E23/'Fuel Specs'!B302*8.3144621*(273.15+15.5556)/101325 *(3.2808398950131)^3, 0) -> 0.2737691794 | DC34: MMscf/d
S35: =G53+O63-O26 -> 1.129924557 | T35: MMscf/d | W35: Gas Vented as | AE35: Other Fugitives and | AX35: Gas processing paths 2-5 | BZ35: =CB30 -> 0.9525352087 | CA35: MMscf/d | DH35: =IF(OR('Active Field'!J116=1,'Active Field'!J116=2,'Active Field'!J116=3,'Active Field'!J116=4,'Active Field'!J116=5), IF(CT42-DB34<-0.01, "WARNING", "OK"), "OK") -> OK
B36: Production | O36: Flaring | W36: Substitute for Flaring | AE36: Operational Venting | AT36: Glycol Dehydrator | BH36: Amine Treater | BV36: Demethanizer
G37: Table 1.1: Production Gas | AM37: Table 1.7: Composition: Gas to Processing | BA37: Table 1.9: Composition: Gas to Amine Treater | BO37: Table 1.11: Composition: Gas to Demethanizer
G38: Comp. | H38: mol% | I38: Vol | J38: HHV | K38: LHV | S38: Table 1.4: Composition: Post-Flaring Gas | AM38: Comp. | AN38: mol% | AO38: Vol | AT38: =IF(OR('Active Field'!J116=2,'Active Field'!J116=3,'Active Field'!J116=4,'Active Field'!J116=5,'Active Field'!J116=6,'Active Field'!J116=7,'Active Field'!J116=8), "ON", "OFF") -> ON | BA38: Comp. | BB38: mol% | BC38: Vol | BH38: =IF(OR('Active Field'!J116=3,'Active Field'!J116=5),"ON", "OFF") -> ON | BO38: Comp. | BP38: mol% | BQ38: Vol | BV38: =IF(OR('Active Field'!J116=4,'Active Field'!J116=5),"ON", "OFF") -> ON
G39: ="--" -> -- | H39: ="--" -> -- | I39: MMscf/d | J39: Btu/scf | K39: Btu/scf | S39: Comp. | T39: mol% | U39: Vol | AM39: ="--" -> -- | AN39: ="--" -> -- | AO39: MMscf/d | BA39: ="--" -> -- | BB39: ="--" -> -- | BC39: MMscf/d | BO39: ="--" -> -- | BP39: ="--" -> -- | BQ39: MMscf/d
G40: N2 | H40: =100*I40/$G$53 -> 2 | I40: ='Production & Extraction'!M35*('Production & Extraction'!$M$43*'Production & Extraction'!$M$26/1000000)/100 -> 0.02724 | J40: ='Fuel Specs'!G131 -> 0 | K40: ='Fuel Specs'!H131 -> 0 | S40: ="--" -> -- | T40: ="--" -> -- | U40: MMscf/d | AM40: N2 | AN40: =100*AO40/$AM$51 -> 2.045154117 | AO40: =U41 -> 0.02259849115 | BA40: N2 | BB40: =IF(OR('Active Field'!J116=1, 'Active Field'!J116=2, 'Active Field'!J116=3, 'Active Field'!J116=4, 'Active Field'!J116=5), 100*BC40/$BA$51, "NA") -> 2.047003226 | BC40: =IF(OR('Active Field'!J116=1, 'Active Field'!J116=2, 'Active Field'!J116=3, 'Active Field'!J116=4, 'Active Field'!J116=5), AO40, 0) -> 0.02259849115 | BO40: N2 | BP40: =IF(OR('Active Field'!J116=1, 'Active Field'!J116=2, 'Active Field'!J116=3, 'Active Field'!J116=4, 'Active Field'!J116=5), 100*BQ40/$BO$51, "NA") -> 2.203798059 | BQ40: =IF(OR('Active Field'!J116=1, 'Active Field'!J116=2, 'Active Field'!J116=3, 'Active Field'!J116=4, 'Active Field'!J116=5), BC40, 0) -> 0.02259849115 | CM40: =IF(CM42>=0, "OK", "ERROR") -> OK
G41: CO2 | H41: 6 | I41: ='Production & Extraction'!M36*('Production & Extraction'!$M$43*'Production & Extraction'!$M$26/1000000)/100 -> 0.08172 | J41: ='Fuel Specs'!G133 -> 0 | K41: ='Fuel Specs'!H133 -> 0 | L41: =IF(I41 < (Q18+Y18+AG18+AV19+BJ19+CZ103+BK192), "ERROR", "OK") -> OK | S41: N2 | T41: =100*U41/$S$52 -> 2 | U41: =Q53+I40-Q17 -> 0.02259849115 | AM41: CO2 | AN41: 5.995810443 | AO41: =U42-Y18-AG18 -> 0.06625235139 | BA41: CO2 | BB41: =IF(OR('Active Field'!J116=1, 'Active Field'!J116=2, 'Active Field'!J116=3, 'Active Field'!J116=4, 'Active Field'!J116=5), 100*BC41/$BA$51, "NA") -> 5.995697259 | BC41: =IF(OR('Active Field'!J116=1, 'Active Field'!J116=2, 'Active Field'!J116=3, 'Active Field'!J116=4, 'Active Field'!J116=5), AO41-AV19, 0) -> 0.06619125445 | BO41: CO2 | BP41: =IF(OR('Active Field'!J116=1, 'Active Field'!J116=2, 'Active Field'!J116=3, 'Active Field'!J116=4, 'Active Field'!J116=5), 100*BQ41/$BO$51, "NA") -> 0 | BQ41: =IF(OR('Active Field'!J116=1, 'Active Field'!J116=2, 'Active Field'!J116=3, 'Active Field'!J116=4, 'Active Field'!J116=5), BC41-BJ19, 0) -> 0 | CM41: Remaining gas | CT41: Fuel gas consumed + exports
G42: C1 | H42: 84 | I42: ='Production & Extraction'!M37*('Production & Extraction'!$M$43*'Production & Extraction'!$M$26/1000000)/100 -> 1.14408 | J42: ='Fuel Specs'!G135 -> 1013 | K42: ='Fuel Specs'!H135 -> 913 | L42: =IF(I42 < (Q19+Y19+AG19+AV20+BJ20+CZ104+BK193), "ERROR", "OK") -> OK | S42: CO2 | T42: =100*U42/$S$52 -> 6 | U42: =Q54+I41-Q18 -> 0.06779547344 | AM42: C1 | AN42: 83.9413462 | AO42: =U43-Y19-AG19 -> 0.9275329195 | BA42: C1 | BB42: =IF(OR('Active Field'!J116=1, 'Active Field'!J116=2, 'Active Field'!J116=3, 'Active Field'!J116=4, 'Active Field'!J116=5), 100*BC42/$BA$51, "NA") -> 83.93976162 | BC42: =IF(OR('Active Field'!J116=1, 'Active Field'!J116=2, 'Active Field'!J116=3, 'Active Field'!J116=4, 'Active Field'!J116=5), AO42-AV20, 0) -> 0.9266775623 | BO42: C1 | BP42: =IF(OR('Active Field'!J116=1, 'Active Field'!J116=2, 'Active Field'!J116=3, 'Active Field'!J116=4, 'Active Field'!J116=5), 100*BQ42/$BO$51, "NA") -> 90.26542551 | BQ42: =IF(OR('Active Field'!J116=1, 'Active Field'!J116=2, 'Active Field'!J116=3, 'Active Field'!J116=4, 'Active Field'!J116=5), BC42-BJ20, 0) -> 0.9256122223 | CM42: =IF(OR('Active Field'!J116=1, 'Active Field'!J116=2, 'Active Field'!J116=3, 'Active Field'!J116=4, 'Active Field'!J116=5), BZ35-CM27, 0) -> 0.9525352087 | CN42: MMscf/d | CT42: =IF(OR('Active Field'!J116=1, 'Active Field'!J116=2, 'Active Field'!J116=3, 'Active Field'!J116=4, 'Active Field'!J116=5), CM42-CT57, 0) -> 0.9525352087 | CU42: MMscf/d
G43: C2 | H43: 4 | I43: ='Production & Extraction'!M38*('Production & Extraction'!$M$43*'Production & Extraction'!$M$26/1000000)/100 -> 0.05448 | J43: ='Fuel Specs'!G136 -> 1792 | K43: ='Fuel Specs'!H136 -> 1641 | L43: =IF(I43 < (Q20+Y20+AG20+AV21+BJ21+CZ105+BK194), "ERROR", "OK") -> OK | S43: C1 | T43: 84 | U43: 0.9491366281 | AM43: C2 | AN43: 3.997206962 | AO43: =U44-Y20-AG20 -> 0.04416823426 | BA43: C2 | BB43: =IF(OR('Active Field'!J116=1, 'Active Field'!J116=2, 'Active Field'!J116=3, 'Active Field'!J116=4, 'Active Field'!J116=5), 100*BC43/$BA$51, "NA") -> 3.997131506 | BC43: =IF(OR('Active Field'!J116=1, 'Active Field'!J116=2, 'Active Field'!J116=3, 'Active Field'!J116=4, 'Active Field'!J116=5), AO43-AV21, 0) -> 0.04412750296 | BO43: C2 | BP43: =IF(OR('Active Field'!J116=1, 'Active Field'!J116=2, 'Active Field'!J116=3, 'Active Field'!J116=4, 'Active Field'!J116=5), 100*BQ43/$BO$51, "NA") -> 4.303300817 | BQ43: =IF(OR('Active Field'!J116=1, 'Active Field'!J116=2, 'Active Field'!J116=3, 'Active Field'!J116=4, 'Active Field'!J116=5), BC43-BJ21, 0) -> 0.04412750296
G44: C3 | H44: 2 | I44: ='Production & Extraction'!M39*('Production & Extraction'!$M$43*'Production & Extraction'!$M$26/1000000)/100 -> 0.02724 | J44: ='Fuel Specs'!G137 -> 2590 | K44: ='Fuel Specs'!H137 -> 2385 | L44: =IF(I44 < (Q21+Y21+AG21+AV22+BJ22+CZ106+BK195), "ERROR", "OK") -> OK | S44: C2 | T44: 4 | U44: 0.04519698229 | AM44: C3 | AN44: 1.998603481 | AO44: =U45-Y21-AG21 -> 0.02208411713 | BA44: C3 | BB44: =IF(OR('Active Field'!J116=1, 'Active Field'!J116=2, 'Active Field'!J116=3, 'Active Field'!J116=4, 'Active Field'!J116=5), 100*BC44/$BA$51, "NA") -> 1.998565753 | BC44: =IF(OR('Active Field'!J116=1, 'Active Field'!J116=2, 'Active Field'!J116=3, 'Active Field'!J116=4, 'Active Field'!J116=5), AO44-AV22, 0) -> 0.02206375148 | BO44: C3 | BP44: =IF(OR('Active Field'!J116=1, 'Active Field'!J116=2, 'Active Field'!J116=3, 'Active Field'!J116=4, 'Active Field'!J116=5), 100*BQ44/$BO$51, "NA") -> 2.151650408 | BQ44: =IF(OR('Active Field'!J116=1, 'Active Field'!J116=2, 'Active Field'!J116=3, 'Active Field'!J116=4, 'Active Field'!J116=5), BC44-BJ22, 0) -> 0.02206375148
G45: C4 | H45: 1 | I45: ='Production & Extraction'!M40*('Production & Extraction'!$M$43*'Production & Extraction'!$M$26/1000000)/100 -> 0.01362 | J45: ='Fuel Specs'!G138 -> 3370 | K45: ='Fuel Specs'!H138 -> 3113 | L45: =IF(I45 < (Q22+Y22+AG22+AV23+BJ23+CZ107+BK196), "ERROR", "OK") -> OK | S45: C3 | T45: 2 | U45: 0.02259849115 | AM45: C4 | AN45: 0.9993017405 | AO45: =U46-Y22-AG22 -> 0.01104205857 | BA45: C4 | BB45: =IF(OR('Active Field'!J116=1, 'Active Field'!J116=2, 'Active Field'!J116=3, 'Active Field'!J116=4, 'Active Field'!J116=5), 100*BC45/$BA$51, "NA") -> 0.9992828765 | BC45: =IF(OR('Active Field'!J116=1, 'Active Field'!J116=2, 'Active Field'!J116=3, 'Active Field'!J116=4, 'Active Field'!J116=5), AO45-AV23, 0) -> 0.01103187574 | BO45: C4 | BP45: =IF(OR('Active Field'!J116=1, 'Active Field'!J116=2, 'Active Field'!J116=3, 'Active Field'!J116=4, 'Active Field'!J116=5), 100*BQ45/$BO$51, "NA") -> 1.075825204 | BQ45: =IF(OR('Active Field'!J116=1, 'Active Field'!J116=2, 'Active Field'!J116=3, 'Active Field'!J116=4, 'Active Field'!J116=5), BC45-BJ23, 0) -> 0.01103187574 | BX45: Table 1.12: Demethanizer heavy product composition
G46: H2S | H46: 1 | I46: ='Production & Extraction'!M41*('Production & Extraction'!$M$43*'Production & Extraction'!$M$26/1000000)/100*IF('Active Field'!J81,1,0) -> 0.01362 | J46: ='Fuel Specs'!G141 -> 640 | K46: ='Fuel Specs'!H141 -> 594 | S46: C4 | T46: 1 | U46: 0.01129924557 | AM46: H2S | AN46: 1.022577058 | AO46: =U47 -> 0.01129924557 | BA46: H2S | BB46: =IF(OR('Active Field'!J116=1, 'Active Field'!J116=2, 'Active Field'!J116=3, 'Active Field'!J116=4, 'Active Field'!J116=5), 100*BC46/$BA$51, "NA") -> 1.022557755 | BC46: =IF(OR('Active Field'!J116=1, 'Active Field'!J116=2, 'Active Field'!J116=3, 'Active Field'!J116=4, 'Active Field'!J116=5), AO46-AV24, 0) -> 0.01128882557 | BO46: H2S | BP46: =IF(OR('Active Field'!J116=1, 'Active Field'!J116=2, 'Active Field'!J116=3, 'Active Field'!J116=4, 'Active Field'!J116=5), 100*BQ46/$BO$51, "NA") -> 0 | BQ46: =IF(OR('Active Field'!J116=1, 'Active Field'!J116=2, 'Active Field'!J116=3, 'Active Field'!J116=4, 'Active Field'!J116=5), BC46-BJ24, 0) -> 0 | BX46: Comp. | BY46: mol% | BZ46: Vol | CA46: HHV | CB46: LHV
G47: Total | H47: 100 | I47: =SUM(I40:I46) -> 1.362 | S47: H2S | T47: 1 | U47: 0.01129924557 | AM47: Total | AN47: =SUM(AN40:AN46) -> 100 | AO47: =SUM(AO40:AO46) -> 1.104977418 | AV47: CO2 EOR | BA47: Total | BB47: =IF(OR('Active Field'!J116=1, 'Active Field'!J116=2, 'Active Field'!J116=3, 'Active Field'!J116=4, 'Active Field'!J116=5), SUM(BB40:BB46), "NA") -> 100 | BC47: =SUM(BC40:BC46) -> 1.103979264 | BO47: Total | BP47: =IF(OR('Active Field'!J116=1, 'Active Field'!J116=2, 'Active Field'!J116=3, 'Active Field'!J116=4, 'Active Field'!J116=5), SUM(BP40:BP46), "NA") -> 100 | BQ47: =SUM(BQ40:BQ46) -> 1.025433844 | BX47: ="--" -> -- | BY47: ="--" -> -- | BZ47: MMscf/d | CA47: Btu/scf | CB47: Btu/scf
G48: HHV | H48: =SUMPRODUCT(I40:I46,J40:J46) -> 1381.749 | I48: MMBtu/d | S48: Total | T48: 100 | U48: =SUM(U41:U47) -> 1.129924557 | AM48: Temp | AN48: - | AO48: ◦F | AV48: Gas processing paths 6-8 | BA48: Temp | BB48: - | BC48: ◦F | BO48: Temp | BP48: - | BQ48: ◦F | BX48: C2 | BY48: =IF(BV38="ON", 100*BZ48/$BX$56, "NA") -> 54.60048426 | BZ48: =IF(BV38="ON", BQ43*('Surface Processing'!M120/100), 0) -> 0.03980300767 | CA48: ='Fuel Specs'!G136 -> 1792 | CB48: ='Fuel Specs'!H136 -> 1641 | DB48: Exports
G49: LHV | H49: =SUMPRODUCT(I40:I46,K40:K46) -> 1249.40346 | I49: MMBtu/d | S49: Temp | T49: - | U49: ◦F | AM49: Pressure | AN49: - | AO49: psia | BA49: Pressure | BB49: - | BC49: psia | BO49: Pressure | BP49: - | BQ49: psia | BX49: C3 | BY49: =IF(BV38="ON", 100*BZ49/$BX$56, "NA") -> 30.26634383 | BZ49: =IF(BV38="ON", BQ44*('Surface Processing'!M121/100), 0) -> 0.02206375148 | CA49: ='Fuel Specs'!G137 -> 2590 | CB49: ='Fuel Specs'!H137 -> 2385 | DB49: =IF(OR('Active Field'!J116=1, 'Active Field'!J116=2, 'Active Field'!J116=3, 'Active Field'!J116=4, 'Active Field'!J116=5), CT42-DB34, 0) -> 0.6787660293 | DC49: MMscf/d
G50: Temp | H50: ='Surface Processing'!M46 -> 59 | I50: ◦F | O50: Table 1.2: Produced CO2 | S50: Pressure | T50: - | U50: psia | AM50: Gas to Processing | BA50: Gas to Amine Treater | BO50: Gas to Demethanizer | BX50: C4 | BY50: =IF(BV38="ON", 100*BZ50/$BX$56, "NA") -> 15.13317191 | BZ50: =IF(BV38="ON", BQ45*('Surface Processing'!M122/100), 0) -> 0.01103187574 | CA50: ='Fuel Specs'!G138 -> 3370 | CB50: ='Fuel Specs'!H138 -> 3113
G51: Pressure | H51: ='Surface Processing'!M45 -> 14.5 | I51: psia | O51: Comp. | P51: mol% | Q51: Vol | S51: Post-Flaring Gas | AM51: =AO47 -> 1.104977418 | AN51: MMscf/d | BA51: =IF(OR('Active Field'!J116=1, 'Active Field'!J116=2, 'Active Field'!J116=3, 'Active Field'!J116=4, 'Active Field'!J116=5), BC47, "NA") -> 1.103979264 | BB51: MMscf/d | BO51: =IF(OR('Active Field'!J116=1, 'Active Field'!J116=2, 'Active Field'!J116=3, 'Active Field'!J116=4, 'Active Field'!J116=5), BQ47, "NA") -> 1.025433844 | BP51: MMscf/d | BX51: Total | BY51: =IF(BV38="ON", SUM(BY48:BY50), "NA") -> 100 | BZ51: =SUM(BZ48:BZ50) -> 0.0728986349 | CA51: ="--" -> -- | CB51: ="--" -> --
G52: Production Gas | O52: ="--" -> -- | P52: ="--" -> -- | Q52: MMscf/d | S52: =U48 -> 1.129924557 | T52: MMscf/d | BX52: HHV | BY52: =SUMPRODUCT(BZ48:BZ50,CA48:CA50) -> 165.6495273 | BZ52: MMBtu/d
G53: =I47 -> 1.362 | H53: MMscf/d | O53: N2 | P53: =H104 -> 0 | Q53: =(P53/100)*$O$26 -> 0 | BX53: LHV | BY53: =SUMPRODUCT(BZ48:BZ50,CB48:CB50) -> 152.2810121 | BZ53: MMBtu/d
O54: CO2 | P54: =IF(Q54=0,0,Q54/Q60*100) -> 0 | Q54: =IF('Active Field'!J90=3,('Production & Extraction'!M49*(1-'Active Field'!J97/100))/1000,0) -> 0
G55: =G53*1000000/'Active Field'!J63 -> 908 | H55: scf/bbl | O55: C1 | P55: =H106 -> 0 | Q55: =(P55/100)*$O$26 -> 0 | BX55: Demethanizer Heavy Product Volume
G56: Overall gas composition check: | M56: =IF(OR(L41="ERROR",L42="ERROR",L43="ERROR",L44="ERROR",L45="ERROR"),"ERROR","OK") -> OK | O56: C2 | P56: 0 | Q56: =(P56/100)*$O$26 -> 0 | BX56: =BZ51 -> 0.0728986349 | BY56: MMscf/d | CT56: Reinjection (Natural Gas)
O57: C3 | P57: 0 | Q57: =(P57/100)*$O$26 -> 0 | CT57: =IF(AND(OR('Active Field'!J116=1, 'Active Field'!J116=2, 'Active Field'!J116=3, 'Active Field'!J116=4, 'Active Field'!J116=5), 'Production & Extraction'!M16=1),CM42*'Production & Extraction'!M47/100,0) -> 0 | CU57: MMscf/d
G58: Check: C4 component of venting and fugitives (MMSCFD) | M58: =IF(H45,0.27,0)*(('Venting & Fugitives'!M141/IF(E34,'Input Data'!D89,'Input Data'!D90))+('Venting & Fugitives'!G187-'Venting & Fugitives'!G157)+('Venting & Fugitives'!G262-'Venting & Fugitives'!G212-'Venting & Fugitives'!G217))/1000000 -> 0.0001480522585 | O58: C4 | P58: 0 | Q58: =(P58/100)*$O$26 -> 0
H59: before correction | O59: H2S | P59: 0 | Q59: =(P59/100)*$O$26 -> 0
O60: Total | P60: =SUM(P53:P59) -> 0 | Q60: =SUM(Q53:Q59) -> 0
O62: Produced CO2
O63: =Q60 -> 0 | P63: MMscf/d
O65: =O63*1000000/'Active Field'!J63 -> 0 | P65: scf/bbl
N69: Produced CO2
BD70: Table 1.14: Composition: Gas to reinjection, sour | BQ70: Table 1.15: Makeup CO2 Injected | CF70: Table 1.16: Sour gas reinjection stream
BD71: Comp. | BE71: mol% | BF71: Vol | BG71: HHV | BH71: LHV | BQ71: Comp. | BR71: mol% | BS71: Vol | CF71: Comp. | CG71: mol% | CH71: Vol
BD72: ="--" -> -- | BE72: ="--" -> -- | BF72: MMscf/d | BG72: Btu/scf | BH72: Btu/scf | BQ72: ="--" -> -- | BR72: ="--" -> -- | BS72: MMscf/d | CF72: ="--" -> -- | CG72: ="--" -> -- | CH72: MMscf/d
BD73: N2 | BE73: =IFERROR(BF73/$BF$80*100, "NA") -> NA | BF73: =IF(OR('Active Field'!$J$116=6), AO40, 0) -> 0 | BG73: =CE23 -> 0 | BH73: =CF23 -> 0 | BQ73: N2 | BR73: =IFERROR(BS73/$BS$80*100,"NA") -> NA | BS73: 0 | CF73: N2 | CG73: =IFERROR(CH73/$CH$80*100,"NA") -> NA | CH73: =BF73+BS73 -> 0
BD74: CO2 | BE74: =IFERROR(BF74/$BF$80*100, "NA") -> NA | BF74: =IF(OR('Active Field'!$J$116=6), AO41-AV19, 0) -> 0 | BG74: =CE24 -> 0 | BH74: 0 | BQ74: CO2 | BR74: =IFERROR(BS74/$BS$80*100,"NA") -> NA | BS74: =IF(AND('Active Field'!J90=3,CB87="ON"),('Production & Extraction'!M49/1000)-BF74,0) -> 0 | CF74: CO2 | CG74: =IFERROR(CH74/$CH$80*100,"NA") -> NA | CH74: =BF74+BS74 -> 0
BD75: C1 | BE75: NA | BF75: =IF(OR('Active Field'!$J$116=6), AO42-AV20, 0) -> 0 | BG75: =CE25 -> 1013 | BH75: 913 | BQ75: C1 | BR75: NA | BS75: 0 | CF75: C1 | CG75: NA | CH75: 0
BD76: C2 | BE76: NA | BF76: =IF(OR('Active Field'!$J$116=6), AO43-AV21, 0) -> 0 | BG76: =CE26 -> 1792 | BH76: 1641 | BQ76: C2 | BR76: NA | BS76: 0 | CF76: C2 | CG76: NA | CH76: 0
BD77: C3 | BE77: NA | BF77: =IF(OR('Active Field'!$J$116=6), AO44-AV22, 0) -> 0 | BG77: =CE27 -> 2590 | BH77: 2385 | BQ77: C3 | BR77: NA | BS77: 0 | CF77: C3 | CG77: NA | CH77: 0
BD78: C4 | BE78: NA | BF78: =IF(OR('Active Field'!$J$116=6), AO45-AV23, 0) -> 0 | BG78: =CE28 -> 3370 | BH78: 3113 | BQ78: C4 | BR78: NA | BS78: 0 | CF78: C4 | CG78: NA | CH78: 0
BD79: H2S | BE79: NA | BF79: =IF(OR('Active Field'!$J$116=6), AO46-AV24, 0) -> 0 | BG79: =CE29 -> 640 | BH79: 594 | BQ79: H2S | BR79: NA | BS79: 0 | CF79: H2S | CG79: NA | CH79: 0
BD80: Total | BE80: NA | BF80: =IF(OR('Active Field'!$J$116=6), AO47-AV25, 0) -> 0 | BG80: - | BH80: - | BQ80: Total | BR80: NA | BS80: =SUM(BS73:BS79) -> 0 | CF80: Total | CG80: NA | CH80: 0
BD81: Temp | BE81: - | BF81: ◦F | BG81: =SUMPRODUCT(BG73:BG79,BE73:BE79)/100 -> 0 | BH81: =SUMPRODUCT(BH73:BH79,BE73:BE79)/100 -> 0 | BI81: Btu/scf | BQ81: Temp | BR81: - | BS81: ◦F | CF81: Temp | CG81: - | CH81: ◦F
BD82: Pressure | BE82: - | BF82: psia | BQ82: Pressure | BR82: - | BS82: psia | CF82: Pressure | CG82: - | CH82: psia
BD83: Gas to reinjection, sour | BQ83: Makeup CO2 Stream to Reinjection into Reservoir | CF83: Total sour gas reinjection stream into reservoir
AV84: CO2 EOR via sour gas reinjection | BD84: =IF(CB87="ON", BF80, "NA") -> NA | BE84: MMscf/d | BQ84: =IF('Active Field'!J116=6, BS80, "NA") -> NA | BR84: MMscf/d | CF84: =IF('Active Field'!J116=6, CH80, "NA") -> NA | CG84: MMscf/d | CL84: Reinjection
AV85: Gas processing path 6 | CC85: Sour gas reinjection | CL85: =IFERROR(CF84,0) -> NA | CM85: MMscf/d
CB87: =IF('Active Field'!J116=6,"ON", "OFF") -> OFF
CX97: Note: AGR does not operationally vent associated gas CO2 in membrane separation CO2-EOR pathway (for CO2 only fugitives in table below)
CX100: Table 1.19: Amine Treater Vented Gas
CX101: Comp. | CY101: mol% | CZ101: Vol
CX102: ="--" -> -- | CY102: ="--" -> -- | CZ102: MMscf/d
CX103: CO2 | CY103: 0 | CZ103: =IF(BH122="ON", 'Venting & Fugitives'!E227/1000000, 0) -> 0
CX104: C1 | CY104: 0 | CZ104: =IF(BH122="ON", 'Venting & Fugitives'!F152/1000000 + 'Venting & Fugitives'!F227/1000000, 0) -> 0 | DS104: Table 1.23: Pipeline Quality Gas Composition
BA105: Table 1.15: Gas to Chiller | BO105: Table 1.15: Gas to Compressor | CC105: Table 1.16: Gas to Membrane | CQ105: Table 1.17: Hydrocarbon-Rich Gas to Amine Process | CX105: C2 | CY105: 0 | CZ105: 0 | DE105: Table 1.21: Gas to Demethanizer | DS105: Comp. | DT105: mol% | DU105: Vol | DV105: Mixture MW | DW105: Component MW | DX105: HHV | DY105: LHV
BA106: Comp. | BB106: mol% | BC106: Vol | BO106: Comp. | BP106: mol% | BQ106: Vol | CC106: Comp. | CD106: mol% | CE106: Vol | CQ106: Comp. | CR106: mol% | CS106: Vol | CX106: C3 | CY106: 0 | CZ106: 0 | DE106: Comp. | DF106: mol% | DG106: Vol | DS106: ="--" -> -- | DT106: ="--" -> -- | DU106: MMscf/d | DV106: lb/lbmol | DW106: lb/lbmol | DX106: Btu/scf | DY106: Btu/scf
BA107: ="--" -> -- | BB107: ="--" -> -- | BC107: MMscf/d | BO107: ="--" -> -- | BP107: ="--" -> -- | BQ107: MMscf/d | CC107: ="--" -> -- | CD107: ="--" -> -- | CE107: MMscf/d | CQ107: ="--" -> -- | CR107: ="--" -> -- | CS107: MMscf/d | CX107: C4 | CY107: 0 | CZ107: 0 | DE107: ="--" -> -- | DF107: ="--" -> -- | DG107: MMscf/d | DS107: N2 | DT107: =IF(BH122="ON", 100*DU107/$DS$119, "NA") -> NA | DU107: =DG108 -> 0 | DV107: =IF(BH122="ON", DW107*DT107/100, "NA") -> NA | DW107: ='Fuel Specs'!$E$151 -> 28 | DX107: ='Fuel Specs'!G131 -> 0 | DY107: ='Fuel Specs'!H131 -> 0
BA108: N2 | BB108: =IF(BH122="ON", 100*BC108/$BA$119, "NA") -> NA | BC108: =IF(BH122="ON", AO40, 0) -> 0 | BO108: N2 | BP108: =IF(BH122="ON", 100*BQ108/$BO$119, "NA") -> NA | BQ108: =BC108 -> 0 | CC108: N2 | CD108: =IF(BH122="ON", 100*CE108/$CC$119, "NA") -> NA | CE108: =BQ108 -> 0 | CQ108: N2 | CR108: =IF(BH122="ON", 100*CS108/$CQ$119, "NA") -> NA | CS108: =0.576*CE108 -> 0 | CX108: H2S | CY108: 0 | CZ108: =IF(BH122="ON", CS114, 0) -> 0 | DE108: N2 | DF108: =IF(BH122="ON", 100*DG108/$DE$119, "NA") -> NA | DG108: =CS108 -> 0 | DS108: CO2 | DT108: =IF(BH122="ON", 100*DU108/$DS$119, "NA") -> NA | DU108: =DG109 -> 0 | DV108: =IF(BH122="ON", DW108*DT108/100, "NA") -> NA | DW108: ='Fuel Specs'!$E$153 -> 44 | DX108: ='Fuel Specs'!G133 -> 0 | DY108: ='Fuel Specs'!H133 -> 0
BA109: CO2 | BB109: =IF(BH122="ON", 100*BC109/$BA$119, "NA") -> NA | BC109: =IF(BH122="ON", AO41-AV19, 0) -> 0 | BO109: CO2 | BP109: =IF(BH122="ON", 100*BQ109/$BO$119, "NA") -> NA | BQ109: =BC109 -> 0 | CC109: CO2 | CD109: =IF(BH122="ON", 100*CE109/$CC$119, "NA") -> NA | CE109: 0 | CQ109: CO2 | CR109: =IF(BH122="ON", 100*CS109/$CQ$119, "NA") -> NA | CS109: =0.333*CE109 -> 0 | CX109: Total | CY109: =SUM(CY103:CY108) -> 0 | CZ109: =SUM(CZ103:CZ108) -> 0 | DE109: CO2 | DF109: =IF(BH122="ON", 100*DG109/$DE$119, "NA") -> NA | DG109: 0 | DS109: C1 | DT109: =IF(BH122="ON", 100*DU109/$DS$119, "NA") -> NA | DU109: =DG110 -> 0 | DV109: =IF(BH122="ON", DW109*DT109/100, "NA") -> NA | DW109: ='Fuel Specs'!$E$155 -> 16 | DX109: ='Fuel Specs'!G135 -> 1013 | DY109: ='Fuel Specs'!H135 -> 913
BA110: C1 | BB110: =IF(BH122="ON", 100*BC110/$BA$119, "NA") -> NA | BC110: =IF(BH122="ON", AO42-AV20, 0) -> 0 | BO110: C1 | BP110: =IF(BH122="ON", 100*BQ110/$BO$119, "NA") -> NA | BQ110: 0 | CC110: C1 | CD110: =IF(BH122="ON", 100*CE110/$CC$119, "NA") -> NA | CE110: 0 | CQ110: C1 | CR110: =IF(BH122="ON", 100*CS110/$CQ$119, "NA") -> NA | CS110: =0.984*CE110 -> 0 | CX110: Dehydrator Vented Gas | DE110: C1 | DF110: =IF(BH122="ON", 100*DG110/$DE$119, "NA") -> NA | DG110: =CS110-CZ104 -> 0 | DS110: C2 | DT110: =IF(BH122="ON", 100*DU110/$DS$119, "NA") -> NA | DU110: =DG111-DP134 -> 0 | DV110: =IF(BH122="ON", DW110*DT110/100, "NA") -> NA | DW110: ='Fuel Specs'!$E$156 -> 30 | DX110: ='Fuel Specs'!G136 -> 1792 | DY110: ='Fuel Specs'!H136 -> 1641
BA111: C2 | BB111: =IF(BH122="ON", 100*BC111/$BA$119, "NA") -> NA | BC111: =IF(BH122="ON", AO43-AV21, 0) -> 0 | BO111: C2 | BP111: =IF(BH122="ON", 100*BQ111/$BO$119, "NA") -> NA | BQ111: 0 | CC111: C2 | CD111: =IF(BH122="ON", 100*CE111/$CC$119, "NA") -> NA | CE111: 0 | CQ111: C2 | CR111: =IF(BH122="ON", 100*CS111/$CQ$119, "NA") -> NA | CS111: =0.97*CE111 -> 0 | CX111: =CZ109 -> 0 | CY111: MMscf/d | DE111: C2 | DF111: =IF(BH122="ON", 100*DG111/$DE$119, "NA") -> NA | DG111: =CS111-CZ105 -> 0 | DS111: C3 | DT111: =IF(BH122="ON", 100*DU111/$DS$119, "NA") -> NA | DU111: =DG112-DP135 -> 0 | DV111: =IF(BH122="ON", DW111*DT111/100, "NA") -> NA | DW111: ='Fuel Specs'!$E$157 -> 44 | DX111: ='Fuel Specs'!G137 -> 2590 | DY111: ='Fuel Specs'!H137 -> 2385 | EF111: Lifting Gas
BA112: C3 | BB112: =IF(BH122="ON", 100*BC112/$BA$119, "NA") -> NA | BC112: =IF(BH122="ON", AO44-AV22, 0) -> 0 | BO112: C3 | BP112: =IF(BH122="ON", 100*BQ112/$BO$119, "NA") -> NA | BQ112: 0 | CC112: C3 | CD112: =IF(BH122="ON", 100*CE112/$CC$119, "NA") -> NA | CE112: 0 | CQ112: C3 | CR112: =IF(BH122="ON", 100*CS112/$CQ$119, "NA") -> NA | CS112: =0.956*CE112 -> 0 | DE112: C3 | DF112: =IF(BH122="ON", 100*DG112/$DE$119, "NA") -> NA | DG112: =CS112-CZ106 -> 0 | DS112: C4 | DT112: =IF(BH122="ON", 100*DU112/$DS$119, "NA") -> NA | DU112: =DG113-DP136 -> 0 | DV112: =IF(BH122="ON", DW112*DT112/100, "NA") -> NA | DW112: ='Fuel Specs'!$E$158 -> 58 | DX112: ='Fuel Specs'!G138 -> 3370 | DY112: ='Fuel Specs'!H138 -> 3113 | EF112: =IF(AND(BH122="ON", 'Production & Extraction'!M18=1),'Production & Extraction'!M229/1000,0) -> 0 | EG112: MMscf/d
BA113: C4 | BB113: =IF(BH122="ON", 100*BC113/$BA$119, "NA") -> NA | BC113: =IF(BH122="ON", AO45-AV23, 0) -> 0 | BO113: C4 | BP113: =IF(BH122="ON", 100*BQ113/$BO$119, "NA") -> NA | BQ113: 0 | CC113: C4 | CD113: =IF(BH122="ON", 100*CE113/$CC$119, "NA") -> NA | CE113: 0 | CQ113: C4 | CR113: =IF(BH122="ON", 100*CS113/$CQ$119, "NA") -> NA | CS113: =0.941*CE113 -> 0 | DE113: C4 | DF113: =IF(BH122="ON", 100*DG113/$DE$119, "NA") -> NA | DG113: =CS113-CZ107 -> 0 | DS113: H2S | DT113: =IF(BH122="ON", 100*DU113/$DS$119, "NA") -> NA | DU113: =DG114 -> 0 | DV113: =IF(BH122="ON", DW113*DT113/100, "NA") -> NA | DW113: ='Fuel Specs'!$E$161 -> 34 | DX113: ='Fuel Specs'!G141 -> 640 | DY113: ='Fuel Specs'!H141 -> 594 | FD113: =IF('Active Field'!J116=6, IF('Production & Extraction'!M18=1, IF(DS119<EF112,"ERROR","OK"), "OK"), "OK") -> OK
BA114: H2S | BB114: =IF(BH122="ON", 100*BC114/$BA$119, "NA") -> NA | BC114: =IF(BH122="ON", AO46-AV24, 0) -> 0 | BO114: H2S | BP114: =IF(BH122="ON", 100*BQ114/$BO$119, "NA") -> NA | BQ114: 0 | CC114: H2S | CD114: =IF(BH122="ON", 100*CE114/$CC$119, "NA") -> NA | CE114: 0 | CQ114: H2S | CR114: =IF(BH122="ON", 100*CS114/$CQ$119, "NA") -> NA | CS114: =0.485*CE114 -> 0 | DE114: H2S | DF114: =IF(BH122="ON", 100*DG114/$DE$119, "NA") -> NA | DG114: =CS114-CZ108 -> 0 | DS114: Total | DT114: =IF(BH122="ON", SUM(DT107:DT113), "NA") -> NA | DU114: =SUM(DU107:DU113) -> 0 | DV114: =IF(BH122="ON", SUM(DV107:DV113), "NA") -> NA | DW114: ="--" -> -- | DX114: ="--" -> -- | DY114: ="--" -> --
BA115: Total | BB115: =IF(BH122="ON", SUM(BB108:BB114), "NA") -> NA | BC115: =SUM(BC108:BC114) -> 0 | BO115: Total | BP115: =IF(BH122="ON", SUM(BP108:BP114), "NA") -> NA | BQ115: =SUM(BQ108:BQ114) -> 0 | CC115: Total | CD115: =IF(BH122="ON", SUM(CD108:CD114), "NA") -> NA | CE115: =SUM(CE108:CE114) -> 0 | CQ115: Total | CR115: =IF(BH122="ON", SUM(CR108:CR114), "NA") -> NA | CS115: =SUM(CS108:CS114) -> 0 | DE115: Total | DF115: =IF(BH122="ON", SUM(DF108:DF114), "NA") -> NA | DG115: =SUM(DG108:DG114) -> 0 | DS115: Specific gravity | DT115: =IF(BH122="ON", (14.7*DV114)/(10.73*(60+460))/0.0764, "NA") -> NA | DU115: Dimensionless
BA116: Temp | BB116: - | BC116: ◦F | BO116: Temp | BP116: - | BQ116: ◦F | CC116: Temp | CD116: - | CE116: ◦F | CQ116: Temp | CR116: - | CS116: ◦F | DE116: Temp | DF116: - | DG116: ◦F | DS116: HHV | DT116: =SUMPRODUCT(DU107:DU113,DX107:DX113) -> 0 | DU116: MMBtu/d
BA117: Pressure | BB117: - | BC117: psia | BO117: Pressure | BP117: - | BQ117: psia | CC117: Pressure | CD117: - | CE117: psia | CQ117: Pressure | CR117: - | CS117: psia | DE117: Pressure | DF117: - | DG117: psia | DS117: LHV | DT117: =SUMPRODUCT(DU107:DU113,DY107:DY113) -> 0 | DU117: MMBtu/d
AV118: CO2 EOR via membrane + amine | BA118: Gas to Chiller | BO118: Gas to Compressor | CC118: Gas to Membrane | CQ118: Gas to Amine Treater | DE118: Gas to Demethanizer | DS118: Pipeline Quality Gas Volume | EY118: Fuel gas consumed
AV119: Gas processing path 7 | BA119: =BC115 -> 0 | BB119: MMscf/d | BO119: =BQ115 -> 0 | BP119: MMscf/d | CC119: =CE115 -> 0 | CD119: MMscf/d | CQ119: =CS115 -> 0 | CR119: MMscf/d | DE119: =DG115 -> 0 | DF119: MMscf/d | DS119: =DU114 -> 0 | DT119: MMscf/d | EY119: =IF(BH122="ON", 'Energy Consumption'!E23/'Fuel Specs'!B302*8.3144621*(273.15+15.5556)/101325 *(3.2808398950131)^3, 0) -> 0 | EZ119: MMscf/d
BI120: Chiller | BW120: Compressor | CK120: Membrane | CY120: Amine Treater | DM120: Demethanizer | FD120: =IF('Active Field'!J116=6, IF(EF129-EY119<-0.01, "WARNING", "OK"), "OK") -> OK
BV121: =IF('Active Field'!J116=7, "ON", "OFF") -> OFF
BH122: =IF('Active Field'!J116=7, "ON", "OFF") -> OFF | CJ122: =IF('Active Field'!J116=7, "ON", "OFF") -> OFF | CX122: =IF('Active Field'!J116=7,"ON", "OFF") -> OFF | DL122: =IF('Active Field'!J116=7,"ON", "OFF") -> OFF
CQ123: =CQ119*1000000/'Active Field'!J63 -> 0
EF128: Remaining gas (Fuel gas consumed + exports) | EP128: Fuel gas consumed + exports
EF129: =IF(BH122="ON", DS119-EF112, 0) -> 0 | EG129: MMscf/d | EP129: =IF(BH122="ON", EF129-EP151, 0) -> 0 | EQ129: MMscf/d
CZ131: Table 1.20: Post-Amine Treater CO2 Stream to Reinjection into Reservoir | DN131: Table 1.22: Demethanizer heavy product composition
CZ132: Comp. | DA132: mol% | DB132: Vol | DN132: Comp. | DO132: mol% | DP132: Vol | DQ132: HHV | DR132: LHV
CZ133: ="--" -> -- | DA133: ="--" -> -- | DB133: MMscf/d | DN133: ="--" -> -- | DO133: ="--" -> -- | DP133: MMscf/d | DQ133: Btu/scf | DR133: Btu/scf
CZ134: N2 | DA134: =IF(BH122="ON", 100*DB134/$CZ$145, "NA") -> NA | DB134: =0 -> 0 | DN134: C2 | DO134: =IF(BH122="ON", IF(DL122="ON",100*DP134/$DN$141,0), "NA") -> NA | DP134: =IF(DL122="OFF",DG111*('Surface Processing'!M120/100),0) -> 0 | DQ134: ='Fuel Specs'!G136 -> 1792 | DR134: ='Fuel Specs'!H136 -> 1641
CZ135: CO2 | DA135: =IF(BH122="ON", 100*DB135/$CZ$145, "NA") -> NA | DB135: =CS109-CZ103 -> 0 | DN135: C3 | DO135: =IF(BH122="ON", IF(DL122="ON",100*DP135/$DN$141,0), "NA") -> NA | DP135: =IF(DL122="ON",DG112*('Surface Processing'!M121/100),0) -> 0 | DQ135: ='Fuel Specs'!G137 -> 2590 | DR135: ='Fuel Specs'!H137 -> 2385
CZ136: C1 | DA136: =IF(BH122="ON", 100*DB136/$CZ$145, "NA") -> NA | DB136: =0 -> 0 | DN136: C4 | DO136: =IF(BH122="ON", IF(DL122="ON",100*DP136/$DN$141,0), "NA") -> NA | DP136: =IF(DL122="ON",DG113*('Surface Processing'!M122/100),0) -> 0 | DQ136: ='Fuel Specs'!G138 -> 3370 | DR136: ='Fuel Specs'!H138 -> 3113
CZ137: C2 | DA137: =IF(BH122="ON", 100*DB137/$CZ$145, "NA") -> NA | DB137: =0 -> 0 | DN137: Total | DO137: =IF(DL122="ON", SUM(DO134:DO136), "NA") -> NA | DP137: =SUM(DP134:DP136) -> 0 | DQ137: ="--" -> -- | DR137: ="--" -> --
CZ138: C3 | DA138: =IF(BH122="ON", 100*DB138/$CZ$145, "NA") -> NA | DB138: =0 -> 0 | DN138: HHV | DO138: =SUMPRODUCT(DP134:DP136,DQ134:DQ136) -> 0 | DP138: MMBtu/d | EY138: Exports
CZ139: C4 | DA139: =IF(BH122="ON", 100*DB139/$CZ$145, "NA") -> NA | DB139: =0 -> 0 | DN139: LHV | DO139: =SUMPRODUCT(DP134:DP136,DR134:DR136) -> 0 | DP139: MMBtu/d | EY139: =IF(BH122="ON", EP129-EY119, 0) -> 0 | EZ139: MMscf/d
CZ140: H2S | DA140: =IF(BH122="ON", 100*DB140/$CZ$145, "NA") -> NA | DB140: =0 -> 0 | DN140: Demethanizer Heavy Product Volume
CZ141: Total | DA141: =IF(BH122="ON", SUM(DA134:DA140), "NA") -> NA | DB141: =SUM(DB134:DB140) -> 0 | DN141: =DP137 -> 0 | DO141: MMscf/d
CZ142: Temp | DA142: - | DB142: ◦F
CZ143: Pressure | DA143: - | DB143: psia
CZ144: CO2 Stream to Reinjection into Reservoir
CZ145: =DB141 -> 0 | DA145: MMscf/d
EP150: Reinjection (Natural Gas)
EP151: =IF(BH122="ON", EF129*'Production & Extraction'!M47/100, 0) -> 0 | EQ151: MMscf/d
CL154: Table 1.18: Post-Membrane CO2 Stream to Reinjection into Reservoir | DI154: Table 1.24: Overall CO2 Stream to Reinjection into Reservoir
CL155: Comp. | CM155: mol% | CN155: Vol | DI155: Comp. | DJ155: mol% | DK155: Vol
CL156: ="--" -> -- | CM156: ="--" -> -- | CN156: MMscf/d | DI156: ="--" -> -- | DJ156: ="--" -> -- | DK156: MMscf/d
CL157: N2 | CM157: =IF(BH122="ON", 100*CN157/$CL$168, "NA") -> NA | CN157: =0.424*CE108 -> 0 | DI157: N2 | DJ157: =IF(BH122="ON", 100*DK157/$DI$168, "NA") -> NA | DK157: =DB134+CN157 -> 0
CL158: CO2 | CM158: =IF(BH122="ON", 100*CN158/$CL$168, "NA") -> NA | CN158: =0.667*CE109 -> 0 | DI158: CO2 | DJ158: =IF(BH122="ON", 100*DK158/$DI$168, "NA") -> NA | DK158: =DB135+CN158+DG188 -> 0
CL159: C1 | CM159: =IF(BH122="ON", 100*CN159/$CL$168, "NA") -> NA | CN159: =0.016*CE110 -> 0 | DI159: C1 | DJ159: =IF(BH122="ON", 100*DK159/$DI$168, "NA") -> NA | DK159: =DB136+CN159 -> 0
CL160: C2 | CM160: =IF(BH122="ON", 100*CN160/$CL$168, "NA") -> NA | CN160: =0.03*CE111 -> 0 | DI160: C2 | DJ160: =IF(BH122="ON", 100*DK160/$DI$168, "NA") -> NA | DK160: =DB137+CN160 -> 0
CL161: C3 | CM161: =IF(BH122="ON", 100*CN161/$CL$168, "NA") -> NA | CN161: =0.044*CE112 -> 0 | DI161: C3 | DJ161: =IF(BH122="ON", 100*DK161/$DI$168, "NA") -> NA | DK161: =DB138+CN161 -> 0
CL162: C4 | CM162: =IF(BH122="ON", 100*CN162/$CL$168, "NA") -> NA | CN162: =0.059*CE113 -> 0 | DI162: C4 | DJ162: =IF(BH122="ON", 100*DK162/$DI$168, "NA") -> NA | DK162: =DB139+CN162 -> 0
CL163: H2S | CM163: =IF(BH122="ON", 100*CN163/$CL$168, "NA") -> NA | CN163: =0.515*CE114 -> 0 | DI163: H2S | DJ163: =IF(BH122="ON", 100*DK163/$DI$168, "NA") -> NA | DK163: =DB140+CN163 -> 0
CL164: Total | CM164: =IF(BH122="ON", SUM(CM157:CM163), "NA") -> NA | CN164: =SUM(CN157:CN163) -> 0 | DI164: Total | DJ164: =IF(BH122="ON", SUM(DJ157:DJ163), "NA") -> NA | DK164: =SUM(DK157:DK163) -> 0
BM165: Fresh CO2 | CL165: Temp | CM165: - | CN165: ◦F | DI165: Temp | DJ165: - | DK165: ◦F
CL166: Pressure | CM166: - | CN166: psia | DI166: Pressure | DJ166: - | DK166: psia
CL167: Post-Membrane CO2 Stream to Reinjection into Reservoir | DI167: CO2 Stream to Reinjection into Reservoir
CL168: =CN164 -> 0 | CM168: MMscf/d | DI168: =DK164 -> 0 | DJ168: MMscf/d
BN169: Table 1.29: New CO2 Injected
BN170: Comp. | BO170: mol% | BP170: Vol
BN171: ="--" -> -- | BO171: ="--" -> -- | BP171: MMscf/d | DI171: =DI168*1000000/'Active Field'!J63 -> 0 | DJ171: scf/bbl
BN172: N2 | BO172: 0 | BP172: 0
BN173: CO2 | BO173: =IF(BI211="ON", 100*BP173/BP179, "NA") -> NA | BP173: =IF(AND('Active Field'!J90=3,BI211="ON"), ('Production & Extraction'!M49/1000)-Q54,0) -> 0
BN174: C1 | BO174: 0 | BP174: 0
BN175: C2 | BO175: 0 | BP175: 0
BN176: C3 | BO176: 0 | BP176: 0
BN177: C4 | BO177: 0 | BP177: 0
BN178: H2S | BO178: 0 | BP178: 0
BN179: Total | BO179: =IF(BH211="ON", SUM(BO172:BO178), "NA") -> NA | BP179: =SUM(BP172:BP178) -> 0
BN180: Temp | BO180: - | BP180: ◦F
BN181: Pressure | BO181: - | BP181: psia
BN182: New CO2 Stream to Reinjection into Reservoir
BN183: =BP179 -> 0 | BO183: MMscf/d
DE184: Table 1.25: New CO2 Injected
DE185: Comp. | DF185: mol% | DG185: Vol
DE186: ="--" -> -- | DF186: ="--" -> -- | DG186: MMscf/d
DE187: N2 | DF187: 0 | DG187: 0
DE188: CO2 | DF188: =IF($BH$122="ON", 100*DG188/$DG$194, "NA") -> NA | DG188: =IF(AND('Active Field'!J90=3,$BH$122="ON"), ('Production & Extraction'!M49/1000)-Q54,0) -> 0
BI189: Table 1.27: Ryan-Holmes Process Vented Gas | DE189: C1 | DF189: 0 | DG189: 0
BI190: Comp. | BJ190: mol% | BK190: Vol | DE190: C2 | DF190: 0 | DG190: 0
BI191: ="--" -> -- | BJ191: ="--" -> -- | BK191: MMscf/d | DE191: C3 | DF191: 0 | DG191: 0
BI192: CO2 | BJ192: =IF('Gas Balance'!$BI$211="ON", 100*BK192/$BI$200, "NA") -> NA | BK192: =IF('Gas Balance'!BI211="ON", BD198/(BD200+BD201+BD202)*(BK194+BK195+BK196), 0) -> 0 | DE192: C4 | DF192: 0 | DG192: 0
BI193: C1 | BJ193: =IF('Gas Balance'!$BI$211="ON", 100*BK193/$BI$200, "NA") -> NA | BK193: =IF('Gas Balance'!BI211="ON", BD199/(BD200+BD201+BD202)*(BK194+BK195+BK196), 0) -> 0 | DE193: H2S | DF193: 0 | DG193: 0
BB194: Table 1.26: Gas to Ryan Holmes Process | BI194: C2 | BJ194: =IF('Gas Balance'!$BI$211="ON", 100*BK194/$BI$200, "NA") -> NA | BK194: =IF('Gas Balance'!BI211="ON", IF(BC202, 0.31, 0.425)*(BB208/45)*('Emissions Factors'!I76+'Emissions Factors'!I152)/IF(BC202, 'Input Data'!D89, 'Input Data'!D90)/1000000, 0) -> 0 | BP194: Table 1.28: Post-Ryan-Holmes CO2 Stream to Reinjection into Reservoir | DE194: Total | DF194: =IF($BH$122="ON", SUM(DF187:DF193), "NA") -> NA | DG194: =SUM(DG187:DG193) -> 0
BB195: Comp. | BC195: mol% | BD195: Vol | BI195: C3 | BJ195: =IF('Gas Balance'!$BI$211="ON", 100*BK195/$BI$200, "NA") -> NA | BK195: =IF('Gas Balance'!BI211="ON", IF(BC202, 0.42, 0.575)*(BB208/45)*('Emissions Factors'!I76+'Emissions Factors'!I152)/IF(BC202, 'Input Data'!D89, 'Input Data'!D90)/1000000, 0) -> 0 | BP195: Comp. | BQ195: mol% | BR195: Vol | DE195: Temp | DF195: - | DG195: ◦F
BB196: ="--" -> -- | BC196: ="--" -> -- | BD196: MMscf/d | BI196: C4 | BJ196: =IF('Gas Balance'!$BI$211="ON", 100*BK196/$BI$200, "NA") -> NA | BK196: =IF('Gas Balance'!BI211="ON", IF(BC202, 0.27, 0)*(BB208/45)*('Emissions Factors'!I76+'Emissions Factors'!I152)/IF(BC202, 'Input Data'!D89, 'Input Data'!D90)/1000000, 0) -> 0 | BP196: ="--" -> -- | BQ196: ="--" -> -- | BR196: MMscf/d | DE196: Pressure | DF196: - | DG196: psia
BB197: N2 | BC197: =IF(BI211="ON", 100*BD197/$BB$208, "NA") -> NA | BD197: =IF(BI211="ON", AO40, 0) -> 0 | BI197: H2S | BJ197: =IF('Gas Balance'!$BI$211="ON", 100*BK197/$BI$200, "NA") -> NA | BK197: =IF('Gas Balance'!BI211="ON", BD203, 0) -> 0 | BP197: N2 | BQ197: =IF('Gas Balance'!BI211="ON", 100*BR197/$BP$208, "NA") -> NA | BR197: =0 -> 0 | DE197: New CO2 Stream to Reinjection into Reservoir
BB198: CO2 | BC198: =IF('Gas Balance'!BI211="ON", 100*BD198/$BB$208, "NA") -> NA | BD198: =IF(BI211="ON", AO41-AV19, 0) -> 0 | BI198: Total | BJ198: =IF('Gas Balance'!BI211="ON", SUM(BJ192:BJ197), "NA") -> NA | BK198: =SUM(BK192:BK197) -> 0 | BP198: CO2 | BQ198: =IF('Gas Balance'!BI211="ON", 100*BR198/$BP$208, "NA") -> NA | BR198: =(769.1/793.3)*(BD198-BK192)+BP173 -> 0 | DE198: =DG194 -> 0 | DF198: MMscf/d
BB199: C1 | BC199: =IF('Gas Balance'!BI211="ON", 100*BD199/$BB$208, "NA") -> NA | BD199: =IF(BI211="ON", AO42-AV20, 0) -> 0 | BI199: Ryan-Holmes Process Vented Gas | BP199: C1 | BQ199: =IF('Gas Balance'!BI211="ON", 100*BR199/$BP$208, "NA") -> NA | BR199: =(15/214.2)*(BD199-BK193) -> 0
BB200: C2 | BC200: =IF('Gas Balance'!BI211="ON", 100*BD200/$BB$208, "NA") -> NA | BD200: =IF(BI211="ON", AO43-AV21, 0) -> 0 | BI200: =BK198 -> 0 | BJ200: MMscf/d | BP200: C2 | BQ200: =IF('Gas Balance'!BI211="ON", 100*BR200/$BP$208, "NA") -> NA | BR200: =(8/110.9)*(BD200-BK194) -> 0
BB201: C3 | BC201: =IF('Gas Balance'!BI211="ON", 100*BD201/$BB$208, "NA") -> NA | BD201: =IF(BI211="ON", AO44-AV22, 0) -> 0 | BP201: C3 | BQ201: =IF('Gas Balance'!BI211="ON", 100*BR201/$BP$208, "NA") -> NA | BR201: =(0.3/94.8)*(BD201-BK195) -> 0 | DE201: =DE198*1000000/'Active Field'!J63 -> 0 | DF201: scf/bbl
BB202: C4 | BC202: =IF('Gas Balance'!BI211="ON", 100*BD202/$BB$208, "NA") -> NA | BD202: =IF(BI211="ON", AO45-AV23, 0) -> 0 | BP202: C4 | BQ202: =IF('Gas Balance'!BI211="ON", 100*BR202/$BP$208, "NA") -> NA | BR202: =0 -> 0
BB203: H2S | BC203: =IF('Gas Balance'!BI211="ON", 100*BD203/$BB$208, "NA") -> NA | BD203: =IF(BI211="ON", AO46-AV24, 0) -> 0 | BP203: H2S | BQ203: =IF('Gas Balance'!BI211="ON", 100*BR203/$BP$208, "NA") -> NA | BR203: 0
AV204: CO2 EOR via Ryan-Holmes | BB204: Total | BC204: =IF('Gas Balance'!BI211="ON", SUM(BC197:BC203), "NA") -> NA | BD204: =SUM(BD197:BD203) -> 0 | BP204: Total | BQ204: =IF('Gas Balance'!BI211="ON", SUM(BQ197:BQ203), "NA") -> NA | BR204: =SUM(BR197:BR203) -> 0
AV205: Gas processing path 8 | BB205: Temp | BC205: - | BD205: ◦F | BP205: Temp | BQ205: - | BR205: ◦F
BB206: Pressure | BC206: - | BD206: psia | BP206: Pressure | BQ206: - | BR206: psia
BB207: Gas to Ryan Holmes Process | BP207: Post-Ryan-Holmes CO2 Stream to Reinjection into Reservoir
BB208: =BD204 -> 0 | BC208: MMscf/d | BP208: =BR204 -> 0 | BQ208: MMscf/d
BJ209: Ryan Holmes Process | DD209: Fresh CO2
BJ210: (Demethanizer included)
BI211: =IF('Active Field'!J116=8,"ON", "OFF") -> OFF
BA221: Table 1.30: Pipeline Quality Gas Composition | BM221: Table 1.31: Post-Ryan-Holmes Demethanizer Heavy Product
BA222: Comp. | BB222: mol% | BC222: Vol | BD222: Mixture MW | BE222: Component MW | BF222: HHV | BG222: LHV | BM222: Comp. | BN222: mol% | BO222: Vol | BP222: HHV | BQ222: LHV
BA223: ="--" -> -- | BB223: ="--" -> -- | BC223: MMscf/d | BD223: lb/lbmol | BE223: lb/lbmol | BF223: Btu/scf | BG223: Btu/scf | BM223: ="--" -> -- | BN223: ="--" -> -- | BO223: MMscf/d | BP223: Btu/scf | BQ223: Btu/scf
BA224: N2 | BB224: =IF('Gas Balance'!BI211="ON", 100*BC224/$BA$236, "NA") -> NA | BC224: =BD197 -> 0 | BD224: =IF('Gas Balance'!BI211="ON", BE224*BB224/100, "NA") -> NA | BE224: ='Fuel Specs'!$E$151 -> 28 | BF224: ='Fuel Specs'!G131 -> 0 | BG224: ='Fuel Specs'!H131 -> 0 | BM224: CO2 | BN224: =IF('Gas Balance'!BI211="ON", 100*BO224/$BM$232, "NA") -> NA | BO224: =IF('Gas Balance'!BI211="ON", (20/793.3)*(BD198-BK192), 0) -> 0 | BP224: 0 | BQ224: 0
BA225: CO2 | BB225: =IF('Gas Balance'!BI211="ON", 100*BC225/$BA$236, "NA") -> NA | BC225: =(4.2/793.3)*(BD198-BK192) -> 0 | BD225: =IF('Gas Balance'!BI211="ON", BE225*BB225/100, "NA") -> NA | BE225: ='Fuel Specs'!$E$153 -> 44 | BF225: ='Fuel Specs'!G133 -> 0 | BG225: ='Fuel Specs'!H133 -> 0 | BM225: C2 | BN225: =IF('Gas Balance'!BI211="ON", 100*BO225/$BM$232, "NA") -> NA | BO225: =IF('Gas Balance'!BI211="ON", (102.9/110.9)*(BD200-BK194), 0) -> 0 | BP225: ='Fuel Specs'!G136 -> 1792 | BQ225: ='Fuel Specs'!H136 -> 1641
BA226: C1 | BB226: =IF('Gas Balance'!BI211="ON", 100*BC226/$BA$236, "NA") -> NA | BC226: =(199.2/214.2)*(BD199-BK193) -> 0 | BD226: =IF('Gas Balance'!BI211="ON", BE226*BB226/100, "NA") -> NA | BE226: ='Fuel Specs'!$E$155 -> 16 | BF226: ='Fuel Specs'!G135 -> 1013 | BG226: ='Fuel Specs'!H135 -> 913 | BM226: C3 | BN226: =IF('Gas Balance'!BI211="ON", 100*BO226/$BM$232, "NA") -> NA | BO226: =IF('Gas Balance'!BI211="ON", (94.4/94.8)*(BD201-BK195), 0) -> 0 | BP226: ='Fuel Specs'!G137 -> 2590 | BQ226: ='Fuel Specs'!H137 -> 2385
BA227: C2 | BB227: =IF('Gas Balance'!BI211="ON", 100*BC227/$BA$236, "NA") -> NA | BC227: =0 -> 0 | BD227: =IF('Gas Balance'!BI211="ON", BE227*BB227/100, "NA") -> NA | BE227: ='Fuel Specs'!$E$156 -> 30 | BF227: ='Fuel Specs'!G136 -> 1792 | BG227: ='Fuel Specs'!H136 -> 1641 | BM227: C4 | BN227: =IF('Gas Balance'!BI211="ON", 100*BO227/$BM$232, "NA") -> NA | BO227: =IF('Gas Balance'!BI211="ON", (116.1/116.8)*(BD202-BK196), 0) -> 0 | BP227: ='Fuel Specs'!G138 -> 3370 | BQ227: ='Fuel Specs'!H138 -> 3113
BA228: C3 | BB228: =IF('Gas Balance'!BI211="ON", 100*BC228/$BA$236, "NA") -> NA | BC228: =0 -> 0 | BD228: =IF('Gas Balance'!BI211="ON", BE228*BB228/100, "NA") -> NA | BE228: ='Fuel Specs'!$E$157 -> 44 | BF228: ='Fuel Specs'!G137 -> 2590 | BG228: ='Fuel Specs'!H137 -> 2385 | BM228: Total | BN228: =IF('Gas Balance'!BI211="ON", SUM(BN225:BN227), "NA") -> NA | BO228: =SUM(BO225:BO227) -> 0
BA229: C4 | BB229: =IF('Gas Balance'!BI211="ON", 100*BC229/$BA$236, "NA") -> NA | BC229: 0 | BD229: =IF('Gas Balance'!BI211="ON", BE229*BB229/100, "NA") -> NA | BE229: ='Fuel Specs'!$E$158 -> 58 | BF229: ='Fuel Specs'!G138 -> 3370 | BG229: ='Fuel Specs'!H138 -> 3113 | BM229: HHV | BN229: =SUMPRODUCT(BO225:BO227,BP225:BP227) -> 0 | BO229: MMBtu/d
BA230: H2S | BB230: =IF('Gas Balance'!BI211="ON", 100*BC230/$BA$236, "NA") -> NA | BC230: 0 | BD230: =IF('Gas Balance'!BI211="ON", BE230*BB230/100, "NA") -> NA | BE230: ='Fuel Specs'!$E$161 -> 34 | BF230: ='Fuel Specs'!G141 -> 640 | BG230: ='Fuel Specs'!H141 -> 594 | BM230: LHV | BN230: =SUMPRODUCT(BO225:BO227,BQ225:BQ227) -> 0 | BO230: MMBtu/d
BA231: Total | BB231: =IF('Gas Balance'!BI211="ON", SUM(BB224:BB230), "NA") -> NA | BC231: =SUM(BC224:BC230) -> 0 | BD231: =IF('Gas Balance'!BI211="ON", SUM(BD224:BD230), "NA") -> NA | BE231: ="--" -> -- | BF231: ="--" -> -- | BG231: ="--" -> -- | BM231: Ryan-Holmes Demethanizer Heavy Product Volume
BA232: Specific gravity | BB232: =IF('Gas Balance'!BI211="ON", (14.7*BD231)/(10.73*(60+460))/0.0764, "NA") -> NA | BC232: Dimensionless | BM232: =BO228 -> 0 | BN232: MMscf/d
BA233: HHV | BB233: =SUMPRODUCT(BC224:BC230,BF224:BF230) -> 0 | BC233: MMBtu/d
BA234: LHV | BB234: =SUMPRODUCT(BC224:BC230,BG224:BG230) -> 0 | BC234: MMBtu/d
BA235: Post-Ryan-Holmes Pipeline Quality Gas
BA236: =BC231 -> 0 | BB236: MMscf/d
CC239: Lifting Gas
CC240: =IF(AND(BI211="ON", 'Production & Extraction'!M18=1),'Production & Extraction'!M229/1000,0) -> 0 | CD240: MMscf/d
CY241: =IF('Surface Processing'!M207=7, IF('Production & Extraction'!M86=1, IF(BA236<CC240,"ERROR", "OK")), "OK") -> OK
CV244: Fuel gas consumed
CV245: =IF(BI211="ON", 'Energy Consumption'!E23/'Fuel Specs'!B302*8.3144621*(273.15+15.5556)/101325 *(3.2808398950131)^3, 0) -> 0 | CW245: MMscf/d
CY246: =IF('Active Field'!J116=7, IF(CC249-CV245-EY119<-0.01, "WARNING", "OK"), "OK") -> OK
CC248: Remaining gas (Fuel gas consumed + exports) | CL248: Fuel gas consumed + exports
CC249: =IF(BI211="ON", BA236-CC240, 0) -> 0 | CD249: MMscf/d | CL249: =IF(BI211="ON", CC249-CL269, 0) -> 0 | CM249: MMscf/d
... 4 more rows

Sheet Venting & Fugitives
A1: Supplemental Worksheet: Venting and Fugitives | H1: Active field: | J1: ='Active Field'!C9 -> Generic
A3: This supplemental worksheet calculates venting and fugitives emissions
A5: 1 Input assumptions
M7: Value | N7: Default | O7: Unit | Q7: Default reference | U7: User Reference | X7: Notes
A8: 1.1 Venting
B9: 1.1.1 Vented emissions of associated gas (substitute for flaring) | M9: =('Active Field'!J126/1000000)*'Production & Extraction'!M26 -> 0 | N9: =('Active Field'!K126/1000000)*'Production & Extraction'!N26 -> 0 | O9: MMscf/d | X9: Assumed zero unless reported otherwise by the operator
B10: 1.1.2 Vented emissions of gas dehydrator
C11: 1.1.2.1 Volume of gas dehydrator | M11: =IF('Gas Balance'!AT38="ON", 'Gas Balance'!AM51*365, 0) -> 403.3167574 | N11: ='Gas Balance'!AM51*365 -> 403.3167574 | O11: MMscf/yr | Q11: From gas balance
C12: 1.1.2.3 Emission factors
D13: 1.1.2.3.1 CO2 | M13: =N13 -> 0.000148 | N13: ='Emissions Factors'!G67/1000000 -> 0.000148 | O13: t/MMscf
D14: 1.1.2.3.2 CH4 | M14: =N14 -> 0.013677 | N14: ='Emissions Factors'!H67/1000000 -> 0.013677 | O14: t/MMscf
B16: 1.1.3 Vented CO2 emissions of gas AGR unit | M16: =IF('Gas Balance'!BH38="ON", 'Gas Balance'!BJ19, 'Gas Balance'!CZ103) -> 0.06619125445 | N16: =M16 -> 0.06619125445 | O16: MMscf/d | Q16: From gas balance | X16: Only amine treater is assumed. No replacement of solid materials.
B17: 1.1.4 Vented emissions of well workovers and cleanups
C18: 1.1.4.1 Workovers
D19: 1.1.4.1.1 Number of associated workovers per year | M19: =N19 -> 21 | N19: =ROUND((IF('Active Field'!J73<10,0,IF(AND('Active Field'!J73>=10,'Active Field'!J73<20),12889/156304520,IF(AND('Active Field'!J73>=20,'Active Field'!J73<30),5424/61524698,599/15649398)))*'Production & Extraction'!M26*365),0) -> 21 | O19: Event/yr | Q19: ARB (2007), Tables 2-3 and 4-8
D20: 1.1.4.1.2 Emission factors
E21: 1.1.4.1.2.1 CO2 | M21: =N21 -> 0.01502504174 | N21: =IF('Active Field'!J73<10,'Emissions Factors'!G51,IF(AND('Active Field'!J73>=10,'Active Field'!J73<20),'Emissions Factors'!G52,IF(AND('Active Field'!J73>=20,'Active Field'!J73<30),'Emissions Factors'!G53,'Emissions Factors'!G54)))/1000000 -> 0.01502504174 | O21: t/Event
E22: 1.1.4.1.2.2 CH4 | M22: =N22 -> 0.1085141903 | N22: =IF('Active Field'!J73<10,'Emissions Factors'!H51,IF(AND('Active Field'!J73>=10,'Active Field'!J73<20),'Emissions Factors'!H52,IF(AND('Active Field'!J73>=20,'Active Field'!J73<30),'Emissions Factors'!H53,'Emissions Factors'!H54)))/1000000 -> 0.1085141903 | O22: t/Event
C23: 1.1.4.2 Cleanups
D24: 1.1.4.2.1 Number of associated cleanups per year | M24: =N24 -> 7 | N24: =ROUND((IF('Active Field'!J73<10,0,IF(AND('Active Field'!J73>=10,'Active Field'!J73<20),956/156304520,IF(AND('Active Field'!J73>=20,'Active Field'!J73<30),1977/61524698,187/15649398)))*'Production & Extraction'!M26*365),0) -> 7 | O24: Event/yr | Q24: ARB (2007), Tables 2-3 and 4-10
D25: 1.1.4.2.2 Emission factors
E26: 1.1.4.2.2.1 CO2 | M26: =N26 -> 0.01604278075 | N26: =IF('Active Field'!J73<10,'Emissions Factors'!G56,IF(AND('Active Field'!J73>=10,'Active Field'!J73<20),'Emissions Factors'!G57,IF(AND('Active Field'!J73>=20,'Active Field'!J73<30),'Emissions Factors'!G58,'Emissions Factors'!G59)))/1000000 -> 0.01604278075 | O26: t/Event
E27: 1.1.4.2.2.2 CH4 | M27: =N27 -> 0.1122994652 | N27: =IF('Active Field'!J73<10,'Emissions Factors'!H56,IF(AND('Active Field'!J73>=10,'Active Field'!J73<20),'Emissions Factors'!H57,IF(AND('Active Field'!J73>=20,'Active Field'!J73<30),'Emissions Factors'!H58,'Emissions Factors'!H59)))/1000000 -> 0.1122994652 | O27: t/Event
B28: 1.1.5 Vented emissions of compressors
C29: 1.1.5.1 Startups
D30: 1.1.5.1.1 Number of associated compressors | M30: =N30 -> 1.131626946 | N30: =IF('Active Field'!J116=6, F352*('Gas Balance'!G53-'Gas Balance'!O26-'Gas Balance'!W25)*365*1000 + 1, F352*('Gas Balance'!G53-'Gas Balance'!O26-'Gas Balance'!W25)*365*1000) -> 1.131626946 | O30: unit | Q30: ARB (2013), Tables 2-5 and 15-1
D31: 1.1.5.1.2 Emission factors
E32: 1.1.5.1.2.1 CO2 | M32: =N32 -> 0.003734827264 | N32: ='Emissions Factors'!G61/1000000 -> 0.003734827264 | O32: t/unit-yr
E33: 1.1.5.1.2.2 CH4 | M33: =N33 -> 0.06442577031 | N33: ='Emissions Factors'!H61/1000000 -> 0.06442577031 | O33: t/unit-yr
C34: 1.1.5.2 Blowdowns
D35: 1.1.5.2.1 Number of associated compressors | M35: =N35 -> 1.131626946 | N35: =N30 -> 1.131626946 | O35: unit | Q35: ARB (2013), Tables 2-5 and 15-1
D36: 1.1.5.2.2 Emission factors
E37: 1.1.5.2.2.1 CO2 | M37: =N37 -> 0.1605975724 | N37: ='Emissions Factors'!G62/1000000 -> 0.1605975724 | O37: t/unit-yr
E38: 1.1.5.2.2.2 CH4 | M38: =N38 -> 3.02334267 | N38: ='Emissions Factors'!H62/1000000 -> 3.02334267 | O38: t/unit-yr
B39: 1.1.6 Vented emissions of gathering pipelines
C40: 1.1.6.1 Maintenance
D41: 1.1.6.1.1 Pipeline miles | M41: =N41 -> 2.848671888 | N41: =((0.75*1124+321+54)/234093299)*'Production & Extraction'!M26*365 -> 2.848671888 | O41: mile | Q41: ARB (2007), Tables 2-3 and 16-1
D42: 1.1.6.1.2 Emission factors
E43: 1.1.6.1.2.1 CO2 | M43: =N43 -> 1.158605664 | N43: ='Emissions Factors'!G64/1000000 -> 1.158605664 | O43: t/mile-yr
E44: 1.1.6.1.2.2 CH4 | M44: =N44 -> 1.08496732 | N44: ='Emissions Factors'!H64/1000000 -> 1.08496732 | O44: t/mile-yr
C45: 1.1.6.2 Pigging
D46: 1.1.6.2.1 Number of associated openings | M46: =N46 -> 1.988457175 | N46: =(0.6*1417/234093299)*'Production & Extraction'!M26*365 -> 1.988457175 | O46: Event | Q46: ARB (2007), Tables 2-3 and 16-3 | X46: Low number events and units are not rounded
D47: 1.1.6.2.2 Emission factors
E48: 1.1.6.2.2.1 CO2 | M48: =N48 -> 0.07339449541 | N48: ='Emissions Factors'!G65/1000000 -> 0.07339449541 | O48: t/Event
E49: 1.1.6.2.2.2 CH4 | M49: =N49 -> 0.00352858151 | N49: ='Emissions Factors'!H65/1000000 -> 0.00352858151 | O49: t/Event
B50: 1.1.7 Vented emissons of pneumatic devices
C51: 1.1.7.1 Low-bleed pnematic device count | M51: =N51 -> 78.06232417 | N51: =N368*'Active Field'!J63 -> 78.06232417 | O51: units
C52: 1.1.7.2 High-bleed pneumatic device count | M52: =N52 -> 42.03358144 | N52: =N367*'Active Field'!J63 -> 42.03358144 | O52: units
C53: 1.1.7.3 Emissions factors
D54: 1.1.7.3.1 Low-bleed pneumatic device EF
E55: 1.1.7.3.1.1 CO2 | M55: =N55 -> 0.02027490596 | N55: ='Emissions Factors'!G73/1000000 -> 0.02027490596 | O55: t/unit-yr
E56: 1.1.7.3.1.2 CH4 | M56: =N56 -> 0.3646683429 | N56: ='Emissions Factors'!H73/1000000 -> 0.3646683429 | O56: t/unit-yr
D57: 1.1.7.3.2 High-bleed pnematic device EF
E58: 1.1.7.3.2.1 CO2 | M58: =N58 -> 0.1293732095 | N58: ='Emissions Factors'!G74/1000000 -> 0.1293732095 | O58: t/unit-yr
E59: 1.1.7.3.2.2 CH4 | M59: =N59 -> 2.314241407 | N59: ='Emissions Factors'!H74/1000000 -> 2.314241407 | O59: t/unit-yr
B60: 1.1.8 Vented emissions from pneumatic chemical injection pumps
C61: 1.1.8.1 Pneumatic chemical injection pumps count | M61: =N61 -> 8.310071391 | N61: =M382*'Active Field'!J63 -> 8.310071391 | O61: units
C62: 1.1.8.2 Emissions factors
D63: 1.1.8.2.1 CO2 | M63: =N63 -> 0.09718438259 | N63: ='Emissions Factors'!G75/1000000 -> 0.09718438259 | O63: t/unit-yr
D64: 1.1.8.2.2 CH4 | M64: =N64 -> 1.739187482 | N64: ='Emissions Factors'!H75/1000000 -> 1.739187482 | O64: t/unit-yr
B65: 1.1.9 Vented emissions from Ryan-Holmes process
C66: 1.1.9.1 Volume of Ryan-Holmes process | M66: =N66 -> 0 | N66: ='Gas Balance'!BB208*365 -> 0 | O66: MMscf/yr | Q66: From gas balance
C67: 1.1.9.2 Emissions factors
D68: 1.1.9.2.1 VOC | M68: =N68 -> 1897.217945 | N68: ='Emissions Factors'!I76 -> 1897.217945 | O68: g/MMscf | Q68: From Emissions Factors sheet
A69: 1.2 Fugitives
B70: 1.2.1 Fugitive emissions of active wells
C71: 1.2.1.1 Number of associated active wells | M71: ='Active Field'!J64 -> 8 | N71: ='Active Field'!K64 -> 8 | O71: unit | Q71: ARB (2007), Tables 2-3 and 4-5
C72: 1.2.1.2 Emission factors
D73: 1.2.1.2.2.1 CO2 | M73: =N73 -> 0.01436130008 | N73: =IF('Active Field'!$J$73<10,'Emissions Factors'!G86,IF(AND('Active Field'!$J$73>=10,'Active Field'!$J$73<20),'Emissions Factors'!G87,IF(AND('Active Field'!$J$73>=20,'Active Field'!$J$73<30),'Emissions Factors'!G88,'Emissions Factors'!G89)))/1000000 -> 0.01436130008 | O73: t/unit-yr
D74: 1.2.1.2.2.2 CH4 | M74: =N74 -> 0.1050642479 | N74: =IF('Active Field'!$J$73<10,'Emissions Factors'!H86,IF(AND('Active Field'!$J$73>=10,'Active Field'!$J$73<20),'Emissions Factors'!H87,IF(AND('Active Field'!$J$73>=20,'Active Field'!$J$73<30),'Emissions Factors'!H88,'Emissions Factors'!H89)))/1000000 -> 0.1050642479 | O74: t/unit-yr
B75: 1.2.2 Fugitive emissions of well cellars
C76: 1.2.2.1 Number of associated well cellars | M76: =M71 -> 8 | N76: =N71 -> 8 | O76: unit | Q76: ARB (2007), Tables 2-3 and 4-7
C77: 1.2.2.2 Emission factors
D78: 1.2.2.2.1 CO2 | M78: =N78 -> 0 | N78: 0 | O78: t/unit-yr
D79: 1.2.2.2.2 CH4 | M79: =N79 -> 0.170202952 | N79: =IF('Active Field'!$J$73<10,'Emissions Factors'!H91,IF(AND('Active Field'!$J$73>=10,'Active Field'!$J$73<20),'Emissions Factors'!H92,IF(AND('Active Field'!$J$73>=20,'Active Field'!$J$73<30),'Emissions Factors'!H93,'Emissions Factors'!H94)))/1000000 -> 0.170202952 | O79: t/unit-yr
B80: 1.2.3 Fugitive emissions of gas dehydrator
C81: 1.2.2.3.1 Volume of gas dehydrator | M81: =N81 -> 403.3167574 | N81: =IF('Gas Balance'!AT38="ON", 'Gas Balance'!AM51*365) -> 403.3167574 | O81: MMscf/yr | Q81: From gas balance
C82: 1.2.2.3.3 Emission factors
D83: 1.2.2.3.3.1 CO2 | M83: =N83 -> 0.000172 | N83: ='Emissions Factors'!G96/1000000 -> 0.000172 | O83: t/MMscf
D84: 1.2.2.3.3.2 CH4 | M84: =N84 -> 0.003925 | N84: ='Emissions Factors'!H96/1000000 -> 0.003925 | O84: t/MMscf
B85: 1.2.4 Fugitive emissions of AGR unit
C86: 1.2.4.1 Volume of AGR unit | M86: =IF('Gas Balance'!BH38="ON", 'Gas Balance'!BA51, IF('Gas Balance'!CX122="ON", 'Gas Balance'!CQ119, 0))*365 -> 402.9524312 | N86: =IF('Gas Balance'!BH38="ON", 'Gas Balance'!BA51, IF('Gas Balance'!CX122="ON", 'Gas Balance'!CQ119, 0))*365 -> 402.9524312 | O86: MMscf/yr | Q86: From gas balance
C87: 1.2.4.2 Emission factors
D88: 1.2.4.2.1 CO2 | M88: =N88 -> 0 | N88: ='Emissions Factors'!G98/1000000 -> 0 | O88: t/MMscf
D89: 1.2.4.2.2 CH4 | M89: =N89 -> 0.01854082987 | N89: ='Emissions Factors'!H98/1000000 -> 0.01854082987 | O89: t/MMscf
B90: 1.2.5 Fugitive emissions of gathering pipelines
C91: 1.2.5.1 Pipeline miles | M91: =N91 -> 2.848671888 | N91: =N41 -> 2.848671888 | O91: mile
C92: 1.2.5.2 Emission factors
D93: 1.2.5.2.1 CO2 | M93: =N93 -> 0.1424836601 | N93: ='Emissions Factors'!G99/1000000 -> 0.1424836601 | O93: t/mile-yr
D94: 1.2.5.2.2 CH4 | M94: =N94 -> 0.3777777778 | N94: ='Emissions Factors'!H99/1000000 -> 0.3777777778 | O94: t/mile-yr
B95: 1.2.6 Fugitive emissions of separators
C96: 1.2.6.1 Number of associated separators | M96: =N96 -> 8 | N96: =ROUND(((0.75*379+3228+40+5)/234093299)*'Production & Extraction'!M26*365,0) -> 8 | O96: unit | Q96: ARB (2007), Tables 2-3 and 17-1
C97: 1.2.6.2 Emission factors
D98: 1.2.6.2.1 CO2 | M98: =N98 -> 0.002381983543 | N98: ='Emissions Factors'!G100/1000000 -> 0.002381983543 | O98: t/unit-yr
D99: 1.2.6.2.2 CH4 | M99: =N99 -> 0.03681247293 | N99: ='Emissions Factors'!H100/1000000 -> 0.03681247293 | O99: t/unit-yr
B100: 1.2.7 Fugitive emissions of sumps and pits
C101: 1.2.6.1 Number of associated sumps and pits | M101: =N101 -> 0.5847027684 | N101: =(250/234093299)*'Production & Extraction'!M26*365 -> 0.5847027684 | O101: unit | Q101: ARB (2007), Tables 2-3 and 18-1
C102: 1.2.6.2 Emission factors
D103: 1.2.6.2.1 CO2 | M103: =N103 -> 0 | N103: 0 | O103: t/unit-yr
D104: 1.2.6.2.2 CH4 | M104: =N104 -> 1.056 | N104: ='Emissions Factors'!H101/1000000 -> 1.056 | O104: t/unit-yr
B105: 1.2.8 Fugitive emissions of components | X105: The percentage of components by type is similar in different facilities such as petroleum production and gas processing [API (1993), Publ. 4589, p. W-4, Table 4]
C106: 1.2.8.1 Valves (not including open-ends)
D107: 1.2.8.1.1 Number of valves | M107: =N107 -> 1785 | N107: =IF('Active Field'!J73<=20,ROUND(F325*'Production & Extraction'!M26*365,0),ROUND(F326*'Production & Extraction'!M26*365,0)) -> 1785 | O107: unit | P107: x | Q107: ARB (2013), Tables 2-3 and 8-1
D108: 1.2.8.1.2 Percentage leaking | M108: =N108 -> 0.86 | N108: =IF('Active Field'!J73>=25,'Input Data'!F4071,IF('Active Field'!J73<=15,'Input Data'!F4077,'Input Data'!F4074)) -> 0.86 | O108: % | Q108: see worksheet "Input Data" section 7
C109: 1.2.8.2 Connectors (other than flanges)
D110: 1.2.8.2.1 Number of connectors | M110: =N110 -> 5949 | N110: =ROUND((N107+N116)*3,0) -> 5949 | O110: unit | Q110: API (1996), Publ. 4638, p.14 | X110: The number of connectors is about three times the number of valves
D111: 1.2.8.2.2 Percentage leaking | M111: =N111 -> 0.86 | N111: =N108 -> 0.86 | O111: %
C112: 1.2.8.3 Flanges
D113: 1.2.8.2.3.1 Number of flanges | M113: =N113 -> 1983 | N113: =ROUND(N107+N116,0) -> 1983 | O113: unit | Q113: API (1996), Publ. 4638, p.14 | X113: The number of flanges is usually about the same as the number of valves
D114: 1.2.8.2.3.2 Percentage leaking | M114: =N114 -> 0.86 | N114: =N108 -> 0.86 | O114: %
C115: 1.2.8.4 Open-ended lines (also called open-ended valves)
D116: 1.2.8.4.1 Number of open-ends | M116: =N116 -> 198 | N116: =ROUND(N107/9,0) -> 198 | O116: unit | Q116: API (1996), Publ. 4638, p.14 | X116: About 10% of all valves have one side that can be opened to the atmosphere (open-ends)
D117: 1.2.8.4.2 Percentage leaking | M117: =N117 -> 0.86 | N117: =N108 -> 0.86 | O117: %
C118: 1.2.8.5 Pump seals
D119: 1.2.8.5.1 Number of pump seals | M119: =N119 -> 24 | N119: =IF('Active Field'!J73<=20,ROUND(F339*'Production & Extraction'!M26*365,0),ROUND(F340*'Production & Extraction'!M26*365,0)) -> 24 | O119: unit | P119: x | Q119: ARB (2013), Tables 2-3 and 8-1
D120: 1.2.8.5.2 Percentage leaking | M120: =N120 -> 0.86 | N120: =N108 -> 0.86 | O120: %
C121: 1.2.8.6 Others (compressor seals, diaphragms, drains, dump arms, pressure relief valves, etc)
D122: 1.2.8.6.1 Number of other components | M122: =N122 -> 99 | N122: =ROUND(0.05*(N107+N116),0) -> 99 | O122: unit | Q122: API (1996), Publ. 4638, p.14 | X122: The number of other components is approximately 5% of the number of valves
D123: 1.2.8.6.2 Percentage leaking | M123: =N123 -> 0.86 | N123: =N108 -> 0.86 | O123: %
B124: 1.2.9 Fugitive emissions from Ryan-Holmes process
C125: 1.2.9.1 Volume of Ryan-Holmes process | M125: =N125 -> 0 | N125: ='Gas Balance'!BB208*365 -> 0 | O125: MMscf/yr | Q125: From gas balance
C126: 1.2.9.2 Emissions factors
D127: 1.2.9.2.1 VOC | M127: =N127 -> 3148 | N127: 3148 | O127: g/MMscf | Q127: From Emissions Factors Sheet
B129: 1.2.10 Fugitive CH4 emissions from oil sands mine face and tailings ponds | M129: =IF('Production & Extraction'!M21=1,123.37,IF('Production & Extraction'!M22=1,111.29,0)) -> 0 | N129: =IF('Production & Extraction'!M21=1,123.37,IF('Production & Extraction'!M22=1,111.29,0)) -> 0 | O129: g/bbl bitumen | X129: NFT = 19.4 tonnes of CO2-eq. methane per m3 of bitumen, PFT = 17.5 | AC129: =19.4*1000/'Input Data'!C73 -> 776 | AD129: gCH4/m3 bitumen | AF129: =AC129*'Input Data'!E34 -> 123.3741448 | AG129: gCH4/bbl bitumen
AC130: =17.5*1000/'Input Data'!C73 -> 700 | AD130: gCH4/m3 bitumen | AF130: =AC130*'Input Data'!E34 -> 111.29111 | AG130: gCH4/bbl bitumen
A131: 1.3 Vapor recovery
B132: 1.3.1 Percentage of total vents and fugitives recovered | M132: 0 | N132: 0 | O132: % | X132: Adjusted based on the users knowledge of production and processing facilities or judgment based on the environmental regulations in the field location
A134: 2 Calculations
M136: Value | N136: Unit | O136: Equation | AC136: Notes | AP136: Reference
A137: 2.1 Venting emissions
B138: 2.1.1 GHG emissions from associated gas venting as a flaring substitute | M138: =(M139+M140*'Input Data'!C73+M141*'Input Data'!C74)/1000000 -> 0 | N138: tCO2eq/d
C139: 2.1.1.1 CO2 emissions | M139: =M9*1000000*'Gas Balance'!H41/100*'Input Data'!D83 -> 0 | N139: g/d
C140: 2.1.1.2 CH4 emissions | M140: =M9*1000000*'Gas Balance'!H42/100*'Input Data'!D84 -> 0 | N140: g/d
C141: 2.1.1.3 VOC emissions | M141: =M9*1000000*('Gas Balance'!H43/100*'Input Data'!D85+'Gas Balance'!H44/100*'Input Data'!D86+'Gas Balance'!H45/100*'Input Data'!D87) -> 0 | N141: g/d
B143: 2.1.2 GHG emissions from other venting
B144: Source | E144: CO2 | F144: CH4 | G144: VOC | H144: Notes
B145: Gas dehydrator
C146: Weight (g/d) | E146: =M11*M13*1000000/365 -> 163.5366578 | F146: =M11*M14*1000000/365 -> 15112.77614 | G146: 0
C147: Volume (scf/d) | E147: =E146/'Input Data'!D83 -> 3.091280631 | F147: =F146/'Input Data'!D84 -> 786.579084 | G147: 0
C148: HHV (Btu/d) | E148: 0 | F148: =F147*'Fuel Specs'!G135 -> 796804.6121 | G148: 0
C149: LHV (Btu/d) | E149: 0 | F149: =F147*'Fuel Specs'!H135 -> 718146.7037 | G149: 0
B150: AGR unit
C151: Weight (g/d) | E151: =E152*'Input Data'!D83 -> 3501686.783 | F151: 0 | G151: 0
C152: Volume (scf/d) | E152: =M16*1000000 -> 66191.25445 | F152: 0 | G152: 0
C153: HHV (Btu/d) | E153: 0 | F153: 0 | G153: 0
C154: LHV (Btu/d) | E154: 0 | F154: 0 | G154: 0
B155: Workovers & Cleanups
C156: Weight (g/d) | E156: =(M19*M21+M24*M26)*1000000/365 -> 1172.124224 | F156: =(M19*M22+M24*M27)*1000000/365 -> 8396.970557 | G156: 0
C157: Volume (scf/d) | E157: =E156/'Input Data'!D83 -> 22.15628568 | F157: =F156/'Input Data'!D84 -> 437.0395848 | G157: 0
C158: HHV (Btu/d) | E158: 0 | F158: =F157*'Fuel Specs'!G135 -> 442721.0994 | G158: 0
C159: LHV (Btu/d) | E159: 0 | F159: =F157*'Fuel Specs'!H135 -> 399017.1409 | G159: 0
B160: Compressors
C161: Weight (g/d) | E161: =(M30*M32+M35*M37)*1000000/365 -> 509.4875934 | F161: =(M30*M33+M35*M38)*1000000/365 -> 9573.156087 | G161: 0
C162: Volume (scf/d) | E162: =E161/'Input Data'!D83 -> 9.630679447 | F162: =F161/'Input Data'!D84 -> 498.2568574 | G162: 0
C163: HHV (Btu/d) | E163: 0 | F163: =F162*'Fuel Specs'!G135 -> 504734.1965 | G163: 0
C164: LHV (Btu/d) | E164: 0 | F164: =F162*'Fuel Specs'!H135 -> 454908.5108 | G164: 0
B165: Gathering pipelines
C166: Weight (g/d) | E166: =(M41*M43+M46*M48)*1000000/365 -> 9442.271771 | F166: =(M41*M44+M46*M49)*1000000/365 -> 8486.937912 | G166: 0
C167: Volume (scf/d) | E167: =E166/'Input Data'!D83 -> 178.4842141 | F167: =F166/'Input Data'!D84 -> 441.722142 | G167: 0
C168: HHV (Btu/d) | E168: 0 | F168: =F167*'Fuel Specs'!G135 -> 447464.5299 | G168: 0
C169: LHV (Btu/d) | E169: 0 | F169: =F167*'Fuel Specs'!H135 -> 403292.3157 | G169: 0
B170: Pneumatic controllers
C171: Weight (g/d) | E171: =IF('Active Field'!J70=1,0,((M55*M51+M58*M52)*1000000/365)) -> 19234.86471 | F171: =IF('Active Field'!J70=1,0,((M56*M51+M59*M52)*1000000/365)) -> 344500.5837 | G171: 0 | H171: Pneumatic controllers are assumed to not be used on offshore platforms due to safetly considerations associated with releasing gases, as well as availability of power or instrument air.
C172: Volume (scf/d) | E172: =E171/'Input Data'!D83 -> 363.590436 | F172: =F171/'Input Data'!D84 -> 17930.32273 | G172: 0
C173: HHV (Btu/d) | E173: 0 | F173: =F172*'Fuel Specs'!G135 -> 18163416.93 | G173: 0
C174: LHV (Btu/d) | E174: 0 | F174: =F172*'Fuel Specs'!H135 -> 16370384.65 | G174: 0
B175: Pneumatic chemical injection pumps
C176: Weight (g/d) | E176: =IF('Active Field'!J70=1,0,(M61*M63*1000000/365)) -> 2212.627829 | F176: =IF('Active Field'!J70=1,0,(M61*M64*1000000/365)) -> 39596.63598 | G176: 0 | H176: Pneumatic chemical injection pumps are assumed to not be used on offshore platforms due to safetly considerations associated with releasing gases, as well as availability of power or instrument air.
C177: Volume (scf/d) | E177: =E176/'Input Data'!D83 -> 41.82458931 | F177: =F176/'Input Data'!D84 -> 2060.897705 | G177: 0
C178: HHV (Btu/d) | E178: 0 | F178: =F176*'Fuel Specs'!G135 -> 40111392.25 | G178: 0
C179: LHV (Btu/d) | E179: 0 | F179: =F177*'Fuel Specs'!H135 -> 1881599.605 | G179: 0
B180: Ryan-Holmes Process
C181: Weight (g/d) | E181: =E182*'Input Data'!D83 -> 0 | F181: =F182*'Input Data'!D84 -> 0 | G181: =M66*M68/365 -> 0
C182: Volume (scf/d) | E182: =IF('Gas Balance'!BI211="ON", G182*'Gas Balance'!BK192/SUM('Gas Balance'!BK194:BK196), 0) -> 0 | F182: =IF('Gas Balance'!BI211="ON", G182*'Gas Balance'!BK193/SUM('Gas Balance'!BK194:BK196), 0) -> 0 | G182: =IF('Gas Balance'!BI211="ON", IF('Gas Balance'!BD202, G181/'Input Data'!D89, G181/'Input Data'!D90), 0) -> 0
C183: HHV (Btu/d) | E183: 0 | F183: =F182*'Fuel Specs'!G135 -> 0 | G183: =IF('Gas Balance'!BI211="ON", G182*('Fuel Specs'!G136*'Gas Balance'!BC200+'Fuel Specs'!G137*'Gas Balance'!BC201+'Fuel Specs'!G138*'Gas Balance'!BC202)/SUM('Gas Balance'!BC200:BC202), 0) -> 0
C184: LHV (Btu/d) | E184: 0 | F184: =F182*'Fuel Specs'!H135 -> 0 | G184: =IF('Gas Balance'!BI211="ON", G182*('Fuel Specs'!H136*'Gas Balance'!BC200+'Fuel Specs'!H137*'Gas Balance'!BC201+'Fuel Specs'!H138*'Gas Balance'!BC202)/SUM('Gas Balance'!BC200:BC202), 0) -> 0
B185: Total
C186: Weight (g/d) | E186: =E146+E151+E156+E161+E166+E171+E176+E181 -> 3534421.696 | F186: =F146+F156+F161+F166+F171+F176+F181 -> 425667.0604 | G186: =G146+G151+G156+G161+G166+G171+G176+G181 -> 0
C187: Volume (scf/d) | E187: =E147+E152+E157+E162+E167+E172+E177+E182 -> 66810.03193 | F187: =F147+F157+F162+F167+F172+F177+F182 -> 22154.8181 | G187: =G147+G152+G157+G162+G167+G172+G177+G182 -> 0
C188: HHV (Btu/d) | E188: 0 | F188: =F148+F158+F163+F168+F173+F178+F183 -> 60466533.62 | G188: =G148+G153+G158+G163+G168+G173+G178+G183 -> 0
C189: LHV (Btu/d) | E189: 0 | F189: =F149+F159+F164+F169+F174+F179+F184 -> 20227348.93 | G189: =G149+G154+G159+G164+G169+G174+G179+G184 -> 0
B192: 2.1.3 GHG emissions from storage tanks
B193: Source | E193: CO2 | F193: CH4 | G193: VOC
B194: Storage tanks
C195: Weight (g/d) | E195: 0 | F195: =('Emissions Factors'!H70*'Production & Extraction'!M26)+('Production & Extraction'!M44*'Production & Extraction'!M26*'Venting & Fugitives'!M364) -> 212979.4742 | G195: 0 | H195: In offshore operations, tanks will not be included on platforms but are assumed instead to be included onshore before shipment of crude to transport terminals
C196: Volume (scf/d) | E196: 0 | F196: =F195/'Input Data'!D84 -> 11085.00505 | G196: 0
C197: HHV (Btu/d) | E197: 0 | F197: =F196*'Fuel Specs'!G135 -> 11229110.11 | G197: 0
C198: LHV (Btu/d) | E198: 0 | F198: =F196*'Fuel Specs'!H135 -> 10120609.61 | G198: 0
B199: Total
C200: Weight (g/d) | E200: 0 | F200: =F195 -> 212979.4742 | G200: =G195 -> 0
C201: Volume (scf/d) | E201: 0 | F201: =F196 -> 11085.00505 | G201: 0
C202: HHV (Btu/d) | E202: 0 | F202: 11229110.11 | G202: 0
C203: LHV (Btu/d) | E203: 0 | F203: 10120609.61 | G203: 0
A206: 2.2 Fugitive emissions
B208: 2.2.1 GHG emissions from various fugitive sources
B209: Source | E209: CO2 | F209: CH4 | G209: VOC | H209: Note(s):
B210: Active wells
C211: Weight (g/d) | E211: =M71*M73*1000000/365 -> 314.7682208 | F211: =M71*M74*1000000/365 -> 2302.778037 | G211: 0
C212: Volume (scf/d) | E212: =E211/'Input Data'!D83 -> 5.949962029 | F212: =F211/'Input Data'!D84 -> 119.8533626 | G212: 0
C213: HHV (Btu/d) | E213: 0 | F213: =F212*'Fuel Specs'!G135 -> 121411.4563 | G213: 0
... 142 more rows

Sheet Steam Generation
A1: Steam Generation | H1: Active field: | J1: ='Active Field'!C9 -> Generic
A3: This supplemental worksheet models the energy consumption and emissions from steam generation for thermal enhanced oil recovery
A4: Overall error check | C4: =IF(AND(L15="OK",M40="OK",M44="OK",M60="OK",M91="OK",G138="OK",R138="OK",G242="OK",O242="OK",G271="OK",Q271="OK",D310="OK",G376="OK",R376="OK"),"OK","ERROR") -> OK
A6: 1 Inputs
M8: User | N8: Default | O8: Units | Q8: User reference | S8: Default reference | V8: Notes | AC8: Allowed options
A9: 1.1 Key inputs (to be entered on "Inputs" sheet)
B10: 1.1.1 Steam flooding used | M10: ='Active Field'!J54 -> 0 | N10: ='Active Field'!K54 -> 0 | O10: [0-1] binary
B11: 1.1.2 Crude API gravity | M11: ='Active Field'!J73 -> 30 | N11: ='Active Field'!K73 -> 30 | O11: [-]
B12: 1.1.3 Crude Production rate | M12: ='Active Field'!J63 -> 1500 | N12: ='Active Field'!K63 -> 1500 | O12: STB/d
B13: 1.1.4 Steam oil ratio (SOR) | M13: ='Active Field'!J102 -> 3 | N13: 3 | O13: bbl steam/STB oil
B14: 1.1.5 Share of steam production by steam generator type
C15: 1.1.5.1 Simple once-through steam generator (OTSG) | K15: Check: | L15: =IF(SUM(M15:M17)=1,"OK","ERROR") -> OK | M15: =1-M16-M17 -> 1 | N15: =1-N16-N17 -> 1 | O15: [-] | V15: Change on sheet "Production & Extraction (p)"
C16: 1.1.5.2 Gas-turbine plus heat recovery steam generator (HRSG) | M16: ='Active Field'!J106 -> 0 | N16: ='Active Field'!K106 -> 0 | O16: [-] | V16: Change on sheet "Production & Extraction (p)"
C17: 1.1.5.3 Solar thermal steam generator | M17: ='Active Field'!J107 -> 0 | N17: ='Active Field'!K107 -> 0 | V17: Shares of steam generation technologies must sum to 1.
B18: 1.1.6 Field location (Country) | M18: ='Active Field'!J59 -> Generic | N18: ='Active Field'!K59 -> Generic
M20: User | N20: Default | O20: Units | Q20: User reference | S20: Default reference
A21: 1.2 Secondary inputs (to be entered on this sheet)
B22: 1.2.1 Use Canadian defaults for oil sands projects? | M22: =IF(M18="Canada","Yes","No") -> No | N22: =IF(N18="Canada","Yes","No") -> No | O22: Yes or no | AC22: Yes | AD22: No
B23: 1.2.2 Steam injection type | M23: SF | N23: SF | O23: - | V23: No difference between CSS, SF, and SAGD in the current version | AC23: CSS | AD23: SF | AE23: SAGD
C24: CSS = Cyclic steam stimulation; SF = Steamfllood; SAGD = Steam-assisted gravity drainage
B26: 1.2.3 Inlet water density | M26: =N26 -> 350.4312 | N26: ='Input Data'!E2385 -> 350.4312 | O26: lb/bbl | V26: Assume inlet water density is invariant with temperature and pressure.
B27: 1.2.4 Excess pressure required for steam distribution losses
C28: 1.2.4.1 Frictional losses in steam distribution and injection lines | M28: 1.1 | N28: 1.1 | O28: psia/psia | S28: Chilingarian et al. 1987, p. 228 | V28: Chilingarian, Robertson et al. note that "piping friction losses can represent 10-50% of the steam pressure developed at the outlet of the steam generator." (p. 228) We assume 25% loss of reservoir pressure for moderate approach.
C29: 1.2.4.2 Choke pressure drop at wellhead | M29: 1.7 | N29: 1.7 | O29: psia/psia | S29: Sarathi and Olsen 1992, NIPER-580 | V29: Upstream pressure 1.72 times that of downstream pressure at wellhead choke, as noted in p. 252 of Sarathi and Olsen (1992)
B30: 1.2.5 Steam quality at steam generator outlet | M30: =N30 -> 0.8 | N30: =IF(N22="No",0.8,IF(N22="Yes",0.77,"ERROR")) -> 0.8 | O30: kg steam / kg H2O | V30: Non-Canadian data from expert communication related to Calfiornia heavy oil operations. Canadian default from COSIA template.
B32: 1.2.6 OTSG inputs | V32: Composition fractions must sum to 1.
C33: 1.2.6.1 Air blower energy consumption for OTSG | M33: =3.7*1000000/745/(1488*24) -> 0.1390693031 | N33: =3.7*1000000/745/(1488*24) -> 0.1390693031 | O33: hp per MMBtu/d OTSG boiler capacity | V33: From COSIA SAGD template, p. 4 (COSIA 2014)
C34: 1.2.6.2 Air blower energy consumption for HRSG | M34: 0 | N34: 0 | O34: hp per MMBtu/d HRSG boiler capacity | V34: No blower assumed required for HRSG due to force of turbine exhaust
C37: 1.2.6.3 OTSG fuel input type (binary)
D38: 1.2.6.3.1 Gaseous fuels | M38: 1 | N38: 1 | O38: Btu/Btu | V38: Only choose 1 from gaseous or liquid fuels
D39: 1.2.6.3.2 Produced heavy crude | M39: 0 | N39: 0
L40: Check: | M40: =IF(SUM(M38:M39)=1,"OK","ERROR") -> OK
C41: 1.2.6.4 OTSG gaseous fuels share
D42: 1.2.6.4.1 Fraction natural gas | M42: 1 | N42: 1 | V42: Shares for OTSG gaseous fuel must sum to 1.
D43: 1.2.6.4.2 Fraction produced gas | M43: 0 | N43: 0 | V43: Shares for OTSG gaseous fuel must sum to 1.
L44: Check: | M44: =IF(SUM(M42:M43)=1,"OK","ERROR") -> OK
C46: 1.2.6.5 OTSG excess air in combustion | M46: 1.2 | N46: 1.2 | O46: lbmol O2 real/lbmol O2 stoichiometric | V46: Moles of O2 at combustion conditions compared to mols of O2 at stoichiometric conditions
C47: 1.2.6.6 OTSG inlet air temperature | M47: 80.33 | N47: 80.33 | O47: °F
C48: 1.2.6.7 OTSG outlet exhaust temperature | M48: 350 | N48: 350 | O48: °F
C49: 1.2.6.8 Other OTSG loss
D50: 1.2.6.8.1 OTSG shell loss inefficiency | M50: 0.04 | N50: 0.04 | O50: Btu/Btu fuel
D51: 1.2.6.8.2 OTSG other loss - Gaseous fuels | M51: 5000 | N51: 5000 | O51: Btu/lbmol fuel | V51: Ganapathy (2003) pg. 262 cites as "unaccounted loss"
D52: 1.2.6.8.3 OTSG other loss - Liquid fuels | M52: 250 | N52: 250 | O52: Btu/lbm fuel
B54: 1.2.7 GT + HRSG inputs
C55: 1.2.7.1 Gas turbine properties | V55: Choose "A", "B", "C", "D"
D56: 1.2.7.1.1 Turbine type | M56: C | N56: =IF(N22="No","C",IF(N22="Yes","D","ERROR")) -> C | O56: NA
D57: 1.2.7.1.2 Gas turbine fuel input type
E58: 1.2.7.1.2.1 Fraction natural gas | M58: 1 | N58: 1 | O58: Btu/Btu
E59: 1.2.7.1.2.2 Fraction product gas | M59: 0 | N59: 0 | O59: Btu/Btu
L60: Check | M60: =IF(SUM(M58:M59)=1,"OK","ERROR") -> OK | V60: Fuel shares for gas turbine must sum to 1.
C61: 1.2.7.2 HRSG properties
D62: 1.2.7.2.1 HRSG outlet exhaust temperature | M62: 350 | N62: 350 | O62: °F
D63: 1.2.7.2.2 HRSG shell losses | M63: 0.05 | N63: 0.05 | O63: Btu/Btu fuel | S63: Ganapathy (2003)
D64: 1.2.7.2.3 Duct firing? | M64: 0 | N64: 0 | O64: [0-1] binary
B66: 1.2.8 Fraction of boiler inlet water from makeup | M66: 0 | N66: 0 | O66: [-]
B67: 1.2.9 Recycled produced water properties | S67: Non-Canadian data from expert communication related to Calfiornia heavy oil operations. Canadian default from COSIA template.
C68: 1.2.9.1 Recycled produced water inlet temperature | M68: =IF(M22="Yes",338,140) -> 140 | N68: =IF(N22="Yes",338,140) -> 140 | O68: °F
C69: 1.2.9.2 Recycled produced water inlet pressure | M69: 200 | N69: 200 | O69: psia
B70: 1.2.10 Makeup water properties
C71: 1.2.10.1 Makeup water inlet temperature | M71: 50 | N71: 50 | O71: °F
C72: 1.2.10.2 Makeup water inlet pressure | M72: 100 | N72: 100 | O72: psia
B73: 1.2.11 Positive displacement pump efficiency | M73: =0.9*0.97 -> 0.873 | N73: =0.9*0.97 -> 0.873 | O73: [-] | S73: Tackett, Crype and Dyson 2008: Positive displacement reciprocating pump fundamentals | V73: From Figure 27 and associated text. Assume 90% mechanical efficiency and 97% efficiency volumetric efficiency (slip and compressibility)
A76: 1.3 Inputs from other sheets | V76: If "ERROR" is reported, check below for consistency.
B77: 1.3.1 Bottomhole flowing pressure at injector | M77: ='Active Field'!J68 -> 1556.6 | N77: ='Active Field'!K68 -> 1556.6 | O77: psia | S77: Green & Willhite (1998), Fox (SPE 8001) | V77: Steam injection projects are given a non-standard default pressure of 500 psia, due to the fact that steam injection projects generally occur in shallow reservoirs that are pressure depleted. Steam injection is more efficient at transfering heat to the formation and driving production in shallow reservoirs for a variety of reasons. See Green & Willhite (1998) or Fox (SPE 8001) for details.
B78: 1.3.2 Inlet air properties
C79: 1.3.2.1 Inlet air composition | L79: N2, Ar | M79: ='Input Data'!E104 -> 0.774396 | N79: ='Input Data'!E94 -> 0.7902 | O79: lbmol/lbmol air
L80: O2 | M80: ='Input Data'!E105 -> 0.20531 | N80: ='Input Data'!E95 -> 0.2095 | O80: lbmol/lbmol air
L81: CO2 | M81: ='Input Data'!E106 -> 0.000294 | N81: ='Input Data'!E96 -> 0.0003 | O81: lbmol/lbmol air
L82: H2O | M82: ='Input Data'!E107 -> 0.02 | N82: ='Input Data'!E97 -> 0 | O82: lbmol/lbmol air
L83: CH4 | M83: 0 | N83: 0 | O83: lbmol/lbmol air
L84: C2H6 | M84: 0 | N84: 0 | O84: lbmol/lbmol air
L85: C3H8 | M85: 0 | N85: 0 | O85: lbmol/lbmol air
L86: n-C4H10 | M86: 0 | N86: 0 | O86: lbmol/lbmol air
L87: CO | M87: 0 | N87: 0 | O87: lbmol/lbmol air
L88: H2 | M88: 0 | N88: 0 | O88: lbmol/lbmol air
L89: H2S | M89: 0 | N89: 0 | O89: lbmol/lbmol air
L90: SO2 | M90: 0 | N90: 0 | O90: lbmol/lbmol air
M91: =IF(SUM(M79:M90)=1,"OK","ERROR") -> OK
C92: 1.3.2.2 Inlet air weighted molar mass | M92: =SUMPRODUCT(M79:M90,'Fuel Specs'!E151:E162) -> 28.625944 | N92: =SUMPRODUCT(N79:N90,'Fuel Specs'!E151:E162) -> 28.8428 | O92: lb/lbmol air
A95: 2 Calculations
A97: 2.1 Calculated steam quantities and properties
B98: 2.1.1 Steam injection rate | M98: =M10*M13*M12 -> 0 | O98: bbl CWE/d | V98: Barrels of cold water equivalent (CWE) steam
B99: 2.1.2 Approximate water properties for lookup
C100: 2.1.2.1 Approximate recycled produced water inlet temperature | M100: =CEILING(M68-10,20) -> 140 | O100: °F | V100: Round inlet water temperature to nearest 20 F.
C101: 2.1.2.2 Approximate recycled produced water inlet pressure | M101: =MIN(MAX(CEILING(M69-50,100),100),1500) -> 200 | O101: psia | V101: Round inlet water pressure to nearest 100 psi, with limits of 100 to 1500 psia.
C102: 2.1.2.3 Approximate makeup water inlet temperature | M102: =CEILING(M71-10,20) -> 40 | O102: °F
C103: 2.1.2.4 Approximate makeup water inlet pressure | M103: =MIN(MAX(CEILING(M72-50,100),100),1500) -> 100 | O103: psia
B105: 2.1.3 Required water mass | M105: =M98*M26 -> 0 | O105: lbm/d
B106: 2.1.4 Horsepower to pressurize incoming water | M106: =M98*(M66*(M108-M103)+(1-M66)*(M108-M101))*0.00001701/M73 -> 0 | O106: bhp | V106: See above for positive displacement pump assumptions
B107: 2.1.5 Inlet water enthalpy | M107: =M66*INDEX('Input Data'!F2942:F4509,MATCH(1,(M103='Input Data'!B2942:B4509)*(M102='Input Data'!C2942:C4509),0))+(1-M66)*INDEX('Input Data'!F2942:F4509,MATCH(1,(M101='Input Data'!B2942:B4509)*(M100='Input Data'!C2942:C4509),0)) -> 108.5 | O107: Btu/lbm
B108: 2.1.6 Boiler inlet pressure | M108: =M109+25 -> 2935.842 | O108: psia | V108: Assume simple 25 PSI pressure drop from inlet of boiler to outlet
B109: 2.1.7 Steam pressure at outlet of steam generator | M109: =IF(M22="No",M77*M28*M29,IF(M22="Yes",1450,"ERROR")) -> 2910.842 | O109: psia | S109: Non-Canadian data from expert communication related to Calfiornia heavy oil operations. Canadian default from COSIA template. | V109: Steam pressure at wellbore must be higher than reservoir pressure.
C110: 2.1.7.1 Approximate steam pressure | M110: =CEILING(M109-2.5,5) -> 2910 | O110: psia | V110: Round steam pressure to nearest 5 psia
B111: 2.1.8 Saturated steam temperature (Tsteam) | M111: =VLOOKUP(M109,'Input Data'!B2440:K2937,2) -> 668.2 | O111: °F
B112: 2.1.9 Steam mixture fluid enthalpy | M112: =VLOOKUP(M111,'Input Data'!C2440:K2937,4) -> 730.8 | O112: Btu/lbm
B113: 2.1.10 Steam mixture vapor enthalpy | M113: =VLOOKUP(M111,'Input Data'!C2440:K2937,8) -> 1092 | O113: Btu/lbm | V113: Lookup table. 10-1000 psia by increments of 10 psia, 1025-3000 psia by increments of 25 psia
B114: 2.1.11 Weighted enthalpy of saturated steam | M114: =M30*M113+((1-M30)*M112) -> 1019.76 | O114: Btu/lbm
B115: 2.1.12 Enthalpy increase of water | M115: =M114-M107 -> 911.26 | O115: Btu/lbm
B116: 2.1.13 Energy demand for steam enthalpy change | M116: =M115*M105/1000000 -> 0 | O116: MMBtu/d
A118: 2.2 OTSG calculations
B119: 2.2.1 OTSG mass and energy balance
D122: =D124/'Input Data'!E18 -> 0 | J122: =J124/'Input Data'!E18 -> 0 | O122: =O124*1055.05/1000 -> 0 | U122: =U124*1055.05/1000 -> 0
C123: Water in | D123: kg/d | J123: kg/d | K123: Steam out | N123: Water H | O123: MJ/d | U123: MJ/d | V123: Steam out
D124: =M105*M15 -> 0 | J124: =M105*M15 -> 0 | O124: =M107*M105/1000*M15 -> 0 | U124: =M105*M114/1000*M15 -> 0
D125: =O105 -> lbm/d | G125: Once-through steam generator | J125: =D125 -> lbm/d | O125: MBtu/d | R125: Once-through steam generator | U125: MBtu/d
D127: =D129/'Input Data'!E18 -> 0 | G127: (OTSG) | J127: =J129/'Input Data'!E18 -> 0 | O127: =O129*1055.05/1000 -> 0 | R127: (OTSG) | U127: =U129*1055.05/1000 -> 0
C128: Air in | D128: kg/d | J128: kg/d | K128: Exhaust out | N128: Air H | O128: MJ/d | U128: MJ/d | V128: Exhaust out
D129: =M38*SUM(F152:F163)*M92*D210+M39*SUM(G152:G163)*M92*E210 -> 0 | J129: =M38*SUM(H152:H163)*H179*D210+M39*SUM(I152:I163)*I179*E210 -> 0 | O129: =((F173*D210)+(G173*E210))/1000 -> 0 | U129: =(H173*D210+I173*E210)/1000 -> 0
D130: lbm/d | G130: Mass balance | J130: lbm/d | O130: MBtu/d | R130: Energy balance | U130: MBtu/d
D132: =D134/'Input Data'!E18 -> 0 | O132: =O134*1055.05/1000 -> 0 | U132: =U135*1055.05/1000 -> 0
C133: Fuel in | D133: kg/d | N133: Fuel LHV | O133: MJ/d | U133: MJ/d | V133: Other waste heat out
D134: =SUM(M38:M38)*D179*D210+M39*E210 -> 0 | O134: =(D215+E215)*1000 -> 0
D135: lbm/d | O135: MBtu/d | U135: =(((D195+M51)*D210)+((E195+M52)*E210))/1000 -> 0
U136: MBtu/d
E137: Mass in | G137: Check | I137: Mass out | P137: Energy in | R137: Check: | T137: Energy out
E138: =SUM(D122,D127,D132)/1000 -> 0 | F138: t/d | G138: =IF(E138>0,IF(ABS((E138-I138)/E138)<=0.02,"OK","ERROR"),"OK") -> OK | I138: =SUM(J122,J127)/1000 -> 0 | J138: t/d | P138: =(O122+O127+O132)/1000000 -> 0 | Q138: TJ/d | R138: =IF(P138>0,IF(ABS((P138-T138)/P138)<=0.02,"OK","ERROR"),"OK") -> OK | T138: =SUM(U122,U127,U132)/1000000 -> 0 | U138: TJ/d
R140: Steam gen. efficiency
R141: =IF(O134>0,(U124-O124)/O134,"NA") -> NA
B142: 2.2.2 OTSG stoichiometry of combustion
C143: 2.2.2.1 OTSG crude liquid fuel mass fraction C | M143: =VLOOKUP(M11,'Fuel Specs'!B73:L114,3)/100 -> 0.8624241486 | N143: lbm C/lbm crude | V143: Mass fraction carbon
C144: 2.2.2.2 OTSG crude liquid fuel stoichiometric O2 requirements per C | M144: =VLOOKUP(M11,'Fuel Specs'!B73:L114,11) -> 1.425953465 | N144: lbmol O2/lbmol C
C145: 2.2.2.3 Stoichiometric O2 requirement | M145: =(E164+1/4*E165+E166)*M39 -> 0 | N145: lbmol O2 stoich./lbm crude liquid fuel consumed
C146: 2.2.2.4 Real O2 requirements | M146: =(M145*M46) -> 0 | N146: lbmol O2 real/lbm crude liquid fuel consumed
B148: 2.2.3 OTSG stream composition
D149: Fuel composition | F149: Air requirement | H149: Exhaust comnposition
D150: Gaseous fuels | E150: Liquid fuels | F150: Gaseous fuels | G150: Liquid fuels | H150: Gaseous fuels | I150: Liquid fuels
D151: lbmol/lbmol fuel | E151: - | F151: lbmol/lbmol fuel | G151: lbmol air/lbm crude liquid fuel | H151: lbmol/lbmol fuel | I151: lbmol exhaust/lbm crude liquid fuel
C152: N2, Ar | D152: =M$42*'Fuel Specs'!C230+M$43*'Fuel Specs'!C278 -> 0.004 | E152: - | F152: =(M$42*'Fuel Specs'!D261+M$43*'Fuel Specs'!D309)*(M$46)*$M$38 -> 9.287773174 | G152: =$M$146*M79/$M$80 -> 0 | H152: =F152*M38 -> 9.287773174 | I152: =(G152+E167/2)*M39 -> 0
C153: O2 | D153: =M$42*'Fuel Specs'!C231+M$43*'Fuel Specs'!C279 -> 0 | E153: - | F153: =(M$42*'Fuel Specs'!D262+M$43*'Fuel Specs'!D310)*(M$46)*$M$38 -> 2.4624 | G153: 0 | H153: =((M$42*'Fuel Specs'!$E262+M$43*'Fuel Specs'!$E310)+(($M$46-1)/$M$46)*F153)*M$38 -> 0.4104 | I153: =(G153-E164-1/4*E165-E166)*M39 -> 0
C154: CO2 | D154: =M$42*'Fuel Specs'!C232+M$43*'Fuel Specs'!C280 -> 0 | E154: - | F154: =(M$42*'Fuel Specs'!D263+M$43*'Fuel Specs'!D311)*(M$46)*$M$38 -> 0.003526109785 | G154: 0 | H154: =((M$42*'Fuel Specs'!$E263+M$43*'Fuel Specs'!$E311)+(($M$46-1)/$M$46)*F154)*M$38 -> 1.03952611 | I154: =(G154+E164)*M39 -> 0
C155: H2O | D155: =M$42*'Fuel Specs'!C233+M$43*'Fuel Specs'!C281 -> 0 | E155: - | F155: =(M$42*'Fuel Specs'!D264+M$43*'Fuel Specs'!D312)*(M$46)*$M$38 -> 0.239871414 | G155: 0 | H155: =((M$42*'Fuel Specs'!$E264+M$43*'Fuel Specs'!$E312)+(($M$46-1)/$M$46)*F155)*M$38 -> 2.271871414 | I155: =(G155+E165/2)*M39 -> 0
C156: CH4 | D156: =M$42*'Fuel Specs'!C234+M$43*'Fuel Specs'!C282 -> 0.966 | E156: - | F156: =(M$42*'Fuel Specs'!D265+M$43*'Fuel Specs'!D313)*(M$46)*$M$38 -> 0 | G156: 0 | H156: =((M$42*'Fuel Specs'!$E265+M$43*'Fuel Specs'!$E313)+(($M$46-1)/$M$46)*F156)*M$38 -> 0 | I156: =G156*M39 -> 0
C157: C2H6 | D157: =M$42*'Fuel Specs'!C235+M$43*'Fuel Specs'!C283 -> 0.02 | E157: - | F157: =(M$42*'Fuel Specs'!D266+M$43*'Fuel Specs'!D314)*(M$46)*$M$38 -> 0 | G157: 0 | H157: =((M$42*'Fuel Specs'!$E266+M$43*'Fuel Specs'!$E314)+(($M$46-1)/$M$46)*F157)*M$38 -> 0 | I157: =G157*M39 -> 0
C158: C3H8 | D158: =M$42*'Fuel Specs'!C236+M$43*'Fuel Specs'!C284 -> 0.01 | E158: - | F158: =(M$42*'Fuel Specs'!D267+M$43*'Fuel Specs'!D315)*(M$46)*$M$38 -> 0 | G158: 0 | H158: =((M$42*'Fuel Specs'!$E267+M$43*'Fuel Specs'!$E315)+(($M$46-1)/$M$46)*F158)*M$38 -> 0 | I158: =G158*M39 -> 0
C159: n-C4H10 | D159: =M$42*'Fuel Specs'!C237+M$43*'Fuel Specs'!C285 -> 0 | E159: - | F159: =(M$42*'Fuel Specs'!D268+M$43*'Fuel Specs'!D316)*(M$46)*$M$38 -> 0 | G159: 0 | H159: =((M$42*'Fuel Specs'!$E268+M$43*'Fuel Specs'!$E316)+(($M$46-1)/$M$46)*F159)*M$38 -> 0 | I159: =G159*M39 -> 0
C160: CO | D160: =M$42*'Fuel Specs'!C238+M$43*'Fuel Specs'!C286 -> 0 | E160: - | F160: =(M$42*'Fuel Specs'!D269+M$43*'Fuel Specs'!D317)*(M$46)*$M$38 -> 0 | G160: 0 | H160: =((M$42*'Fuel Specs'!$E269+M$43*'Fuel Specs'!$E317)+(($M$46-1)/$M$46)*F160)*M$38 -> 0 | I160: =G160*M39 -> 0
C161: H2 | D161: =M$42*'Fuel Specs'!C239+M$43*'Fuel Specs'!C287 -> 0 | E161: - | F161: =(M$42*'Fuel Specs'!D270+M$43*'Fuel Specs'!D318)*(M$46)*$M$38 -> 0 | G161: 0 | H161: =((M$42*'Fuel Specs'!$E270+M$43*'Fuel Specs'!$E318)+(($M$46-1)/$M$46)*F161)*M$38 -> 0 | I161: =G161*M39 -> 0
C162: H2S | D162: =M$42*'Fuel Specs'!C240+M$43*'Fuel Specs'!C288 -> 0 | E162: - | F162: =(M$42*'Fuel Specs'!D271+M$43*'Fuel Specs'!D319)*(M$46)*$M$38 -> 0 | G162: 0 | H162: =((M$42*'Fuel Specs'!$E271+M$43*'Fuel Specs'!$E319)+(($M$46-1)/$M$46)*F162)*M$38 -> 0 | I162: =G162*M39 -> 0
C163: SO2 | D163: =M$42*'Fuel Specs'!C241+M$43*'Fuel Specs'!C289 -> 0 | E163: - | F163: =(M$42*'Fuel Specs'!D272+M$43*'Fuel Specs'!D320)*(M$46)*$M$38 -> 0 | G163: 0 | H163: =((M$42*'Fuel Specs'!$E272+M$43*'Fuel Specs'!$E320)+(($M$46-1)/$M$46)*F163)*M$38 -> 0 | I163: =(G163+E166)*M39 -> 0
C164: C | D164: - | E164: =VLOOKUP(M11,'Fuel Specs'!B73:Q114,12) -> 0.07186867905 | F164: - | G164: - | H164: - | I164: -
C165: H | D165: - | E165: =VLOOKUP(M11,'Fuel Specs'!B73:Q114,13) -> 0.1205758514 | F165: - | G165: - | H165: - | I165: -
C166: S | D166: - | E166: =VLOOKUP(M11,'Fuel Specs'!B73:Q114,14) -> 0.00046875 | F166: - | G166: - | H166: - | I166: -
C167: N | D167: - | E167: =VLOOKUP(M11,'Fuel Specs'!B73:Q114,15) -> 0.0001428571429 | F167: - | G167: - | H167: - | I167: -
B169: 2.2.4 OTSG stream enthalpies
D170: Fuel enthalpy | F170: Air enthalpy | H170: Exhaust enthalpy | V170: Neglect latent heat of vaporization of air and exhaust H2O because working with LHV balance
D171: Gaseous fuels | E171: Liquid fuels | F171: Gaseous fuels | G171: Liquid fuels | H171: Gaseous fuels | I171: Liquid fuels
D172: Btu LHV/lbmol | E172: Btu LHV/lbm | F172: Btu/lbmol fuel | G172: Btu/lbm crude liquid fuel | H172: Btu/lbmol fuel | I172: Btu/lbm crude liquid fuel
D173: =SUMPRODUCT(D152:D163,'Fuel Specs'!N131:N142) -> 355007.4989 | E173: =VLOOKUP(M11,'Fuel Specs'!B24:O65,3) -> 17980 | F173: =F152*'Input Data'!$C$2341+F153*'Input Data'!$D$2341+F154*'Input Data'!$E$2341+F155*('Input Data'!$I$2341)+1*'Input Data'!$J$2341 -> 0 | G173: =G152*'Input Data'!$C$2341+G153*'Input Data'!$D$2341+G154*'Input Data'!$E$2341+G155*('Input Data'!$I$2341)+1*'Input Data'!$J$2341 -> 0 | H173: =H152*'Input Data'!$C$2350+H153*'Input Data'!$D$2350+H154*'Input Data'!$E$2350+H155*('Input Data'!$I$2350)+H163*'Input Data'!F2350 -> 26029.68452 | I173: =I152*'Input Data'!$C$2350+I153*'Input Data'!$D$2350+I154*'Input Data'!$E$2350+I155*('Input Data'!$I$2350)+I163*'Input Data'!F2350 -> 0
B175: 2.2.5 OTSG stream molar masses
D176: Fuel molar mass | F176: Air molar mass | H176: Exhaust molar mass
D177: Gaseous fuels | E177: Liquid fuels | F177: Gaseous fuels | G177: Liquid fuels | H177: Gaseous fuels | I177: Liquid fuels
D178: lb/lbmol | E178: lb/lbmol | F178: lb/lbmol | G178: lb/lbmol | H178: lb/lbmol | I178: lb/lbmol
D179: =SUMPRODUCT(D152:D163,'Fuel Specs'!E151:E162) -> 16.608 | E179: - | F179: =IFERROR(SUMPRODUCT(F152:F163,'Fuel Specs'!E151:E162)/SUM(F152:F163),0) -> 28.625944 | G179: =IFERROR(SUMPRODUCT(G152:G163,'Fuel Specs'!E151:E162)/SUM(H152:H163),0) -> 0 | H179: =IFERROR(SUMPRODUCT(H152:H163,'Fuel Specs'!E151:E162)/SUM(H152:H163),0) -> 27.6583518 | I179: =IFERROR(SUMPRODUCT(I152:I163,'Fuel Specs'!E151:E162)/SUM(I152:I163),0) -> 0
B181: 2.2.6 Mole fraction CO2 in exhaust
D182: Gaseous fuels | E182: Liquid fuels
D183: lbmol CO2/lbmol exhaust | E183: lbmol CO2/lbmol exhaust
D184: =IFERROR(H154/SUM(H152:H163),0) -> 0.07990472045 | E184: =IFERROR(I154/SUM(I152:I163),0) -> 0
B186: 2.2.7 OTSG efficiency
C187: 2.2.7.1 OTSG input enthalpy per unit of fuel
D188: Gaseous fuels | E188: Liquid fuels
D189: Btu/lbmol fuel | E189: Btu/lbm fuel
D190: =(F173+D173-H173)*M$38 -> 328977.8143 | E190: =(G173+E173-I173)*M39 -> 0
C192: 2.2.7.2 OTSG shell loss per unit of fuel
D193: Gaseous fuels | E193: Liquid fuels
D194: Btu/lbmol fuel | E194: Btu/lbm fuel
D195: =(M50*D173)*M$38 -> 14200.29995 | E195: =(M50*E173)*M39 -> 0
C197: 2.2.7.3 OTSG available enthalpy per unit of fuel
D198: Gaseous fuels | E198: Liquid fuels
D199: Btu/lbmol fuel | E199: Btu/lbm fuel
D200: =MAX(D190-D195-M51,0) -> 309777.5144 | E200: =MAX((E190-E195-M52),0) -> 0
C202: 2.2.7.4 OTSG efficiency
D203: =IF(M38=1,(D200/D173),(E200/E173)) -> 0.8725942843 | E203: Btu in steam per Btu fuel combusted (LHV)
B206: 2.2.8 OTSG energy consumption
C207: 2.2.8.1 Fuels combusted for steam generation
D208: Gaseous fuels | E208: Liquid fuels
D209: lbmol/d | E209: lbm/d
D210: =IFERROR((M116*M15*1000000)/D200,0) -> 0 | E210: =IFERROR((M116*1000000)/E200,0)*M15 -> 0
C212: 2.2.8.2 Fuel energy consumed for steam generation
D213: Gaseous fuels | E213: Liquid fuels
D214: MMBtu/d | E214: MMBtu/d
D215: =D210*D173/1000000 -> 0 | E215: =E210*E173/1000000 -> 0
C217: 2.2.8.3 Electricity consumption
D218: 2.2.8.3.1 Electricity consumption for water pumping | M218: =M106*Drivers!P112*24/1000000*M15 -> 0 | O218: MMBtu e-/d
D219: 2.2.8.3.2 Electricity consumption for air blowing | M219: =M33*D215*Drivers!P112*24/1000000*M15 -> 0 | O219: MMBtu e-/d
A223: 2.3 GT + HRSG calculations
B224: 2.3.1 GT + HRSG mass and energy balances
D226: =D228/'Input Data'!E18 -> 0 | L226: =L228*'Input Data'!E19 -> 0 | R226: =R228*'Input Data'!E19 -> 0 | S226: Steam out
C227: Air in | D227: kg/d | K227: Water in | L227: kg/d | R227: kg/d
D228: =E316*D233/D315 -> 0 | L228: =R228 -> 0 | R228: =M105*M16 -> 0
D229: lbm/d | L229: lbm/d | R229: lbm/d
D231: =D233/'Input Data'!E18 -> 0 | G231: Gas turbine | J231: =J233/'Input Data'!E18 -> 0 | O231: HRSG
C232: Fuel in | D232: kg/d | J232: kg/d | K232: GT exhaust out | R232: =R234/'Input Data'!E18 -> 0 | S232: HRSG exhaust out
D233: =D257*1000/D323 -> 0 | J233: =J256*1000/F323 -> 0 | R233: kg/d
D234: lbm/d | G234: Mass balance | J234: lbm/d | O234: Mass balance | R234: =J233+L237 -> 0
L235: =L237*'Input Data'!E19 -> 0 | R235: lbm/d
K236: Fuel in | L236: kg/d
L237: =M262*1000/D323 -> 0
L238: lbm/d
E241: Mass in | G241: Check | I241: Mass out | M241: Mass in | O241: Check | Q241: Mass out
E242: =D226+D231 -> 0 | F242: kg | G242: =IFERROR(IF((ABS(E242-I242))/E242<=0.02,"OK","ERROR"),"OK") -> OK | I242: =SUM(J231) -> 0 | J242: kg | M242: =L226+J231+L235 -> 0 | N242: kg | O242: =IFERROR(IF((ABS(M242-Q242))/M242<=0.02,"OK","ERROR"),"OK") -> OK | Q242: =SUM(R226,R232) -> 0 | R242: kg
... 107 more rows

Sheet Upgrading
A1: Supplemental worksheet: Heavy crude and bitumen upgrading
A3: This supplemental worksheet contains results from the OSTUM model for three upgraders that process bitumen into synthetic crude oil
A4: Note: These results are based on modeling of bitumen upgrading in three Canadian upgraders. Application to other global heavy-oil resources will result in increased uncertainty.
A6: 1 Data inputs and data collection notes
A9: 1.1 Delayed coking
B11: Delayed coking model results | F11: Notes
B12: Capacity | C12: 370,000 bpd of bitumen
B13: Simlar real-world project | C13: Suncor upgrader
B14: SCO/bitumen | C14: 0.83
B15: Feedstock | C15: Borealis Heavy Blend (BHB)
B16: Product Quality | C16: Sweet SCO, properties similar to Suncor Synthetic A (Density: 858.1 kg/m3; API: 33.2 °API, S Content: 0.18 wt%; N Content: 692.3 mass ppm)
B17: Heating Values | C17: LHV
B18: Use of By-Products | C18: Process Gas: 65%; Coke: 11%
B19: LHV of Natural Gas | C19: @ 32F, 1 atm: 983 Btu/ft3 = 47.14 MJ/kg (density @ 32F, 1 atm: 22 grams/ft3); from: GREET1_2015
